Workbook

Sheet Debit transactions (2024)
A1: Bank Acct | B1: Date | C1: Description | D1: Amount | E1: BA Balance | F1: WF Balance | G1: Who | H1: Bill to | I1: Class | J1: Expense Report? | K1: Invoice | L1: Paid Date | M1: Column1 | N1: Charge Receipt | O1: Exists?
A2: BA | B2: 2022-01-01 | C2: Beginning balance as of 01/01/2022 | D2: 663.71 | E2: =IF(Table147[[#This Row],[Bank Acct]]=LEFT(Table147[[#Headers],[BA Balance]],2),SUMIF(Table147[[#Headers],[Bank Acct]]:Table147[[#This Row],[Bank Acct]],Table147[[#This Row],[Bank Acct]],Table147[[#Headers],[Amount]]:Table147[[#This Row],[Amount]]),"") -> 663.71 | F2: =IF(Table147[[#This Row],[Bank Acct]]=LEFT(Table147[[#Headers],[WF Balance]],2),SUMIF(Table147[[#Headers],[Bank Acct]]:Table147[[#This Row],[Bank Acct]],Table147[[#This Row],[Bank Acct]],Table147[[#Headers],[Amount]]:Table147[[#This Row],[Amount]]),"") ->  | G2: =IFERROR(INDEX(Lookup!$B$2:$C$7,MATCH(RIGHT(TRIM(Table147[[#This Row],[Description]]),4),Lookup!$B$2:$B$7,0),2),"") ->  | L2: =IF(OR(LEFT(Table147[[#This Row],[Invoice]],1)="0",LEFT(Table147[[#This Row],[Invoice]],1)="1"),INDEX(Invoice_dates,MATCH(Table147[[#This Row],[Invoice]],'2023 Invoice Payments'!$L$1:$L$100,0),2),"") ->  | M2: Y:\$ AerospaceEdge\AGG Finance\AGG Credit Card Receipts\ | O2: =IF(RIGHT(Table147[[#This Row],[Charge Receipt]],3)<>"pdf","",IF(FileExists(Table147[[#This Row],[Column1]]&Table147[[#This Row],[Charge Receipt]]),FileExists(Table147[[#This Row],[Column1]]&Table147[[#This Row],[Charge Receipt]]),FileExists("Y:\$ AerospaceEdge\AGG Finance\AGG Distribution Documents\"&Table147[[#This Row],[Charge Receipt]]))) -> 
A3: BA | B3: 2022-01-03 | C3: OWL FOR THUNDERBI 01/02 PURCHASE WIESBADEN DEBIT CARD *7429 | D3: -11.38 | E3: =IF(Table147[[#This Row],[Bank Acct]]=LEFT(Table147[[#Headers],[BA Balance]],2),SUMIF(Table147[[#Headers],[Bank Acct]]:Table147[[#This Row],[Bank Acct]],Table147[[#This Row],[Bank Acct]],Table147[[#Headers],[Amount]]:Table147[[#This Row],[Amount]]),"") -> 652.33 | F3: =IF(Table147[[#This Row],[Bank Acct]]=LEFT(Table147[[#Headers],[WF Balance]],2),SUMIF(Table147[[#Headers],[Bank Acct]]:Table147[[#This Row],[Bank Acct]],Table147[[#This Row],[Bank Acct]],Table147[[#Headers],[Amount]]:Table147[[#This Row],[Amount]]),"") ->  | G3: =IFERROR(INDEX(Lookup!$B$2:$C$7,MATCH(RIGHT(TRIM(Table147[[#This Row],[Description]]),4),Lookup!$B$2:$B$7,0),2),"") -> FWC | H3: AGG | I3: Outlook | J3: 221226 - FWC ER Mastercard EOY-2022 | K3: - | L3: =IF(OR(LEFT(Table147[[#This Row],[Invoice]],1)="0",LEFT(Table147[[#This Row],[Invoice]],1)="1"),INDEX(Invoice_dates,MATCH(Table147[[#This Row],[Invoice]],'2023 Invoice Payments'!$L$1:$L$100,0),2),"") ->  | M3: Y:\$ AerospaceEdge\AGG Finance\AGG Credit Card Receipts\ | N3: 220102 - OWL invoice 3-47107.pdf | O3: =IF(RIGHT(Table147[[#This Row],[Charge Receipt]],3)<>"pdf","",IF(FileExists(Table147[[#This Row],[Column1]]&Table147[[#This Row],[Charge Receipt]]),FileExists(Table147[[#This Row],[Column1]]&Table147[[#This Row],[Charge Receipt]]),FileExists("Y:\$ AerospaceEdge\AGG Finance\AGG Distribution Documents\"&Table147[[#This Row],[Charge Receipt]]))) -> TRUE
A4: BA | B4: 2022-01-03 | C4: Monthly Fee Business Adv Relationship | D4: -29.95 | E4: =IF(Table147[[#This Row],[Bank Acct]]=LEFT(Table147[[#Headers],[BA Balance]],2),SUMIF(Table147[[#Headers],[Bank Acct]]:Table147[[#This Row],[Bank Acct]],Table147[[#This Row],[Bank Acct]],Table147[[#Headers],[Amount]]:Table147[[#This Row],[Amount]]),"") -> 622.38 | F4: =IF(Table147[[#This Row],[Bank Acct]]=LEFT(Table147[[#Headers],[WF Balance]],2),SUMIF(Table147[[#Headers],[Bank Acct]]:Table147[[#This Row],[Bank Acct]],Table147[[#This Row],[Bank Acct]],Table147[[#Headers],[Amount]]:Table147[[#This Row],[Amount]]),"") ->  | G4: =IFERROR(INDEX(Lookup!$B$2:$C$7,MATCH(RIGHT(TRIM(Table147[[#This Row],[Description]]),4),Lookup!$B$2:$B$7,0),2),"") ->  | H4: AGG | I4: Bank Charge | K4: - | L4: =IF(OR(LEFT(Table147[[#This Row],[Invoice]],1)="0",LEFT(Table147[[#This Row],[Invoice]],1)="1"),INDEX(Invoice_dates,MATCH(Table147[[#This Row],[Invoice]],'2023 Invoice Payments'!$L$1:$L$100,0),2),"") ->  | M4: Y:\$ AerospaceEdge\AGG Finance\AGG Credit Card Receipts\ | O4: =IF(RIGHT(Table147[[#This Row],[Charge Receipt]],3)<>"pdf","",IF(FileExists(Table147[[#This Row],[Column1]]&Table147[[#This Row],[Charge Receipt]]),FileExists(Table147[[#This Row],[Column1]]&Table147[[#This Row],[Charge Receipt]]),FileExists("Y:\$ AerospaceEdge\AGG Finance\AGG Distribution Documents\"&Table147[[#This Row],[Charge Receipt]]))) -> 
A5: BA | B5: 2022-01-03 | C5: INTERNATIONAL TRANSACTION FEE 01/02 OWL FOR THUNDERBI WIESBADEN DEBIT CARD *7429 | D5: -0.34 | E5: =IF(Table147[[#This Row],[Bank Acct]]=LEFT(Table147[[#Headers],[BA Balance]],2),SUMIF(Table147[[#Headers],[Bank Acct]]:Table147[[#This Row],[Bank Acct]],Table147[[#This Row],[Bank Acct]],Table147[[#Headers],[Amount]]:Table147[[#This Row],[Amount]]),"") -> 622.04 | F5: =IF(Table147[[#This Row],[Bank Acct]]=LEFT(Table147[[#Headers],[WF Balance]],2),SUMIF(Table147[[#Headers],[Bank Acct]]:Table147[[#This Row],[Bank Acct]],Table147[[#This Row],[Bank Acct]],Table147[[#Headers],[Amount]]:Table147[[#This Row],[Amount]]),"") ->  | G5: =IFERROR(INDEX(Lookup!$B$2:$C$7,MATCH(RIGHT(TRIM(Table147[[#This Row],[Description]]),4),Lookup!$B$2:$B$7,0),2),"") -> FWC | H5: AGG | I5: Outlook | J5: 221226 - FWC ER Mastercard EOY-2022 | K5: - | L5: =IF(OR(LEFT(Table147[[#This Row],[Invoice]],1)="0",LEFT(Table147[[#This Row],[Invoice]],1)="1"),INDEX(Invoice_dates,MATCH(Table147[[#This Row],[Invoice]],'2023 Invoice Payments'!$L$1:$L$100,0),2),"") ->  | M5: Y:\$ AerospaceEdge\AGG Finance\AGG Credit Card Receipts\ | N5: =TEXT(Table147[[#This Row],[Date]],"YYMMDD")&" - Intl Transaction Fee - "&LEFT(RIGHT(Table147[[#This Row],[Description]],LEN(Table147[[#This Row],[Description]])-LEN("international transaction fee xx/xx ")),SEARCH("DEBIT",RIGHT(Table147[[#This Row],[Description]],LEN(Table147[[#This Row],[Description]])-LEN("international transaction fee xx/xx xx"))))&".pdf" -> 220103 - Intl Transaction Fee - OWL FOR THUNDERBI WIESBADEN.pdf | O5: =IF(RIGHT(Table147[[#This Row],[Charge Receipt]],3)<>"pdf","",IF(FileExists(Table147[[#This Row],[Column1]]&Table147[[#This Row],[Charge Receipt]]),FileExists(Table147[[#This Row],[Column1]]&Table147[[#This Row],[Charge Receipt]]),FileExists("Y:\$ AerospaceEdge\AGG Finance\AGG Distribution Documents\"&Table147[[#This Row],[Charge Receipt]]))) -> TRUE
A6: BA | B6: 2022-01-19 | C6: MAILCHIMP *MISC 01/18 PURCHASE MAILCHIMP.COM GA DEBIT CARD *7411 | D6: -9.49 | E6: =IF(Table147[[#This Row],[Bank Acct]]=LEFT(Table147[[#Headers],[BA Balance]],2),SUMIF(Table147[[#Headers],[Bank Acct]]:Table147[[#This Row],[Bank Acct]],Table147[[#This Row],[Bank Acct]],Table147[[#Headers],[Amount]]:Table147[[#This Row],[Amount]]),"") -> 612.55 | F6: =IF(Table147[[#This Row],[Bank Acct]]=LEFT(Table147[[#Headers],[WF Balance]],2),SUMIF(Table147[[#Headers],[Bank Acct]]:Table147[[#This Row],[Bank Acct]],Table147[[#This Row],[Bank Acct]],Table147[[#Headers],[Amount]]:Table147[[#This Row],[Amount]]),"") ->  | G6: =IFERROR(INDEX(Lookup!$B$2:$C$7,MATCH(RIGHT(TRIM(Table147[[#This Row],[Description]]),4),Lookup!$B$2:$B$7,0),2),"") -> LRC | H6: AGG | I6: Mailchimp | J6: 220310 - LRC ADS_BG ER MasterCard 04-2022 | K6: - | L6: =IF(OR(LEFT(Table147[[#This Row],[Invoice]],1)="0",LEFT(Table147[[#This Row],[Invoice]],1)="1"),INDEX(Invoice_dates,MATCH(Table147[[#This Row],[Invoice]],'2023 Invoice Payments'!$L$1:$L$100,0),2),"") ->  | M6: Y:\$ AerospaceEdge\AGG Finance\AGG Credit Card Receipts\ | N6: 220118 - AGG - Mailchimp Essentials MC14760854.pdf | O6: =IF(RIGHT(Table147[[#This Row],[Charge Receipt]],3)<>"pdf","",IF(FileExists(Table147[[#This Row],[Column1]]&Table147[[#This Row],[Charge Receipt]]),FileExists(Table147[[#This Row],[Column1]]&Table147[[#This Row],[Charge Receipt]]),FileExists("Y:\$ AerospaceEdge\AGG Finance\AGG Distribution Documents\"&Table147[[#This Row],[Charge Receipt]]))) -> TRUE
A7: BA | B7: 2022-01-20 | C7: MailChimp 01/20 PURCHASE Atlanta GA DEBIT CARD *7411 | D7: -47.69 | E7: =IF(Table147[[#This Row],[Bank Acct]]=LEFT(Table147[[#Headers],[BA Balance]],2),SUMIF(Table147[[#Headers],[Bank Acct]]:Table147[[#This Row],[Bank Acct]],Table147[[#This Row],[Bank Acct]],Table147[[#Headers],[Amount]]:Table147[[#This Row],[Amount]]),"") -> 564.86 | F7: =IF(Table147[[#This Row],[Bank Acct]]=LEFT(Table147[[#Headers],[WF Balance]],2),SUMIF(Table147[[#Headers],[Bank Acct]]:Table147[[#This Row],[Bank Acct]],Table147[[#This Row],[Bank Acct]],Table147[[#Headers],[Amount]]:Table147[[#This Row],[Amount]]),"") ->  | G7: =IFERROR(INDEX(Lookup!$B$2:$C$7,MATCH(RIGHT(TRIM(Table147[[#This Row],[Description]]),4),Lookup!$B$2:$B$7,0),2),"") -> LRC | H7: Peregrine | I7: Mailchimp | J7: 220310 - LRC ADS_BG ER MasterCard Peregrine Billable 03-2022 | K7: 005-22 | L7: =IF(OR(LEFT(Table147[[#This Row],[Invoice]],1)="0",LEFT(Table147[[#This Row],[Invoice]],1)="1"),INDEX(Invoice_dates,MATCH(Table147[[#This Row],[Invoice]],'2023 Invoice Payments'!$L$1:$L$100,0),2),"") ->  | M7: Y:\$ AerospaceEdge\AGG Finance\AGG Credit Card Receipts\ | N7: 220120 - Peregrine - Mailchimp Essentials MC14777938.pdf | O7: =IF(RIGHT(Table147[[#This Row],[Charge Receipt]],3)<>"pdf","",IF(FileExists(Table147[[#This Row],[Column1]]&Table147[[#This Row],[Charge Receipt]]),FileExists(Table147[[#This Row],[Column1]]&Table147[[#This Row],[Charge Receipt]]),FileExists("Y:\$ AerospaceEdge\AGG Finance\AGG Distribution Documents\"&Table147[[#This Row],[Charge Receipt]]))) -> TRUE
A8: BA | B8: 2022-01-24 | C8: PEREGRINE AVIONI DES:QUICKBOOKS ID:375020979 INDN:AVIAGLOBAL GROUP, LLC CO ID:1722616653 PPD | D8: 1500 | E8: =IF(Table147[[#This Row],[Bank Acct]]=LEFT(Table147[[#Headers],[BA Balance]],2),SUMIF(Table147[[#Headers],[Bank Acct]]:Table147[[#This Row],[Bank Acct]],Table147[[#This Row],[Bank Acct]],Table147[[#Headers],[Amount]]:Table147[[#This Row],[Amount]]),"") -> 2064.86 | F8: =IF(Table147[[#This Row],[Bank Acct]]=LEFT(Table147[[#Headers],[WF Balance]],2),SUMIF(Table147[[#Headers],[Bank Acct]]:Table147[[#This Row],[Bank Acct]],Table147[[#This Row],[Bank Acct]],Table147[[#Headers],[Amount]]:Table147[[#This Row],[Amount]]),"") ->  | G8: =IFERROR(INDEX(Lookup!$B$2:$C$7,MATCH(RIGHT(TRIM(Table147[[#This Row],[Description]]),4),Lookup!$B$2:$B$7,0),2),"") ->  | H8: Peregrine | L8: =IF(OR(LEFT(Table147[[#This Row],[Invoice]],1)="0",LEFT(Table147[[#This Row],[Invoice]],1)="1"),INDEX(Invoice_dates,MATCH(Table147[[#This Row],[Invoice]],'2023 Invoice Payments'!$L$1:$L$100,0),2),"") ->  | M8: Y:\$ AerospaceEdge\AGG Finance\AGG Credit Card Receipts\ | O8: =IF(RIGHT(Table147[[#This Row],[Charge Receipt]],3)<>"pdf","",IF(FileExists(Table147[[#This Row],[Column1]]&Table147[[#This Row],[Charge Receipt]]),FileExists(Table147[[#This Row],[Column1]]&Table147[[#This Row],[Charge Receipt]]),FileExists("Y:\$ AerospaceEdge\AGG Finance\AGG Distribution Documents\"&Table147[[#This Row],[Charge Receipt]]))) -> 
A9: BA | B9: 2022-01-24 | C9: SOFTACULOUS 01/24 PURCHASE ABU DHABI DEBIT CARD *7429 | D9: -24 | E9: =IF(Table147[[#This Row],[Bank Acct]]=LEFT(Table147[[#Headers],[BA Balance]],2),SUMIF(Table147[[#Headers],[Bank Acct]]:Table147[[#This Row],[Bank Acct]],Table147[[#This Row],[Bank Acct]],Table147[[#Headers],[Amount]]:Table147[[#This Row],[Amount]]),"") -> 2040.86 | F9: =IF(Table147[[#This Row],[Bank Acct]]=LEFT(Table147[[#Headers],[WF Balance]],2),SUMIF(Table147[[#Headers],[Bank Acct]]:Table147[[#This Row],[Bank Acct]],Table147[[#This Row],[Bank Acct]],Table147[[#Headers],[Amount]]:Table147[[#This Row],[Amount]]),"") ->  | G9: =IFERROR(INDEX(Lookup!$B$2:$C$7,MATCH(RIGHT(TRIM(Table147[[#This Row],[Description]]),4),Lookup!$B$2:$B$7,0),2),"") -> FWC | H9: Peregrine | I9: Security | J9: 221221 - FWC ER Peregrine Billable 1Q22 | K9: 020-22 | L9: =IF(OR(LEFT(Table147[[#This Row],[Invoice]],1)="0",LEFT(Table147[[#This Row],[Invoice]],1)="1"),INDEX(Invoice_dates,MATCH(Table147[[#This Row],[Invoice]],'2023 Invoice Payments'!$L$1:$L$100,0),2),"") -> 2023-01-05 | M9: Y:\$ AerospaceEdge\AGG Finance\AGG Credit Card Receipts\ | N9: 220124 - Softaculous Loginizer 783150.pdf | O9: =IF(RIGHT(Table147[[#This Row],[Charge Receipt]],3)<>"pdf","",IF(FileExists(Table147[[#This Row],[Column1]]&Table147[[#This Row],[Charge Receipt]]),FileExists(Table147[[#This Row],[Column1]]&Table147[[#This Row],[Charge Receipt]]),FileExists("Y:\$ AerospaceEdge\AGG Finance\AGG Distribution Documents\"&Table147[[#This Row],[Charge Receipt]]))) -> TRUE
A10: BA | B10: 2022-01-24 | C10: ELEMENTOR 01/24 PURCHASE WILMINGTON DE DEBIT CARD *7429 | D10: -49 | E10: =IF(Table147[[#This Row],[Bank Acct]]=LEFT(Table147[[#Headers],[BA Balance]],2),SUMIF(Table147[[#Headers],[Bank Acct]]:Table147[[#This Row],[Bank Acct]],Table147[[#This Row],[Bank Acct]],Table147[[#Headers],[Amount]]:Table147[[#This Row],[Amount]]),"") -> 1991.86 | F10: =IF(Table147[[#This Row],[Bank Acct]]=LEFT(Table147[[#Headers],[WF Balance]],2),SUMIF(Table147[[#Headers],[Bank Acct]]:Table147[[#This Row],[Bank Acct]],Table147[[#This Row],[Bank Acct]],Table147[[#Headers],[Amount]]:Table147[[#This Row],[Amount]]),"") ->  | G10: =IFERROR(INDEX(Lookup!$B$2:$C$7,MATCH(RIGHT(TRIM(Table147[[#This Row],[Description]]),4),Lookup!$B$2:$B$7,0),2),"") -> FWC | H10: Peregrine | I10: CMS Editor | J10: 221221 - FWC ER Peregrine Billable 1Q22 | K10: 020-22 | L10: =IF(OR(LEFT(Table147[[#This Row],[Invoice]],1)="0",LEFT(Table147[[#This Row],[Invoice]],1)="1"),INDEX(Invoice_dates,MATCH(Table147[[#This Row],[Invoice]],'2023 Invoice Payments'!$L$1:$L$100,0),2),"") -> 2023-01-05 | M10: Y:\$ AerospaceEdge\AGG Finance\AGG Credit Card Receipts\ | N10: 220124 - Elementor Pro.pdf | O10: =IF(RIGHT(Table147[[#This Row],[Charge Receipt]],3)<>"pdf","",IF(FileExists(Table147[[#This Row],[Column1]]&Table147[[#This Row],[Charge Receipt]]),FileExists(Table147[[#This Row],[Column1]]&Table147[[#This Row],[Charge Receipt]]),FileExists("Y:\$ AerospaceEdge\AGG Finance\AGG Distribution Documents\"&Table147[[#This Row],[Charge Receipt]]))) -> TRUE
A11: BA | B11: 2022-01-24 | C11: INTERNATIONAL TRANSACTION FEE 01/24 SOFTACULOUS ABU DHABI DEBIT CARD *7429 | D11: -0.72 | E11: =IF(Table147[[#This Row],[Bank Acct]]=LEFT(Table147[[#Headers],[BA Balance]],2),SUMIF(Table147[[#Headers],[Bank Acct]]:Table147[[#This Row],[Bank Acct]],Table147[[#This Row],[Bank Acct]],Table147[[#Headers],[Amount]]:Table147[[#This Row],[Amount]]),"") -> 1991.14 | F11: =IF(Table147[[#This Row],[Bank Acct]]=LEFT(Table147[[#Headers],[WF Balance]],2),SUMIF(Table147[[#Headers],[Bank Acct]]:Table147[[#This Row],[Bank Acct]],Table147[[#This Row],[Bank Acct]],Table147[[#Headers],[Amount]]:Table147[[#This Row],[Amount]]),"") ->  | G11: =IFERROR(INDEX(Lookup!$B$2:$C$7,MATCH(RIGHT(TRIM(Table147[[#This Row],[Description]]),4),Lookup!$B$2:$B$7,0),2),"") -> FWC | H11: Peregrine | I11: Fee | J11: 221221 - FWC ER Peregrine Billable 1Q22 | K11: 020-22 | L11: =IF(OR(LEFT(Table147[[#This Row],[Invoice]],1)="0",LEFT(Table147[[#This Row],[Invoice]],1)="1"),INDEX(Invoice_dates,MATCH(Table147[[#This Row],[Invoice]],'2023 Invoice Payments'!$L$1:$L$100,0),2),"") -> 2023-01-05 | M11: Y:\$ AerospaceEdge\AGG Finance\AGG Credit Card Receipts\ | N11: =TEXT(Table147[[#This Row],[Date]],"YYMMDD")&" - Intl Transaction Fee - "&LEFT(RIGHT(Table147[[#This Row],[Description]],LEN(Table147[[#This Row],[Description]])-LEN("international transaction fee xx/xx ")),SEARCH("DEBIT",RIGHT(Table147[[#This Row],[Description]],LEN(Table147[[#This Row],[Description]])-LEN("international transaction fee xx/xx xx"))))&".pdf" -> 220124 - Intl Transaction Fee - SOFTACULOUS ABU DHABI.pdf | O11: =IF(RIGHT(Table147[[#This Row],[Charge Receipt]],3)<>"pdf","",IF(FileExists(Table147[[#This Row],[Column1]]&Table147[[#This Row],[Charge Receipt]]),FileExists(Table147[[#This Row],[Column1]]&Table147[[#This Row],[Charge Receipt]]),FileExists("Y:\$ AerospaceEdge\AGG Finance\AGG Distribution Documents\"&Table147[[#This Row],[Charge Receipt]]))) -> TRUE
A12: BA | B12: 2022-01-25 | C12: REALLY-SIMPLE-SSL 01/24 PURCHASE GRONINGEN DEBIT CARD *7429 | D12: -23.2 | E12: =IF(Table147[[#This Row],[Bank Acct]]=LEFT(Table147[[#Headers],[BA Balance]],2),SUMIF(Table147[[#Headers],[Bank Acct]]:Table147[[#This Row],[Bank Acct]],Table147[[#This Row],[Bank Acct]],Table147[[#Headers],[Amount]]:Table147[[#This Row],[Amount]]),"") -> 1967.94 | F12: =IF(Table147[[#This Row],[Bank Acct]]=LEFT(Table147[[#Headers],[WF Balance]],2),SUMIF(Table147[[#Headers],[Bank Acct]]:Table147[[#This Row],[Bank Acct]],Table147[[#This Row],[Bank Acct]],Table147[[#Headers],[Amount]]:Table147[[#This Row],[Amount]]),"") ->  | G12: =IFERROR(INDEX(Lookup!$B$2:$C$7,MATCH(RIGHT(TRIM(Table147[[#This Row],[Description]]),4),Lookup!$B$2:$B$7,0),2),"") -> FWC | H12: Peregrine | I12: SSL Cert Manager | J12: 221221 - FWC ER Peregrine Billable 1Q22 | K12: 020-22 | L12: =IF(OR(LEFT(Table147[[#This Row],[Invoice]],1)="0",LEFT(Table147[[#This Row],[Invoice]],1)="1"),INDEX(Invoice_dates,MATCH(Table147[[#This Row],[Invoice]],'2023 Invoice Payments'!$L$1:$L$100,0),2),"") -> 2023-01-05 | M12: Y:\$ AerospaceEdge\AGG Finance\AGG Credit Card Receipts\ | N12: 220124 - Really Simple SSL 2022-1993.pdf | O12: =IF(RIGHT(Table147[[#This Row],[Charge Receipt]],3)<>"pdf","",IF(FileExists(Table147[[#This Row],[Column1]]&Table147[[#This Row],[Charge Receipt]]),FileExists(Table147[[#This Row],[Column1]]&Table147[[#This Row],[Charge Receipt]]),FileExists("Y:\$ AerospaceEdge\AGG Finance\AGG Distribution Documents\"&Table147[[#This Row],[Charge Receipt]]))) -> TRUE
A13: BA | B13: 2022-01-25 | C13: COMPLIANZ-GDPR-PR 01/25 PURCHASE GRONINGEN DEBIT CARD *7429 | D13: -45 | E13: =IF(Table147[[#This Row],[Bank Acct]]=LEFT(Table147[[#Headers],[BA Balance]],2),SUMIF(Table147[[#Headers],[Bank Acct]]:Table147[[#This Row],[Bank Acct]],Table147[[#This Row],[Bank Acct]],Table147[[#Headers],[Amount]]:Table147[[#This Row],[Amount]]),"") -> 1922.94 | F13: =IF(Table147[[#This Row],[Bank Acct]]=LEFT(Table147[[#Headers],[WF Balance]],2),SUMIF(Table147[[#Headers],[Bank Acct]]:Table147[[#This Row],[Bank Acct]],Table147[[#This Row],[Bank Acct]],Table147[[#Headers],[Amount]]:Table147[[#This Row],[Amount]]),"") ->  | G13: =IFERROR(INDEX(Lookup!$B$2:$C$7,MATCH(RIGHT(TRIM(Table147[[#This Row],[Description]]),4),Lookup!$B$2:$B$7,0),2),"") -> FWC | H13: Peregrine | I13: Privacy Compliance | J13: 221221 - FWC ER Peregrine Billable 1Q22 | K13: 020-22 | L13: =IF(OR(LEFT(Table147[[#This Row],[Invoice]],1)="0",LEFT(Table147[[#This Row],[Invoice]],1)="1"),INDEX(Invoice_dates,MATCH(Table147[[#This Row],[Invoice]],'2023 Invoice Payments'!$L$1:$L$100,0),2),"") -> 2023-01-05 | M13: Y:\$ AerospaceEdge\AGG Finance\AGG Credit Card Receipts\ | N13: 220125 - Complianz 2022-0745.pdf | O13: =IF(RIGHT(Table147[[#This Row],[Charge Receipt]],3)<>"pdf","",IF(FileExists(Table147[[#This Row],[Column1]]&Table147[[#This Row],[Charge Receipt]]),FileExists(Table147[[#This Row],[Column1]]&Table147[[#This Row],[Charge Receipt]]),FileExists("Y:\$ AerospaceEdge\AGG Finance\AGG Distribution Documents\"&Table147[[#This Row],[Charge Receipt]]))) -> TRUE
A14: BA | B14: 2022-01-25 | C14: INTERNATIONAL TRANSACTION FEE 01/25 COMPLIANZ-GDPR-PR GRONINGEN DEBIT CARD *7429 | D14: -1.35 | E14: =IF(Table147[[#This Row],[Bank Acct]]=LEFT(Table147[[#Headers],[BA Balance]],2),SUMIF(Table147[[#Headers],[Bank Acct]]:Table147[[#This Row],[Bank Acct]],Table147[[#This Row],[Bank Acct]],Table147[[#Headers],[Amount]]:Table147[[#This Row],[Amount]]),"") -> 1921.59 | F14: =IF(Table147[[#This Row],[Bank Acct]]=LEFT(Table147[[#Headers],[WF Balance]],2),SUMIF(Table147[[#Headers],[Bank Acct]]:Table147[[#This Row],[Bank Acct]],Table147[[#This Row],[Bank Acct]],Table147[[#Headers],[Amount]]:Table147[[#This Row],[Amount]]),"") ->  | G14: =IFERROR(INDEX(Lookup!$B$2:$C$7,MATCH(RIGHT(TRIM(Table147[[#This Row],[Description]]),4),Lookup!$B$2:$B$7,0),2),"") -> FWC | H14: Peregrine | I14: Fee | J14: 221221 - FWC ER Peregrine Billable 1Q22 | K14: 020-22 | L14: =IF(OR(LEFT(Table147[[#This Row],[Invoice]],1)="0",LEFT(Table147[[#This Row],[Invoice]],1)="1"),INDEX(Invoice_dates,MATCH(Table147[[#This Row],[Invoice]],'2023 Invoice Payments'!$L$1:$L$100,0),2),"") -> 2023-01-05 | M14: Y:\$ AerospaceEdge\AGG Finance\AGG Credit Card Receipts\ | N14: =TEXT(Table147[[#This Row],[Date]],"YYMMDD")&" - Intl Transaction Fee - "&LEFT(RIGHT(Table147[[#This Row],[Description]],LEN(Table147[[#This Row],[Description]])-LEN("international transaction fee xx/xx ")),SEARCH("DEBIT",RIGHT(Table147[[#This Row],[Description]],LEN(Table147[[#This Row],[Description]])-LEN("international transaction fee xx/xx xx"))))&".pdf" -> 220125 - Intl Transaction Fee - COMPLIANZ-GDPR-PR GRONINGEN.pdf | O14: =IF(RIGHT(Table147[[#This Row],[Charge Receipt]],3)<>"pdf","",IF(FileExists(Table147[[#This Row],[Column1]]&Table147[[#This Row],[Charge Receipt]]),FileExists(Table147[[#This Row],[Column1]]&Table147[[#This Row],[Charge Receipt]]),FileExists("Y:\$ AerospaceEdge\AGG Finance\AGG Distribution Documents\"&Table147[[#This Row],[Charge Receipt]]))) -> TRUE
A15: BA | B15: 2022-01-25 | C15: INTERNATIONAL TRANSACTION FEE 01/24 REALLY-SIMPLE-SSL GRONINGEN DEBIT CARD *7429 | D15: -0.7 | E15: =IF(Table147[[#This Row],[Bank Acct]]=LEFT(Table147[[#Headers],[BA Balance]],2),SUMIF(Table147[[#Headers],[Bank Acct]]:Table147[[#This Row],[Bank Acct]],Table147[[#This Row],[Bank Acct]],Table147[[#Headers],[Amount]]:Table147[[#This Row],[Amount]]),"") -> 1920.89 | F15: =IF(Table147[[#This Row],[Bank Acct]]=LEFT(Table147[[#Headers],[WF Balance]],2),SUMIF(Table147[[#Headers],[Bank Acct]]:Table147[[#This Row],[Bank Acct]],Table147[[#This Row],[Bank Acct]],Table147[[#Headers],[Amount]]:Table147[[#This Row],[Amount]]),"") ->  | G15: =IFERROR(INDEX(Lookup!$B$2:$C$7,MATCH(RIGHT(TRIM(Table147[[#This Row],[Description]]),4),Lookup!$B$2:$B$7,0),2),"") -> FWC | H15: Peregrine | I15: Fee | J15: 221221 - FWC ER Peregrine Billable 1Q22 | K15: 020-22 | L15: =IF(OR(LEFT(Table147[[#This Row],[Invoice]],1)="0",LEFT(Table147[[#This Row],[Invoice]],1)="1"),INDEX(Invoice_dates,MATCH(Table147[[#This Row],[Invoice]],'2023 Invoice Payments'!$L$1:$L$100,0),2),"") -> 2023-01-05 | M15: Y:\$ AerospaceEdge\AGG Finance\AGG Credit Card Receipts\ | N15: =TEXT(Table147[[#This Row],[Date]],"YYMMDD")&" - Intl Transaction Fee - "&LEFT(RIGHT(Table147[[#This Row],[Description]],LEN(Table147[[#This Row],[Description]])-LEN("international transaction fee xx/xx ")),SEARCH("DEBIT",RIGHT(Table147[[#This Row],[Description]],LEN(Table147[[#This Row],[Description]])-LEN("international transaction fee xx/xx xx"))))&".pdf" -> 220125 - Intl Transaction Fee - REALLY-SIMPLE-SSL GRONINGEN.pdf | O15: =IF(RIGHT(Table147[[#This Row],[Charge Receipt]],3)<>"pdf","",IF(FileExists(Table147[[#This Row],[Column1]]&Table147[[#This Row],[Charge Receipt]]),FileExists(Table147[[#This Row],[Column1]]&Table147[[#This Row],[Charge Receipt]]),FileExists("Y:\$ AerospaceEdge\AGG Finance\AGG Distribution Documents\"&Table147[[#This Row],[Charge Receipt]]))) -> TRUE
A16: BA | B16: 2022-01-26 | C16: BLS*Single Card 01/25 PURCHASE 972547584908 DEBIT CARD *7411 | D16: -6.99 | E16: =IF(Table147[[#This Row],[Bank Acct]]=LEFT(Table147[[#Headers],[BA Balance]],2),SUMIF(Table147[[#Headers],[Bank Acct]]:Table147[[#This Row],[Bank Acct]],Table147[[#This Row],[Bank Acct]],Table147[[#Headers],[Amount]]:Table147[[#This Row],[Amount]]),"") -> 1913.9 | F16: =IF(Table147[[#This Row],[Bank Acct]]=LEFT(Table147[[#Headers],[WF Balance]],2),SUMIF(Table147[[#Headers],[Bank Acct]]:Table147[[#This Row],[Bank Acct]],Table147[[#This Row],[Bank Acct]],Table147[[#Headers],[Amount]]:Table147[[#This Row],[Amount]]),"") ->  | G16: =IFERROR(INDEX(Lookup!$B$2:$C$7,MATCH(RIGHT(TRIM(Table147[[#This Row],[Description]]),4),Lookup!$B$2:$B$7,0),2),"") -> LRC | H16: AGG | J16: 220310 - LRC ADS_BG ER MasterCard 04-2022 | K16: - | L16: =IF(OR(LEFT(Table147[[#This Row],[Invoice]],1)="0",LEFT(Table147[[#This Row],[Invoice]],1)="1"),INDEX(Invoice_dates,MATCH(Table147[[#This Row],[Invoice]],'2023 Invoice Payments'!$L$1:$L$100,0),2),"") ->  | M16: Y:\$ AerospaceEdge\AGG Finance\AGG Credit Card Receipts\ | N16: 220125 - Clear Coast Greetings Island 341592115.pdf | O16: =IF(RIGHT(Table147[[#This Row],[Charge Receipt]],3)<>"pdf","",IF(FileExists(Table147[[#This Row],[Column1]]&Table147[[#This Row],[Charge Receipt]]),FileExists(Table147[[#This Row],[Column1]]&Table147[[#This Row],[Charge Receipt]]),FileExists("Y:\$ AerospaceEdge\AGG Finance\AGG Distribution Documents\"&Table147[[#This Row],[Charge Receipt]]))) -> TRUE
A17: BA | B17: 2022-01-26 | C17: INTERNATIONAL TRANSACTION FEE 01/25 BLS*Single Card 972547584908 DEBIT CARD *7411 | D17: -0.21 | E17: =IF(Table147[[#This Row],[Bank Acct]]=LEFT(Table147[[#Headers],[BA Balance]],2),SUMIF(Table147[[#Headers],[Bank Acct]]:Table147[[#This Row],[Bank Acct]],Table147[[#This Row],[Bank Acct]],Table147[[#Headers],[Amount]]:Table147[[#This Row],[Amount]]),"") -> 1913.69 | F17: =IF(Table147[[#This Row],[Bank Acct]]=LEFT(Table147[[#Headers],[WF Balance]],2),SUMIF(Table147[[#Headers],[Bank Acct]]:Table147[[#This Row],[Bank Acct]],Table147[[#This Row],[Bank Acct]],Table147[[#Headers],[Amount]]:Table147[[#This Row],[Amount]]),"") ->  | G17: =IFERROR(INDEX(Lookup!$B$2:$C$7,MATCH(RIGHT(TRIM(Table147[[#This Row],[Description]]),4),Lookup!$B$2:$B$7,0),2),"") -> LRC | H17: AGG | J17: 220310 - LRC ADS_BG ER MasterCard 04-2022 | K17: - | L17: =IF(OR(LEFT(Table147[[#This Row],[Invoice]],1)="0",LEFT(Table147[[#This Row],[Invoice]],1)="1"),INDEX(Invoice_dates,MATCH(Table147[[#This Row],[Invoice]],'2023 Invoice Payments'!$L$1:$L$100,0),2),"") ->  | M17: Y:\$ AerospaceEdge\AGG Finance\AGG Credit Card Receipts\ | N17: 220125 - Clear Coast Greetings Island 341592115.pdf | O17: =IF(RIGHT(Table147[[#This Row],[Charge Receipt]],3)<>"pdf","",IF(FileExists(Table147[[#This Row],[Column1]]&Table147[[#This Row],[Charge Receipt]]),FileExists(Table147[[#This Row],[Column1]]&Table147[[#This Row],[Charge Receipt]]),FileExists("Y:\$ AerospaceEdge\AGG Finance\AGG Distribution Documents\"&Table147[[#This Row],[Charge Receipt]]))) -> TRUE
A18: BA | B18: 2022-02-01 | C18: Monthly Fee Business Adv Relationship | D18: -29.95 | E18: =IF(Table147[[#This Row],[Bank Acct]]=LEFT(Table147[[#Headers],[BA Balance]],2),SUMIF(Table147[[#Headers],[Bank Acct]]:Table147[[#This Row],[Bank Acct]],Table147[[#This Row],[Bank Acct]],Table147[[#Headers],[Amount]]:Table147[[#This Row],[Amount]]),"") -> 1883.74 | F18: =IF(Table147[[#This Row],[Bank Acct]]=LEFT(Table147[[#Headers],[WF Balance]],2),SUMIF(Table147[[#Headers],[Bank Acct]]:Table147[[#This Row],[Bank Acct]],Table147[[#This Row],[Bank Acct]],Table147[[#Headers],[Amount]]:Table147[[#This Row],[Amount]]),"") ->  | G18: =IFERROR(INDEX(Lookup!$B$2:$C$7,MATCH(RIGHT(TRIM(Table147[[#This Row],[Description]]),4),Lookup!$B$2:$B$7,0),2),"") ->  | H18: AGG | I18: Bank Charge | K18: - | L18: =IF(OR(LEFT(Table147[[#This Row],[Invoice]],1)="0",LEFT(Table147[[#This Row],[Invoice]],1)="1"),INDEX(Invoice_dates,MATCH(Table147[[#This Row],[Invoice]],'2023 Invoice Payments'!$L$1:$L$100,0),2),"") ->  | M18: Y:\$ AerospaceEdge\AGG Finance\AGG Credit Card Receipts\ | O18: =IF(RIGHT(Table147[[#This Row],[Charge Receipt]],3)<>"pdf","",IF(FileExists(Table147[[#This Row],[Column1]]&Table147[[#This Row],[Charge Receipt]]),FileExists(Table147[[#This Row],[Column1]]&Table147[[#This Row],[Charge Receipt]]),FileExists("Y:\$ AerospaceEdge\AGG Finance\AGG Distribution Documents\"&Table147[[#This Row],[Charge Receipt]]))) -> 
A19: BA | B19: 2022-02-07 | C19: INMOTIONHOSTING.C 02/06 PURCHASE 888-3214678 CA DEBIT CARD *7429 | D19: -37.18 | E19: =IF(Table147[[#This Row],[Bank Acct]]=LEFT(Table147[[#Headers],[BA Balance]],2),SUMIF(Table147[[#Headers],[Bank Acct]]:Table147[[#This Row],[Bank Acct]],Table147[[#This Row],[Bank Acct]],Table147[[#Headers],[Amount]]:Table147[[#This Row],[Amount]]),"") -> 1846.56 | F19: =IF(Table147[[#This Row],[Bank Acct]]=LEFT(Table147[[#Headers],[WF Balance]],2),SUMIF(Table147[[#Headers],[Bank Acct]]:Table147[[#This Row],[Bank Acct]],Table147[[#This Row],[Bank Acct]],Table147[[#Headers],[Amount]]:Table147[[#This Row],[Amount]]),"") ->  | G19: =IFERROR(INDEX(Lookup!$B$2:$C$7,MATCH(RIGHT(TRIM(Table147[[#This Row],[Description]]),4),Lookup!$B$2:$B$7,0),2),"") -> FWC | H19: AGG | I19: Web Tools | J19: 221226 - FWC ER Mastercard EOY-2022 | K19: - | L19: =IF(OR(LEFT(Table147[[#This Row],[Invoice]],1)="0",LEFT(Table147[[#This Row],[Invoice]],1)="1"),INDEX(Invoice_dates,MATCH(Table147[[#This Row],[Invoice]],'2023 Invoice Payments'!$L$1:$L$100,0),2),"") ->  | M19: Y:\$ AerospaceEdge\AGG Finance\AGG Credit Card Receipts\ | N19: 220220 - InMotion Hosting - IMH-314-144898-87.pdf | O19: =IF(RIGHT(Table147[[#This Row],[Charge Receipt]],3)<>"pdf","",IF(FileExists(Table147[[#This Row],[Column1]]&Table147[[#This Row],[Charge Receipt]]),FileExists(Table147[[#This Row],[Column1]]&Table147[[#This Row],[Charge Receipt]]),FileExists("Y:\$ AerospaceEdge\AGG Finance\AGG Distribution Documents\"&Table147[[#This Row],[Charge Receipt]]))) -> TRUE
A20: BA | B20: 2022-02-14 | C20: JET NET 02/10 PURCHASE 315-797-4420 NY DEBIT CARD *7411 | D20: -850 | E20: =IF(Table147[[#This Row],[Bank Acct]]=LEFT(Table147[[#Headers],[BA Balance]],2),SUMIF(Table147[[#Headers],[Bank Acct]]:Table147[[#This Row],[Bank Acct]],Table147[[#This Row],[Bank Acct]],Table147[[#Headers],[Amount]]:Table147[[#This Row],[Amount]]),"") -> 996.56 | F20: =IF(Table147[[#This Row],[Bank Acct]]=LEFT(Table147[[#Headers],[WF Balance]],2),SUMIF(Table147[[#Headers],[Bank Acct]]:Table147[[#This Row],[Bank Acct]],Table147[[#This Row],[Bank Acct]],Table147[[#Headers],[Amount]]:Table147[[#This Row],[Amount]]),"") ->  | G20: =IFERROR(INDEX(Lookup!$B$2:$C$7,MATCH(RIGHT(TRIM(Table147[[#This Row],[Description]]),4),Lookup!$B$2:$B$7,0),2),"") -> LRC | H20: Peregrine | J20: 220211 ‐ LRC ADS_BG ER MasterCard Peregrine Billable 02a‐2022 | K20: 003-22 | L20: =IF(OR(LEFT(Table147[[#This Row],[Invoice]],1)="0",LEFT(Table147[[#This Row],[Invoice]],1)="1"),INDEX(Invoice_dates,MATCH(Table147[[#This Row],[Invoice]],'2023 Invoice Payments'!$L$1:$L$100,0),2),"") ->  | M20: Y:\$ AerospaceEdge\AGG Finance\AGG Credit Card Receipts\ | N20: Executed Custom Special Report Project Agreement AviaGlobal Group LLC[84].pdf | O20: =IF(RIGHT(Table147[[#This Row],[Charge Receipt]],3)<>"pdf","",IF(FileExists(Table147[[#This Row],[Column1]]&Table147[[#This Row],[Charge Receipt]]),FileExists(Table147[[#This Row],[Column1]]&Table147[[#This Row],[Charge Receipt]]),FileExists("Y:\$ AerospaceEdge\AGG Finance\AGG Distribution Documents\"&Table147[[#This Row],[Charge Receipt]]))) -> TRUE
A21: BA | B21: 2022-02-18 | C21: PEREGRINE AVIONI DES:QUICKBOOKS ID:375020979 INDN:AVIAGLOBAL GROUP, LLC CO ID:1722616653 PPD | D21: 1500 | E21: =IF(Table147[[#This Row],[Bank Acct]]=LEFT(Table147[[#Headers],[BA Balance]],2),SUMIF(Table147[[#Headers],[Bank Acct]]:Table147[[#This Row],[Bank Acct]],Table147[[#This Row],[Bank Acct]],Table147[[#Headers],[Amount]]:Table147[[#This Row],[Amount]]),"") -> 2496.56 | F21: =IF(Table147[[#This Row],[Bank Acct]]=LEFT(Table147[[#Headers],[WF Balance]],2),SUMIF(Table147[[#Headers],[Bank Acct]]:Table147[[#This Row],[Bank Acct]],Table147[[#This Row],[Bank Acct]],Table147[[#Headers],[Amount]]:Table147[[#This Row],[Amount]]),"") ->  | G21: =IFERROR(INDEX(Lookup!$B$2:$C$7,MATCH(RIGHT(TRIM(Table147[[#This Row],[Description]]),4),Lookup!$B$2:$B$7,0),2),"") ->  | H21: Peregrine | L21: =IF(OR(LEFT(Table147[[#This Row],[Invoice]],1)="0",LEFT(Table147[[#This Row],[Invoice]],1)="1"),INDEX(Invoice_dates,MATCH(Table147[[#This Row],[Invoice]],'2023 Invoice Payments'!$L$1:$L$100,0),2),"") ->  | M21: Y:\$ AerospaceEdge\AGG Finance\AGG Credit Card Receipts\ | O21: =IF(RIGHT(Table147[[#This Row],[Charge Receipt]],3)<>"pdf","",IF(FileExists(Table147[[#This Row],[Column1]]&Table147[[#This Row],[Charge Receipt]]),FileExists(Table147[[#This Row],[Column1]]&Table147[[#This Row],[Charge Receipt]]),FileExists("Y:\$ AerospaceEdge\AGG Finance\AGG Distribution Documents\"&Table147[[#This Row],[Charge Receipt]]))) -> 
A22: BA | B22: 2022-02-22 | C22: MailChimp 02/20 PURCHASE Atlanta GA DEBIT CARD *7411 | D22: -59 | E22: =IF(Table147[[#This Row],[Bank Acct]]=LEFT(Table147[[#Headers],[BA Balance]],2),SUMIF(Table147[[#Headers],[Bank Acct]]:Table147[[#This Row],[Bank Acct]],Table147[[#This Row],[Bank Acct]],Table147[[#Headers],[Amount]]:Table147[[#This Row],[Amount]]),"") -> 2437.56 | F22: =IF(Table147[[#This Row],[Bank Acct]]=LEFT(Table147[[#Headers],[WF Balance]],2),SUMIF(Table147[[#Headers],[Bank Acct]]:Table147[[#This Row],[Bank Acct]],Table147[[#This Row],[Bank Acct]],Table147[[#Headers],[Amount]]:Table147[[#This Row],[Amount]]),"") ->  | G22: =IFERROR(INDEX(Lookup!$B$2:$C$7,MATCH(RIGHT(TRIM(Table147[[#This Row],[Description]]),4),Lookup!$B$2:$B$7,0),2),"") -> LRC | H22: Peregrine | I22: Mailchimp | J22: 220310 - LRC ADS_BG ER MasterCard Peregrine Billable 03-2022 | K22: 005-22 | L22: =IF(OR(LEFT(Table147[[#This Row],[Invoice]],1)="0",LEFT(Table147[[#This Row],[Invoice]],1)="1"),INDEX(Invoice_dates,MATCH(Table147[[#This Row],[Invoice]],'2023 Invoice Payments'!$L$1:$L$100,0),2),"") ->  | M22: Y:\$ AerospaceEdge\AGG Finance\AGG Credit Card Receipts\ | N22: 220220 - Peregrine - Mailchimp Essentials MC15026518.pdf | O22: =IF(RIGHT(Table147[[#This Row],[Charge Receipt]],3)<>"pdf","",IF(FileExists(Table147[[#This Row],[Column1]]&Table147[[#This Row],[Charge Receipt]]),FileExists(Table147[[#This Row],[Column1]]&Table147[[#This Row],[Charge Receipt]]),FileExists("Y:\$ AerospaceEdge\AGG Finance\AGG Distribution Documents\"&Table147[[#This Row],[Charge Receipt]]))) -> TRUE
A23: BA | B23: 2022-02-22 | C23: MAILCHIMP *MISC 02/18 PURCHASE MAILCHIMP.COM GA DEBIT CARD *7411 | D23: -11.62 | E23: =IF(Table147[[#This Row],[Bank Acct]]=LEFT(Table147[[#Headers],[BA Balance]],2),SUMIF(Table147[[#Headers],[Bank Acct]]:Table147[[#This Row],[Bank Acct]],Table147[[#This Row],[Bank Acct]],Table147[[#Headers],[Amount]]:Table147[[#This Row],[Amount]]),"") -> 2425.94 | F23: =IF(Table147[[#This Row],[Bank Acct]]=LEFT(Table147[[#Headers],[WF Balance]],2),SUMIF(Table147[[#Headers],[Bank Acct]]:Table147[[#This Row],[Bank Acct]],Table147[[#This Row],[Bank Acct]],Table147[[#Headers],[Amount]]:Table147[[#This Row],[Amount]]),"") ->  | G23: =IFERROR(INDEX(Lookup!$B$2:$C$7,MATCH(RIGHT(TRIM(Table147[[#This Row],[Description]]),4),Lookup!$B$2:$B$7,0),2),"") -> LRC | H23: AGG | I23: Mailchimp | J23: 220310 - LRC ADS_BG ER MasterCard 04-2022 | K23: - | L23: =IF(OR(LEFT(Table147[[#This Row],[Invoice]],1)="0",LEFT(Table147[[#This Row],[Invoice]],1)="1"),INDEX(Invoice_dates,MATCH(Table147[[#This Row],[Invoice]],'2023 Invoice Payments'!$L$1:$L$100,0),2),"") ->  | M23: Y:\$ AerospaceEdge\AGG Finance\AGG Credit Card Receipts\ | N23: 220218 - AGG - Mailchimp Essentials MC15010226.pdf | O23: =IF(RIGHT(Table147[[#This Row],[Charge Receipt]],3)<>"pdf","",IF(FileExists(Table147[[#This Row],[Column1]]&Table147[[#This Row],[Charge Receipt]]),FileExists(Table147[[#This Row],[Column1]]&Table147[[#This Row],[Charge Receipt]]),FileExists("Y:\$ AerospaceEdge\AGG Finance\AGG Distribution Documents\"&Table147[[#This Row],[Charge Receipt]]))) -> TRUE
A24: BA | B24: 2022-03-01 | C24: Monthly Fee Business Adv Relationship | D24: -29.95 | E24: =IF(Table147[[#This Row],[Bank Acct]]=LEFT(Table147[[#Headers],[BA Balance]],2),SUMIF(Table147[[#Headers],[Bank Acct]]:Table147[[#This Row],[Bank Acct]],Table147[[#This Row],[Bank Acct]],Table147[[#Headers],[Amount]]:Table147[[#This Row],[Amount]]),"") -> 2395.99 | F24: =IF(Table147[[#This Row],[Bank Acct]]=LEFT(Table147[[#Headers],[WF Balance]],2),SUMIF(Table147[[#Headers],[Bank Acct]]:Table147[[#This Row],[Bank Acct]],Table147[[#This Row],[Bank Acct]],Table147[[#Headers],[Amount]]:Table147[[#This Row],[Amount]]),"") ->  | G24: =IFERROR(INDEX(Lookup!$B$2:$C$7,MATCH(RIGHT(TRIM(Table147[[#This Row],[Description]]),4),Lookup!$B$2:$B$7,0),2),"") ->  | H24: AGG | I24: Bank Charge | K24: - | L24: =IF(OR(LEFT(Table147[[#This Row],[Invoice]],1)="0",LEFT(Table147[[#This Row],[Invoice]],1)="1"),INDEX(Invoice_dates,MATCH(Table147[[#This Row],[Invoice]],'2023 Invoice Payments'!$L$1:$L$100,0),2),"") ->  | M24: Y:\$ AerospaceEdge\AGG Finance\AGG Credit Card Receipts\ | O24: =IF(RIGHT(Table147[[#This Row],[Charge Receipt]],3)<>"pdf","",IF(FileExists(Table147[[#This Row],[Column1]]&Table147[[#This Row],[Charge Receipt]]),FileExists(Table147[[#This Row],[Column1]]&Table147[[#This Row],[Charge Receipt]]),FileExists("Y:\$ AerospaceEdge\AGG Finance\AGG Distribution Documents\"&Table147[[#This Row],[Charge Receipt]]))) -> 
A25: BA | B25: 2022-03-15 | C25: Amazon.com*1N91P5 03/14 PURCHASE Amzn.com/bill WA DEBIT CARD *7411 | D25: -66.66 | E25: =IF(Table147[[#This Row],[Bank Acct]]=LEFT(Table147[[#Headers],[BA Balance]],2),SUMIF(Table147[[#Headers],[Bank Acct]]:Table147[[#This Row],[Bank Acct]],Table147[[#This Row],[Bank Acct]],Table147[[#Headers],[Amount]]:Table147[[#This Row],[Amount]]),"") -> 2329.33 | F25: =IF(Table147[[#This Row],[Bank Acct]]=LEFT(Table147[[#Headers],[WF Balance]],2),SUMIF(Table147[[#Headers],[Bank Acct]]:Table147[[#This Row],[Bank Acct]],Table147[[#This Row],[Bank Acct]],Table147[[#Headers],[Amount]]:Table147[[#This Row],[Amount]]),"") ->  | G25: =IFERROR(INDEX(Lookup!$B$2:$C$7,MATCH(RIGHT(TRIM(Table147[[#This Row],[Description]]),4),Lookup!$B$2:$B$7,0),2),"") -> LRC | H25: Peregrine | J25: 220310 - LRC ADS_BG ER MasterCard Peregrine Billable 03-2022 | K25: 006-22 | L25: =IF(OR(LEFT(Table147[[#This Row],[Invoice]],1)="0",LEFT(Table147[[#This Row],[Invoice]],1)="1"),INDEX(Invoice_dates,MATCH(Table147[[#This Row],[Invoice]],'2023 Invoice Payments'!$L$1:$L$100,0),2),"") ->  | M25: Y:\$ AerospaceEdge\AGG Finance\AGG Credit Card Receipts\ | N25: Amazon.com - Order 111-7793024-7025007.pdf | O25: =IF(RIGHT(Table147[[#This Row],[Charge Receipt]],3)<>"pdf","",IF(FileExists(Table147[[#This Row],[Column1]]&Table147[[#This Row],[Charge Receipt]]),FileExists(Table147[[#This Row],[Column1]]&Table147[[#This Row],[Charge Receipt]]),FileExists("Y:\$ AerospaceEdge\AGG Finance\AGG Distribution Documents\"&Table147[[#This Row],[Charge Receipt]]))) -> TRUE
A26: BA | B26: 2022-03-15 | C26: STAMPS.COM 03/14 PURCHASE 855-608-2677 CA DEBIT CARD *7411 | D26: -30.12 | E26: =IF(Table147[[#This Row],[Bank Acct]]=LEFT(Table147[[#Headers],[BA Balance]],2),SUMIF(Table147[[#Headers],[Bank Acct]]:Table147[[#This Row],[Bank Acct]],Table147[[#This Row],[Bank Acct]],Table147[[#Headers],[Amount]]:Table147[[#This Row],[Amount]]),"") -> 2299.21 | F26: =IF(Table147[[#This Row],[Bank Acct]]=LEFT(Table147[[#Headers],[WF Balance]],2),SUMIF(Table147[[#Headers],[Bank Acct]]:Table147[[#This Row],[Bank Acct]],Table147[[#This Row],[Bank Acct]],Table147[[#Headers],[Amount]]:Table147[[#This Row],[Amount]]),"") ->  | G26: =IFERROR(INDEX(Lookup!$B$2:$C$7,MATCH(RIGHT(TRIM(Table147[[#This Row],[Description]]),4),Lookup!$B$2:$B$7,0),2),"") -> LRC | H26: Peregrine | I26: Stamps | J26: 220310 - LRC ADS_BG ER MasterCard Peregrine Billable 03-2022 | K26: 006-22 | L26: =IF(OR(LEFT(Table147[[#This Row],[Invoice]],1)="0",LEFT(Table147[[#This Row],[Invoice]],1)="1"),INDEX(Invoice_dates,MATCH(Table147[[#This Row],[Invoice]],'2023 Invoice Payments'!$L$1:$L$100,0),2),"") ->  | M26: Y:\$ AerospaceEdge\AGG Finance\AGG Credit Card Receipts\ | N26: Stamps dot com st2385760.pdf | O26: =IF(RIGHT(Table147[[#This Row],[Charge Receipt]],3)<>"pdf","",IF(FileExists(Table147[[#This Row],[Column1]]&Table147[[#This Row],[Charge Receipt]]),FileExists(Table147[[#This Row],[Column1]]&Table147[[#This Row],[Charge Receipt]]),FileExists("Y:\$ AerospaceEdge\AGG Finance\AGG Distribution Documents\"&Table147[[#This Row],[Charge Receipt]]))) -> TRUE
A27: BA | B27: 2022-03-15 | C27: STAMPS.COM 03/14 PURCHASE 855-608-2677 CA DEBIT CARD *7411 | D27: -19.19 | E27: =IF(Table147[[#This Row],[Bank Acct]]=LEFT(Table147[[#Headers],[BA Balance]],2),SUMIF(Table147[[#Headers],[Bank Acct]]:Table147[[#This Row],[Bank Acct]],Table147[[#This Row],[Bank Acct]],Table147[[#Headers],[Amount]]:Table147[[#This Row],[Amount]]),"") -> 2280.02 | F27: =IF(Table147[[#This Row],[Bank Acct]]=LEFT(Table147[[#Headers],[WF Balance]],2),SUMIF(Table147[[#Headers],[Bank Acct]]:Table147[[#This Row],[Bank Acct]],Table147[[#This Row],[Bank Acct]],Table147[[#Headers],[Amount]]:Table147[[#This Row],[Amount]]),"") ->  | G27: =IFERROR(INDEX(Lookup!$B$2:$C$7,MATCH(RIGHT(TRIM(Table147[[#This Row],[Description]]),4),Lookup!$B$2:$B$7,0),2),"") -> LRC | H27: AGG | I27: Stamps | J27: 220322 ‐ LRC ADS_BG ER MasterCard 07‐2022 | K27: - | L27: =IF(OR(LEFT(Table147[[#This Row],[Invoice]],1)="0",LEFT(Table147[[#This Row],[Invoice]],1)="1"),INDEX(Invoice_dates,MATCH(Table147[[#This Row],[Invoice]],'2023 Invoice Payments'!$L$1:$L$100,0),2),"") ->  | M27: Y:\$ AerospaceEdge\AGG Finance\AGG Credit Card Receipts\ | N27: Stamps dot com st2385037.pdf | O27: =IF(RIGHT(Table147[[#This Row],[Charge Receipt]],3)<>"pdf","",IF(FileExists(Table147[[#This Row],[Column1]]&Table147[[#This Row],[Charge Receipt]]),FileExists(Table147[[#This Row],[Column1]]&Table147[[#This Row],[Charge Receipt]]),FileExists("Y:\$ AerospaceEdge\AGG Finance\AGG Distribution Documents\"&Table147[[#This Row],[Charge Receipt]]))) -> TRUE
A28: BA | B28: 2022-03-15 | C28: TRANSFER AVIAGLOBAL GROUP, LL:ADS-B Global LLC Confirmation# 1737069000 | D28: -74.1 | E28: =IF(Table147[[#This Row],[Bank Acct]]=LEFT(Table147[[#Headers],[BA Balance]],2),SUMIF(Table147[[#Headers],[Bank Acct]]:Table147[[#This Row],[Bank Acct]],Table147[[#This Row],[Bank Acct]],Table147[[#Headers],[Amount]]:Table147[[#This Row],[Amount]]),"") -> 2205.92 | F28: =IF(Table147[[#This Row],[Bank Acct]]=LEFT(Table147[[#Headers],[WF Balance]],2),SUMIF(Table147[[#Headers],[Bank Acct]]:Table147[[#This Row],[Bank Acct]],Table147[[#This Row],[Bank Acct]],Table147[[#Headers],[Amount]]:Table147[[#This Row],[Amount]]),"") ->  | G28: =IFERROR(INDEX(Lookup!$B$2:$C$7,MATCH(RIGHT(TRIM(Table147[[#This Row],[Description]]),4),Lookup!$B$2:$B$7,0),2),"") ->  | L28: =IF(OR(LEFT(Table147[[#This Row],[Invoice]],1)="0",LEFT(Table147[[#This Row],[Invoice]],1)="1"),INDEX(Invoice_dates,MATCH(Table147[[#This Row],[Invoice]],'2023 Invoice Payments'!$L$1:$L$100,0),2),"") ->  | M28: Y:\$ AerospaceEdge\AGG Finance\AGG Credit Card Receipts\ | O28: =IF(RIGHT(Table147[[#This Row],[Charge Receipt]],3)<>"pdf","",IF(FileExists(Table147[[#This Row],[Column1]]&Table147[[#This Row],[Charge Receipt]]),FileExists(Table147[[#This Row],[Column1]]&Table147[[#This Row],[Charge Receipt]]),FileExists("Y:\$ AerospaceEdge\AGG Finance\AGG Distribution Documents\"&Table147[[#This Row],[Charge Receipt]]))) -> 
A29: BA | B29: 2022-03-16 | C29: MONSTERINSIGHTS W 03/16 PURCHASE PALM BEACH GA FL DEBIT CARD *7429 | D29: -199 | E29: =IF(Table147[[#This Row],[Bank Acct]]=LEFT(Table147[[#Headers],[BA Balance]],2),SUMIF(Table147[[#Headers],[Bank Acct]]:Table147[[#This Row],[Bank Acct]],Table147[[#This Row],[Bank Acct]],Table147[[#Headers],[Amount]]:Table147[[#This Row],[Amount]]),"") -> 2006.92 | F29: =IF(Table147[[#This Row],[Bank Acct]]=LEFT(Table147[[#Headers],[WF Balance]],2),SUMIF(Table147[[#Headers],[Bank Acct]]:Table147[[#This Row],[Bank Acct]],Table147[[#This Row],[Bank Acct]],Table147[[#Headers],[Amount]]:Table147[[#This Row],[Amount]]),"") ->  | G29: =IFERROR(INDEX(Lookup!$B$2:$C$7,MATCH(RIGHT(TRIM(Table147[[#This Row],[Description]]),4),Lookup!$B$2:$B$7,0),2),"") -> FWC | H29: Peregrine | I29: Web Traffic | J29: 221221 - FWC ER Peregrine Billable 1Q22 | K29: 020-22 | L29: =IF(OR(LEFT(Table147[[#This Row],[Invoice]],1)="0",LEFT(Table147[[#This Row],[Invoice]],1)="1"),INDEX(Invoice_dates,MATCH(Table147[[#This Row],[Invoice]],'2023 Invoice Payments'!$L$1:$L$100,0),2),"") -> 2023-01-05 | M29: Y:\$ AerospaceEdge\AGG Finance\AGG Credit Card Receipts\ | N29: 220316 - Monster Insights Invoice 543619.pdf | O29: =IF(RIGHT(Table147[[#This Row],[Charge Receipt]],3)<>"pdf","",IF(FileExists(Table147[[#This Row],[Column1]]&Table147[[#This Row],[Charge Receipt]]),FileExists(Table147[[#This Row],[Column1]]&Table147[[#This Row],[Charge Receipt]]),FileExists("Y:\$ AerospaceEdge\AGG Finance\AGG Distribution Documents\"&Table147[[#This Row],[Charge Receipt]]))) -> TRUE
A30: BA | B30: 2022-03-16 | C30: SEMPER PLUGINS AI 03/16 PURCHASE PALM BEACH GA FL DEBIT CARD *7429 | D30: -99 | E30: =IF(Table147[[#This Row],[Bank Acct]]=LEFT(Table147[[#Headers],[BA Balance]],2),SUMIF(Table147[[#Headers],[Bank Acct]]:Table147[[#This Row],[Bank Acct]],Table147[[#This Row],[Bank Acct]],Table147[[#Headers],[Amount]]:Table147[[#This Row],[Amount]]),"") -> 1907.92 | F30: =IF(Table147[[#This Row],[Bank Acct]]=LEFT(Table147[[#Headers],[WF Balance]],2),SUMIF(Table147[[#Headers],[Bank Acct]]:Table147[[#This Row],[Bank Acct]],Table147[[#This Row],[Bank Acct]],Table147[[#Headers],[Amount]]:Table147[[#This Row],[Amount]]),"") ->  | G30: =IFERROR(INDEX(Lookup!$B$2:$C$7,MATCH(RIGHT(TRIM(Table147[[#This Row],[Description]]),4),Lookup!$B$2:$B$7,0),2),"") -> FWC | H30: Peregrine | I30: SEO Plugin | J30: 221221 - FWC ER Peregrine Billable 1Q22 | K30: 020-22 | L30: =IF(OR(LEFT(Table147[[#This Row],[Invoice]],1)="0",LEFT(Table147[[#This Row],[Invoice]],1)="1"),INDEX(Invoice_dates,MATCH(Table147[[#This Row],[Invoice]],'2023 Invoice Payments'!$L$1:$L$100,0),2),"") -> 2023-01-05 | M30: Y:\$ AerospaceEdge\AGG Finance\AGG Credit Card Receipts\ | N30: 220315 - aioseo Invoice 80192.pdf | O30: =IF(RIGHT(Table147[[#This Row],[Charge Receipt]],3)<>"pdf","",IF(FileExists(Table147[[#This Row],[Column1]]&Table147[[#This Row],[Charge Receipt]]),FileExists(Table147[[#This Row],[Column1]]&Table147[[#This Row],[Charge Receipt]]),FileExists("Y:\$ AerospaceEdge\AGG Finance\AGG Distribution Documents\"&Table147[[#This Row],[Charge Receipt]]))) -> TRUE
A31: BA | B31: 2022-03-16 | C31: External transfer fee - 3 Day - 03/15/2022 Confirmation: 379444042 | D31: -1 | E31: =IF(Table147[[#This Row],[Bank Acct]]=LEFT(Table147[[#Headers],[BA Balance]],2),SUMIF(Table147[[#Headers],[Bank Acct]]:Table147[[#This Row],[Bank Acct]],Table147[[#This Row],[Bank Acct]],Table147[[#Headers],[Amount]]:Table147[[#This Row],[Amount]]),"") -> 1906.92 | F31: =IF(Table147[[#This Row],[Bank Acct]]=LEFT(Table147[[#Headers],[WF Balance]],2),SUMIF(Table147[[#Headers],[Bank Acct]]:Table147[[#This Row],[Bank Acct]],Table147[[#This Row],[Bank Acct]],Table147[[#Headers],[Amount]]:Table147[[#This Row],[Amount]]),"") ->  | G31: =IFERROR(INDEX(Lookup!$B$2:$C$7,MATCH(RIGHT(TRIM(Table147[[#This Row],[Description]]),4),Lookup!$B$2:$B$7,0),2),"") ->  | H31: AGG | I31: Bank Charge | J31: 221226 - FWC ER Mastercard EOY-2022 | K31: - | L31: =IF(OR(LEFT(Table147[[#This Row],[Invoice]],1)="0",LEFT(Table147[[#This Row],[Invoice]],1)="1"),INDEX(Invoice_dates,MATCH(Table147[[#This Row],[Invoice]],'2023 Invoice Payments'!$L$1:$L$100,0),2),"") ->  | M31: Y:\$ AerospaceEdge\AGG Finance\AGG Credit Card Receipts\ | O31: =IF(RIGHT(Table147[[#This Row],[Charge Receipt]],3)<>"pdf","",IF(FileExists(Table147[[#This Row],[Column1]]&Table147[[#This Row],[Charge Receipt]]),FileExists(Table147[[#This Row],[Column1]]&Table147[[#This Row],[Charge Receipt]]),FileExists("Y:\$ AerospaceEdge\AGG Finance\AGG Distribution Documents\"&Table147[[#This Row],[Charge Receipt]]))) -> 
A32: BA | B32: 2022-03-17 | C32: PEREGRINE AVIONI DES:QUICKBOOKS ID:375020979 INDN:AVIAGLOBAL GROUP, LLC CO ID:1722616653 PPD | D32: 3850 | E32: =IF(Table147[[#This Row],[Bank Acct]]=LEFT(Table147[[#Headers],[BA Balance]],2),SUMIF(Table147[[#Headers],[Bank Acct]]:Table147[[#This Row],[Bank Acct]],Table147[[#This Row],[Bank Acct]],Table147[[#Headers],[Amount]]:Table147[[#This Row],[Amount]]),"") -> 5756.92 | F32: =IF(Table147[[#This Row],[Bank Acct]]=LEFT(Table147[[#Headers],[WF Balance]],2),SUMIF(Table147[[#Headers],[Bank Acct]]:Table147[[#This Row],[Bank Acct]],Table147[[#This Row],[Bank Acct]],Table147[[#Headers],[Amount]]:Table147[[#This Row],[Amount]]),"") ->  | G32: =IFERROR(INDEX(Lookup!$B$2:$C$7,MATCH(RIGHT(TRIM(Table147[[#This Row],[Description]]),4),Lookup!$B$2:$B$7,0),2),"") ->  | H32: Peregrine | L32: =IF(OR(LEFT(Table147[[#This Row],[Invoice]],1)="0",LEFT(Table147[[#This Row],[Invoice]],1)="1"),INDEX(Invoice_dates,MATCH(Table147[[#This Row],[Invoice]],'2023 Invoice Payments'!$L$1:$L$100,0),2),"") ->  | M32: Y:\$ AerospaceEdge\AGG Finance\AGG Credit Card Receipts\ | O32: =IF(RIGHT(Table147[[#This Row],[Charge Receipt]],3)<>"pdf","",IF(FileExists(Table147[[#This Row],[Column1]]&Table147[[#This Row],[Charge Receipt]]),FileExists(Table147[[#This Row],[Column1]]&Table147[[#This Row],[Charge Receipt]]),FileExists("Y:\$ AerospaceEdge\AGG Finance\AGG Distribution Documents\"&Table147[[#This Row],[Charge Receipt]]))) -> 
A33: BA | B33: 2022-03-18 | C33: USPS STAMPS ENDIC 03/17 PURCHASE 888-434-0055 DC DEBIT CARD *7411 | D33: -100 | E33: =IF(Table147[[#This Row],[Bank Acct]]=LEFT(Table147[[#Headers],[BA Balance]],2),SUMIF(Table147[[#Headers],[Bank Acct]]:Table147[[#This Row],[Bank Acct]],Table147[[#This Row],[Bank Acct]],Table147[[#Headers],[Amount]]:Table147[[#This Row],[Amount]]),"") -> 5656.92 | F33: =IF(Table147[[#This Row],[Bank Acct]]=LEFT(Table147[[#Headers],[WF Balance]],2),SUMIF(Table147[[#Headers],[Bank Acct]]:Table147[[#This Row],[Bank Acct]],Table147[[#This Row],[Bank Acct]],Table147[[#Headers],[Amount]]:Table147[[#This Row],[Amount]]),"") ->  | G33: =IFERROR(INDEX(Lookup!$B$2:$C$7,MATCH(RIGHT(TRIM(Table147[[#This Row],[Description]]),4),Lookup!$B$2:$B$7,0),2),"") -> LRC | H33: Peregrine | I33: Stamps | J33: 220310 - LRC ADS_BG ER MasterCard Peregrine Billable 03-2022 | K33: 006-22 | L33: =IF(OR(LEFT(Table147[[#This Row],[Invoice]],1)="0",LEFT(Table147[[#This Row],[Invoice]],1)="1"),INDEX(Invoice_dates,MATCH(Table147[[#This Row],[Invoice]],'2023 Invoice Payments'!$L$1:$L$100,0),2),"") ->  | M33: Y:\$ AerospaceEdge\AGG Finance\AGG Credit Card Receipts\ | N33: Stamps dot com Postage orders.pdf | O33: =IF(RIGHT(Table147[[#This Row],[Charge Receipt]],3)<>"pdf","",IF(FileExists(Table147[[#This Row],[Column1]]&Table147[[#This Row],[Charge Receipt]]),FileExists(Table147[[#This Row],[Column1]]&Table147[[#This Row],[Charge Receipt]]),FileExists("Y:\$ AerospaceEdge\AGG Finance\AGG Distribution Documents\"&Table147[[#This Row],[Charge Receipt]]))) -> TRUE
A34: BA | B34: 2022-03-18 | C34: USPS STAMPS ENDIC 03/17 PURCHASE 888-434-0055 DC DEBIT CARD *7411 | D34: -50 | E34: =IF(Table147[[#This Row],[Bank Acct]]=LEFT(Table147[[#Headers],[BA Balance]],2),SUMIF(Table147[[#Headers],[Bank Acct]]:Table147[[#This Row],[Bank Acct]],Table147[[#This Row],[Bank Acct]],Table147[[#Headers],[Amount]]:Table147[[#This Row],[Amount]]),"") -> 5606.92 | F34: =IF(Table147[[#This Row],[Bank Acct]]=LEFT(Table147[[#Headers],[WF Balance]],2),SUMIF(Table147[[#Headers],[Bank Acct]]:Table147[[#This Row],[Bank Acct]],Table147[[#This Row],[Bank Acct]],Table147[[#Headers],[Amount]]:Table147[[#This Row],[Amount]]),"") ->  | G34: =IFERROR(INDEX(Lookup!$B$2:$C$7,MATCH(RIGHT(TRIM(Table147[[#This Row],[Description]]),4),Lookup!$B$2:$B$7,0),2),"") -> LRC | H34: Peregrine | I34: Stamps | J34: 220310 - LRC ADS_BG ER MasterCard Peregrine Billable 03-2022 | K34: 006-22 | L34: =IF(OR(LEFT(Table147[[#This Row],[Invoice]],1)="0",LEFT(Table147[[#This Row],[Invoice]],1)="1"),INDEX(Invoice_dates,MATCH(Table147[[#This Row],[Invoice]],'2023 Invoice Payments'!$L$1:$L$100,0),2),"") ->  | M34: Y:\$ AerospaceEdge\AGG Finance\AGG Credit Card Receipts\ | N34: Stamps dot com Postage orders.pdf | O34: =IF(RIGHT(Table147[[#This Row],[Charge Receipt]],3)<>"pdf","",IF(FileExists(Table147[[#This Row],[Column1]]&Table147[[#This Row],[Charge Receipt]]),FileExists(Table147[[#This Row],[Column1]]&Table147[[#This Row],[Charge Receipt]]),FileExists("Y:\$ AerospaceEdge\AGG Finance\AGG Distribution Documents\"&Table147[[#This Row],[Charge Receipt]]))) -> TRUE
A35: BA | B35: 2022-03-18 | C35: AMZN Mktp US*1N5B 03/17 PURCHASE Amzn.com/bill WA DEBIT CARD *7411 | D35: -29.63 | E35: =IF(Table147[[#This Row],[Bank Acct]]=LEFT(Table147[[#Headers],[BA Balance]],2),SUMIF(Table147[[#Headers],[Bank Acct]]:Table147[[#This Row],[Bank Acct]],Table147[[#This Row],[Bank Acct]],Table147[[#Headers],[Amount]]:Table147[[#This Row],[Amount]]),"") -> 5577.29 | F35: =IF(Table147[[#This Row],[Bank Acct]]=LEFT(Table147[[#Headers],[WF Balance]],2),SUMIF(Table147[[#Headers],[Bank Acct]]:Table147[[#This Row],[Bank Acct]],Table147[[#This Row],[Bank Acct]],Table147[[#Headers],[Amount]]:Table147[[#This Row],[Amount]]),"") ->  | G35: =IFERROR(INDEX(Lookup!$B$2:$C$7,MATCH(RIGHT(TRIM(Table147[[#This Row],[Description]]),4),Lookup!$B$2:$B$7,0),2),"") -> LRC | H35: Peregrine | J35: 220310 - LRC ADS_BG ER MasterCard Peregrine Billable 03-2022 | K35: 006-22 | L35: =IF(OR(LEFT(Table147[[#This Row],[Invoice]],1)="0",LEFT(Table147[[#This Row],[Invoice]],1)="1"),INDEX(Invoice_dates,MATCH(Table147[[#This Row],[Invoice]],'2023 Invoice Payments'!$L$1:$L$100,0),2),"") ->  | M35: Y:\$ AerospaceEdge\AGG Finance\AGG Credit Card Receipts\ | N35: Amazon.com - Order 114-5434031-3824202.pdf | O35: =IF(RIGHT(Table147[[#This Row],[Charge Receipt]],3)<>"pdf","",IF(FileExists(Table147[[#This Row],[Column1]]&Table147[[#This Row],[Charge Receipt]]),FileExists(Table147[[#This Row],[Column1]]&Table147[[#This Row],[Charge Receipt]]),FileExists("Y:\$ AerospaceEdge\AGG Finance\AGG Distribution Documents\"&Table147[[#This Row],[Charge Receipt]]))) -> TRUE
A36: BA | B36: 2022-03-21 | C36: MailChimp 03/20 PURCHASE Atlanta GA DEBIT CARD *7411 | D36: -59 | E36: =IF(Table147[[#This Row],[Bank Acct]]=LEFT(Table147[[#Headers],[BA Balance]],2),SUMIF(Table147[[#Headers],[Bank Acct]]:Table147[[#This Row],[Bank Acct]],Table147[[#This Row],[Bank Acct]],Table147[[#Headers],[Amount]]:Table147[[#This Row],[Amount]]),"") -> 5518.29 | F36: =IF(Table147[[#This Row],[Bank Acct]]=LEFT(Table147[[#Headers],[WF Balance]],2),SUMIF(Table147[[#Headers],[Bank Acct]]:Table147[[#This Row],[Bank Acct]],Table147[[#This Row],[Bank Acct]],Table147[[#Headers],[Amount]]:Table147[[#This Row],[Amount]]),"") ->  | G36: =IFERROR(INDEX(Lookup!$B$2:$C$7,MATCH(RIGHT(TRIM(Table147[[#This Row],[Description]]),4),Lookup!$B$2:$B$7,0),2),"") -> LRC | H36: Peregrine | I36: Mailchimp | J36: 220310 - LRC ADS_BG ER MasterCard Peregrine Billable 03-2022 | K36: 006-22 | L36: =IF(OR(LEFT(Table147[[#This Row],[Invoice]],1)="0",LEFT(Table147[[#This Row],[Invoice]],1)="1"),INDEX(Invoice_dates,MATCH(Table147[[#This Row],[Invoice]],'2023 Invoice Payments'!$L$1:$L$100,0),2),"") ->  | M36: Y:\$ AerospaceEdge\AGG Finance\AGG Credit Card Receipts\ | N36: 220320 - Peregrine - Mailchimp Essentials MC15268026.pdf | O36: =IF(RIGHT(Table147[[#This Row],[Charge Receipt]],3)<>"pdf","",IF(FileExists(Table147[[#This Row],[Column1]]&Table147[[#This Row],[Charge Receipt]]),FileExists(Table147[[#This Row],[Column1]]&Table147[[#This Row],[Charge Receipt]]),FileExists("Y:\$ AerospaceEdge\AGG Finance\AGG Distribution Documents\"&Table147[[#This Row],[Charge Receipt]]))) -> TRUE
A37: BA | B37: 2022-03-21 | C37: MAILCHIMP *MISC 03/18 PURCHASE MAILCHIMP.COM GA DEBIT CARD *7411 | D37: -11.62 | E37: =IF(Table147[[#This Row],[Bank Acct]]=LEFT(Table147[[#Headers],[BA Balance]],2),SUMIF(Table147[[#Headers],[Bank Acct]]:Table147[[#This Row],[Bank Acct]],Table147[[#This Row],[Bank Acct]],Table147[[#Headers],[Amount]]:Table147[[#This Row],[Amount]]),"") -> 5506.67 | F37: =IF(Table147[[#This Row],[Bank Acct]]=LEFT(Table147[[#Headers],[WF Balance]],2),SUMIF(Table147[[#Headers],[Bank Acct]]:Table147[[#This Row],[Bank Acct]],Table147[[#This Row],[Bank Acct]],Table147[[#Headers],[Amount]]:Table147[[#This Row],[Amount]]),"") ->  | G37: =IFERROR(INDEX(Lookup!$B$2:$C$7,MATCH(RIGHT(TRIM(Table147[[#This Row],[Description]]),4),Lookup!$B$2:$B$7,0),2),"") -> LRC | H37: AGG | I37: Mailchimp | J37: 220322 ‐ LRC ADS_BG ER MasterCard 07‐2022 | K37: - | L37: =IF(OR(LEFT(Table147[[#This Row],[Invoice]],1)="0",LEFT(Table147[[#This Row],[Invoice]],1)="1"),INDEX(Invoice_dates,MATCH(Table147[[#This Row],[Invoice]],'2023 Invoice Payments'!$L$1:$L$100,0),2),"") ->  | M37: Y:\$ AerospaceEdge\AGG Finance\AGG Credit Card Receipts\ | N37: 220318 - AGG - Mailchimp Essentials MC15252178.pdf | O37: =IF(RIGHT(Table147[[#This Row],[Charge Receipt]],3)<>"pdf","",IF(FileExists(Table147[[#This Row],[Column1]]&Table147[[#This Row],[Charge Receipt]]),FileExists(Table147[[#This Row],[Column1]]&Table147[[#This Row],[Charge Receipt]]),FileExists("Y:\$ AerospaceEdge\AGG Finance\AGG Distribution Documents\"&Table147[[#This Row],[Charge Receipt]]))) -> TRUE
A38: BA | B38: 2022-03-23 | C38: TRANSFER AVIAGLOBAL GROUP, LL:ADS-B Global LLC Confirmation# 0107351744 | D38: -96.55 | E38: =IF(Table147[[#This Row],[Bank Acct]]=LEFT(Table147[[#Headers],[BA Balance]],2),SUMIF(Table147[[#Headers],[Bank Acct]]:Table147[[#This Row],[Bank Acct]],Table147[[#This Row],[Bank Acct]],Table147[[#Headers],[Amount]]:Table147[[#This Row],[Amount]]),"") -> 5410.12 | F38: =IF(Table147[[#This Row],[Bank Acct]]=LEFT(Table147[[#Headers],[WF Balance]],2),SUMIF(Table147[[#Headers],[Bank Acct]]:Table147[[#This Row],[Bank Acct]],Table147[[#This Row],[Bank Acct]],Table147[[#Headers],[Amount]]:Table147[[#This Row],[Amount]]),"") ->  | G38: =IFERROR(INDEX(Lookup!$B$2:$C$7,MATCH(RIGHT(TRIM(Table147[[#This Row],[Description]]),4),Lookup!$B$2:$B$7,0),2),"") ->  | L38: =IF(OR(LEFT(Table147[[#This Row],[Invoice]],1)="0",LEFT(Table147[[#This Row],[Invoice]],1)="1"),INDEX(Invoice_dates,MATCH(Table147[[#This Row],[Invoice]],'2023 Invoice Payments'!$L$1:$L$100,0),2),"") ->  | M38: Y:\$ AerospaceEdge\AGG Finance\AGG Credit Card Receipts\ | O38: =IF(RIGHT(Table147[[#This Row],[Charge Receipt]],3)<>"pdf","",IF(FileExists(Table147[[#This Row],[Column1]]&Table147[[#This Row],[Charge Receipt]]),FileExists(Table147[[#This Row],[Column1]]&Table147[[#This Row],[Charge Receipt]]),FileExists("Y:\$ AerospaceEdge\AGG Finance\AGG Distribution Documents\"&Table147[[#This Row],[Charge Receipt]]))) -> 
A39: BA | B39: 2022-03-24 | C39: USPS STAMPS ENDIC 03/23 PURCHASE 888-434-0055 DC DEBIT CARD *7411 | D39: -25 | E39: =IF(Table147[[#This Row],[Bank Acct]]=LEFT(Table147[[#Headers],[BA Balance]],2),SUMIF(Table147[[#Headers],[Bank Acct]]:Table147[[#This Row],[Bank Acct]],Table147[[#This Row],[Bank Acct]],Table147[[#Headers],[Amount]]:Table147[[#This Row],[Amount]]),"") -> 5385.12 | F39: =IF(Table147[[#This Row],[Bank Acct]]=LEFT(Table147[[#Headers],[WF Balance]],2),SUMIF(Table147[[#Headers],[Bank Acct]]:Table147[[#This Row],[Bank Acct]],Table147[[#This Row],[Bank Acct]],Table147[[#Headers],[Amount]]:Table147[[#This Row],[Amount]]),"") ->  | G39: =IFERROR(INDEX(Lookup!$B$2:$C$7,MATCH(RIGHT(TRIM(Table147[[#This Row],[Description]]),4),Lookup!$B$2:$B$7,0),2),"") -> LRC | H39: Peregrine | I39: Stamps | J39: 220310 - LRC ADS_BG ER MasterCard Peregrine Billable 03-2022 | K39: 006-22 | L39: =IF(OR(LEFT(Table147[[#This Row],[Invoice]],1)="0",LEFT(Table147[[#This Row],[Invoice]],1)="1"),INDEX(Invoice_dates,MATCH(Table147[[#This Row],[Invoice]],'2023 Invoice Payments'!$L$1:$L$100,0),2),"") ->  | M39: Y:\$ AerospaceEdge\AGG Finance\AGG Credit Card Receipts\ | N39: Stamps dot com Postage orders.pdf | O39: =IF(RIGHT(Table147[[#This Row],[Charge Receipt]],3)<>"pdf","",IF(FileExists(Table147[[#This Row],[Column1]]&Table147[[#This Row],[Charge Receipt]]),FileExists(Table147[[#This Row],[Column1]]&Table147[[#This Row],[Charge Receipt]]),FileExists("Y:\$ AerospaceEdge\AGG Finance\AGG Distribution Documents\"&Table147[[#This Row],[Charge Receipt]]))) -> TRUE
A40: BA | B40: 2022-03-24 | C40: External transfer fee - 3 Day - 03/23/2022 Confirmation: 380466874 | D40: -1 | E40: =IF(Table147[[#This Row],[Bank Acct]]=LEFT(Table147[[#Headers],[BA Balance]],2),SUMIF(Table147[[#Headers],[Bank Acct]]:Table147[[#This Row],[Bank Acct]],Table147[[#This Row],[Bank Acct]],Table147[[#Headers],[Amount]]:Table147[[#This Row],[Amount]]),"") -> 5384.12 | F40: =IF(Table147[[#This Row],[Bank Acct]]=LEFT(Table147[[#Headers],[WF Balance]],2),SUMIF(Table147[[#Headers],[Bank Acct]]:Table147[[#This Row],[Bank Acct]],Table147[[#This Row],[Bank Acct]],Table147[[#Headers],[Amount]]:Table147[[#This Row],[Amount]]),"") ->  | G40: =IFERROR(INDEX(Lookup!$B$2:$C$7,MATCH(RIGHT(TRIM(Table147[[#This Row],[Description]]),4),Lookup!$B$2:$B$7,0),2),"") ->  | H40: AGG | I40: Bank Charge | K40: - | L40: =IF(OR(LEFT(Table147[[#This Row],[Invoice]],1)="0",LEFT(Table147[[#This Row],[Invoice]],1)="1"),INDEX(Invoice_dates,MATCH(Table147[[#This Row],[Invoice]],'2023 Invoice Payments'!$L$1:$L$100,0),2),"") ->  | M40: Y:\$ AerospaceEdge\AGG Finance\AGG Credit Card Receipts\ | O40: =IF(RIGHT(Table147[[#This Row],[Charge Receipt]],3)<>"pdf","",IF(FileExists(Table147[[#This Row],[Column1]]&Table147[[#This Row],[Charge Receipt]]),FileExists(Table147[[#This Row],[Column1]]&Table147[[#This Row],[Charge Receipt]]),FileExists("Y:\$ AerospaceEdge\AGG Finance\AGG Distribution Documents\"&Table147[[#This Row],[Charge Receipt]]))) -> 
A41: BA | B41: 2022-03-29 | C41: MICHAEL L STUCK C 03/28 PURCHASE SCOTTSDALE AZ DEBIT CARD *0975 | D41: -575 | E41: =IF(Table147[[#This Row],[Bank Acct]]=LEFT(Table147[[#Headers],[BA Balance]],2),SUMIF(Table147[[#Headers],[Bank Acct]]:Table147[[#This Row],[Bank Acct]],Table147[[#This Row],[Bank Acct]],Table147[[#Headers],[Amount]]:Table147[[#This Row],[Amount]]),"") -> 4809.12 | F41: =IF(Table147[[#This Row],[Bank Acct]]=LEFT(Table147[[#Headers],[WF Balance]],2),SUMIF(Table147[[#Headers],[Bank Acct]]:Table147[[#This Row],[Bank Acct]],Table147[[#This Row],[Bank Acct]],Table147[[#Headers],[Amount]]:Table147[[#This Row],[Amount]]),"") ->  | G41: =IFERROR(INDEX(Lookup!$B$2:$C$7,MATCH(RIGHT(TRIM(Table147[[#This Row],[Description]]),4),Lookup!$B$2:$B$7,0),2),"") -> HEA | H41: AGG | I41: Taxes | L41: =IF(OR(LEFT(Table147[[#This Row],[Invoice]],1)="0",LEFT(Table147[[#This Row],[Invoice]],1)="1"),INDEX(Invoice_dates,MATCH(Table147[[#This Row],[Invoice]],'2023 Invoice Payments'!$L$1:$L$100,0),2),"") ->  | M41: Y:\$ AerospaceEdge\AGG Finance\AGG Credit Card Receipts\ | N41: HEA AGG ER 01-2022 DebitCardRecon | O41: =IF(RIGHT(Table147[[#This Row],[Charge Receipt]],3)<>"pdf","",IF(FileExists(Table147[[#This Row],[Column1]]&Table147[[#This Row],[Charge Receipt]]),FileExists(Table147[[#This Row],[Column1]]&Table147[[#This Row],[Charge Receipt]]),FileExists("Y:\$ AerospaceEdge\AGG Finance\AGG Distribution Documents\"&Table147[[#This Row],[Charge Receipt]]))) -> 
A42: BA | B42: 2022-03-31 | C42: NATIONAL BUS AVIA 03/31 PURCHASE WASHINGTON DC DEBIT CARD *7411 | D42: -750 | E42: =IF(Table147[[#This Row],[Bank Acct]]=LEFT(Table147[[#Headers],[BA Balance]],2),SUMIF(Table147[[#Headers],[Bank Acct]]:Table147[[#This Row],[Bank Acct]],Table147[[#This Row],[Bank Acct]],Table147[[#Headers],[Amount]]:Table147[[#This Row],[Amount]]),"") -> 4059.12 | F42: =IF(Table147[[#This Row],[Bank Acct]]=LEFT(Table147[[#Headers],[WF Balance]],2),SUMIF(Table147[[#Headers],[Bank Acct]]:Table147[[#This Row],[Bank Acct]],Table147[[#This Row],[Bank Acct]],Table147[[#Headers],[Amount]]:Table147[[#This Row],[Amount]]),"") ->  | G42: =IFERROR(INDEX(Lookup!$B$2:$C$7,MATCH(RIGHT(TRIM(Table147[[#This Row],[Description]]),4),Lookup!$B$2:$B$7,0),2),"") -> LRC | H42: AGG | J42: 221227 - LRC ADS_BG ER MasterCard 18-2022 | K42: - | L42: =IF(OR(LEFT(Table147[[#This Row],[Invoice]],1)="0",LEFT(Table147[[#This Row],[Invoice]],1)="1"),INDEX(Invoice_dates,MATCH(Table147[[#This Row],[Invoice]],'2023 Invoice Payments'!$L$1:$L$100,0),2),"") ->  | M42: Y:\$ AerospaceEdge\AGG Finance\AGG Credit Card Receipts\ | N42: 220331 - NBAA Dues 000419790.pdf | O42: =IF(RIGHT(Table147[[#This Row],[Charge Receipt]],3)<>"pdf","",IF(FileExists(Table147[[#This Row],[Column1]]&Table147[[#This Row],[Charge Receipt]]),FileExists(Table147[[#This Row],[Column1]]&Table147[[#This Row],[Charge Receipt]]),FileExists("Y:\$ AerospaceEdge\AGG Finance\AGG Distribution Documents\"&Table147[[#This Row],[Charge Receipt]]))) -> TRUE
A43: BA | B43: 2022-04-01 | C43: Monthly Fee Business Adv Relationship | D43: -29.95 | E43: =IF(Table147[[#This Row],[Bank Acct]]=LEFT(Table147[[#Headers],[BA Balance]],2),SUMIF(Table147[[#Headers],[Bank Acct]]:Table147[[#This Row],[Bank Acct]],Table147[[#This Row],[Bank Acct]],Table147[[#Headers],[Amount]]:Table147[[#This Row],[Amount]]),"") -> 4029.17 | F43: =IF(Table147[[#This Row],[Bank Acct]]=LEFT(Table147[[#Headers],[WF Balance]],2),SUMIF(Table147[[#Headers],[Bank Acct]]:Table147[[#This Row],[Bank Acct]],Table147[[#This Row],[Bank Acct]],Table147[[#Headers],[Amount]]:Table147[[#This Row],[Amount]]),"") ->  | G43: =IFERROR(INDEX(Lookup!$B$2:$C$7,MATCH(RIGHT(TRIM(Table147[[#This Row],[Description]]),4),Lookup!$B$2:$B$7,0),2),"") ->  | H43: AGG | I43: Bank Charge | K43: - | L43: =IF(OR(LEFT(Table147[[#This Row],[Invoice]],1)="0",LEFT(Table147[[#This Row],[Invoice]],1)="1"),INDEX(Invoice_dates,MATCH(Table147[[#This Row],[Invoice]],'2023 Invoice Payments'!$L$1:$L$100,0),2),"") ->  | M43: Y:\$ AerospaceEdge\AGG Finance\AGG Credit Card Receipts\ | O43: =IF(RIGHT(Table147[[#This Row],[Charge Receipt]],3)<>"pdf","",IF(FileExists(Table147[[#This Row],[Column1]]&Table147[[#This Row],[Charge Receipt]]),FileExists(Table147[[#This Row],[Column1]]&Table147[[#This Row],[Charge Receipt]]),FileExists("Y:\$ AerospaceEdge\AGG Finance\AGG Distribution Documents\"&Table147[[#This Row],[Charge Receipt]]))) -> 
A44: BA | B44: 2022-04-08 | C44: EVERMAP COMPANY L 04/05 PURCHASE CORVALLIS OR DEBIT CARD *0975 | D44: -149 | E44: =IF(Table147[[#This Row],[Bank Acct]]=LEFT(Table147[[#Headers],[BA Balance]],2),SUMIF(Table147[[#Headers],[Bank Acct]]:Table147[[#This Row],[Bank Acct]],Table147[[#This Row],[Bank Acct]],Table147[[#Headers],[Amount]]:Table147[[#This Row],[Amount]]),"") -> 3880.17 | F44: =IF(Table147[[#This Row],[Bank Acct]]=LEFT(Table147[[#Headers],[WF Balance]],2),SUMIF(Table147[[#Headers],[Bank Acct]]:Table147[[#This Row],[Bank Acct]],Table147[[#This Row],[Bank Acct]],Table147[[#Headers],[Amount]]:Table147[[#This Row],[Amount]]),"") ->  | G44: =IFERROR(INDEX(Lookup!$B$2:$C$7,MATCH(RIGHT(TRIM(Table147[[#This Row],[Description]]),4),Lookup!$B$2:$B$7,0),2),"") -> HEA | H44: AGG | L44: =IF(OR(LEFT(Table147[[#This Row],[Invoice]],1)="0",LEFT(Table147[[#This Row],[Invoice]],1)="1"),INDEX(Invoice_dates,MATCH(Table147[[#This Row],[Invoice]],'2023 Invoice Payments'!$L$1:$L$100,0),2),"") ->  | M44: Y:\$ AerospaceEdge\AGG Finance\AGG Credit Card Receipts\ | N44: HEA AGG ER 01-2022 DebitCardRecon | O44: =IF(RIGHT(Table147[[#This Row],[Charge Receipt]],3)<>"pdf","",IF(FileExists(Table147[[#This Row],[Column1]]&Table147[[#This Row],[Charge Receipt]]),FileExists(Table147[[#This Row],[Column1]]&Table147[[#This Row],[Charge Receipt]]),FileExists("Y:\$ AerospaceEdge\AGG Finance\AGG Distribution Documents\"&Table147[[#This Row],[Charge Receipt]]))) -> 
A45: BA | B45: 2022-04-13 | C45: EVERMAP COMPANY L 04/05 PURCHASE CORVALLIS OR DEBIT CARD *7411 | D45: -149 | E45: =IF(Table147[[#This Row],[Bank Acct]]=LEFT(Table147[[#Headers],[BA Balance]],2),SUMIF(Table147[[#Headers],[Bank Acct]]:Table147[[#This Row],[Bank Acct]],Table147[[#This Row],[Bank Acct]],Table147[[#Headers],[Amount]]:Table147[[#This Row],[Amount]]),"") -> 3731.17 | F45: =IF(Table147[[#This Row],[Bank Acct]]=LEFT(Table147[[#Headers],[WF Balance]],2),SUMIF(Table147[[#Headers],[Bank Acct]]:Table147[[#This Row],[Bank Acct]],Table147[[#This Row],[Bank Acct]],Table147[[#Headers],[Amount]]:Table147[[#This Row],[Amount]]),"") ->  | G45: =IFERROR(INDEX(Lookup!$B$2:$C$7,MATCH(RIGHT(TRIM(Table147[[#This Row],[Description]]),4),Lookup!$B$2:$B$7,0),2),"") -> LRC | H45: AGG | J45: 221227 - LRC ADS_BG ER MasterCard 18-2022 | K45: - | L45: =IF(OR(LEFT(Table147[[#This Row],[Invoice]],1)="0",LEFT(Table147[[#This Row],[Invoice]],1)="1"),INDEX(Invoice_dates,MATCH(Table147[[#This Row],[Invoice]],'2023 Invoice Payments'!$L$1:$L$100,0),2),"") ->  | M45: Y:\$ AerospaceEdge\AGG Finance\AGG Credit Card Receipts\ | N45: 220405 - Evermap PDF Tool W-48699.pdf | O45: =IF(RIGHT(Table147[[#This Row],[Charge Receipt]],3)<>"pdf","",IF(FileExists(Table147[[#This Row],[Column1]]&Table147[[#This Row],[Charge Receipt]]),FileExists(Table147[[#This Row],[Column1]]&Table147[[#This Row],[Charge Receipt]]),FileExists("Y:\$ AerospaceEdge\AGG Finance\AGG Distribution Documents\"&Table147[[#This Row],[Charge Receipt]]))) -> TRUE
A46: BA | B46: 2022-04-14 | C46: STAMPS.COM 04/14 PURCHASE 855-608-2677 CA DEBIT CARD *7411 | D46: -17.99 | E46: =IF(Table147[[#This Row],[Bank Acct]]=LEFT(Table147[[#Headers],[BA Balance]],2),SUMIF(Table147[[#Headers],[Bank Acct]]:Table147[[#This Row],[Bank Acct]],Table147[[#This Row],[Bank Acct]],Table147[[#Headers],[Amount]]:Table147[[#This Row],[Amount]]),"") -> 3713.18 | F46: =IF(Table147[[#This Row],[Bank Acct]]=LEFT(Table147[[#Headers],[WF Balance]],2),SUMIF(Table147[[#Headers],[Bank Acct]]:Table147[[#This Row],[Bank Acct]],Table147[[#This Row],[Bank Acct]],Table147[[#Headers],[Amount]]:Table147[[#This Row],[Amount]]),"") ->  | G46: =IFERROR(INDEX(Lookup!$B$2:$C$7,MATCH(RIGHT(TRIM(Table147[[#This Row],[Description]]),4),Lookup!$B$2:$B$7,0),2),"") -> LRC | H46: AGG | I46: Stamps | J46: 220624 - LRC ADS_BG ER Mastercard 10-2022 | K46: - | L46: =IF(OR(LEFT(Table147[[#This Row],[Invoice]],1)="0",LEFT(Table147[[#This Row],[Invoice]],1)="1"),INDEX(Invoice_dates,MATCH(Table147[[#This Row],[Invoice]],'2023 Invoice Payments'!$L$1:$L$100,0),2),"") ->  | M46: Y:\$ AerospaceEdge\AGG Finance\AGG Credit Card Receipts\ | N46: 220416 - Stamps dot com.pdf | O46: =IF(RIGHT(Table147[[#This Row],[Charge Receipt]],3)<>"pdf","",IF(FileExists(Table147[[#This Row],[Column1]]&Table147[[#This Row],[Charge Receipt]]),FileExists(Table147[[#This Row],[Column1]]&Table147[[#This Row],[Charge Receipt]]),FileExists("Y:\$ AerospaceEdge\AGG Finance\AGG Distribution Documents\"&Table147[[#This Row],[Charge Receipt]]))) -> TRUE
A47: BA | B47: 2022-04-19 | C47: MAILCHIMP *MISC 04/18 PURCHASE MAILCHIMP.COM GA DEBIT CARD *7411 | D47: -11.62 | E47: =IF(Table147[[#This Row],[Bank Acct]]=LEFT(Table147[[#Headers],[BA Balance]],2),SUMIF(Table147[[#Headers],[Bank Acct]]:Table147[[#This Row],[Bank Acct]],Table147[[#This Row],[Bank Acct]],Table147[[#Headers],[Amount]]:Table147[[#This Row],[Amount]]),"") -> 3701.56 | F47: =IF(Table147[[#This Row],[Bank Acct]]=LEFT(Table147[[#Headers],[WF Balance]],2),SUMIF(Table147[[#Headers],[Bank Acct]]:Table147[[#This Row],[Bank Acct]],Table147[[#This Row],[Bank Acct]],Table147[[#Headers],[Amount]]:Table147[[#This Row],[Amount]]),"") ->  | G47: =IFERROR(INDEX(Lookup!$B$2:$C$7,MATCH(RIGHT(TRIM(Table147[[#This Row],[Description]]),4),Lookup!$B$2:$B$7,0),2),"") -> LRC | H47: AGG | I47: Mailchimp | J47: 220624 - LRC ADS_BG ER Mastercard 10-2022 | K47: - | L47: =IF(OR(LEFT(Table147[[#This Row],[Invoice]],1)="0",LEFT(Table147[[#This Row],[Invoice]],1)="1"),INDEX(Invoice_dates,MATCH(Table147[[#This Row],[Invoice]],'2023 Invoice Payments'!$L$1:$L$100,0),2),"") ->  | M47: Y:\$ AerospaceEdge\AGG Finance\AGG Credit Card Receipts\ | N47: 220418 - AGG - Mailchimp Essentials MC15490450.pdf | O47: =IF(RIGHT(Table147[[#This Row],[Charge Receipt]],3)<>"pdf","",IF(FileExists(Table147[[#This Row],[Column1]]&Table147[[#This Row],[Charge Receipt]]),FileExists(Table147[[#This Row],[Column1]]&Table147[[#This Row],[Charge Receipt]]),FileExists("Y:\$ AerospaceEdge\AGG Finance\AGG Distribution Documents\"&Table147[[#This Row],[Charge Receipt]]))) -> TRUE
A48: BA | B48: 2022-04-20 | C48: PEREGRINE AVIONI DES:QUICKBOOKS ID:375020979 INDN:AVIAGLOBAL GROUP, LLC CO ID:1722616653 PPD | D48: 3557.1 | E48: =IF(Table147[[#This Row],[Bank Acct]]=LEFT(Table147[[#Headers],[BA Balance]],2),SUMIF(Table147[[#Headers],[Bank Acct]]:Table147[[#This Row],[Bank Acct]],Table147[[#This Row],[Bank Acct]],Table147[[#Headers],[Amount]]:Table147[[#This Row],[Amount]]),"") -> 7258.66 | F48: =IF(Table147[[#This Row],[Bank Acct]]=LEFT(Table147[[#Headers],[WF Balance]],2),SUMIF(Table147[[#Headers],[Bank Acct]]:Table147[[#This Row],[Bank Acct]],Table147[[#This Row],[Bank Acct]],Table147[[#Headers],[Amount]]:Table147[[#This Row],[Amount]]),"") ->  | G48: =IFERROR(INDEX(Lookup!$B$2:$C$7,MATCH(RIGHT(TRIM(Table147[[#This Row],[Description]]),4),Lookup!$B$2:$B$7,0),2),"") ->  | H48: Peregrine | L48: =IF(OR(LEFT(Table147[[#This Row],[Invoice]],1)="0",LEFT(Table147[[#This Row],[Invoice]],1)="1"),INDEX(Invoice_dates,MATCH(Table147[[#This Row],[Invoice]],'2023 Invoice Payments'!$L$1:$L$100,0),2),"") ->  | M48: Y:\$ AerospaceEdge\AGG Finance\AGG Credit Card Receipts\ | O48: =IF(RIGHT(Table147[[#This Row],[Charge Receipt]],3)<>"pdf","",IF(FileExists(Table147[[#This Row],[Column1]]&Table147[[#This Row],[Charge Receipt]]),FileExists(Table147[[#This Row],[Column1]]&Table147[[#This Row],[Charge Receipt]]),FileExists("Y:\$ AerospaceEdge\AGG Finance\AGG Distribution Documents\"&Table147[[#This Row],[Charge Receipt]]))) -> 
A49: BA | B49: 2022-04-20 | C49: MailChimp 04/20 PURCHASE Atlanta GA DEBIT CARD *7411 | D49: -59 | E49: =IF(Table147[[#This Row],[Bank Acct]]=LEFT(Table147[[#Headers],[BA Balance]],2),SUMIF(Table147[[#Headers],[Bank Acct]]:Table147[[#This Row],[Bank Acct]],Table147[[#This Row],[Bank Acct]],Table147[[#Headers],[Amount]]:Table147[[#This Row],[Amount]]),"") -> 7199.66 | F49: =IF(Table147[[#This Row],[Bank Acct]]=LEFT(Table147[[#Headers],[WF Balance]],2),SUMIF(Table147[[#Headers],[Bank Acct]]:Table147[[#This Row],[Bank Acct]],Table147[[#This Row],[Bank Acct]],Table147[[#Headers],[Amount]]:Table147[[#This Row],[Amount]]),"") ->  | G49: =IFERROR(INDEX(Lookup!$B$2:$C$7,MATCH(RIGHT(TRIM(Table147[[#This Row],[Description]]),4),Lookup!$B$2:$B$7,0),2),"") -> LRC | H49: Peregrine | I49: Mailchimp | J49: 220624 - LRC ADS_BG ER Peregrine Billable 09-2022 | K49: 011-22 | L49: =IF(OR(LEFT(Table147[[#This Row],[Invoice]],1)="0",LEFT(Table147[[#This Row],[Invoice]],1)="1"),INDEX(Invoice_dates,MATCH(Table147[[#This Row],[Invoice]],'2023 Invoice Payments'!$L$1:$L$100,0),2),"") ->  | M49: Y:\$ AerospaceEdge\AGG Finance\AGG Credit Card Receipts\ | N49: 220420 - Peregrine - Mailchimp Essentials MC15506606.pdf | O49: =IF(RIGHT(Table147[[#This Row],[Charge Receipt]],3)<>"pdf","",IF(FileExists(Table147[[#This Row],[Column1]]&Table147[[#This Row],[Charge Receipt]]),FileExists(Table147[[#This Row],[Column1]]&Table147[[#This Row],[Charge Receipt]]),FileExists("Y:\$ AerospaceEdge\AGG Finance\AGG Distribution Documents\"&Table147[[#This Row],[Charge Receipt]]))) -> TRUE
A50: BA | B50: 2022-04-22 | C50: TRANSFER AVIAGLOBAL GROUP, LL:ADS-B Global LLC Confirmation# 1763915441 | D50: -2000 | E50: =IF(Table147[[#This Row],[Bank Acct]]=LEFT(Table147[[#Headers],[BA Balance]],2),SUMIF(Table147[[#Headers],[Bank Acct]]:Table147[[#This Row],[Bank Acct]],Table147[[#This Row],[Bank Acct]],Table147[[#Headers],[Amount]]:Table147[[#This Row],[Amount]]),"") -> 5199.66 | F50: =IF(Table147[[#This Row],[Bank Acct]]=LEFT(Table147[[#Headers],[WF Balance]],2),SUMIF(Table147[[#Headers],[Bank Acct]]:Table147[[#This Row],[Bank Acct]],Table147[[#This Row],[Bank Acct]],Table147[[#Headers],[Amount]]:Table147[[#This Row],[Amount]]),"") ->  | G50: =IFERROR(INDEX(Lookup!$B$2:$C$7,MATCH(RIGHT(TRIM(Table147[[#This Row],[Description]]),4),Lookup!$B$2:$B$7,0),2),"") ->  | I50: Distibution | L50: =IF(OR(LEFT(Table147[[#This Row],[Invoice]],1)="0",LEFT(Table147[[#This Row],[Invoice]],1)="1"),INDEX(Invoice_dates,MATCH(Table147[[#This Row],[Invoice]],'2023 Invoice Payments'!$L$1:$L$100,0),2),"") ->  | M50: Y:\$ AerospaceEdge\AGG Finance\AGG Credit Card Receipts\ | O50: =IF(RIGHT(Table147[[#This Row],[Charge Receipt]],3)<>"pdf","",IF(FileExists(Table147[[#This Row],[Column1]]&Table147[[#This Row],[Charge Receipt]]),FileExists(Table147[[#This Row],[Column1]]&Table147[[#This Row],[Charge Receipt]]),FileExists("Y:\$ AerospaceEdge\AGG Finance\AGG Distribution Documents\"&Table147[[#This Row],[Charge Receipt]]))) -> 
A51: BA | B51: 2022-04-22 | C51: TRANSFER AVIAGLOBAL GROUP, LL:Forrest Colliver Confirmation# 0663925416 | D51: -2000 | E51: =IF(Table147[[#This Row],[Bank Acct]]=LEFT(Table147[[#Headers],[BA Balance]],2),SUMIF(Table147[[#Headers],[Bank Acct]]:Table147[[#This Row],[Bank Acct]],Table147[[#This Row],[Bank Acct]],Table147[[#Headers],[Amount]]:Table147[[#This Row],[Amount]]),"") -> 3199.66 | F51: =IF(Table147[[#This Row],[Bank Acct]]=LEFT(Table147[[#Headers],[WF Balance]],2),SUMIF(Table147[[#Headers],[Bank Acct]]:Table147[[#This Row],[Bank Acct]],Table147[[#This Row],[Bank Acct]],Table147[[#Headers],[Amount]]:Table147[[#This Row],[Amount]]),"") ->  | G51: =IFERROR(INDEX(Lookup!$B$2:$C$7,MATCH(RIGHT(TRIM(Table147[[#This Row],[Description]]),4),Lookup!$B$2:$B$7,0),2),"") ->  | I51: Distibution | L51: =IF(OR(LEFT(Table147[[#This Row],[Invoice]],1)="0",LEFT(Table147[[#This Row],[Invoice]],1)="1"),INDEX(Invoice_dates,MATCH(Table147[[#This Row],[Invoice]],'2023 Invoice Payments'!$L$1:$L$100,0),2),"") ->  | M51: Y:\$ AerospaceEdge\AGG Finance\AGG Credit Card Receipts\ | O51: =IF(RIGHT(Table147[[#This Row],[Charge Receipt]],3)<>"pdf","",IF(FileExists(Table147[[#This Row],[Column1]]&Table147[[#This Row],[Charge Receipt]]),FileExists(Table147[[#This Row],[Column1]]&Table147[[#This Row],[Charge Receipt]]),FileExists("Y:\$ AerospaceEdge\AGG Finance\AGG Distribution Documents\"&Table147[[#This Row],[Charge Receipt]]))) -> 
A52: BA | B52: 2022-04-22 | C52: Online Banking Transfer Conf# iuvu5ty24; AERO BUSINESS DEVELOPEMENT LLC | D52: -2000 | E52: =IF(Table147[[#This Row],[Bank Acct]]=LEFT(Table147[[#Headers],[BA Balance]],2),SUMIF(Table147[[#Headers],[Bank Acct]]:Table147[[#This Row],[Bank Acct]],Table147[[#This Row],[Bank Acct]],Table147[[#Headers],[Amount]]:Table147[[#This Row],[Amount]]),"") -> 1199.66 | F52: =IF(Table147[[#This Row],[Bank Acct]]=LEFT(Table147[[#Headers],[WF Balance]],2),SUMIF(Table147[[#Headers],[Bank Acct]]:Table147[[#This Row],[Bank Acct]],Table147[[#This Row],[Bank Acct]],Table147[[#Headers],[Amount]]:Table147[[#This Row],[Amount]]),"") ->  | G52: =IFERROR(INDEX(Lookup!$B$2:$C$7,MATCH(RIGHT(TRIM(Table147[[#This Row],[Description]]),4),Lookup!$B$2:$B$7,0),2),"") ->  | I52: Distibution | L52: =IF(OR(LEFT(Table147[[#This Row],[Invoice]],1)="0",LEFT(Table147[[#This Row],[Invoice]],1)="1"),INDEX(Invoice_dates,MATCH(Table147[[#This Row],[Invoice]],'2023 Invoice Payments'!$L$1:$L$100,0),2),"") ->  | M52: Y:\$ AerospaceEdge\AGG Finance\AGG Credit Card Receipts\ | O52: =IF(RIGHT(Table147[[#This Row],[Charge Receipt]],3)<>"pdf","",IF(FileExists(Table147[[#This Row],[Column1]]&Table147[[#This Row],[Charge Receipt]]),FileExists(Table147[[#This Row],[Column1]]&Table147[[#This Row],[Charge Receipt]]),FileExists("Y:\$ AerospaceEdge\AGG Finance\AGG Distribution Documents\"&Table147[[#This Row],[Charge Receipt]]))) -> 
A53: BA | B53: 2022-04-25 | C53: External transfer fee - 3 Day - 04/22/2022 Confirmation: 384618918 | D53: -1 | E53: =IF(Table147[[#This Row],[Bank Acct]]=LEFT(Table147[[#Headers],[BA Balance]],2),SUMIF(Table147[[#Headers],[Bank Acct]]:Table147[[#This Row],[Bank Acct]],Table147[[#This Row],[Bank Acct]],Table147[[#Headers],[Amount]]:Table147[[#This Row],[Amount]]),"") -> 1198.66 | F53: =IF(Table147[[#This Row],[Bank Acct]]=LEFT(Table147[[#Headers],[WF Balance]],2),SUMIF(Table147[[#Headers],[Bank Acct]]:Table147[[#This Row],[Bank Acct]],Table147[[#This Row],[Bank Acct]],Table147[[#Headers],[Amount]]:Table147[[#This Row],[Amount]]),"") ->  | G53: =IFERROR(INDEX(Lookup!$B$2:$C$7,MATCH(RIGHT(TRIM(Table147[[#This Row],[Description]]),4),Lookup!$B$2:$B$7,0),2),"") ->  | H53: AGG | I53: Bank Charge | K53: - | L53: =IF(OR(LEFT(Table147[[#This Row],[Invoice]],1)="0",LEFT(Table147[[#This Row],[Invoice]],1)="1"),INDEX(Invoice_dates,MATCH(Table147[[#This Row],[Invoice]],'2023 Invoice Payments'!$L$1:$L$100,0),2),"") ->  | M53: Y:\$ AerospaceEdge\AGG Finance\AGG Credit Card Receipts\ | O53: =IF(RIGHT(Table147[[#This Row],[Charge Receipt]],3)<>"pdf","",IF(FileExists(Table147[[#This Row],[Column1]]&Table147[[#This Row],[Charge Receipt]]),FileExists(Table147[[#This Row],[Column1]]&Table147[[#This Row],[Charge Receipt]]),FileExists("Y:\$ AerospaceEdge\AGG Finance\AGG Distribution Documents\"&Table147[[#This Row],[Charge Receipt]]))) -> 
A54: BA | B54: 2022-04-25 | C54: External transfer fee - 3 Day - 04/22/2022 Confirmation: 384619226 | D54: -1 | E54: =IF(Table147[[#This Row],[Bank Acct]]=LEFT(Table147[[#Headers],[BA Balance]],2),SUMIF(Table147[[#Headers],[Bank Acct]]:Table147[[#This Row],[Bank Acct]],Table147[[#This Row],[Bank Acct]],Table147[[#Headers],[Amount]]:Table147[[#This Row],[Amount]]),"") -> 1197.66 | F54: =IF(Table147[[#This Row],[Bank Acct]]=LEFT(Table147[[#Headers],[WF Balance]],2),SUMIF(Table147[[#Headers],[Bank Acct]]:Table147[[#This Row],[Bank Acct]],Table147[[#This Row],[Bank Acct]],Table147[[#Headers],[Amount]]:Table147[[#This Row],[Amount]]),"") ->  | G54: =IFERROR(INDEX(Lookup!$B$2:$C$7,MATCH(RIGHT(TRIM(Table147[[#This Row],[Description]]),4),Lookup!$B$2:$B$7,0),2),"") ->  | H54: AGG | I54: Bank Charge | K54: - | L54: =IF(OR(LEFT(Table147[[#This Row],[Invoice]],1)="0",LEFT(Table147[[#This Row],[Invoice]],1)="1"),INDEX(Invoice_dates,MATCH(Table147[[#This Row],[Invoice]],'2023 Invoice Payments'!$L$1:$L$100,0),2),"") ->  | M54: Y:\$ AerospaceEdge\AGG Finance\AGG Credit Card Receipts\ | O54: =IF(RIGHT(Table147[[#This Row],[Charge Receipt]],3)<>"pdf","",IF(FileExists(Table147[[#This Row],[Column1]]&Table147[[#This Row],[Charge Receipt]]),FileExists(Table147[[#This Row],[Column1]]&Table147[[#This Row],[Charge Receipt]]),FileExists("Y:\$ AerospaceEdge\AGG Finance\AGG Distribution Documents\"&Table147[[#This Row],[Charge Receipt]]))) -> 
A55: BA | B55: 2022-05-02 | C55: Monthly Fee Business Adv Relationship | D55: -29.95 | E55: =IF(Table147[[#This Row],[Bank Acct]]=LEFT(Table147[[#Headers],[BA Balance]],2),SUMIF(Table147[[#Headers],[Bank Acct]]:Table147[[#This Row],[Bank Acct]],Table147[[#This Row],[Bank Acct]],Table147[[#Headers],[Amount]]:Table147[[#This Row],[Amount]]),"") -> 1167.71 | F55: =IF(Table147[[#This Row],[Bank Acct]]=LEFT(Table147[[#Headers],[WF Balance]],2),SUMIF(Table147[[#Headers],[Bank Acct]]:Table147[[#This Row],[Bank Acct]],Table147[[#This Row],[Bank Acct]],Table147[[#Headers],[Amount]]:Table147[[#This Row],[Amount]]),"") ->  | G55: =IFERROR(INDEX(Lookup!$B$2:$C$7,MATCH(RIGHT(TRIM(Table147[[#This Row],[Description]]),4),Lookup!$B$2:$B$7,0),2),"") ->  | H55: AGG | I55: Bank Charge | K55: - | L55: =IF(OR(LEFT(Table147[[#This Row],[Invoice]],1)="0",LEFT(Table147[[#This Row],[Invoice]],1)="1"),INDEX(Invoice_dates,MATCH(Table147[[#This Row],[Invoice]],'2023 Invoice Payments'!$L$1:$L$100,0),2),"") ->  | M55: Y:\$ AerospaceEdge\AGG Finance\AGG Credit Card Receipts\ | O55: =IF(RIGHT(Table147[[#This Row],[Charge Receipt]],3)<>"pdf","",IF(FileExists(Table147[[#This Row],[Column1]]&Table147[[#This Row],[Charge Receipt]]),FileExists(Table147[[#This Row],[Column1]]&Table147[[#This Row],[Charge Receipt]]),FileExists("Y:\$ AerospaceEdge\AGG Finance\AGG Distribution Documents\"&Table147[[#This Row],[Charge Receipt]]))) -> 
A56: BA | B56: 2022-05-16 | C56: STAMPS.COM 05/14 PURCHASE 855-608-2677 CA DEBIT CARD *7411 | D56: -17.99 | E56: =IF(Table147[[#This Row],[Bank Acct]]=LEFT(Table147[[#Headers],[BA Balance]],2),SUMIF(Table147[[#Headers],[Bank Acct]]:Table147[[#This Row],[Bank Acct]],Table147[[#This Row],[Bank Acct]],Table147[[#Headers],[Amount]]:Table147[[#This Row],[Amount]]),"") -> 1149.72 | F56: =IF(Table147[[#This Row],[Bank Acct]]=LEFT(Table147[[#Headers],[WF Balance]],2),SUMIF(Table147[[#Headers],[Bank Acct]]:Table147[[#This Row],[Bank Acct]],Table147[[#This Row],[Bank Acct]],Table147[[#Headers],[Amount]]:Table147[[#This Row],[Amount]]),"") ->  | G56: =IFERROR(INDEX(Lookup!$B$2:$C$7,MATCH(RIGHT(TRIM(Table147[[#This Row],[Description]]),4),Lookup!$B$2:$B$7,0),2),"") -> LRC | H56: AGG | I56: Stamps | J56: 220624 - LRC ADS_BG ER Mastercard 10-2022 | K56: - | L56: =IF(OR(LEFT(Table147[[#This Row],[Invoice]],1)="0",LEFT(Table147[[#This Row],[Invoice]],1)="1"),INDEX(Invoice_dates,MATCH(Table147[[#This Row],[Invoice]],'2023 Invoice Payments'!$L$1:$L$100,0),2),"") ->  | M56: Y:\$ AerospaceEdge\AGG Finance\AGG Credit Card Receipts\ | N56: 220516 - Stamps dot com.pdf | O56: =IF(RIGHT(Table147[[#This Row],[Charge Receipt]],3)<>"pdf","",IF(FileExists(Table147[[#This Row],[Column1]]&Table147[[#This Row],[Charge Receipt]]),FileExists(Table147[[#This Row],[Column1]]&Table147[[#This Row],[Charge Receipt]]),FileExists("Y:\$ AerospaceEdge\AGG Finance\AGG Distribution Documents\"&Table147[[#This Row],[Charge Receipt]]))) -> TRUE
A57: BA | B57: 2022-05-19 | C57: MAILCHIMP *MISC 05/18 PURCHASE MAILCHIMP.COM GA DEBIT CARD *7411 | D57: -11.62 | E57: =IF(Table147[[#This Row],[Bank Acct]]=LEFT(Table147[[#Headers],[BA Balance]],2),SUMIF(Table147[[#Headers],[Bank Acct]]:Table147[[#This Row],[Bank Acct]],Table147[[#This Row],[Bank Acct]],Table147[[#Headers],[Amount]]:Table147[[#This Row],[Amount]]),"") -> 1138.1 | F57: =IF(Table147[[#This Row],[Bank Acct]]=LEFT(Table147[[#Headers],[WF Balance]],2),SUMIF(Table147[[#Headers],[Bank Acct]]:Table147[[#This Row],[Bank Acct]],Table147[[#This Row],[Bank Acct]],Table147[[#Headers],[Amount]]:Table147[[#This Row],[Amount]]),"") ->  | G57: =IFERROR(INDEX(Lookup!$B$2:$C$7,MATCH(RIGHT(TRIM(Table147[[#This Row],[Description]]),4),Lookup!$B$2:$B$7,0),2),"") -> LRC | H57: AGG | I57: Mailchimp | J57: 220624 - LRC ADS_BG ER Mastercard 10-2022 | K57: - | L57: =IF(OR(LEFT(Table147[[#This Row],[Invoice]],1)="0",LEFT(Table147[[#This Row],[Invoice]],1)="1"),INDEX(Invoice_dates,MATCH(Table147[[#This Row],[Invoice]],'2023 Invoice Payments'!$L$1:$L$100,0),2),"") ->  | M57: Y:\$ AerospaceEdge\AGG Finance\AGG Credit Card Receipts\ | N57: 220518 - AGG - Mailchimp Essentials MC15724938.pdf | O57: =IF(RIGHT(Table147[[#This Row],[Charge Receipt]],3)<>"pdf","",IF(FileExists(Table147[[#This Row],[Column1]]&Table147[[#This Row],[Charge Receipt]]),FileExists(Table147[[#This Row],[Column1]]&Table147[[#This Row],[Charge Receipt]]),FileExists("Y:\$ AerospaceEdge\AGG Finance\AGG Distribution Documents\"&Table147[[#This Row],[Charge Receipt]]))) -> TRUE
A58: BA | B58: 2022-05-20 | C58: MailChimp 05/20 PURCHASE Atlanta GA DEBIT CARD *7411 | D58: -59 | E58: =IF(Table147[[#This Row],[Bank Acct]]=LEFT(Table147[[#Headers],[BA Balance]],2),SUMIF(Table147[[#Headers],[Bank Acct]]:Table147[[#This Row],[Bank Acct]],Table147[[#This Row],[Bank Acct]],Table147[[#Headers],[Amount]]:Table147[[#This Row],[Amount]]),"") -> 1079.1 | F58: =IF(Table147[[#This Row],[Bank Acct]]=LEFT(Table147[[#Headers],[WF Balance]],2),SUMIF(Table147[[#Headers],[Bank Acct]]:Table147[[#This Row],[Bank Acct]],Table147[[#This Row],[Bank Acct]],Table147[[#Headers],[Amount]]:Table147[[#This Row],[Amount]]),"") ->  | G58: =IFERROR(INDEX(Lookup!$B$2:$C$7,MATCH(RIGHT(TRIM(Table147[[#This Row],[Description]]),4),Lookup!$B$2:$B$7,0),2),"") -> LRC | H58: Peregrine | I58: Mailchimp | J58: 220624 - LRC ADS_BG ER Peregrine Billable 09-2022 | K58: 011-22 | L58: =IF(OR(LEFT(Table147[[#This Row],[Invoice]],1)="0",LEFT(Table147[[#This Row],[Invoice]],1)="1"),INDEX(Invoice_dates,MATCH(Table147[[#This Row],[Invoice]],'2023 Invoice Payments'!$L$1:$L$100,0),2),"") ->  | M58: Y:\$ AerospaceEdge\AGG Finance\AGG Credit Card Receipts\ | N58: 220520 - Peregrine - Mailchimp Essentials MC15741014.pdf | O58: =IF(RIGHT(Table147[[#This Row],[Charge Receipt]],3)<>"pdf","",IF(FileExists(Table147[[#This Row],[Column1]]&Table147[[#This Row],[Charge Receipt]]),FileExists(Table147[[#This Row],[Column1]]&Table147[[#This Row],[Charge Receipt]]),FileExists("Y:\$ AerospaceEdge\AGG Finance\AGG Distribution Documents\"&Table147[[#This Row],[Charge Receipt]]))) -> TRUE
A59: BA | B59: 2022-06-01 | C59: Monthly Fee Business Adv Relationship | D59: -29.95 | E59: =IF(Table147[[#This Row],[Bank Acct]]=LEFT(Table147[[#Headers],[BA Balance]],2),SUMIF(Table147[[#Headers],[Bank Acct]]:Table147[[#This Row],[Bank Acct]],Table147[[#This Row],[Bank Acct]],Table147[[#Headers],[Amount]]:Table147[[#This Row],[Amount]]),"") -> 1049.15 | F59: =IF(Table147[[#This Row],[Bank Acct]]=LEFT(Table147[[#Headers],[WF Balance]],2),SUMIF(Table147[[#Headers],[Bank Acct]]:Table147[[#This Row],[Bank Acct]],Table147[[#This Row],[Bank Acct]],Table147[[#Headers],[Amount]]:Table147[[#This Row],[Amount]]),"") ->  | G59: =IFERROR(INDEX(Lookup!$B$2:$C$7,MATCH(RIGHT(TRIM(Table147[[#This Row],[Description]]),4),Lookup!$B$2:$B$7,0),2),"") ->  | H59: AGG | I59: Bank Charge | K59: - | L59: =IF(OR(LEFT(Table147[[#This Row],[Invoice]],1)="0",LEFT(Table147[[#This Row],[Invoice]],1)="1"),INDEX(Invoice_dates,MATCH(Table147[[#This Row],[Invoice]],'2023 Invoice Payments'!$L$1:$L$100,0),2),"") ->  | M59: Y:\$ AerospaceEdge\AGG Finance\AGG Credit Card Receipts\ | O59: =IF(RIGHT(Table147[[#This Row],[Charge Receipt]],3)<>"pdf","",IF(FileExists(Table147[[#This Row],[Column1]]&Table147[[#This Row],[Charge Receipt]]),FileExists(Table147[[#This Row],[Column1]]&Table147[[#This Row],[Charge Receipt]]),FileExists("Y:\$ AerospaceEdge\AGG Finance\AGG Distribution Documents\"&Table147[[#This Row],[Charge Receipt]]))) -> 
A60: BA | B60: 2022-06-06 | C60: DMARCIAN* DMARCIA 06/04 PURCHASE BREVARD NC DEBIT CARD *7429 | D60: -239.88 | E60: =IF(Table147[[#This Row],[Bank Acct]]=LEFT(Table147[[#Headers],[BA Balance]],2),SUMIF(Table147[[#Headers],[Bank Acct]]:Table147[[#This Row],[Bank Acct]],Table147[[#This Row],[Bank Acct]],Table147[[#Headers],[Amount]]:Table147[[#This Row],[Amount]]),"") -> 809.27 | F60: =IF(Table147[[#This Row],[Bank Acct]]=LEFT(Table147[[#Headers],[WF Balance]],2),SUMIF(Table147[[#Headers],[Bank Acct]]:Table147[[#This Row],[Bank Acct]],Table147[[#This Row],[Bank Acct]],Table147[[#Headers],[Amount]]:Table147[[#This Row],[Amount]]),"") ->  | G60: =IFERROR(INDEX(Lookup!$B$2:$C$7,MATCH(RIGHT(TRIM(Table147[[#This Row],[Description]]),4),Lookup!$B$2:$B$7,0),2),"") -> FWC | H60: AGG | J60: 221201 - FWC ER Mastercard Dec-2022 | K60: - | L60: =IF(OR(LEFT(Table147[[#This Row],[Invoice]],1)="0",LEFT(Table147[[#This Row],[Invoice]],1)="1"),INDEX(Invoice_dates,MATCH(Table147[[#This Row],[Invoice]],'2023 Invoice Payments'!$L$1:$L$100,0),2),"") ->  | M60: Y:\$ AerospaceEdge\AGG Finance\AGG Credit Card Receipts\ | N60: AGG - DMARCian invoice_50733.pdf | O60: =IF(RIGHT(Table147[[#This Row],[Charge Receipt]],3)<>"pdf","",IF(FileExists(Table147[[#This Row],[Column1]]&Table147[[#This Row],[Charge Receipt]]),FileExists(Table147[[#This Row],[Column1]]&Table147[[#This Row],[Charge Receipt]]),FileExists("Y:\$ AerospaceEdge\AGG Finance\AGG Distribution Documents\"&Table147[[#This Row],[Charge Receipt]]))) -> TRUE
A61: BA | B61: 2022-06-08 | C61: DREAMSTIME.COM 06/07 PURCHASE BRENTWOOD TN DEBIT CARD *7411 | D61: -16.99 | E61: =IF(Table147[[#This Row],[Bank Acct]]=LEFT(Table147[[#Headers],[BA Balance]],2),SUMIF(Table147[[#Headers],[Bank Acct]]:Table147[[#This Row],[Bank Acct]],Table147[[#This Row],[Bank Acct]],Table147[[#Headers],[Amount]]:Table147[[#This Row],[Amount]]),"") -> 792.28 | F61: =IF(Table147[[#This Row],[Bank Acct]]=LEFT(Table147[[#Headers],[WF Balance]],2),SUMIF(Table147[[#Headers],[Bank Acct]]:Table147[[#This Row],[Bank Acct]],Table147[[#This Row],[Bank Acct]],Table147[[#Headers],[Amount]]:Table147[[#This Row],[Amount]]),"") ->  | G61: =IFERROR(INDEX(Lookup!$B$2:$C$7,MATCH(RIGHT(TRIM(Table147[[#This Row],[Description]]),4),Lookup!$B$2:$B$7,0),2),"") -> LRC | H61: Peregrine | J61: 220624 - LRC ADS_BG ER Peregrine Billable 09-2022 | K61: 011-22 | L61: =IF(OR(LEFT(Table147[[#This Row],[Invoice]],1)="0",LEFT(Table147[[#This Row],[Invoice]],1)="1"),INDEX(Invoice_dates,MATCH(Table147[[#This Row],[Invoice]],'2023 Invoice Payments'!$L$1:$L$100,0),2),"") ->  | M61: Y:\$ AerospaceEdge\AGG Finance\AGG Credit Card Receipts\ | N61: 220607 - Dreamtime LLC 23829472.pdf | O61: =IF(RIGHT(Table147[[#This Row],[Charge Receipt]],3)<>"pdf","",IF(FileExists(Table147[[#This Row],[Column1]]&Table147[[#This Row],[Charge Receipt]]),FileExists(Table147[[#This Row],[Column1]]&Table147[[#This Row],[Charge Receipt]]),FileExists("Y:\$ AerospaceEdge\AGG Finance\AGG Distribution Documents\"&Table147[[#This Row],[Charge Receipt]]))) -> TRUE
A62: BA | B62: 2022-06-08 | C62: DREAMSTIME.COM 06/07 PURCHASE BRENTWOOD TN DEBIT CARD *7411 | D62: -1 | E62: =IF(Table147[[#This Row],[Bank Acct]]=LEFT(Table147[[#Headers],[BA Balance]],2),SUMIF(Table147[[#Headers],[Bank Acct]]:Table147[[#This Row],[Bank Acct]],Table147[[#This Row],[Bank Acct]],Table147[[#Headers],[Amount]]:Table147[[#This Row],[Amount]]),"") -> 791.28 | F62: =IF(Table147[[#This Row],[Bank Acct]]=LEFT(Table147[[#Headers],[WF Balance]],2),SUMIF(Table147[[#Headers],[Bank Acct]]:Table147[[#This Row],[Bank Acct]],Table147[[#This Row],[Bank Acct]],Table147[[#Headers],[Amount]]:Table147[[#This Row],[Amount]]),"") ->  | G62: =IFERROR(INDEX(Lookup!$B$2:$C$7,MATCH(RIGHT(TRIM(Table147[[#This Row],[Description]]),4),Lookup!$B$2:$B$7,0),2),"") -> LRC | H62: Peregrine | J62: 220624 - LRC ADS_BG ER Peregrine Billable 09-2022 | K62: 011-22 | L62: =IF(OR(LEFT(Table147[[#This Row],[Invoice]],1)="0",LEFT(Table147[[#This Row],[Invoice]],1)="1"),INDEX(Invoice_dates,MATCH(Table147[[#This Row],[Invoice]],'2023 Invoice Payments'!$L$1:$L$100,0),2),"") ->  | M62: Y:\$ AerospaceEdge\AGG Finance\AGG Credit Card Receipts\ | N62: 220607 - Dreamtime LLC 23829472.pdf | O62: =IF(RIGHT(Table147[[#This Row],[Charge Receipt]],3)<>"pdf","",IF(FileExists(Table147[[#This Row],[Column1]]&Table147[[#This Row],[Charge Receipt]]),FileExists(Table147[[#This Row],[Column1]]&Table147[[#This Row],[Charge Receipt]]),FileExists("Y:\$ AerospaceEdge\AGG Finance\AGG Distribution Documents\"&Table147[[#This Row],[Charge Receipt]]))) -> TRUE
A63: BA | B63: 2022-06-14 | C63: STAMPS.COM 06/14 PURCHASE 855-608-2677 CA DEBIT CARD *7411 | D63: -17.99 | E63: =IF(Table147[[#This Row],[Bank Acct]]=LEFT(Table147[[#Headers],[BA Balance]],2),SUMIF(Table147[[#Headers],[Bank Acct]]:Table147[[#This Row],[Bank Acct]],Table147[[#This Row],[Bank Acct]],Table147[[#Headers],[Amount]]:Table147[[#This Row],[Amount]]),"") -> 773.29 | F63: =IF(Table147[[#This Row],[Bank Acct]]=LEFT(Table147[[#Headers],[WF Balance]],2),SUMIF(Table147[[#Headers],[Bank Acct]]:Table147[[#This Row],[Bank Acct]],Table147[[#This Row],[Bank Acct]],Table147[[#Headers],[Amount]]:Table147[[#This Row],[Amount]]),"") ->  | G63: =IFERROR(INDEX(Lookup!$B$2:$C$7,MATCH(RIGHT(TRIM(Table147[[#This Row],[Description]]),4),Lookup!$B$2:$B$7,0),2),"") -> LRC | H63: AGG | I63: Stamps | J63: 220624 - LRC ADS_BG ER Mastercard 10-2022 | K63: - | L63: =IF(OR(LEFT(Table147[[#This Row],[Invoice]],1)="0",LEFT(Table147[[#This Row],[Invoice]],1)="1"),INDEX(Invoice_dates,MATCH(Table147[[#This Row],[Invoice]],'2023 Invoice Payments'!$L$1:$L$100,0),2),"") ->  | M63: Y:\$ AerospaceEdge\AGG Finance\AGG Credit Card Receipts\ | N63: 220616 - Stamps dot com.pdf | O63: =IF(RIGHT(Table147[[#This Row],[Charge Receipt]],3)<>"pdf","",IF(FileExists(Table147[[#This Row],[Column1]]&Table147[[#This Row],[Charge Receipt]]),FileExists(Table147[[#This Row],[Column1]]&Table147[[#This Row],[Charge Receipt]]),FileExists("Y:\$ AerospaceEdge\AGG Finance\AGG Distribution Documents\"&Table147[[#This Row],[Charge Receipt]]))) -> TRUE
A64: BA | B64: 2022-06-21 | C64: MailChimp 06/20 PURCHASE Atlanta GA DEBIT CARD *7411 | D64: -59 | E64: =IF(Table147[[#This Row],[Bank Acct]]=LEFT(Table147[[#Headers],[BA Balance]],2),SUMIF(Table147[[#Headers],[Bank Acct]]:Table147[[#This Row],[Bank Acct]],Table147[[#This Row],[Bank Acct]],Table147[[#Headers],[Amount]]:Table147[[#This Row],[Amount]]),"") -> 714.29 | F64: =IF(Table147[[#This Row],[Bank Acct]]=LEFT(Table147[[#Headers],[WF Balance]],2),SUMIF(Table147[[#Headers],[Bank Acct]]:Table147[[#This Row],[Bank Acct]],Table147[[#This Row],[Bank Acct]],Table147[[#Headers],[Amount]]:Table147[[#This Row],[Amount]]),"") ->  | G64: =IFERROR(INDEX(Lookup!$B$2:$C$7,MATCH(RIGHT(TRIM(Table147[[#This Row],[Description]]),4),Lookup!$B$2:$B$7,0),2),"") -> LRC | H64: Peregrine | I64: Mailchimp | J64: 220624 - LRC ADS_BG ER Peregrine Billable 09-2022 | K64: 011-22 | L64: =IF(OR(LEFT(Table147[[#This Row],[Invoice]],1)="0",LEFT(Table147[[#This Row],[Invoice]],1)="1"),INDEX(Invoice_dates,MATCH(Table147[[#This Row],[Invoice]],'2023 Invoice Payments'!$L$1:$L$100,0),2),"") ->  | M64: Y:\$ AerospaceEdge\AGG Finance\AGG Credit Card Receipts\ | N64: 220620 - Peregrine - Mailchimp Essentials MC15971334.pdf | O64: =IF(RIGHT(Table147[[#This Row],[Charge Receipt]],3)<>"pdf","",IF(FileExists(Table147[[#This Row],[Column1]]&Table147[[#This Row],[Charge Receipt]]),FileExists(Table147[[#This Row],[Column1]]&Table147[[#This Row],[Charge Receipt]]),FileExists("Y:\$ AerospaceEdge\AGG Finance\AGG Distribution Documents\"&Table147[[#This Row],[Charge Receipt]]))) -> TRUE
A65: BA | B65: 2022-06-21 | C65: MAILCHIMP *MISC 06/18 PURCHASE MAILCHIMP.COM GA DEBIT CARD *7411 | D65: -11.62 | E65: =IF(Table147[[#This Row],[Bank Acct]]=LEFT(Table147[[#Headers],[BA Balance]],2),SUMIF(Table147[[#Headers],[Bank Acct]]:Table147[[#This Row],[Bank Acct]],Table147[[#This Row],[Bank Acct]],Table147[[#Headers],[Amount]]:Table147[[#This Row],[Amount]]),"") -> 702.67 | F65: =IF(Table147[[#This Row],[Bank Acct]]=LEFT(Table147[[#Headers],[WF Balance]],2),SUMIF(Table147[[#Headers],[Bank Acct]]:Table147[[#This Row],[Bank Acct]],Table147[[#This Row],[Bank Acct]],Table147[[#Headers],[Amount]]:Table147[[#This Row],[Amount]]),"") ->  | G65: =IFERROR(INDEX(Lookup!$B$2:$C$7,MATCH(RIGHT(TRIM(Table147[[#This Row],[Description]]),4),Lookup!$B$2:$B$7,0),2),"") -> LRC | H65: AGG | I65: Mailchimp | J65: 220624 - LRC ADS_BG ER Mastercard 10-2022 | K65: - | L65: =IF(OR(LEFT(Table147[[#This Row],[Invoice]],1)="0",LEFT(Table147[[#This Row],[Invoice]],1)="1"),INDEX(Invoice_dates,MATCH(Table147[[#This Row],[Invoice]],'2023 Invoice Payments'!$L$1:$L$100,0),2),"") ->  | M65: Y:\$ AerospaceEdge\AGG Finance\AGG Credit Card Receipts\ | N65: 220618 - AGG - Mailchimp Essentials MC15956138.pdf | O65: =IF(RIGHT(Table147[[#This Row],[Charge Receipt]],3)<>"pdf","",IF(FileExists(Table147[[#This Row],[Column1]]&Table147[[#This Row],[Charge Receipt]]),FileExists(Table147[[#This Row],[Column1]]&Table147[[#This Row],[Charge Receipt]]),FileExists("Y:\$ AerospaceEdge\AGG Finance\AGG Distribution Documents\"&Table147[[#This Row],[Charge Receipt]]))) -> TRUE
A66: BA | B66: 2022-06-21 | C66: ELEMENTOR 06/20 PURCHASE WILMINGTON DE DEBIT CARD *7429 | D66: -49 | E66: =IF(Table147[[#This Row],[Bank Acct]]=LEFT(Table147[[#Headers],[BA Balance]],2),SUMIF(Table147[[#Headers],[Bank Acct]]:Table147[[#This Row],[Bank Acct]],Table147[[#This Row],[Bank Acct]],Table147[[#Headers],[Amount]]:Table147[[#This Row],[Amount]]),"") -> 653.67 | F66: =IF(Table147[[#This Row],[Bank Acct]]=LEFT(Table147[[#Headers],[WF Balance]],2),SUMIF(Table147[[#Headers],[Bank Acct]]:Table147[[#This Row],[Bank Acct]],Table147[[#This Row],[Bank Acct]],Table147[[#Headers],[Amount]]:Table147[[#This Row],[Amount]]),"") ->  | G66: =IFERROR(INDEX(Lookup!$B$2:$C$7,MATCH(RIGHT(TRIM(Table147[[#This Row],[Description]]),4),Lookup!$B$2:$B$7,0),2),"") -> FWC | H66: AGG | J66: 221201 - FWC ER Mastercard Dec-2022 | K66: - | L66: =IF(OR(LEFT(Table147[[#This Row],[Invoice]],1)="0",LEFT(Table147[[#This Row],[Invoice]],1)="1"),INDEX(Invoice_dates,MATCH(Table147[[#This Row],[Invoice]],'2023 Invoice Payments'!$L$1:$L$100,0),2),"") ->  | M66: Y:\$ AerospaceEdge\AGG Finance\AGG Credit Card Receipts\ | N66: 220124 - Elementor Receipt 11416195.pdf | O66: =IF(RIGHT(Table147[[#This Row],[Charge Receipt]],3)<>"pdf","",IF(FileExists(Table147[[#This Row],[Column1]]&Table147[[#This Row],[Charge Receipt]]),FileExists(Table147[[#This Row],[Column1]]&Table147[[#This Row],[Charge Receipt]]),FileExists("Y:\$ AerospaceEdge\AGG Finance\AGG Distribution Documents\"&Table147[[#This Row],[Charge Receipt]]))) -> TRUE
A67: BA | B67: 2022-06-21 | C67: REALLY-SIMPLE-SSL 06/20 PURCHASE GRONINGEN DEBIT CARD *7429 | D67: -23.2 | E67: =IF(Table147[[#This Row],[Bank Acct]]=LEFT(Table147[[#Headers],[BA Balance]],2),SUMIF(Table147[[#Headers],[Bank Acct]]:Table147[[#This Row],[Bank Acct]],Table147[[#This Row],[Bank Acct]],Table147[[#Headers],[Amount]]:Table147[[#This Row],[Amount]]),"") -> 630.47 | F67: =IF(Table147[[#This Row],[Bank Acct]]=LEFT(Table147[[#Headers],[WF Balance]],2),SUMIF(Table147[[#Headers],[Bank Acct]]:Table147[[#This Row],[Bank Acct]],Table147[[#This Row],[Bank Acct]],Table147[[#Headers],[Amount]]:Table147[[#This Row],[Amount]]),"") ->  | G67: =IFERROR(INDEX(Lookup!$B$2:$C$7,MATCH(RIGHT(TRIM(Table147[[#This Row],[Description]]),4),Lookup!$B$2:$B$7,0),2),"") -> FWC | H67: AGG | J67: 221201 - FWC ER Mastercard Dec-2022 | K67: - | L67: =IF(OR(LEFT(Table147[[#This Row],[Invoice]],1)="0",LEFT(Table147[[#This Row],[Invoice]],1)="1"),INDEX(Invoice_dates,MATCH(Table147[[#This Row],[Invoice]],'2023 Invoice Payments'!$L$1:$L$100,0),2),"") ->  | M67: Y:\$ AerospaceEdge\AGG Finance\AGG Credit Card Receipts\ | N67: AGG - ReallySimple SSL Receipt 2022-13884.pdf | O67: =IF(RIGHT(Table147[[#This Row],[Charge Receipt]],3)<>"pdf","",IF(FileExists(Table147[[#This Row],[Column1]]&Table147[[#This Row],[Charge Receipt]]),FileExists(Table147[[#This Row],[Column1]]&Table147[[#This Row],[Charge Receipt]]),FileExists("Y:\$ AerospaceEdge\AGG Finance\AGG Distribution Documents\"&Table147[[#This Row],[Charge Receipt]]))) -> TRUE
A68: BA | B68: 2022-06-21 | C68: COMPLIANZ-GDPR-PR 06/20 PURCHASE GRONINGEN DEBIT CARD *7429 | D68: -45 | E68: =IF(Table147[[#This Row],[Bank Acct]]=LEFT(Table147[[#Headers],[BA Balance]],2),SUMIF(Table147[[#Headers],[Bank Acct]]:Table147[[#This Row],[Bank Acct]],Table147[[#This Row],[Bank Acct]],Table147[[#Headers],[Amount]]:Table147[[#This Row],[Amount]]),"") -> 585.47 | F68: =IF(Table147[[#This Row],[Bank Acct]]=LEFT(Table147[[#Headers],[WF Balance]],2),SUMIF(Table147[[#Headers],[Bank Acct]]:Table147[[#This Row],[Bank Acct]],Table147[[#This Row],[Bank Acct]],Table147[[#Headers],[Amount]]:Table147[[#This Row],[Amount]]),"") ->  | G68: =IFERROR(INDEX(Lookup!$B$2:$C$7,MATCH(RIGHT(TRIM(Table147[[#This Row],[Description]]),4),Lookup!$B$2:$B$7,0),2),"") -> FWC | H68: AGG | J68: 221201 - FWC ER Mastercard Dec-2022 | K68: - | L68: =IF(OR(LEFT(Table147[[#This Row],[Invoice]],1)="0",LEFT(Table147[[#This Row],[Invoice]],1)="1"),INDEX(Invoice_dates,MATCH(Table147[[#This Row],[Invoice]],'2023 Invoice Payments'!$L$1:$L$100,0),2),"") ->  | M68: Y:\$ AerospaceEdge\AGG Finance\AGG Credit Card Receipts\ | N68: 220125 - Complianz Invoice 2022-0745.pdf | O68: =IF(RIGHT(Table147[[#This Row],[Charge Receipt]],3)<>"pdf","",IF(FileExists(Table147[[#This Row],[Column1]]&Table147[[#This Row],[Charge Receipt]]),FileExists(Table147[[#This Row],[Column1]]&Table147[[#This Row],[Charge Receipt]]),FileExists("Y:\$ AerospaceEdge\AGG Finance\AGG Distribution Documents\"&Table147[[#This Row],[Charge Receipt]]))) -> TRUE
A69: BA | B69: 2022-06-21 | C69: INTERNATIONAL TRANSACTION FEE 06/20 COMPLIANZ-GDPR-PR GRONINGEN DEBIT CARD *7429 | D69: -1.35 | E69: =IF(Table147[[#This Row],[Bank Acct]]=LEFT(Table147[[#Headers],[BA Balance]],2),SUMIF(Table147[[#Headers],[Bank Acct]]:Table147[[#This Row],[Bank Acct]],Table147[[#This Row],[Bank Acct]],Table147[[#Headers],[Amount]]:Table147[[#This Row],[Amount]]),"") -> 584.12 | F69: =IF(Table147[[#This Row],[Bank Acct]]=LEFT(Table147[[#Headers],[WF Balance]],2),SUMIF(Table147[[#Headers],[Bank Acct]]:Table147[[#This Row],[Bank Acct]],Table147[[#This Row],[Bank Acct]],Table147[[#Headers],[Amount]]:Table147[[#This Row],[Amount]]),"") ->  | G69: =IFERROR(INDEX(Lookup!$B$2:$C$7,MATCH(RIGHT(TRIM(Table147[[#This Row],[Description]]),4),Lookup!$B$2:$B$7,0),2),"") -> FWC | H69: AGG | J69: 221201 - FWC ER Mastercard Dec-2022 | K69: - | L69: =IF(OR(LEFT(Table147[[#This Row],[Invoice]],1)="0",LEFT(Table147[[#This Row],[Invoice]],1)="1"),INDEX(Invoice_dates,MATCH(Table147[[#This Row],[Invoice]],'2023 Invoice Payments'!$L$1:$L$100,0),2),"") ->  | M69: Y:\$ AerospaceEdge\AGG Finance\AGG Credit Card Receipts\ | N69: =TEXT(Table147[[#This Row],[Date]],"YYMMDD")&" - Intl Transaction Fee - "&LEFT(RIGHT(Table147[[#This Row],[Description]],LEN(Table147[[#This Row],[Description]])-LEN("international transaction fee xx/xx ")),SEARCH("DEBIT",RIGHT(Table147[[#This Row],[Description]],LEN(Table147[[#This Row],[Description]])-LEN("international transaction fee xx/xx xx"))))&".pdf" -> 220621 - Intl Transaction Fee - COMPLIANZ-GDPR-PR GRONINGEN.pdf | O69: =IF(RIGHT(Table147[[#This Row],[Charge Receipt]],3)<>"pdf","",IF(FileExists(Table147[[#This Row],[Column1]]&Table147[[#This Row],[Charge Receipt]]),FileExists(Table147[[#This Row],[Column1]]&Table147[[#This Row],[Charge Receipt]]),FileExists("Y:\$ AerospaceEdge\AGG Finance\AGG Distribution Documents\"&Table147[[#This Row],[Charge Receipt]]))) -> TRUE
A70: BA | B70: 2022-06-21 | C70: INTERNATIONAL TRANSACTION FEE 06/20 REALLY-SIMPLE-SSL GRONINGEN DEBIT CARD *7429 | D70: -0.7 | E70: =IF(Table147[[#This Row],[Bank Acct]]=LEFT(Table147[[#Headers],[BA Balance]],2),SUMIF(Table147[[#Headers],[Bank Acct]]:Table147[[#This Row],[Bank Acct]],Table147[[#This Row],[Bank Acct]],Table147[[#Headers],[Amount]]:Table147[[#This Row],[Amount]]),"") -> 583.42 | F70: =IF(Table147[[#This Row],[Bank Acct]]=LEFT(Table147[[#Headers],[WF Balance]],2),SUMIF(Table147[[#Headers],[Bank Acct]]:Table147[[#This Row],[Bank Acct]],Table147[[#This Row],[Bank Acct]],Table147[[#Headers],[Amount]]:Table147[[#This Row],[Amount]]),"") ->  | G70: =IFERROR(INDEX(Lookup!$B$2:$C$7,MATCH(RIGHT(TRIM(Table147[[#This Row],[Description]]),4),Lookup!$B$2:$B$7,0),2),"") -> FWC | H70: AGG | J70: 221201 - FWC ER Mastercard Dec-2022 | K70: - | L70: =IF(OR(LEFT(Table147[[#This Row],[Invoice]],1)="0",LEFT(Table147[[#This Row],[Invoice]],1)="1"),INDEX(Invoice_dates,MATCH(Table147[[#This Row],[Invoice]],'2023 Invoice Payments'!$L$1:$L$100,0),2),"") ->  | M70: Y:\$ AerospaceEdge\AGG Finance\AGG Credit Card Receipts\ | N70: =TEXT(Table147[[#This Row],[Date]],"YYMMDD")&" - Intl Transaction Fee - "&LEFT(RIGHT(Table147[[#This Row],[Description]],LEN(Table147[[#This Row],[Description]])-LEN("international transaction fee xx/xx ")),SEARCH("DEBIT",RIGHT(Table147[[#This Row],[Description]],LEN(Table147[[#This Row],[Description]])-LEN("international transaction fee xx/xx xx"))))&".pdf" -> 220621 - Intl Transaction Fee - REALLY-SIMPLE-SSL GRONINGEN.pdf | O70: =IF(RIGHT(Table147[[#This Row],[Charge Receipt]],3)<>"pdf","",IF(FileExists(Table147[[#This Row],[Column1]]&Table147[[#This Row],[Charge Receipt]]),FileExists(Table147[[#This Row],[Column1]]&Table147[[#This Row],[Charge Receipt]]),FileExists("Y:\$ AerospaceEdge\AGG Finance\AGG Distribution Documents\"&Table147[[#This Row],[Charge Receipt]]))) -> TRUE
A71: BA | B71: 2022-07-01 | C71: Monthly Fee Business Adv Relationship | D71: -29.95 | E71: =IF(Table147[[#This Row],[Bank Acct]]=LEFT(Table147[[#Headers],[BA Balance]],2),SUMIF(Table147[[#Headers],[Bank Acct]]:Table147[[#This Row],[Bank Acct]],Table147[[#This Row],[Bank Acct]],Table147[[#Headers],[Amount]]:Table147[[#This Row],[Amount]]),"") -> 553.47 | F71: =IF(Table147[[#This Row],[Bank Acct]]=LEFT(Table147[[#Headers],[WF Balance]],2),SUMIF(Table147[[#Headers],[Bank Acct]]:Table147[[#This Row],[Bank Acct]],Table147[[#This Row],[Bank Acct]],Table147[[#Headers],[Amount]]:Table147[[#This Row],[Amount]]),"") ->  | G71: =IFERROR(INDEX(Lookup!$B$2:$C$7,MATCH(RIGHT(TRIM(Table147[[#This Row],[Description]]),4),Lookup!$B$2:$B$7,0),2),"") ->  | H71: AGG | I71: Bank Charge | K71: - | L71: =IF(OR(LEFT(Table147[[#This Row],[Invoice]],1)="0",LEFT(Table147[[#This Row],[Invoice]],1)="1"),INDEX(Invoice_dates,MATCH(Table147[[#This Row],[Invoice]],'2023 Invoice Payments'!$L$1:$L$100,0),2),"") ->  | M71: Y:\$ AerospaceEdge\AGG Finance\AGG Credit Card Receipts\ | O71: =IF(RIGHT(Table147[[#This Row],[Charge Receipt]],3)<>"pdf","",IF(FileExists(Table147[[#This Row],[Column1]]&Table147[[#This Row],[Charge Receipt]]),FileExists(Table147[[#This Row],[Column1]]&Table147[[#This Row],[Charge Receipt]]),FileExists("Y:\$ AerospaceEdge\AGG Finance\AGG Distribution Documents\"&Table147[[#This Row],[Charge Receipt]]))) -> 
A72: BA | B72: 2022-07-08 | C72: PEREGRINE AVIONI DES:QUICKBOOKS ID:375020979 INDN:AVIAGLOBAL GROUP, LLC CO ID:1722616653 PPD | D72: 3000 | E72: =IF(Table147[[#This Row],[Bank Acct]]=LEFT(Table147[[#Headers],[BA Balance]],2),SUMIF(Table147[[#Headers],[Bank Acct]]:Table147[[#This Row],[Bank Acct]],Table147[[#This Row],[Bank Acct]],Table147[[#Headers],[Amount]]:Table147[[#This Row],[Amount]]),"") -> 3553.47 | F72: =IF(Table147[[#This Row],[Bank Acct]]=LEFT(Table147[[#Headers],[WF Balance]],2),SUMIF(Table147[[#Headers],[Bank Acct]]:Table147[[#This Row],[Bank Acct]],Table147[[#This Row],[Bank Acct]],Table147[[#Headers],[Amount]]:Table147[[#This Row],[Amount]]),"") ->  | G72: =IFERROR(INDEX(Lookup!$B$2:$C$7,MATCH(RIGHT(TRIM(Table147[[#This Row],[Description]]),4),Lookup!$B$2:$B$7,0),2),"") ->  | H72: Peregrine | L72: =IF(OR(LEFT(Table147[[#This Row],[Invoice]],1)="0",LEFT(Table147[[#This Row],[Invoice]],1)="1"),INDEX(Invoice_dates,MATCH(Table147[[#This Row],[Invoice]],'2023 Invoice Payments'!$L$1:$L$100,0),2),"") ->  | M72: Y:\$ AerospaceEdge\AGG Finance\AGG Credit Card Receipts\ | O72: =IF(RIGHT(Table147[[#This Row],[Charge Receipt]],3)<>"pdf","",IF(FileExists(Table147[[#This Row],[Column1]]&Table147[[#This Row],[Charge Receipt]]),FileExists(Table147[[#This Row],[Column1]]&Table147[[#This Row],[Charge Receipt]]),FileExists("Y:\$ AerospaceEdge\AGG Finance\AGG Distribution Documents\"&Table147[[#This Row],[Charge Receipt]]))) -> 
A73: BA | B73: 2022-07-14 | C73: STAMPS.COM 07/14 PURCHASE 855-608-2677 CA DEBIT CARD *7411 | D73: -17.99 | E73: =IF(Table147[[#This Row],[Bank Acct]]=LEFT(Table147[[#Headers],[BA Balance]],2),SUMIF(Table147[[#Headers],[Bank Acct]]:Table147[[#This Row],[Bank Acct]],Table147[[#This Row],[Bank Acct]],Table147[[#Headers],[Amount]]:Table147[[#This Row],[Amount]]),"") -> 3535.48 | F73: =IF(Table147[[#This Row],[Bank Acct]]=LEFT(Table147[[#Headers],[WF Balance]],2),SUMIF(Table147[[#Headers],[Bank Acct]]:Table147[[#This Row],[Bank Acct]],Table147[[#This Row],[Bank Acct]],Table147[[#Headers],[Amount]]:Table147[[#This Row],[Amount]]),"") ->  | G73: =IFERROR(INDEX(Lookup!$B$2:$C$7,MATCH(RIGHT(TRIM(Table147[[#This Row],[Description]]),4),Lookup!$B$2:$B$7,0),2),"") -> LRC | H73: AGG | I73: Stamps | J73: 221020 - LRC ADS_BG ER Mastercard 12-2022 | K73: - | L73: =IF(OR(LEFT(Table147[[#This Row],[Invoice]],1)="0",LEFT(Table147[[#This Row],[Invoice]],1)="1"),INDEX(Invoice_dates,MATCH(Table147[[#This Row],[Invoice]],'2023 Invoice Payments'!$L$1:$L$100,0),2),"") ->  | M73: Y:\$ AerospaceEdge\AGG Finance\AGG Credit Card Receipts\ | N73: 220714 - Stamps dot com.pdf | O73: =IF(RIGHT(Table147[[#This Row],[Charge Receipt]],3)<>"pdf","",IF(FileExists(Table147[[#This Row],[Column1]]&Table147[[#This Row],[Charge Receipt]]),FileExists(Table147[[#This Row],[Column1]]&Table147[[#This Row],[Charge Receipt]]),FileExists("Y:\$ AerospaceEdge\AGG Finance\AGG Distribution Documents\"&Table147[[#This Row],[Charge Receipt]]))) -> TRUE
A74: BA | B74: 2022-07-19 | C74: MAILCHIMP *MISC 07/18 PURCHASE MAILCHIMP.COM GA DEBIT CARD *7411 | D74: -11.62 | E74: =IF(Table147[[#This Row],[Bank Acct]]=LEFT(Table147[[#Headers],[BA Balance]],2),SUMIF(Table147[[#Headers],[Bank Acct]]:Table147[[#This Row],[Bank Acct]],Table147[[#This Row],[Bank Acct]],Table147[[#Headers],[Amount]]:Table147[[#This Row],[Amount]]),"") -> 3523.86 | F74: =IF(Table147[[#This Row],[Bank Acct]]=LEFT(Table147[[#Headers],[WF Balance]],2),SUMIF(Table147[[#Headers],[Bank Acct]]:Table147[[#This Row],[Bank Acct]],Table147[[#This Row],[Bank Acct]],Table147[[#Headers],[Amount]]:Table147[[#This Row],[Amount]]),"") ->  | G74: =IFERROR(INDEX(Lookup!$B$2:$C$7,MATCH(RIGHT(TRIM(Table147[[#This Row],[Description]]),4),Lookup!$B$2:$B$7,0),2),"") -> LRC | H74: AGG | I74: Mailchimp | J74: 221020 - LRC ADS_BG ER Mastercard 12-2022 | K74: - | L74: =IF(OR(LEFT(Table147[[#This Row],[Invoice]],1)="0",LEFT(Table147[[#This Row],[Invoice]],1)="1"),INDEX(Invoice_dates,MATCH(Table147[[#This Row],[Invoice]],'2023 Invoice Payments'!$L$1:$L$100,0),2),"") ->  | M74: Y:\$ AerospaceEdge\AGG Finance\AGG Credit Card Receipts\ | N74: 220719 - AGG - Mailchimp Essentials MC16182470.pdf | O74: =IF(RIGHT(Table147[[#This Row],[Charge Receipt]],3)<>"pdf","",IF(FileExists(Table147[[#This Row],[Column1]]&Table147[[#This Row],[Charge Receipt]]),FileExists(Table147[[#This Row],[Column1]]&Table147[[#This Row],[Charge Receipt]]),FileExists("Y:\$ AerospaceEdge\AGG Finance\AGG Distribution Documents\"&Table147[[#This Row],[Charge Receipt]]))) -> TRUE
A75: BA | B75: 2022-07-20 | C75: MailChimp 07/20 PURCHASE Atlanta GA DEBIT CARD *7411 | D75: -59 | E75: =IF(Table147[[#This Row],[Bank Acct]]=LEFT(Table147[[#Headers],[BA Balance]],2),SUMIF(Table147[[#Headers],[Bank Acct]]:Table147[[#This Row],[Bank Acct]],Table147[[#This Row],[Bank Acct]],Table147[[#Headers],[Amount]]:Table147[[#This Row],[Amount]]),"") -> 3464.86 | F75: =IF(Table147[[#This Row],[Bank Acct]]=LEFT(Table147[[#Headers],[WF Balance]],2),SUMIF(Table147[[#Headers],[Bank Acct]]:Table147[[#This Row],[Bank Acct]],Table147[[#This Row],[Bank Acct]],Table147[[#Headers],[Amount]]:Table147[[#This Row],[Amount]]),"") ->  | G75: =IFERROR(INDEX(Lookup!$B$2:$C$7,MATCH(RIGHT(TRIM(Table147[[#This Row],[Description]]),4),Lookup!$B$2:$B$7,0),2),"") -> LRC | H75: Peregrine | I75: Mailchimp | J75: 221020 - LRC ADS_BG ER Peregrine Billable 13-2022 | K75: 015-22 | L75: =IF(OR(LEFT(Table147[[#This Row],[Invoice]],1)="0",LEFT(Table147[[#This Row],[Invoice]],1)="1"),INDEX(Invoice_dates,MATCH(Table147[[#This Row],[Invoice]],'2023 Invoice Payments'!$L$1:$L$100,0),2),"") ->  | M75: Y:\$ AerospaceEdge\AGG Finance\AGG Credit Card Receipts\ | N75: 220720 - Peregrine - Mailchimp Essentials MC16197922.pdf | O75: =IF(RIGHT(Table147[[#This Row],[Charge Receipt]],3)<>"pdf","",IF(FileExists(Table147[[#This Row],[Column1]]&Table147[[#This Row],[Charge Receipt]]),FileExists(Table147[[#This Row],[Column1]]&Table147[[#This Row],[Charge Receipt]]),FileExists("Y:\$ AerospaceEdge\AGG Finance\AGG Distribution Documents\"&Table147[[#This Row],[Charge Receipt]]))) -> TRUE
A76: BA | B76: 2022-08-01 | C76: SAE INTERNATIONAL 07/30 PURCHASE 7247764841 PA DEBIT CARD *7411 | D76: -120 | E76: =IF(Table147[[#This Row],[Bank Acct]]=LEFT(Table147[[#Headers],[BA Balance]],2),SUMIF(Table147[[#Headers],[Bank Acct]]:Table147[[#This Row],[Bank Acct]],Table147[[#This Row],[Bank Acct]],Table147[[#Headers],[Amount]]:Table147[[#This Row],[Amount]]),"") -> 3344.86 | F76: =IF(Table147[[#This Row],[Bank Acct]]=LEFT(Table147[[#Headers],[WF Balance]],2),SUMIF(Table147[[#Headers],[Bank Acct]]:Table147[[#This Row],[Bank Acct]],Table147[[#This Row],[Bank Acct]],Table147[[#Headers],[Amount]]:Table147[[#This Row],[Amount]]),"") ->  | G76: =IFERROR(INDEX(Lookup!$B$2:$C$7,MATCH(RIGHT(TRIM(Table147[[#This Row],[Description]]),4),Lookup!$B$2:$B$7,0),2),"") -> LRC | H76: AGG | J76: 221020 - LRC ADS_BG ER Mastercard 12-2022 | K76: - | L76: =IF(OR(LEFT(Table147[[#This Row],[Invoice]],1)="0",LEFT(Table147[[#This Row],[Invoice]],1)="1"),INDEX(Invoice_dates,MATCH(Table147[[#This Row],[Invoice]],'2023 Invoice Payments'!$L$1:$L$100,0),2),"") ->  | M76: Y:\$ AerospaceEdge\AGG Finance\AGG Credit Card Receipts\ | N76: 220701 - SAE Auto Renewal.pdf | O76: =IF(RIGHT(Table147[[#This Row],[Charge Receipt]],3)<>"pdf","",IF(FileExists(Table147[[#This Row],[Column1]]&Table147[[#This Row],[Charge Receipt]]),FileExists(Table147[[#This Row],[Column1]]&Table147[[#This Row],[Charge Receipt]]),FileExists("Y:\$ AerospaceEdge\AGG Finance\AGG Distribution Documents\"&Table147[[#This Row],[Charge Receipt]]))) -> TRUE
A77: BA | B77: 2022-08-01 | C77: Monthly Fee Business Adv Relationship | D77: -29.95 | E77: =IF(Table147[[#This Row],[Bank Acct]]=LEFT(Table147[[#Headers],[BA Balance]],2),SUMIF(Table147[[#Headers],[Bank Acct]]:Table147[[#This Row],[Bank Acct]],Table147[[#This Row],[Bank Acct]],Table147[[#Headers],[Amount]]:Table147[[#This Row],[Amount]]),"") -> 3314.91 | F77: =IF(Table147[[#This Row],[Bank Acct]]=LEFT(Table147[[#Headers],[WF Balance]],2),SUMIF(Table147[[#Headers],[Bank Acct]]:Table147[[#This Row],[Bank Acct]],Table147[[#This Row],[Bank Acct]],Table147[[#Headers],[Amount]]:Table147[[#This Row],[Amount]]),"") ->  | G77: =IFERROR(INDEX(Lookup!$B$2:$C$7,MATCH(RIGHT(TRIM(Table147[[#This Row],[Description]]),4),Lookup!$B$2:$B$7,0),2),"") ->  | H77: AGG | I77: Bank Charge | K77: - | L77: =IF(OR(LEFT(Table147[[#This Row],[Invoice]],1)="0",LEFT(Table147[[#This Row],[Invoice]],1)="1"),INDEX(Invoice_dates,MATCH(Table147[[#This Row],[Invoice]],'2023 Invoice Payments'!$L$1:$L$100,0),2),"") ->  | M77: Y:\$ AerospaceEdge\AGG Finance\AGG Credit Card Receipts\ | O77: =IF(RIGHT(Table147[[#This Row],[Charge Receipt]],3)<>"pdf","",IF(FileExists(Table147[[#This Row],[Column1]]&Table147[[#This Row],[Charge Receipt]]),FileExists(Table147[[#This Row],[Column1]]&Table147[[#This Row],[Charge Receipt]]),FileExists("Y:\$ AerospaceEdge\AGG Finance\AGG Distribution Documents\"&Table147[[#This Row],[Charge Receipt]]))) -> 
A78: BA | B78: 2022-08-08 | C78: PEREGRINE AVIONI DES:QUICKBOOKS ID:375020979 INDN:AVIAGLOBAL GROUP, LLC CO ID:1722616653 PPD | D78: 3000 | E78: =IF(Table147[[#This Row],[Bank Acct]]=LEFT(Table147[[#Headers],[BA Balance]],2),SUMIF(Table147[[#Headers],[Bank Acct]]:Table147[[#This Row],[Bank Acct]],Table147[[#This Row],[Bank Acct]],Table147[[#Headers],[Amount]]:Table147[[#This Row],[Amount]]),"") -> 6314.91 | F78: =IF(Table147[[#This Row],[Bank Acct]]=LEFT(Table147[[#Headers],[WF Balance]],2),SUMIF(Table147[[#Headers],[Bank Acct]]:Table147[[#This Row],[Bank Acct]],Table147[[#This Row],[Bank Acct]],Table147[[#Headers],[Amount]]:Table147[[#This Row],[Amount]]),"") ->  | G78: =IFERROR(INDEX(Lookup!$B$2:$C$7,MATCH(RIGHT(TRIM(Table147[[#This Row],[Description]]),4),Lookup!$B$2:$B$7,0),2),"") ->  | H78: Peregrine | L78: =IF(OR(LEFT(Table147[[#This Row],[Invoice]],1)="0",LEFT(Table147[[#This Row],[Invoice]],1)="1"),INDEX(Invoice_dates,MATCH(Table147[[#This Row],[Invoice]],'2023 Invoice Payments'!$L$1:$L$100,0),2),"") ->  | M78: Y:\$ AerospaceEdge\AGG Finance\AGG Credit Card Receipts\ | O78: =IF(RIGHT(Table147[[#This Row],[Charge Receipt]],3)<>"pdf","",IF(FileExists(Table147[[#This Row],[Column1]]&Table147[[#This Row],[Charge Receipt]]),FileExists(Table147[[#This Row],[Column1]]&Table147[[#This Row],[Charge Receipt]]),FileExists("Y:\$ AerospaceEdge\AGG Finance\AGG Distribution Documents\"&Table147[[#This Row],[Charge Receipt]]))) -> 
A79: BA | B79: 2022-08-15 | C79: STAMPS.COM 08/14 PURCHASE 855-608-2677 CA DEBIT CARD *7411 | D79: -17.99 | E79: =IF(Table147[[#This Row],[Bank Acct]]=LEFT(Table147[[#Headers],[BA Balance]],2),SUMIF(Table147[[#Headers],[Bank Acct]]:Table147[[#This Row],[Bank Acct]],Table147[[#This Row],[Bank Acct]],Table147[[#Headers],[Amount]]:Table147[[#This Row],[Amount]]),"") -> 6296.92 | F79: =IF(Table147[[#This Row],[Bank Acct]]=LEFT(Table147[[#Headers],[WF Balance]],2),SUMIF(Table147[[#Headers],[Bank Acct]]:Table147[[#This Row],[Bank Acct]],Table147[[#This Row],[Bank Acct]],Table147[[#Headers],[Amount]]:Table147[[#This Row],[Amount]]),"") ->  | G79: =IFERROR(INDEX(Lookup!$B$2:$C$7,MATCH(RIGHT(TRIM(Table147[[#This Row],[Description]]),4),Lookup!$B$2:$B$7,0),2),"") -> LRC | H79: AGG | I79: Stamps | J79: 221020 - LRC ADS_BG ER Mastercard 12-2022 | K79: - | L79: =IF(OR(LEFT(Table147[[#This Row],[Invoice]],1)="0",LEFT(Table147[[#This Row],[Invoice]],1)="1"),INDEX(Invoice_dates,MATCH(Table147[[#This Row],[Invoice]],'2023 Invoice Payments'!$L$1:$L$100,0),2),"") ->  | M79: Y:\$ AerospaceEdge\AGG Finance\AGG Credit Card Receipts\ | N79: 220815 - Stamps dot com.pdf | O79: =IF(RIGHT(Table147[[#This Row],[Charge Receipt]],3)<>"pdf","",IF(FileExists(Table147[[#This Row],[Column1]]&Table147[[#This Row],[Charge Receipt]]),FileExists(Table147[[#This Row],[Column1]]&Table147[[#This Row],[Charge Receipt]]),FileExists("Y:\$ AerospaceEdge\AGG Finance\AGG Distribution Documents\"&Table147[[#This Row],[Charge Receipt]]))) -> TRUE
A80: BA | B80: 2022-08-19 | C80: MAILCHIMP *MISC 08/18 PURCHASE MAILCHIMP.COM GA DEBIT CARD *7411 | D80: -11.62 | E80: =IF(Table147[[#This Row],[Bank Acct]]=LEFT(Table147[[#Headers],[BA Balance]],2),SUMIF(Table147[[#Headers],[Bank Acct]]:Table147[[#This Row],[Bank Acct]],Table147[[#This Row],[Bank Acct]],Table147[[#Headers],[Amount]]:Table147[[#This Row],[Amount]]),"") -> 6285.3 | F80: =IF(Table147[[#This Row],[Bank Acct]]=LEFT(Table147[[#Headers],[WF Balance]],2),SUMIF(Table147[[#Headers],[Bank Acct]]:Table147[[#This Row],[Bank Acct]],Table147[[#This Row],[Bank Acct]],Table147[[#Headers],[Amount]]:Table147[[#This Row],[Amount]]),"") ->  | G80: =IFERROR(INDEX(Lookup!$B$2:$C$7,MATCH(RIGHT(TRIM(Table147[[#This Row],[Description]]),4),Lookup!$B$2:$B$7,0),2),"") -> LRC | H80: AGG | I80: Mailchimp | J80: 221020 - LRC ADS_BG ER Mastercard 12-2022 | K80: - | L80: =IF(OR(LEFT(Table147[[#This Row],[Invoice]],1)="0",LEFT(Table147[[#This Row],[Invoice]],1)="1"),INDEX(Invoice_dates,MATCH(Table147[[#This Row],[Invoice]],'2023 Invoice Payments'!$L$1:$L$100,0),2),"") ->  | M80: Y:\$ AerospaceEdge\AGG Finance\AGG Credit Card Receipts\ | N80: 220818 - AGG - Mailchimp Essentials MC16405518.pdf | O80: =IF(RIGHT(Table147[[#This Row],[Charge Receipt]],3)<>"pdf","",IF(FileExists(Table147[[#This Row],[Column1]]&Table147[[#This Row],[Charge Receipt]]),FileExists(Table147[[#This Row],[Column1]]&Table147[[#This Row],[Charge Receipt]]),FileExists("Y:\$ AerospaceEdge\AGG Finance\AGG Distribution Documents\"&Table147[[#This Row],[Charge Receipt]]))) -> TRUE
A81: BA | B81: 2022-08-22 | C81: MailChimp 08/20 PURCHASE Atlanta GA DEBIT CARD *7411 | D81: -59 | E81: =IF(Table147[[#This Row],[Bank Acct]]=LEFT(Table147[[#Headers],[BA Balance]],2),SUMIF(Table147[[#Headers],[Bank Acct]]:Table147[[#This Row],[Bank Acct]],Table147[[#This Row],[Bank Acct]],Table147[[#Headers],[Amount]]:Table147[[#This Row],[Amount]]),"") -> 6226.3 | F81: =IF(Table147[[#This Row],[Bank Acct]]=LEFT(Table147[[#Headers],[WF Balance]],2),SUMIF(Table147[[#Headers],[Bank Acct]]:Table147[[#This Row],[Bank Acct]],Table147[[#This Row],[Bank Acct]],Table147[[#Headers],[Amount]]:Table147[[#This Row],[Amount]]),"") ->  | G81: =IFERROR(INDEX(Lookup!$B$2:$C$7,MATCH(RIGHT(TRIM(Table147[[#This Row],[Description]]),4),Lookup!$B$2:$B$7,0),2),"") -> LRC | H81: Peregrine | I81: Mailchimp | J81: 221020 - LRC ADS_BG ER Peregrine Billable 13-2022 | K81: 015-22 | L81: =IF(OR(LEFT(Table147[[#This Row],[Invoice]],1)="0",LEFT(Table147[[#This Row],[Invoice]],1)="1"),INDEX(Invoice_dates,MATCH(Table147[[#This Row],[Invoice]],'2023 Invoice Payments'!$L$1:$L$100,0),2),"") ->  | M81: Y:\$ AerospaceEdge\AGG Finance\AGG Credit Card Receipts\ | N81: 220820 - Peregrine - Mailchimp Essentials MC16420842.pdf | O81: =IF(RIGHT(Table147[[#This Row],[Charge Receipt]],3)<>"pdf","",IF(FileExists(Table147[[#This Row],[Column1]]&Table147[[#This Row],[Charge Receipt]]),FileExists(Table147[[#This Row],[Column1]]&Table147[[#This Row],[Charge Receipt]]),FileExists("Y:\$ AerospaceEdge\AGG Finance\AGG Distribution Documents\"&Table147[[#This Row],[Charge Receipt]]))) -> TRUE
A82: BA | B82: 2022-08-31 | C82: PEREGRINE AVIONI DES:QUICKBOOKS ID:375020979 INDN:AVIAGLOBAL GROUP, LLC CO ID:1722616653 PPD | D82: 3194.99 | E82: =IF(Table147[[#This Row],[Bank Acct]]=LEFT(Table147[[#Headers],[BA Balance]],2),SUMIF(Table147[[#Headers],[Bank Acct]]:Table147[[#This Row],[Bank Acct]],Table147[[#This Row],[Bank Acct]],Table147[[#Headers],[Amount]]:Table147[[#This Row],[Amount]]),"") -> 9421.29 | F82: =IF(Table147[[#This Row],[Bank Acct]]=LEFT(Table147[[#Headers],[WF Balance]],2),SUMIF(Table147[[#Headers],[Bank Acct]]:Table147[[#This Row],[Bank Acct]],Table147[[#This Row],[Bank Acct]],Table147[[#Headers],[Amount]]:Table147[[#This Row],[Amount]]),"") ->  | G82: =IFERROR(INDEX(Lookup!$B$2:$C$7,MATCH(RIGHT(TRIM(Table147[[#This Row],[Description]]),4),Lookup!$B$2:$B$7,0),2),"") ->  | H82: Peregrine | L82: =IF(OR(LEFT(Table147[[#This Row],[Invoice]],1)="0",LEFT(Table147[[#This Row],[Invoice]],1)="1"),INDEX(Invoice_dates,MATCH(Table147[[#This Row],[Invoice]],'2023 Invoice Payments'!$L$1:$L$100,0),2),"") ->  | M82: Y:\$ AerospaceEdge\AGG Finance\AGG Credit Card Receipts\ | O82: =IF(RIGHT(Table147[[#This Row],[Charge Receipt]],3)<>"pdf","",IF(FileExists(Table147[[#This Row],[Column1]]&Table147[[#This Row],[Charge Receipt]]),FileExists(Table147[[#This Row],[Column1]]&Table147[[#This Row],[Charge Receipt]]),FileExists("Y:\$ AerospaceEdge\AGG Finance\AGG Distribution Documents\"&Table147[[#This Row],[Charge Receipt]]))) -> 
A83: BA | B83: 2022-09-01 | C83: HELICOPTER ASSOCI 08/31 PURCHASE 7036834646 VA DEBIT CARD *7429 | D83: -325 | E83: =IF(Table147[[#This Row],[Bank Acct]]=LEFT(Table147[[#Headers],[BA Balance]],2),SUMIF(Table147[[#Headers],[Bank Acct]]:Table147[[#This Row],[Bank Acct]],Table147[[#This Row],[Bank Acct]],Table147[[#Headers],[Amount]]:Table147[[#This Row],[Amount]]),"") -> 9096.29 | F83: =IF(Table147[[#This Row],[Bank Acct]]=LEFT(Table147[[#Headers],[WF Balance]],2),SUMIF(Table147[[#Headers],[Bank Acct]]:Table147[[#This Row],[Bank Acct]],Table147[[#This Row],[Bank Acct]],Table147[[#Headers],[Amount]]:Table147[[#This Row],[Amount]]),"") ->  | G83: =IFERROR(INDEX(Lookup!$B$2:$C$7,MATCH(RIGHT(TRIM(Table147[[#This Row],[Description]]),4),Lookup!$B$2:$B$7,0),2),"") -> FWC | H83: AGG | J83: 221201 - FWC ER Mastercard Dec-2022 | K83: - | L83: =IF(OR(LEFT(Table147[[#This Row],[Invoice]],1)="0",LEFT(Table147[[#This Row],[Invoice]],1)="1"),INDEX(Invoice_dates,MATCH(Table147[[#This Row],[Invoice]],'2023 Invoice Payments'!$L$1:$L$100,0),2),"") ->  | M83: Y:\$ AerospaceEdge\AGG Finance\AGG Credit Card Receipts\ | N83: AGG - HAI Receipt- 145241.pdf | O83: =IF(RIGHT(Table147[[#This Row],[Charge Receipt]],3)<>"pdf","",IF(FileExists(Table147[[#This Row],[Column1]]&Table147[[#This Row],[Charge Receipt]]),FileExists(Table147[[#This Row],[Column1]]&Table147[[#This Row],[Charge Receipt]]),FileExists("Y:\$ AerospaceEdge\AGG Finance\AGG Distribution Documents\"&Table147[[#This Row],[Charge Receipt]]))) -> TRUE
A84: BA | B84: 2022-09-01 | C84: Monthly Fee Business Adv Relationship | D84: -29.95 | E84: =IF(Table147[[#This Row],[Bank Acct]]=LEFT(Table147[[#Headers],[BA Balance]],2),SUMIF(Table147[[#Headers],[Bank Acct]]:Table147[[#This Row],[Bank Acct]],Table147[[#This Row],[Bank Acct]],Table147[[#Headers],[Amount]]:Table147[[#This Row],[Amount]]),"") -> 9066.34 | F84: =IF(Table147[[#This Row],[Bank Acct]]=LEFT(Table147[[#Headers],[WF Balance]],2),SUMIF(Table147[[#Headers],[Bank Acct]]:Table147[[#This Row],[Bank Acct]],Table147[[#This Row],[Bank Acct]],Table147[[#Headers],[Amount]]:Table147[[#This Row],[Amount]]),"") ->  | G84: =IFERROR(INDEX(Lookup!$B$2:$C$7,MATCH(RIGHT(TRIM(Table147[[#This Row],[Description]]),4),Lookup!$B$2:$B$7,0),2),"") ->  | H84: AGG | I84: Bank Charge | K84: - | L84: =IF(OR(LEFT(Table147[[#This Row],[Invoice]],1)="0",LEFT(Table147[[#This Row],[Invoice]],1)="1"),INDEX(Invoice_dates,MATCH(Table147[[#This Row],[Invoice]],'2023 Invoice Payments'!$L$1:$L$100,0),2),"") ->  | M84: Y:\$ AerospaceEdge\AGG Finance\AGG Credit Card Receipts\ | O84: =IF(RIGHT(Table147[[#This Row],[Charge Receipt]],3)<>"pdf","",IF(FileExists(Table147[[#This Row],[Column1]]&Table147[[#This Row],[Charge Receipt]]),FileExists(Table147[[#This Row],[Column1]]&Table147[[#This Row],[Charge Receipt]]),FileExists("Y:\$ AerospaceEdge\AGG Finance\AGG Distribution Documents\"&Table147[[#This Row],[Charge Receipt]]))) -> 
A85: BA | B85: 2022-09-07 | C85: TRANSFER AVIAGLOBAL GROUP, LL:ADS-B Global LLC Confirmation# 0156760934 | D85: -2700 | E85: =IF(Table147[[#This Row],[Bank Acct]]=LEFT(Table147[[#Headers],[BA Balance]],2),SUMIF(Table147[[#Headers],[Bank Acct]]:Table147[[#This Row],[Bank Acct]],Table147[[#This Row],[Bank Acct]],Table147[[#Headers],[Amount]]:Table147[[#This Row],[Amount]]),"") -> 6366.34 | F85: =IF(Table147[[#This Row],[Bank Acct]]=LEFT(Table147[[#Headers],[WF Balance]],2),SUMIF(Table147[[#Headers],[Bank Acct]]:Table147[[#This Row],[Bank Acct]],Table147[[#This Row],[Bank Acct]],Table147[[#Headers],[Amount]]:Table147[[#This Row],[Amount]]),"") ->  | G85: =IFERROR(INDEX(Lookup!$B$2:$C$7,MATCH(RIGHT(TRIM(Table147[[#This Row],[Description]]),4),Lookup!$B$2:$B$7,0),2),"") ->  | I85: Distibution | L85: =IF(OR(LEFT(Table147[[#This Row],[Invoice]],1)="0",LEFT(Table147[[#This Row],[Invoice]],1)="1"),INDEX(Invoice_dates,MATCH(Table147[[#This Row],[Invoice]],'2023 Invoice Payments'!$L$1:$L$100,0),2),"") ->  | M85: Y:\$ AerospaceEdge\AGG Finance\AGG Credit Card Receipts\ | O85: =IF(RIGHT(Table147[[#This Row],[Charge Receipt]],3)<>"pdf","",IF(FileExists(Table147[[#This Row],[Column1]]&Table147[[#This Row],[Charge Receipt]]),FileExists(Table147[[#This Row],[Column1]]&Table147[[#This Row],[Charge Receipt]]),FileExists("Y:\$ AerospaceEdge\AGG Finance\AGG Distribution Documents\"&Table147[[#This Row],[Charge Receipt]]))) -> 
A86: BA | B86: 2022-09-07 | C86: TRANSFER AVIAGLOBAL GROUP, LL:Forrest Colliver Confirmation# 1556772007 | D86: -2700 | E86: =IF(Table147[[#This Row],[Bank Acct]]=LEFT(Table147[[#Headers],[BA Balance]],2),SUMIF(Table147[[#Headers],[Bank Acct]]:Table147[[#This Row],[Bank Acct]],Table147[[#This Row],[Bank Acct]],Table147[[#Headers],[Amount]]:Table147[[#This Row],[Amount]]),"") -> 3666.34 | F86: =IF(Table147[[#This Row],[Bank Acct]]=LEFT(Table147[[#Headers],[WF Balance]],2),SUMIF(Table147[[#Headers],[Bank Acct]]:Table147[[#This Row],[Bank Acct]],Table147[[#This Row],[Bank Acct]],Table147[[#Headers],[Amount]]:Table147[[#This Row],[Amount]]),"") ->  | G86: =IFERROR(INDEX(Lookup!$B$2:$C$7,MATCH(RIGHT(TRIM(Table147[[#This Row],[Description]]),4),Lookup!$B$2:$B$7,0),2),"") ->  | I86: Distibution | L86: =IF(OR(LEFT(Table147[[#This Row],[Invoice]],1)="0",LEFT(Table147[[#This Row],[Invoice]],1)="1"),INDEX(Invoice_dates,MATCH(Table147[[#This Row],[Invoice]],'2023 Invoice Payments'!$L$1:$L$100,0),2),"") ->  | M86: Y:\$ AerospaceEdge\AGG Finance\AGG Credit Card Receipts\ | O86: =IF(RIGHT(Table147[[#This Row],[Charge Receipt]],3)<>"pdf","",IF(FileExists(Table147[[#This Row],[Column1]]&Table147[[#This Row],[Charge Receipt]]),FileExists(Table147[[#This Row],[Column1]]&Table147[[#This Row],[Charge Receipt]]),FileExists("Y:\$ AerospaceEdge\AGG Finance\AGG Distribution Documents\"&Table147[[#This Row],[Charge Receipt]]))) -> 
A87: BA | B87: 2022-09-07 | C87: Online Banking Transfer Conf# itu1b5i02; AERO BUSINESS DEVELOPEMENT LLC | D87: -2700 | E87: =IF(Table147[[#This Row],[Bank Acct]]=LEFT(Table147[[#Headers],[BA Balance]],2),SUMIF(Table147[[#Headers],[Bank Acct]]:Table147[[#This Row],[Bank Acct]],Table147[[#This Row],[Bank Acct]],Table147[[#Headers],[Amount]]:Table147[[#This Row],[Amount]]),"") -> 966.34 | F87: =IF(Table147[[#This Row],[Bank Acct]]=LEFT(Table147[[#Headers],[WF Balance]],2),SUMIF(Table147[[#Headers],[Bank Acct]]:Table147[[#This Row],[Bank Acct]],Table147[[#This Row],[Bank Acct]],Table147[[#Headers],[Amount]]:Table147[[#This Row],[Amount]]),"") ->  | G87: =IFERROR(INDEX(Lookup!$B$2:$C$7,MATCH(RIGHT(TRIM(Table147[[#This Row],[Description]]),4),Lookup!$B$2:$B$7,0),2),"") ->  | I87: Distibution | L87: =IF(OR(LEFT(Table147[[#This Row],[Invoice]],1)="0",LEFT(Table147[[#This Row],[Invoice]],1)="1"),INDEX(Invoice_dates,MATCH(Table147[[#This Row],[Invoice]],'2023 Invoice Payments'!$L$1:$L$100,0),2),"") ->  | M87: Y:\$ AerospaceEdge\AGG Finance\AGG Credit Card Receipts\ | O87: =IF(RIGHT(Table147[[#This Row],[Charge Receipt]],3)<>"pdf","",IF(FileExists(Table147[[#This Row],[Column1]]&Table147[[#This Row],[Charge Receipt]]),FileExists(Table147[[#This Row],[Column1]]&Table147[[#This Row],[Charge Receipt]]),FileExists("Y:\$ AerospaceEdge\AGG Finance\AGG Distribution Documents\"&Table147[[#This Row],[Charge Receipt]]))) -> 
A88: BA | B88: 2022-09-08 | C88: External transfer fee - 3 Day - 09/07/2022 Confirmation: 403675046 | D88: -1 | E88: =IF(Table147[[#This Row],[Bank Acct]]=LEFT(Table147[[#Headers],[BA Balance]],2),SUMIF(Table147[[#Headers],[Bank Acct]]:Table147[[#This Row],[Bank Acct]],Table147[[#This Row],[Bank Acct]],Table147[[#Headers],[Amount]]:Table147[[#This Row],[Amount]]),"") -> 965.34 | F88: =IF(Table147[[#This Row],[Bank Acct]]=LEFT(Table147[[#Headers],[WF Balance]],2),SUMIF(Table147[[#Headers],[Bank Acct]]:Table147[[#This Row],[Bank Acct]],Table147[[#This Row],[Bank Acct]],Table147[[#Headers],[Amount]]:Table147[[#This Row],[Amount]]),"") ->  | G88: =IFERROR(INDEX(Lookup!$B$2:$C$7,MATCH(RIGHT(TRIM(Table147[[#This Row],[Description]]),4),Lookup!$B$2:$B$7,0),2),"") ->  | H88: AGG | I88: Bank Charge | K88: - | L88: =IF(OR(LEFT(Table147[[#This Row],[Invoice]],1)="0",LEFT(Table147[[#This Row],[Invoice]],1)="1"),INDEX(Invoice_dates,MATCH(Table147[[#This Row],[Invoice]],'2023 Invoice Payments'!$L$1:$L$100,0),2),"") ->  | M88: Y:\$ AerospaceEdge\AGG Finance\AGG Credit Card Receipts\ | O88: =IF(RIGHT(Table147[[#This Row],[Charge Receipt]],3)<>"pdf","",IF(FileExists(Table147[[#This Row],[Column1]]&Table147[[#This Row],[Charge Receipt]]),FileExists(Table147[[#This Row],[Column1]]&Table147[[#This Row],[Charge Receipt]]),FileExists("Y:\$ AerospaceEdge\AGG Finance\AGG Distribution Documents\"&Table147[[#This Row],[Charge Receipt]]))) -> 
A89: BA | B89: 2022-09-08 | C89: External transfer fee - 3 Day - 09/07/2022 Confirmation: 403675426 | D89: -1 | E89: =IF(Table147[[#This Row],[Bank Acct]]=LEFT(Table147[[#Headers],[BA Balance]],2),SUMIF(Table147[[#Headers],[Bank Acct]]:Table147[[#This Row],[Bank Acct]],Table147[[#This Row],[Bank Acct]],Table147[[#Headers],[Amount]]:Table147[[#This Row],[Amount]]),"") -> 964.34 | F89: =IF(Table147[[#This Row],[Bank Acct]]=LEFT(Table147[[#Headers],[WF Balance]],2),SUMIF(Table147[[#Headers],[Bank Acct]]:Table147[[#This Row],[Bank Acct]],Table147[[#This Row],[Bank Acct]],Table147[[#Headers],[Amount]]:Table147[[#This Row],[Amount]]),"") ->  | G89: =IFERROR(INDEX(Lookup!$B$2:$C$7,MATCH(RIGHT(TRIM(Table147[[#This Row],[Description]]),4),Lookup!$B$2:$B$7,0),2),"") ->  | H89: AGG | I89: Bank Charge | K89: - | L89: =IF(OR(LEFT(Table147[[#This Row],[Invoice]],1)="0",LEFT(Table147[[#This Row],[Invoice]],1)="1"),INDEX(Invoice_dates,MATCH(Table147[[#This Row],[Invoice]],'2023 Invoice Payments'!$L$1:$L$100,0),2),"") ->  | M89: Y:\$ AerospaceEdge\AGG Finance\AGG Credit Card Receipts\ | O89: =IF(RIGHT(Table147[[#This Row],[Charge Receipt]],3)<>"pdf","",IF(FileExists(Table147[[#This Row],[Column1]]&Table147[[#This Row],[Charge Receipt]]),FileExists(Table147[[#This Row],[Column1]]&Table147[[#This Row],[Charge Receipt]]),FileExists("Y:\$ AerospaceEdge\AGG Finance\AGG Distribution Documents\"&Table147[[#This Row],[Charge Receipt]]))) -> 
A90: BA | B90: 2022-09-14 | C90: PEREGRINE AVIONI DES:QUICKBOOKS ID:375020979 INDN:AVIAGLOBAL GROUP, LLC CO ID:1722616653 PPD | D90: 3000 | E90: =IF(Table147[[#This Row],[Bank Acct]]=LEFT(Table147[[#Headers],[BA Balance]],2),SUMIF(Table147[[#Headers],[Bank Acct]]:Table147[[#This Row],[Bank Acct]],Table147[[#This Row],[Bank Acct]],Table147[[#Headers],[Amount]]:Table147[[#This Row],[Amount]]),"") -> 3964.34 | F90: =IF(Table147[[#This Row],[Bank Acct]]=LEFT(Table147[[#Headers],[WF Balance]],2),SUMIF(Table147[[#Headers],[Bank Acct]]:Table147[[#This Row],[Bank Acct]],Table147[[#This Row],[Bank Acct]],Table147[[#Headers],[Amount]]:Table147[[#This Row],[Amount]]),"") ->  | G90: =IFERROR(INDEX(Lookup!$B$2:$C$7,MATCH(RIGHT(TRIM(Table147[[#This Row],[Description]]),4),Lookup!$B$2:$B$7,0),2),"") ->  | H90: Peregrine | L90: =IF(OR(LEFT(Table147[[#This Row],[Invoice]],1)="0",LEFT(Table147[[#This Row],[Invoice]],1)="1"),INDEX(Invoice_dates,MATCH(Table147[[#This Row],[Invoice]],'2023 Invoice Payments'!$L$1:$L$100,0),2),"") ->  | M90: Y:\$ AerospaceEdge\AGG Finance\AGG Credit Card Receipts\ | O90: =IF(RIGHT(Table147[[#This Row],[Charge Receipt]],3)<>"pdf","",IF(FileExists(Table147[[#This Row],[Column1]]&Table147[[#This Row],[Charge Receipt]]),FileExists(Table147[[#This Row],[Column1]]&Table147[[#This Row],[Charge Receipt]]),FileExists("Y:\$ AerospaceEdge\AGG Finance\AGG Distribution Documents\"&Table147[[#This Row],[Charge Receipt]]))) -> 
A91: BA | B91: 2022-09-14 | C91: STAMPS.COM 09/14 PURCHASE 855-608-2677 CA DEBIT CARD *7411 | D91: -17.99 | E91: =IF(Table147[[#This Row],[Bank Acct]]=LEFT(Table147[[#Headers],[BA Balance]],2),SUMIF(Table147[[#Headers],[Bank Acct]]:Table147[[#This Row],[Bank Acct]],Table147[[#This Row],[Bank Acct]],Table147[[#Headers],[Amount]]:Table147[[#This Row],[Amount]]),"") -> 3946.35 | F91: =IF(Table147[[#This Row],[Bank Acct]]=LEFT(Table147[[#Headers],[WF Balance]],2),SUMIF(Table147[[#Headers],[Bank Acct]]:Table147[[#This Row],[Bank Acct]],Table147[[#This Row],[Bank Acct]],Table147[[#Headers],[Amount]]:Table147[[#This Row],[Amount]]),"") ->  | G91: =IFERROR(INDEX(Lookup!$B$2:$C$7,MATCH(RIGHT(TRIM(Table147[[#This Row],[Description]]),4),Lookup!$B$2:$B$7,0),2),"") -> LRC | H91: AGG | I91: Stamps | J91: 221020 - LRC ADS_BG ER Mastercard 12-2022 | K91: - | L91: =IF(OR(LEFT(Table147[[#This Row],[Invoice]],1)="0",LEFT(Table147[[#This Row],[Invoice]],1)="1"),INDEX(Invoice_dates,MATCH(Table147[[#This Row],[Invoice]],'2023 Invoice Payments'!$L$1:$L$100,0),2),"") ->  | M91: Y:\$ AerospaceEdge\AGG Finance\AGG Credit Card Receipts\ | N91: 220914 - Stamps dot com.pdf | O91: =IF(RIGHT(Table147[[#This Row],[Charge Receipt]],3)<>"pdf","",IF(FileExists(Table147[[#This Row],[Column1]]&Table147[[#This Row],[Charge Receipt]]),FileExists(Table147[[#This Row],[Column1]]&Table147[[#This Row],[Charge Receipt]]),FileExists("Y:\$ AerospaceEdge\AGG Finance\AGG Distribution Documents\"&Table147[[#This Row],[Charge Receipt]]))) -> TRUE
A92: BA | B92: 2022-09-19 | C92: MAILCHIMP *MISC 09/18 PURCHASE MAILCHIMP.COM GA DEBIT CARD *7411 | D92: -11.62 | E92: =IF(Table147[[#This Row],[Bank Acct]]=LEFT(Table147[[#Headers],[BA Balance]],2),SUMIF(Table147[[#Headers],[Bank Acct]]:Table147[[#This Row],[Bank Acct]],Table147[[#This Row],[Bank Acct]],Table147[[#Headers],[Amount]]:Table147[[#This Row],[Amount]]),"") -> 3934.73 | F92: =IF(Table147[[#This Row],[Bank Acct]]=LEFT(Table147[[#Headers],[WF Balance]],2),SUMIF(Table147[[#Headers],[Bank Acct]]:Table147[[#This Row],[Bank Acct]],Table147[[#This Row],[Bank Acct]],Table147[[#Headers],[Amount]]:Table147[[#This Row],[Amount]]),"") ->  | G92: =IFERROR(INDEX(Lookup!$B$2:$C$7,MATCH(RIGHT(TRIM(Table147[[#This Row],[Description]]),4),Lookup!$B$2:$B$7,0),2),"") -> LRC | H92: AGG | I92: Mailchimp | J92: 221020 - LRC ADS_BG ER Mastercard 12-2022 | K92: - | L92: =IF(OR(LEFT(Table147[[#This Row],[Invoice]],1)="0",LEFT(Table147[[#This Row],[Invoice]],1)="1"),INDEX(Invoice_dates,MATCH(Table147[[#This Row],[Invoice]],'2023 Invoice Payments'!$L$1:$L$100,0),2),"") ->  | M92: Y:\$ AerospaceEdge\AGG Finance\AGG Credit Card Receipts\ | N92: 220918 - AGG - Mailchimp Essentials MC16627250.pdf | O92: =IF(RIGHT(Table147[[#This Row],[Charge Receipt]],3)<>"pdf","",IF(FileExists(Table147[[#This Row],[Column1]]&Table147[[#This Row],[Charge Receipt]]),FileExists(Table147[[#This Row],[Column1]]&Table147[[#This Row],[Charge Receipt]]),FileExists("Y:\$ AerospaceEdge\AGG Finance\AGG Distribution Documents\"&Table147[[#This Row],[Charge Receipt]]))) -> TRUE
A93: BA | B93: 2022-09-20 | C93: MailChimp 09/20 PURCHASE Atlanta GA DEBIT CARD *7411 | D93: -59 | E93: =IF(Table147[[#This Row],[Bank Acct]]=LEFT(Table147[[#Headers],[BA Balance]],2),SUMIF(Table147[[#Headers],[Bank Acct]]:Table147[[#This Row],[Bank Acct]],Table147[[#This Row],[Bank Acct]],Table147[[#Headers],[Amount]]:Table147[[#This Row],[Amount]]),"") -> 3875.73 | F93: =IF(Table147[[#This Row],[Bank Acct]]=LEFT(Table147[[#Headers],[WF Balance]],2),SUMIF(Table147[[#Headers],[Bank Acct]]:Table147[[#This Row],[Bank Acct]],Table147[[#This Row],[Bank Acct]],Table147[[#Headers],[Amount]]:Table147[[#This Row],[Amount]]),"") ->  | G93: =IFERROR(INDEX(Lookup!$B$2:$C$7,MATCH(RIGHT(TRIM(Table147[[#This Row],[Description]]),4),Lookup!$B$2:$B$7,0),2),"") -> LRC | H93: Peregrine | I93: Mailchimp | J93: 221020 - LRC ADS_BG ER Peregrine Billable 13-2022 | K93: 015-22 | L93: =IF(OR(LEFT(Table147[[#This Row],[Invoice]],1)="0",LEFT(Table147[[#This Row],[Invoice]],1)="1"),INDEX(Invoice_dates,MATCH(Table147[[#This Row],[Invoice]],'2023 Invoice Payments'!$L$1:$L$100,0),2),"") ->  | M93: Y:\$ AerospaceEdge\AGG Finance\AGG Credit Card Receipts\ | N93: 220920 - Peregrine - Mailchimp Essentials MC16642305.pdf | O93: =IF(RIGHT(Table147[[#This Row],[Charge Receipt]],3)<>"pdf","",IF(FileExists(Table147[[#This Row],[Column1]]&Table147[[#This Row],[Charge Receipt]]),FileExists(Table147[[#This Row],[Column1]]&Table147[[#This Row],[Charge Receipt]]),FileExists("Y:\$ AerospaceEdge\AGG Finance\AGG Distribution Documents\"&Table147[[#This Row],[Charge Receipt]]))) -> TRUE
A94: BA | B94: 2022-10-03 | C94: Monthly Fee Business Adv Relationship | D94: -29.95 | E94: =IF(Table147[[#This Row],[Bank Acct]]=LEFT(Table147[[#Headers],[BA Balance]],2),SUMIF(Table147[[#Headers],[Bank Acct]]:Table147[[#This Row],[Bank Acct]],Table147[[#This Row],[Bank Acct]],Table147[[#Headers],[Amount]]:Table147[[#This Row],[Amount]]),"") -> 3845.78 | F94: =IF(Table147[[#This Row],[Bank Acct]]=LEFT(Table147[[#Headers],[WF Balance]],2),SUMIF(Table147[[#Headers],[Bank Acct]]:Table147[[#This Row],[Bank Acct]],Table147[[#This Row],[Bank Acct]],Table147[[#Headers],[Amount]]:Table147[[#This Row],[Amount]]),"") ->  | G94: =IFERROR(INDEX(Lookup!$B$2:$C$7,MATCH(RIGHT(TRIM(Table147[[#This Row],[Description]]),4),Lookup!$B$2:$B$7,0),2),"") ->  | H94: AGG | I94: Bank Charge | K94: - | L94: =IF(OR(LEFT(Table147[[#This Row],[Invoice]],1)="0",LEFT(Table147[[#This Row],[Invoice]],1)="1"),INDEX(Invoice_dates,MATCH(Table147[[#This Row],[Invoice]],'2023 Invoice Payments'!$L$1:$L$100,0),2),"") ->  | M94: Y:\$ AerospaceEdge\AGG Finance\AGG Credit Card Receipts\ | O94: =IF(RIGHT(Table147[[#This Row],[Charge Receipt]],3)<>"pdf","",IF(FileExists(Table147[[#This Row],[Column1]]&Table147[[#This Row],[Charge Receipt]]),FileExists(Table147[[#This Row],[Column1]]&Table147[[#This Row],[Charge Receipt]]),FileExists("Y:\$ AerospaceEdge\AGG Finance\AGG Distribution Documents\"&Table147[[#This Row],[Charge Receipt]]))) -> 
A95: BA | B95: 2022-10-06 | C95: DOWNLOAD-MONITOR. 10/06 PURCHASE BUCURESTI DEBIT CARD *7429 | D95: -159 | E95: =IF(Table147[[#This Row],[Bank Acct]]=LEFT(Table147[[#Headers],[BA Balance]],2),SUMIF(Table147[[#Headers],[Bank Acct]]:Table147[[#This Row],[Bank Acct]],Table147[[#This Row],[Bank Acct]],Table147[[#Headers],[Amount]]:Table147[[#This Row],[Amount]]),"") -> 3686.78 | F95: =IF(Table147[[#This Row],[Bank Acct]]=LEFT(Table147[[#Headers],[WF Balance]],2),SUMIF(Table147[[#Headers],[Bank Acct]]:Table147[[#This Row],[Bank Acct]],Table147[[#This Row],[Bank Acct]],Table147[[#Headers],[Amount]]:Table147[[#This Row],[Amount]]),"") ->  | G95: =IFERROR(INDEX(Lookup!$B$2:$C$7,MATCH(RIGHT(TRIM(Table147[[#This Row],[Description]]),4),Lookup!$B$2:$B$7,0),2),"") -> FWC | H95: Peregrine | J95: 221201 - FWC ER Peregrine Billable EOY-2022 | K95: 018-22 | L95: =IF(OR(LEFT(Table147[[#This Row],[Invoice]],1)="0",LEFT(Table147[[#This Row],[Invoice]],1)="1"),INDEX(Invoice_dates,MATCH(Table147[[#This Row],[Invoice]],'2023 Invoice Payments'!$L$1:$L$100,0),2),"") ->  | M95: Y:\$ AerospaceEdge\AGG Finance\AGG Credit Card Receipts\ | N95: Peregrine - Download Monitor Invoice-3198.pdf | O95: =IF(RIGHT(Table147[[#This Row],[Charge Receipt]],3)<>"pdf","",IF(FileExists(Table147[[#This Row],[Column1]]&Table147[[#This Row],[Charge Receipt]]),FileExists(Table147[[#This Row],[Column1]]&Table147[[#This Row],[Charge Receipt]]),FileExists("Y:\$ AerospaceEdge\AGG Finance\AGG Distribution Documents\"&Table147[[#This Row],[Charge Receipt]]))) -> TRUE
A96: BA | B96: 2022-10-06 | C96: INTERNATIONAL TRANSACTION FEE 10/06 DOWNLOAD-MONITOR. BUCURESTI DEBIT CARD *7429 | D96: -4.77 | E96: =IF(Table147[[#This Row],[Bank Acct]]=LEFT(Table147[[#Headers],[BA Balance]],2),SUMIF(Table147[[#Headers],[Bank Acct]]:Table147[[#This Row],[Bank Acct]],Table147[[#This Row],[Bank Acct]],Table147[[#Headers],[Amount]]:Table147[[#This Row],[Amount]]),"") -> 3682.01 | F96: =IF(Table147[[#This Row],[Bank Acct]]=LEFT(Table147[[#Headers],[WF Balance]],2),SUMIF(Table147[[#Headers],[Bank Acct]]:Table147[[#This Row],[Bank Acct]],Table147[[#This Row],[Bank Acct]],Table147[[#Headers],[Amount]]:Table147[[#This Row],[Amount]]),"") ->  | G96: =IFERROR(INDEX(Lookup!$B$2:$C$7,MATCH(RIGHT(TRIM(Table147[[#This Row],[Description]]),4),Lookup!$B$2:$B$7,0),2),"") -> FWC | H96: Peregrine | J96: 221201 - FWC ER Peregrine Billable EOY-2022 | K96: 018-22 | L96: =IF(OR(LEFT(Table147[[#This Row],[Invoice]],1)="0",LEFT(Table147[[#This Row],[Invoice]],1)="1"),INDEX(Invoice_dates,MATCH(Table147[[#This Row],[Invoice]],'2023 Invoice Payments'!$L$1:$L$100,0),2),"") ->  | M96: Y:\$ AerospaceEdge\AGG Finance\AGG Credit Card Receipts\ | N96: 221006 - INTERNATIONAL TRANSACTION FEE DOWNLOAD-MONITOR | O96: =IF(RIGHT(Table147[[#This Row],[Charge Receipt]],3)<>"pdf","",IF(FileExists(Table147[[#This Row],[Column1]]&Table147[[#This Row],[Charge Receipt]]),FileExists(Table147[[#This Row],[Column1]]&Table147[[#This Row],[Charge Receipt]]),FileExists("Y:\$ AerospaceEdge\AGG Finance\AGG Distribution Documents\"&Table147[[#This Row],[Charge Receipt]]))) -> 
A97: BA | B97: 2022-10-17 | C97: STAMPS.COM 10/14 PURCHASE 855-608-2677 CA DEBIT CARD *7411 | D97: -17.99 | E97: =IF(Table147[[#This Row],[Bank Acct]]=LEFT(Table147[[#Headers],[BA Balance]],2),SUMIF(Table147[[#Headers],[Bank Acct]]:Table147[[#This Row],[Bank Acct]],Table147[[#This Row],[Bank Acct]],Table147[[#Headers],[Amount]]:Table147[[#This Row],[Amount]]),"") -> 3664.02 | F97: =IF(Table147[[#This Row],[Bank Acct]]=LEFT(Table147[[#Headers],[WF Balance]],2),SUMIF(Table147[[#Headers],[Bank Acct]]:Table147[[#This Row],[Bank Acct]],Table147[[#This Row],[Bank Acct]],Table147[[#Headers],[Amount]]:Table147[[#This Row],[Amount]]),"") ->  | G97: =IFERROR(INDEX(Lookup!$B$2:$C$7,MATCH(RIGHT(TRIM(Table147[[#This Row],[Description]]),4),Lookup!$B$2:$B$7,0),2),"") -> LRC | H97: AGG | I97: Stamps | J97: 221020 - LRC ADS_BG ER Mastercard 12-2022 | K97: - | L97: =IF(OR(LEFT(Table147[[#This Row],[Invoice]],1)="0",LEFT(Table147[[#This Row],[Invoice]],1)="1"),INDEX(Invoice_dates,MATCH(Table147[[#This Row],[Invoice]],'2023 Invoice Payments'!$L$1:$L$100,0),2),"") ->  | M97: Y:\$ AerospaceEdge\AGG Finance\AGG Credit Card Receipts\ | N97: 221017 - Stamps dot com.pdf | O97: =IF(RIGHT(Table147[[#This Row],[Charge Receipt]],3)<>"pdf","",IF(FileExists(Table147[[#This Row],[Column1]]&Table147[[#This Row],[Charge Receipt]]),FileExists(Table147[[#This Row],[Column1]]&Table147[[#This Row],[Charge Receipt]]),FileExists("Y:\$ AerospaceEdge\AGG Finance\AGG Distribution Documents\"&Table147[[#This Row],[Charge Receipt]]))) -> TRUE
A98: BA | B98: 2022-10-19 | C98: MAILCHIMP *MISC 10/18 PURCHASE MAILCHIMP.COM GA DEBIT CARD *7411 | D98: -11.62 | E98: =IF(Table147[[#This Row],[Bank Acct]]=LEFT(Table147[[#Headers],[BA Balance]],2),SUMIF(Table147[[#Headers],[Bank Acct]]:Table147[[#This Row],[Bank Acct]],Table147[[#This Row],[Bank Acct]],Table147[[#Headers],[Amount]]:Table147[[#This Row],[Amount]]),"") -> 3652.4 | F98: =IF(Table147[[#This Row],[Bank Acct]]=LEFT(Table147[[#Headers],[WF Balance]],2),SUMIF(Table147[[#Headers],[Bank Acct]]:Table147[[#This Row],[Bank Acct]],Table147[[#This Row],[Bank Acct]],Table147[[#Headers],[Amount]]:Table147[[#This Row],[Amount]]),"") ->  | G98: =IFERROR(INDEX(Lookup!$B$2:$C$7,MATCH(RIGHT(TRIM(Table147[[#This Row],[Description]]),4),Lookup!$B$2:$B$7,0),2),"") -> LRC | H98: AGG | I98: Mailchimp | J98: 221020 - LRC ADS_BG ER Mastercard 12-2022 | K98: - | L98: =IF(OR(LEFT(Table147[[#This Row],[Invoice]],1)="0",LEFT(Table147[[#This Row],[Invoice]],1)="1"),INDEX(Invoice_dates,MATCH(Table147[[#This Row],[Invoice]],'2023 Invoice Payments'!$L$1:$L$100,0),2),"") ->  | M98: Y:\$ AerospaceEdge\AGG Finance\AGG Credit Card Receipts\ | N98: 221018 - AGG - Mailchimp Essentials MC16858121.pdf | O98: =IF(RIGHT(Table147[[#This Row],[Charge Receipt]],3)<>"pdf","",IF(FileExists(Table147[[#This Row],[Column1]]&Table147[[#This Row],[Charge Receipt]]),FileExists(Table147[[#This Row],[Column1]]&Table147[[#This Row],[Charge Receipt]]),FileExists("Y:\$ AerospaceEdge\AGG Finance\AGG Distribution Documents\"&Table147[[#This Row],[Charge Receipt]]))) -> TRUE
A99: BA | B99: 2022-10-20 | C99: MailChimp 10/20 PURCHASE Atlanta GA DEBIT CARD *7411 | D99: -59 | E99: =IF(Table147[[#This Row],[Bank Acct]]=LEFT(Table147[[#Headers],[BA Balance]],2),SUMIF(Table147[[#Headers],[Bank Acct]]:Table147[[#This Row],[Bank Acct]],Table147[[#This Row],[Bank Acct]],Table147[[#Headers],[Amount]]:Table147[[#This Row],[Amount]]),"") -> 3593.4 | F99: =IF(Table147[[#This Row],[Bank Acct]]=LEFT(Table147[[#Headers],[WF Balance]],2),SUMIF(Table147[[#Headers],[Bank Acct]]:Table147[[#This Row],[Bank Acct]],Table147[[#This Row],[Bank Acct]],Table147[[#Headers],[Amount]]:Table147[[#This Row],[Amount]]),"") ->  | G99: =IFERROR(INDEX(Lookup!$B$2:$C$7,MATCH(RIGHT(TRIM(Table147[[#This Row],[Description]]),4),Lookup!$B$2:$B$7,0),2),"") -> LRC | H99: Peregrine | I99: Mailchimp | J99: 221020 - LRC ADS_BG ER Peregrine Billable 13-2022 | K99: 015-22 | L99: =IF(OR(LEFT(Table147[[#This Row],[Invoice]],1)="0",LEFT(Table147[[#This Row],[Invoice]],1)="1"),INDEX(Invoice_dates,MATCH(Table147[[#This Row],[Invoice]],'2023 Invoice Payments'!$L$1:$L$100,0),2),"") ->  | M99: Y:\$ AerospaceEdge\AGG Finance\AGG Credit Card Receipts\ | N99: 221020 - Peregrine - Mailchimp Essentials MC16642305.pdf | O99: =IF(RIGHT(Table147[[#This Row],[Charge Receipt]],3)<>"pdf","",IF(FileExists(Table147[[#This Row],[Column1]]&Table147[[#This Row],[Charge Receipt]]),FileExists(Table147[[#This Row],[Column1]]&Table147[[#This Row],[Charge Receipt]]),FileExists("Y:\$ AerospaceEdge\AGG Finance\AGG Distribution Documents\"&Table147[[#This Row],[Charge Receipt]]))) -> TRUE
A100: BA | B100: 2022-10-31 | C100: NATIONAL BUS AVIA 10/28 PURCHASE WASHINGTON DC DEBIT CARD *7411 | D100: -52.5 | E100: =IF(Table147[[#This Row],[Bank Acct]]=LEFT(Table147[[#Headers],[BA Balance]],2),SUMIF(Table147[[#Headers],[Bank Acct]]:Table147[[#This Row],[Bank Acct]],Table147[[#This Row],[Bank Acct]],Table147[[#Headers],[Amount]]:Table147[[#This Row],[Amount]]),"") -> 3540.9 | F100: =IF(Table147[[#This Row],[Bank Acct]]=LEFT(Table147[[#Headers],[WF Balance]],2),SUMIF(Table147[[#Headers],[Bank Acct]]:Table147[[#This Row],[Bank Acct]],Table147[[#This Row],[Bank Acct]],Table147[[#Headers],[Amount]]:Table147[[#This Row],[Amount]]),"") ->  | G100: =IFERROR(INDEX(Lookup!$B$2:$C$7,MATCH(RIGHT(TRIM(Table147[[#This Row],[Description]]),4),Lookup!$B$2:$B$7,0),2),"") -> LRC | H100: AGG | J100: 221201 - LRC ADS_BG ER Mastercard 15-2022 | K100: - | L100: =IF(OR(LEFT(Table147[[#This Row],[Invoice]],1)="0",LEFT(Table147[[#This Row],[Invoice]],1)="1"),INDEX(Invoice_dates,MATCH(Table147[[#This Row],[Invoice]],'2023 Invoice Payments'!$L$1:$L$100,0),2),"") ->  | M100: Y:\$ AerospaceEdge\AGG Finance\AGG Credit Card Receipts\ | N100: 221028 - NBAA Affilliated Prof Membership 000430626.pdf | O100: =IF(RIGHT(Table147[[#This Row],[Charge Receipt]],3)<>"pdf","",IF(FileExists(Table147[[#This Row],[Column1]]&Table147[[#This Row],[Charge Receipt]]),FileExists(Table147[[#This Row],[Column1]]&Table147[[#This Row],[Charge Receipt]]),FileExists("Y:\$ AerospaceEdge\AGG Finance\AGG Distribution Documents\"&Table147[[#This Row],[Charge Receipt]]))) -> TRUE
A101: BA | B101: 2022-11-01 | C101: Monthly Fee Business Adv Relationship | D101: -29.95 | E101: =IF(Table147[[#This Row],[Bank Acct]]=LEFT(Table147[[#Headers],[BA Balance]],2),SUMIF(Table147[[#Headers],[Bank Acct]]:Table147[[#This Row],[Bank Acct]],Table147[[#This Row],[Bank Acct]],Table147[[#Headers],[Amount]]:Table147[[#This Row],[Amount]]),"") -> 3510.95 | F101: =IF(Table147[[#This Row],[Bank Acct]]=LEFT(Table147[[#Headers],[WF Balance]],2),SUMIF(Table147[[#Headers],[Bank Acct]]:Table147[[#This Row],[Bank Acct]],Table147[[#This Row],[Bank Acct]],Table147[[#Headers],[Amount]]:Table147[[#This Row],[Amount]]),"") ->  | G101: =IFERROR(INDEX(Lookup!$B$2:$C$7,MATCH(RIGHT(TRIM(Table147[[#This Row],[Description]]),4),Lookup!$B$2:$B$7,0),2),"") ->  | H101: AGG | I101: Bank Charge | K101: - | L101: =IF(OR(LEFT(Table147[[#This Row],[Invoice]],1)="0",LEFT(Table147[[#This Row],[Invoice]],1)="1"),INDEX(Invoice_dates,MATCH(Table147[[#This Row],[Invoice]],'2023 Invoice Payments'!$L$1:$L$100,0),2),"") ->  | M101: Y:\$ AerospaceEdge\AGG Finance\AGG Credit Card Receipts\ | O101: =IF(RIGHT(Table147[[#This Row],[Charge Receipt]],3)<>"pdf","",IF(FileExists(Table147[[#This Row],[Column1]]&Table147[[#This Row],[Charge Receipt]]),FileExists(Table147[[#This Row],[Column1]]&Table147[[#This Row],[Charge Receipt]]),FileExists("Y:\$ AerospaceEdge\AGG Finance\AGG Distribution Documents\"&Table147[[#This Row],[Charge Receipt]]))) -> 
A102: BA | B102: 2022-11-02 | C102: PEREGRINE AVIONI DES:QUICKBOOKS ID:375020979 INDN:AVIAGLOBAL GROUP, LLC CO ID:1722616653 PPD | D102: 2000 | E102: =IF(Table147[[#This Row],[Bank Acct]]=LEFT(Table147[[#Headers],[BA Balance]],2),SUMIF(Table147[[#Headers],[Bank Acct]]:Table147[[#This Row],[Bank Acct]],Table147[[#This Row],[Bank Acct]],Table147[[#Headers],[Amount]]:Table147[[#This Row],[Amount]]),"") -> 5510.95 | F102: =IF(Table147[[#This Row],[Bank Acct]]=LEFT(Table147[[#Headers],[WF Balance]],2),SUMIF(Table147[[#Headers],[Bank Acct]]:Table147[[#This Row],[Bank Acct]],Table147[[#This Row],[Bank Acct]],Table147[[#Headers],[Amount]]:Table147[[#This Row],[Amount]]),"") ->  | G102: =IFERROR(INDEX(Lookup!$B$2:$C$7,MATCH(RIGHT(TRIM(Table147[[#This Row],[Description]]),4),Lookup!$B$2:$B$7,0),2),"") ->  | H102: Peregrine | L102: =IF(OR(LEFT(Table147[[#This Row],[Invoice]],1)="0",LEFT(Table147[[#This Row],[Invoice]],1)="1"),INDEX(Invoice_dates,MATCH(Table147[[#This Row],[Invoice]],'2023 Invoice Payments'!$L$1:$L$100,0),2),"") ->  | M102: Y:\$ AerospaceEdge\AGG Finance\AGG Credit Card Receipts\ | O102: =IF(RIGHT(Table147[[#This Row],[Charge Receipt]],3)<>"pdf","",IF(FileExists(Table147[[#This Row],[Column1]]&Table147[[#This Row],[Charge Receipt]]),FileExists(Table147[[#This Row],[Column1]]&Table147[[#This Row],[Charge Receipt]]),FileExists("Y:\$ AerospaceEdge\AGG Finance\AGG Distribution Documents\"&Table147[[#This Row],[Charge Receipt]]))) -> 
A103: BA | B103: 2022-11-14 | C103: STAMPS.COM 11/13 PURCHASE 855-608-2677 TX DEBIT CARD *7411 | D103: -17.99 | E103: =IF(Table147[[#This Row],[Bank Acct]]=LEFT(Table147[[#Headers],[BA Balance]],2),SUMIF(Table147[[#Headers],[Bank Acct]]:Table147[[#This Row],[Bank Acct]],Table147[[#This Row],[Bank Acct]],Table147[[#Headers],[Amount]]:Table147[[#This Row],[Amount]]),"") -> 5492.96 | F103: =IF(Table147[[#This Row],[Bank Acct]]=LEFT(Table147[[#Headers],[WF Balance]],2),SUMIF(Table147[[#Headers],[Bank Acct]]:Table147[[#This Row],[Bank Acct]],Table147[[#This Row],[Bank Acct]],Table147[[#Headers],[Amount]]:Table147[[#This Row],[Amount]]),"") ->  | G103: =IFERROR(INDEX(Lookup!$B$2:$C$7,MATCH(RIGHT(TRIM(Table147[[#This Row],[Description]]),4),Lookup!$B$2:$B$7,0),2),"") -> LRC | H103: AGG | I103: Stamps | J103: 221201 - LRC ADS_BG ER Mastercard 15-2022 | K103: - | L103: =IF(OR(LEFT(Table147[[#This Row],[Invoice]],1)="0",LEFT(Table147[[#This Row],[Invoice]],1)="1"),INDEX(Invoice_dates,MATCH(Table147[[#This Row],[Invoice]],'2023 Invoice Payments'!$L$1:$L$100,0),2),"") ->  | M103: Y:\$ AerospaceEdge\AGG Finance\AGG Credit Card Receipts\ | N103: 221114 - Stamps dot com.pdf | O103: =IF(RIGHT(Table147[[#This Row],[Charge Receipt]],3)<>"pdf","",IF(FileExists(Table147[[#This Row],[Column1]]&Table147[[#This Row],[Charge Receipt]]),FileExists(Table147[[#This Row],[Column1]]&Table147[[#This Row],[Charge Receipt]]),FileExists("Y:\$ AerospaceEdge\AGG Finance\AGG Distribution Documents\"&Table147[[#This Row],[Charge Receipt]]))) -> TRUE
A104: BA | B104: 2022-11-21 | C104: MAILCHIMP *MISC 11/18 PURCHASE MAILCHIMP.COM GA DEBIT CARD *7411 | D104: -11.62 | E104: =IF(Table147[[#This Row],[Bank Acct]]=LEFT(Table147[[#Headers],[BA Balance]],2),SUMIF(Table147[[#Headers],[Bank Acct]]:Table147[[#This Row],[Bank Acct]],Table147[[#This Row],[Bank Acct]],Table147[[#Headers],[Amount]]:Table147[[#This Row],[Amount]]),"") -> 5481.34 | F104: =IF(Table147[[#This Row],[Bank Acct]]=LEFT(Table147[[#Headers],[WF Balance]],2),SUMIF(Table147[[#Headers],[Bank Acct]]:Table147[[#This Row],[Bank Acct]],Table147[[#This Row],[Bank Acct]],Table147[[#Headers],[Amount]]:Table147[[#This Row],[Amount]]),"") ->  | G104: =IFERROR(INDEX(Lookup!$B$2:$C$7,MATCH(RIGHT(TRIM(Table147[[#This Row],[Description]]),4),Lookup!$B$2:$B$7,0),2),"") -> LRC | H104: AGG | I104: Mailchimp | J104: 221201 - LRC ADS_BG ER Mastercard 15-2022 | K104: - | L104: =IF(OR(LEFT(Table147[[#This Row],[Invoice]],1)="0",LEFT(Table147[[#This Row],[Invoice]],1)="1"),INDEX(Invoice_dates,MATCH(Table147[[#This Row],[Invoice]],'2023 Invoice Payments'!$L$1:$L$100,0),2),"") ->  | M104: Y:\$ AerospaceEdge\AGG Finance\AGG Credit Card Receipts\ | N104: 221118 - AGG - Mailchimp Essentials MC17077641.pdf | O104: =IF(RIGHT(Table147[[#This Row],[Charge Receipt]],3)<>"pdf","",IF(FileExists(Table147[[#This Row],[Column1]]&Table147[[#This Row],[Charge Receipt]]),FileExists(Table147[[#This Row],[Column1]]&Table147[[#This Row],[Charge Receipt]]),FileExists("Y:\$ AerospaceEdge\AGG Finance\AGG Distribution Documents\"&Table147[[#This Row],[Charge Receipt]]))) -> TRUE
A105: BA | B105: 2022-11-21 | C105: MailChimp 11/20 PURCHASE Atlanta GA DEBIT CARD *7411 | D105: -59 | E105: =IF(Table147[[#This Row],[Bank Acct]]=LEFT(Table147[[#Headers],[BA Balance]],2),SUMIF(Table147[[#Headers],[Bank Acct]]:Table147[[#This Row],[Bank Acct]],Table147[[#This Row],[Bank Acct]],Table147[[#Headers],[Amount]]:Table147[[#This Row],[Amount]]),"") -> 5422.34 | F105: =IF(Table147[[#This Row],[Bank Acct]]=LEFT(Table147[[#Headers],[WF Balance]],2),SUMIF(Table147[[#Headers],[Bank Acct]]:Table147[[#This Row],[Bank Acct]],Table147[[#This Row],[Bank Acct]],Table147[[#Headers],[Amount]]:Table147[[#This Row],[Amount]]),"") ->  | G105: =IFERROR(INDEX(Lookup!$B$2:$C$7,MATCH(RIGHT(TRIM(Table147[[#This Row],[Description]]),4),Lookup!$B$2:$B$7,0),2),"") -> LRC | H105: Peregrine | I105: Mailchimp | J105: 221201 - LRC ADS_BG ER Peregrine Billable 14-2022 | K105: 017-22 | L105: =IF(OR(LEFT(Table147[[#This Row],[Invoice]],1)="0",LEFT(Table147[[#This Row],[Invoice]],1)="1"),INDEX(Invoice_dates,MATCH(Table147[[#This Row],[Invoice]],'2023 Invoice Payments'!$L$1:$L$100,0),2),"") ->  | M105: Y:\$ AerospaceEdge\AGG Finance\AGG Credit Card Receipts\ | N105: 221120 - Peregrine - Mailchimp Essentials MC17092309.pdf | O105: =IF(RIGHT(Table147[[#This Row],[Charge Receipt]],3)<>"pdf","",IF(FileExists(Table147[[#This Row],[Column1]]&Table147[[#This Row],[Charge Receipt]]),FileExists(Table147[[#This Row],[Column1]]&Table147[[#This Row],[Charge Receipt]]),FileExists("Y:\$ AerospaceEdge\AGG Finance\AGG Distribution Documents\"&Table147[[#This Row],[Charge Receipt]]))) -> TRUE
A106: BA | B106: 2022-11-21 | C106: INMOTIONHOSTING.C 11/20 PURCHASE 888-3214678 CA DEBIT CARD *7429 | D106: -119.99 | E106: =IF(Table147[[#This Row],[Bank Acct]]=LEFT(Table147[[#Headers],[BA Balance]],2),SUMIF(Table147[[#Headers],[Bank Acct]]:Table147[[#This Row],[Bank Acct]],Table147[[#This Row],[Bank Acct]],Table147[[#Headers],[Amount]]:Table147[[#This Row],[Amount]]),"") -> 5302.35 | F106: =IF(Table147[[#This Row],[Bank Acct]]=LEFT(Table147[[#Headers],[WF Balance]],2),SUMIF(Table147[[#Headers],[Bank Acct]]:Table147[[#This Row],[Bank Acct]],Table147[[#This Row],[Bank Acct]],Table147[[#Headers],[Amount]]:Table147[[#This Row],[Amount]]),"") ->  | G106: =IFERROR(INDEX(Lookup!$B$2:$C$7,MATCH(RIGHT(TRIM(Table147[[#This Row],[Description]]),4),Lookup!$B$2:$B$7,0),2),"") -> FWC | H106: AGG | J106: 221201 - FWC ER Mastercard Dec-2022 | K106: - | L106: =IF(OR(LEFT(Table147[[#This Row],[Invoice]],1)="0",LEFT(Table147[[#This Row],[Invoice]],1)="1"),INDEX(Invoice_dates,MATCH(Table147[[#This Row],[Invoice]],'2023 Invoice Payments'!$L$1:$L$100,0),2),"") ->  | M106: Y:\$ AerospaceEdge\AGG Finance\AGG Credit Card Receipts\ | N106: AGG - InMotion Hosting Receipt - IMH-314-144898-100.pdf | O106: =IF(RIGHT(Table147[[#This Row],[Charge Receipt]],3)<>"pdf","",IF(FileExists(Table147[[#This Row],[Column1]]&Table147[[#This Row],[Charge Receipt]]),FileExists(Table147[[#This Row],[Column1]]&Table147[[#This Row],[Charge Receipt]]),FileExists("Y:\$ AerospaceEdge\AGG Finance\AGG Distribution Documents\"&Table147[[#This Row],[Charge Receipt]]))) -> TRUE
A107: BA | B107: 2022-11-28 | C107: INMOTIONHOSTING.C 11/25 PURCHASE 888-3214678 CA DEBIT CARD *7429 | D107: -479.85 | E107: =IF(Table147[[#This Row],[Bank Acct]]=LEFT(Table147[[#Headers],[BA Balance]],2),SUMIF(Table147[[#Headers],[Bank Acct]]:Table147[[#This Row],[Bank Acct]],Table147[[#This Row],[Bank Acct]],Table147[[#Headers],[Amount]]:Table147[[#This Row],[Amount]]),"") -> 4822.5 | F107: =IF(Table147[[#This Row],[Bank Acct]]=LEFT(Table147[[#Headers],[WF Balance]],2),SUMIF(Table147[[#Headers],[Bank Acct]]:Table147[[#This Row],[Bank Acct]],Table147[[#This Row],[Bank Acct]],Table147[[#Headers],[Amount]]:Table147[[#This Row],[Amount]]),"") ->  | G107: =IFERROR(INDEX(Lookup!$B$2:$C$7,MATCH(RIGHT(TRIM(Table147[[#This Row],[Description]]),4),Lookup!$B$2:$B$7,0),2),"") -> FWC | H107: Peregrine | J107: 221201 - FWC ER Peregrine Billable EOY-2022 | K107: 018-22 | L107: =IF(OR(LEFT(Table147[[#This Row],[Invoice]],1)="0",LEFT(Table147[[#This Row],[Invoice]],1)="1"),INDEX(Invoice_dates,MATCH(Table147[[#This Row],[Invoice]],'2023 Invoice Payments'!$L$1:$L$100,0),2),"") ->  | M107: Y:\$ AerospaceEdge\AGG Finance\AGG Credit Card Receipts\ | N107: Peregrine - InMotion Hosting - Receipt - IMH-414-1451828-5.pdf | O107: =IF(RIGHT(Table147[[#This Row],[Charge Receipt]],3)<>"pdf","",IF(FileExists(Table147[[#This Row],[Column1]]&Table147[[#This Row],[Charge Receipt]]),FileExists(Table147[[#This Row],[Column1]]&Table147[[#This Row],[Charge Receipt]]),FileExists("Y:\$ AerospaceEdge\AGG Finance\AGG Distribution Documents\"&Table147[[#This Row],[Charge Receipt]]))) -> TRUE
A108: BA | B108: 2022-12-01 | C108: Monthly Fee Business Adv Relationship | D108: -29.95 | E108: =IF(Table147[[#This Row],[Bank Acct]]=LEFT(Table147[[#Headers],[BA Balance]],2),SUMIF(Table147[[#Headers],[Bank Acct]]:Table147[[#This Row],[Bank Acct]],Table147[[#This Row],[Bank Acct]],Table147[[#Headers],[Amount]]:Table147[[#This Row],[Amount]]),"") -> 4792.55 | F108: =IF(Table147[[#This Row],[Bank Acct]]=LEFT(Table147[[#Headers],[WF Balance]],2),SUMIF(Table147[[#Headers],[Bank Acct]]:Table147[[#This Row],[Bank Acct]],Table147[[#This Row],[Bank Acct]],Table147[[#Headers],[Amount]]:Table147[[#This Row],[Amount]]),"") ->  | G108: =IFERROR(INDEX(Lookup!$B$2:$C$7,MATCH(RIGHT(TRIM(Table147[[#This Row],[Description]]),4),Lookup!$B$2:$B$7,0),2),"") ->  | H108: AGG | I108: Bank Charge | K108: - | L108: =IF(OR(LEFT(Table147[[#This Row],[Invoice]],1)="0",LEFT(Table147[[#This Row],[Invoice]],1)="1"),INDEX(Invoice_dates,MATCH(Table147[[#This Row],[Invoice]],'2023 Invoice Payments'!$L$1:$L$100,0),2),"") ->  | M108: Y:\$ AerospaceEdge\AGG Finance\AGG Credit Card Receipts\ | O108: =IF(RIGHT(Table147[[#This Row],[Charge Receipt]],3)<>"pdf","",IF(FileExists(Table147[[#This Row],[Column1]]&Table147[[#This Row],[Charge Receipt]]),FileExists(Table147[[#This Row],[Column1]]&Table147[[#This Row],[Charge Receipt]]),FileExists("Y:\$ AerospaceEdge\AGG Finance\AGG Distribution Documents\"&Table147[[#This Row],[Charge Receipt]]))) -> 
A109: BA | B109: 2022-12-09 | C109: PEREGRINE AVIONI DES:QUICKBOOKS ID:375020979 INDN:AVIAGLOBAL GROUP, LLC CO ID:1722616653 PPD | D109: 2000 | E109: =IF(Table147[[#This Row],[Bank Acct]]=LEFT(Table147[[#Headers],[BA Balance]],2),SUMIF(Table147[[#Headers],[Bank Acct]]:Table147[[#This Row],[Bank Acct]],Table147[[#This Row],[Bank Acct]],Table147[[#Headers],[Amount]]:Table147[[#This Row],[Amount]]),"") -> 6792.55 | F109: =IF(Table147[[#This Row],[Bank Acct]]=LEFT(Table147[[#Headers],[WF Balance]],2),SUMIF(Table147[[#Headers],[Bank Acct]]:Table147[[#This Row],[Bank Acct]],Table147[[#This Row],[Bank Acct]],Table147[[#Headers],[Amount]]:Table147[[#This Row],[Amount]]),"") ->  | G109: =IFERROR(INDEX(Lookup!$B$2:$C$7,MATCH(RIGHT(TRIM(Table147[[#This Row],[Description]]),4),Lookup!$B$2:$B$7,0),2),"") ->  | H109: Peregrine | L109: =IF(OR(LEFT(Table147[[#This Row],[Invoice]],1)="0",LEFT(Table147[[#This Row],[Invoice]],1)="1"),INDEX(Invoice_dates,MATCH(Table147[[#This Row],[Invoice]],'2023 Invoice Payments'!$L$1:$L$100,0),2),"") ->  | M109: Y:\$ AerospaceEdge\AGG Finance\AGG Credit Card Receipts\ | O109: =IF(RIGHT(Table147[[#This Row],[Charge Receipt]],3)<>"pdf","",IF(FileExists(Table147[[#This Row],[Column1]]&Table147[[#This Row],[Charge Receipt]]),FileExists(Table147[[#This Row],[Column1]]&Table147[[#This Row],[Charge Receipt]]),FileExists("Y:\$ AerospaceEdge\AGG Finance\AGG Distribution Documents\"&Table147[[#This Row],[Charge Receipt]]))) -> 
A110: BA | B110: 2022-12-14 | C110: STAMPS.COM 12/13 PURCHASE 855-608-2677 TX DEBIT CARD *7411 | D110: -17.99 | E110: =IF(Table147[[#This Row],[Bank Acct]]=LEFT(Table147[[#Headers],[BA Balance]],2),SUMIF(Table147[[#Headers],[Bank Acct]]:Table147[[#This Row],[Bank Acct]],Table147[[#This Row],[Bank Acct]],Table147[[#Headers],[Amount]]:Table147[[#This Row],[Amount]]),"") -> 6774.56 | F110: =IF(Table147[[#This Row],[Bank Acct]]=LEFT(Table147[[#Headers],[WF Balance]],2),SUMIF(Table147[[#Headers],[Bank Acct]]:Table147[[#This Row],[Bank Acct]],Table147[[#This Row],[Bank Acct]],Table147[[#Headers],[Amount]]:Table147[[#This Row],[Amount]]),"") ->  | G110: =IFERROR(INDEX(Lookup!$B$2:$C$7,MATCH(RIGHT(TRIM(Table147[[#This Row],[Description]]),4),Lookup!$B$2:$B$7,0),2),"") -> LRC | H110: AGG | I110: Stamps | J110: 221201 - LRC ADS_BG ER Mastercard 15-2022 | K110: - | L110: =IF(OR(LEFT(Table147[[#This Row],[Invoice]],1)="0",LEFT(Table147[[#This Row],[Invoice]],1)="1"),INDEX(Invoice_dates,MATCH(Table147[[#This Row],[Invoice]],'2023 Invoice Payments'!$L$1:$L$100,0),2),"") ->  | M110: Y:\$ AerospaceEdge\AGG Finance\AGG Credit Card Receipts\ | N110: 221214 - Stamps dot com.pdf | O110: =IF(RIGHT(Table147[[#This Row],[Charge Receipt]],3)<>"pdf","",IF(FileExists(Table147[[#This Row],[Column1]]&Table147[[#This Row],[Charge Receipt]]),FileExists(Table147[[#This Row],[Column1]]&Table147[[#This Row],[Charge Receipt]]),FileExists("Y:\$ AerospaceEdge\AGG Finance\AGG Distribution Documents\"&Table147[[#This Row],[Charge Receipt]]))) -> TRUE
A111: BA | B111: 2022-12-19 | C111: INMOTIONHOSTING.C 12/16 PURCHASE 888-3214678 CA DEBIT CARD *7429 | D111: -39.58 | E111: =IF(Table147[[#This Row],[Bank Acct]]=LEFT(Table147[[#Headers],[BA Balance]],2),SUMIF(Table147[[#Headers],[Bank Acct]]:Table147[[#This Row],[Bank Acct]],Table147[[#This Row],[Bank Acct]],Table147[[#Headers],[Amount]]:Table147[[#This Row],[Amount]]),"") -> 6734.98 | F111: =IF(Table147[[#This Row],[Bank Acct]]=LEFT(Table147[[#Headers],[WF Balance]],2),SUMIF(Table147[[#Headers],[Bank Acct]]:Table147[[#This Row],[Bank Acct]],Table147[[#This Row],[Bank Acct]],Table147[[#Headers],[Amount]]:Table147[[#This Row],[Amount]]),"") ->  | G111: =IFERROR(INDEX(Lookup!$B$2:$C$7,MATCH(RIGHT(TRIM(Table147[[#This Row],[Description]]),4),Lookup!$B$2:$B$7,0),2),"") -> FWC | H111: AGG | I111: Web Tools | J111: 221226 - FWC ER Mastercard EOY-2022 | K111: - | L111: =IF(OR(LEFT(Table147[[#This Row],[Invoice]],1)="0",LEFT(Table147[[#This Row],[Invoice]],1)="1"),INDEX(Invoice_dates,MATCH(Table147[[#This Row],[Invoice]],'2023 Invoice Payments'!$L$1:$L$100,0),2),"") ->  | M111: Y:\$ AerospaceEdge\AGG Finance\AGG Credit Card Receipts\ | N111: 220220 - InMotion Hosting - IMH-314-144898-104.pdf | O111: =IF(RIGHT(Table147[[#This Row],[Charge Receipt]],3)<>"pdf","",IF(FileExists(Table147[[#This Row],[Column1]]&Table147[[#This Row],[Charge Receipt]]),FileExists(Table147[[#This Row],[Column1]]&Table147[[#This Row],[Charge Receipt]]),FileExists("Y:\$ AerospaceEdge\AGG Finance\AGG Distribution Documents\"&Table147[[#This Row],[Charge Receipt]]))) -> TRUE
A112: BA | B112: 2022-12-19 | C112: MAILCHIMP *MISC 12/18 PURCHASE MAILCHIMP.COM GA DEBIT CARD *7411 | D112: -11.62 | E112: =IF(Table147[[#This Row],[Bank Acct]]=LEFT(Table147[[#Headers],[BA Balance]],2),SUMIF(Table147[[#Headers],[Bank Acct]]:Table147[[#This Row],[Bank Acct]],Table147[[#This Row],[Bank Acct]],Table147[[#Headers],[Amount]]:Table147[[#This Row],[Amount]]),"") -> 6723.36 | F112: =IF(Table147[[#This Row],[Bank Acct]]=LEFT(Table147[[#Headers],[WF Balance]],2),SUMIF(Table147[[#Headers],[Bank Acct]]:Table147[[#This Row],[Bank Acct]],Table147[[#This Row],[Bank Acct]],Table147[[#Headers],[Amount]]:Table147[[#This Row],[Amount]]),"") ->  | G112: =IFERROR(INDEX(Lookup!$B$2:$C$7,MATCH(RIGHT(TRIM(Table147[[#This Row],[Description]]),4),Lookup!$B$2:$B$7,0),2),"") -> LRC | H112: AGG | I112: Mailchimp | J112: 221223 - LRC ADS_BG ER Mastercard 16-2022 | K112: - | L112: =IF(OR(LEFT(Table147[[#This Row],[Invoice]],1)="0",LEFT(Table147[[#This Row],[Invoice]],1)="1"),INDEX(Invoice_dates,MATCH(Table147[[#This Row],[Invoice]],'2023 Invoice Payments'!$L$1:$L$100,0),2),"") ->  | M112: Y:\$ AerospaceEdge\AGG Finance\AGG Credit Card Receipts\ | N112: 221218 - AGG - Mailchimp Essentials MC17295205.pdf | O112: =IF(RIGHT(Table147[[#This Row],[Charge Receipt]],3)<>"pdf","",IF(FileExists(Table147[[#This Row],[Column1]]&Table147[[#This Row],[Charge Receipt]]),FileExists(Table147[[#This Row],[Column1]]&Table147[[#This Row],[Charge Receipt]]),FileExists("Y:\$ AerospaceEdge\AGG Finance\AGG Distribution Documents\"&Table147[[#This Row],[Charge Receipt]]))) -> TRUE
A113: BA | B113: 2022-12-20 | C113: PEREGRINE AVIONI DES:QUICKBOOKS ID:375020979 INDN:AVIAGLOBAL GROUP, LLC CO ID:1722616653 PPD | D113: 7063.61 | E113: =IF(Table147[[#This Row],[Bank Acct]]=LEFT(Table147[[#Headers],[BA Balance]],2),SUMIF(Table147[[#Headers],[Bank Acct]]:Table147[[#This Row],[Bank Acct]],Table147[[#This Row],[Bank Acct]],Table147[[#Headers],[Amount]]:Table147[[#This Row],[Amount]]),"") -> 13786.97 | F113: =IF(Table147[[#This Row],[Bank Acct]]=LEFT(Table147[[#Headers],[WF Balance]],2),SUMIF(Table147[[#Headers],[Bank Acct]]:Table147[[#This Row],[Bank Acct]],Table147[[#This Row],[Bank Acct]],Table147[[#Headers],[Amount]]:Table147[[#This Row],[Amount]]),"") ->  | G113: =IFERROR(INDEX(Lookup!$B$2:$C$7,MATCH(RIGHT(TRIM(Table147[[#This Row],[Description]]),4),Lookup!$B$2:$B$7,0),2),"") ->  | H113: Peregrine | L113: =IF(OR(LEFT(Table147[[#This Row],[Invoice]],1)="0",LEFT(Table147[[#This Row],[Invoice]],1)="1"),INDEX(Invoice_dates,MATCH(Table147[[#This Row],[Invoice]],'2023 Invoice Payments'!$L$1:$L$100,0),2),"") ->  | M113: Y:\$ AerospaceEdge\AGG Finance\AGG Credit Card Receipts\ | O113: =IF(RIGHT(Table147[[#This Row],[Charge Receipt]],3)<>"pdf","",IF(FileExists(Table147[[#This Row],[Column1]]&Table147[[#This Row],[Charge Receipt]]),FileExists(Table147[[#This Row],[Column1]]&Table147[[#This Row],[Charge Receipt]]),FileExists("Y:\$ AerospaceEdge\AGG Finance\AGG Distribution Documents\"&Table147[[#This Row],[Charge Receipt]]))) -> 
A114: BA | B114: 2022-12-20 | C114: MailChimp 12/20 PURCHASE Atlanta GA DEBIT CARD *7411 | D114: -59 | E114: =IF(Table147[[#This Row],[Bank Acct]]=LEFT(Table147[[#Headers],[BA Balance]],2),SUMIF(Table147[[#Headers],[Bank Acct]]:Table147[[#This Row],[Bank Acct]],Table147[[#This Row],[Bank Acct]],Table147[[#Headers],[Amount]]:Table147[[#This Row],[Amount]]),"") -> 13727.97 | F114: =IF(Table147[[#This Row],[Bank Acct]]=LEFT(Table147[[#Headers],[WF Balance]],2),SUMIF(Table147[[#Headers],[Bank Acct]]:Table147[[#This Row],[Bank Acct]],Table147[[#This Row],[Bank Acct]],Table147[[#Headers],[Amount]]:Table147[[#This Row],[Amount]]),"") ->  | G114: =IFERROR(INDEX(Lookup!$B$2:$C$7,MATCH(RIGHT(TRIM(Table147[[#This Row],[Description]]),4),Lookup!$B$2:$B$7,0),2),"") -> LRC | H114: Peregrine | I114: Mailchimp | J114: 221223 - LRC ADS_BG ER Peregrine Billable 17-2022 | K114: 004-23 | L114: =IF(OR(LEFT(Table147[[#This Row],[Invoice]],1)="0",LEFT(Table147[[#This Row],[Invoice]],1)="1"),INDEX(Invoice_dates,MATCH(Table147[[#This Row],[Invoice]],'2023 Invoice Payments'!$L$1:$L$100,0),2),"") -> 2023-03-22 | M114: Y:\$ AerospaceEdge\AGG Finance\AGG Credit Card Receipts\ | N114: 221220 - Peregrine - Mailchimp Essentials MC17309841.pdf | O114: =IF(RIGHT(Table147[[#This Row],[Charge Receipt]],3)<>"pdf","",IF(FileExists(Table147[[#This Row],[Column1]]&Table147[[#This Row],[Charge Receipt]]),FileExists(Table147[[#This Row],[Column1]]&Table147[[#This Row],[Charge Receipt]]),FileExists("Y:\$ AerospaceEdge\AGG Finance\AGG Distribution Documents\"&Table147[[#This Row],[Charge Receipt]]))) -> TRUE
A115: BA | B115: 2022-12-22 | C115: TRANSFER AVIAGLOBAL GROUP, LL:ADS-B Global LLC Confirmation# 0273896038 | D115: -3300 | E115: =IF(Table147[[#This Row],[Bank Acct]]=LEFT(Table147[[#Headers],[BA Balance]],2),SUMIF(Table147[[#Headers],[Bank Acct]]:Table147[[#This Row],[Bank Acct]],Table147[[#This Row],[Bank Acct]],Table147[[#Headers],[Amount]]:Table147[[#This Row],[Amount]]),"") -> 10427.97 | F115: =IF(Table147[[#This Row],[Bank Acct]]=LEFT(Table147[[#Headers],[WF Balance]],2),SUMIF(Table147[[#Headers],[Bank Acct]]:Table147[[#This Row],[Bank Acct]],Table147[[#This Row],[Bank Acct]],Table147[[#Headers],[Amount]]:Table147[[#This Row],[Amount]]),"") ->  | G115: =IFERROR(INDEX(Lookup!$B$2:$C$7,MATCH(RIGHT(TRIM(Table147[[#This Row],[Description]]),4),Lookup!$B$2:$B$7,0),2),"") ->  | I115: Distibution | L115: =IF(OR(LEFT(Table147[[#This Row],[Invoice]],1)="0",LEFT(Table147[[#This Row],[Invoice]],1)="1"),INDEX(Invoice_dates,MATCH(Table147[[#This Row],[Invoice]],'2023 Invoice Payments'!$L$1:$L$100,0),2),"") ->  | M115: Y:\$ AerospaceEdge\AGG Finance\AGG Credit Card Receipts\ | O115: =IF(RIGHT(Table147[[#This Row],[Charge Receipt]],3)<>"pdf","",IF(FileExists(Table147[[#This Row],[Column1]]&Table147[[#This Row],[Charge Receipt]]),FileExists(Table147[[#This Row],[Column1]]&Table147[[#This Row],[Charge Receipt]]),FileExists("Y:\$ AerospaceEdge\AGG Finance\AGG Distribution Documents\"&Table147[[#This Row],[Charge Receipt]]))) -> 
A116: BA | B116: 2022-12-22 | C116: TRANSFER AVIAGLOBAL GROUP, LL:Forrest Colliver Confirmation# 0273906671 | D116: -3300 | E116: =IF(Table147[[#This Row],[Bank Acct]]=LEFT(Table147[[#Headers],[BA Balance]],2),SUMIF(Table147[[#Headers],[Bank Acct]]:Table147[[#This Row],[Bank Acct]],Table147[[#This Row],[Bank Acct]],Table147[[#Headers],[Amount]]:Table147[[#This Row],[Amount]]),"") -> 7127.97 | F116: =IF(Table147[[#This Row],[Bank Acct]]=LEFT(Table147[[#Headers],[WF Balance]],2),SUMIF(Table147[[#Headers],[Bank Acct]]:Table147[[#This Row],[Bank Acct]],Table147[[#This Row],[Bank Acct]],Table147[[#Headers],[Amount]]:Table147[[#This Row],[Amount]]),"") ->  | G116: =IFERROR(INDEX(Lookup!$B$2:$C$7,MATCH(RIGHT(TRIM(Table147[[#This Row],[Description]]),4),Lookup!$B$2:$B$7,0),2),"") ->  | I116: Distibution | L116: =IF(OR(LEFT(Table147[[#This Row],[Invoice]],1)="0",LEFT(Table147[[#This Row],[Invoice]],1)="1"),INDEX(Invoice_dates,MATCH(Table147[[#This Row],[Invoice]],'2023 Invoice Payments'!$L$1:$L$100,0),2),"") ->  | M116: Y:\$ AerospaceEdge\AGG Finance\AGG Credit Card Receipts\ | O116: =IF(RIGHT(Table147[[#This Row],[Charge Receipt]],3)<>"pdf","",IF(FileExists(Table147[[#This Row],[Column1]]&Table147[[#This Row],[Charge Receipt]]),FileExists(Table147[[#This Row],[Column1]]&Table147[[#This Row],[Charge Receipt]]),FileExists("Y:\$ AerospaceEdge\AGG Finance\AGG Distribution Documents\"&Table147[[#This Row],[Charge Receipt]]))) -> 
A117: BA | B117: 2022-12-22 | C117: Online Banking Transfer Conf# fr8bmzdeg; AERO BUSINESS DEVELOPEMENT LLC | D117: -3300 | E117: =IF(Table147[[#This Row],[Bank Acct]]=LEFT(Table147[[#Headers],[BA Balance]],2),SUMIF(Table147[[#Headers],[Bank Acct]]:Table147[[#This Row],[Bank Acct]],Table147[[#This Row],[Bank Acct]],Table147[[#Headers],[Amount]]:Table147[[#This Row],[Amount]]),"") -> 3827.97 | F117: =IF(Table147[[#This Row],[Bank Acct]]=LEFT(Table147[[#Headers],[WF Balance]],2),SUMIF(Table147[[#Headers],[Bank Acct]]:Table147[[#This Row],[Bank Acct]],Table147[[#This Row],[Bank Acct]],Table147[[#Headers],[Amount]]:Table147[[#This Row],[Amount]]),"") ->  | G117: =IFERROR(INDEX(Lookup!$B$2:$C$7,MATCH(RIGHT(TRIM(Table147[[#This Row],[Description]]),4),Lookup!$B$2:$B$7,0),2),"") ->  | I117: Distibution | L117: =IF(OR(LEFT(Table147[[#This Row],[Invoice]],1)="0",LEFT(Table147[[#This Row],[Invoice]],1)="1"),INDEX(Invoice_dates,MATCH(Table147[[#This Row],[Invoice]],'2023 Invoice Payments'!$L$1:$L$100,0),2),"") ->  | M117: Y:\$ AerospaceEdge\AGG Finance\AGG Credit Card Receipts\ | O117: =IF(RIGHT(Table147[[#This Row],[Charge Receipt]],3)<>"pdf","",IF(FileExists(Table147[[#This Row],[Column1]]&Table147[[#This Row],[Charge Receipt]]),FileExists(Table147[[#This Row],[Column1]]&Table147[[#This Row],[Charge Receipt]]),FileExists("Y:\$ AerospaceEdge\AGG Finance\AGG Distribution Documents\"&Table147[[#This Row],[Charge Receipt]]))) -> 
A118: BA | B118: 2022-12-23 | C118: TRANSFER AVIAGLOBAL GROUP, LL:Forrest Colliver Confirmation# 0281150631 | D118: -1549.3 | E118: =IF(Table147[[#This Row],[Bank Acct]]=LEFT(Table147[[#Headers],[BA Balance]],2),SUMIF(Table147[[#Headers],[Bank Acct]]:Table147[[#This Row],[Bank Acct]],Table147[[#This Row],[Bank Acct]],Table147[[#Headers],[Amount]]:Table147[[#This Row],[Amount]]),"") -> 2278.67 | F118: =IF(Table147[[#This Row],[Bank Acct]]=LEFT(Table147[[#Headers],[WF Balance]],2),SUMIF(Table147[[#Headers],[Bank Acct]]:Table147[[#This Row],[Bank Acct]],Table147[[#This Row],[Bank Acct]],Table147[[#Headers],[Amount]]:Table147[[#This Row],[Amount]]),"") ->  | G118: =IFERROR(INDEX(Lookup!$B$2:$C$7,MATCH(RIGHT(TRIM(Table147[[#This Row],[Description]]),4),Lookup!$B$2:$B$7,0),2),"") ->  | I118: Distibution | L118: =IF(OR(LEFT(Table147[[#This Row],[Invoice]],1)="0",LEFT(Table147[[#This Row],[Invoice]],1)="1"),INDEX(Invoice_dates,MATCH(Table147[[#This Row],[Invoice]],'2023 Invoice Payments'!$L$1:$L$100,0),2),"") ->  | M118: Y:\$ AerospaceEdge\AGG Finance\AGG Credit Card Receipts\ | O118: =IF(RIGHT(Table147[[#This Row],[Charge Receipt]],3)<>"pdf","",IF(FileExists(Table147[[#This Row],[Column1]]&Table147[[#This Row],[Charge Receipt]]),FileExists(Table147[[#This Row],[Column1]]&Table147[[#This Row],[Charge Receipt]]),FileExists("Y:\$ AerospaceEdge\AGG Finance\AGG Distribution Documents\"&Table147[[#This Row],[Charge Receipt]]))) -> 
A119: BA | B119: 2022-12-23 | C119: TRANSFER AVIAGLOBAL GROUP, LL:ADS-B Global LLC Confirmation# 1581367783 | D119: -70.62 | E119: =IF(Table147[[#This Row],[Bank Acct]]=LEFT(Table147[[#Headers],[BA Balance]],2),SUMIF(Table147[[#Headers],[Bank Acct]]:Table147[[#This Row],[Bank Acct]],Table147[[#This Row],[Bank Acct]],Table147[[#Headers],[Amount]]:Table147[[#This Row],[Amount]]),"") -> 2208.05 | F119: =IF(Table147[[#This Row],[Bank Acct]]=LEFT(Table147[[#Headers],[WF Balance]],2),SUMIF(Table147[[#Headers],[Bank Acct]]:Table147[[#This Row],[Bank Acct]],Table147[[#This Row],[Bank Acct]],Table147[[#Headers],[Amount]]:Table147[[#This Row],[Amount]]),"") ->  | G119: =IFERROR(INDEX(Lookup!$B$2:$C$7,MATCH(RIGHT(TRIM(Table147[[#This Row],[Description]]),4),Lookup!$B$2:$B$7,0),2),"") ->  | L119: =IF(OR(LEFT(Table147[[#This Row],[Invoice]],1)="0",LEFT(Table147[[#This Row],[Invoice]],1)="1"),INDEX(Invoice_dates,MATCH(Table147[[#This Row],[Invoice]],'2023 Invoice Payments'!$L$1:$L$100,0),2),"") ->  | M119: Y:\$ AerospaceEdge\AGG Finance\AGG Credit Card Receipts\ | O119: =IF(RIGHT(Table147[[#This Row],[Charge Receipt]],3)<>"pdf","",IF(FileExists(Table147[[#This Row],[Column1]]&Table147[[#This Row],[Charge Receipt]]),FileExists(Table147[[#This Row],[Column1]]&Table147[[#This Row],[Charge Receipt]]),FileExists("Y:\$ AerospaceEdge\AGG Finance\AGG Distribution Documents\"&Table147[[#This Row],[Charge Receipt]]))) -> 
A120: BA | B120: 2022-12-23 | C120: External transfer fee - 3 Day - 12/22/2022 Confirmation: 418383038 | D120: -1 | E120: =IF(Table147[[#This Row],[Bank Acct]]=LEFT(Table147[[#Headers],[BA Balance]],2),SUMIF(Table147[[#Headers],[Bank Acct]]:Table147[[#This Row],[Bank Acct]],Table147[[#This Row],[Bank Acct]],Table147[[#Headers],[Amount]]:Table147[[#This Row],[Amount]]),"") -> 2207.05 | F120: =IF(Table147[[#This Row],[Bank Acct]]=LEFT(Table147[[#Headers],[WF Balance]],2),SUMIF(Table147[[#Headers],[Bank Acct]]:Table147[[#This Row],[Bank Acct]],Table147[[#This Row],[Bank Acct]],Table147[[#Headers],[Amount]]:Table147[[#This Row],[Amount]]),"") ->  | G120: =IFERROR(INDEX(Lookup!$B$2:$C$7,MATCH(RIGHT(TRIM(Table147[[#This Row],[Description]]),4),Lookup!$B$2:$B$7,0),2),"") ->  | H120: AGG | I120: Bank Charge | L120: =IF(OR(LEFT(Table147[[#This Row],[Invoice]],1)="0",LEFT(Table147[[#This Row],[Invoice]],1)="1"),INDEX(Invoice_dates,MATCH(Table147[[#This Row],[Invoice]],'2023 Invoice Payments'!$L$1:$L$100,0),2),"") ->  | M120: Y:\$ AerospaceEdge\AGG Finance\AGG Credit Card Receipts\ | O120: =IF(RIGHT(Table147[[#This Row],[Charge Receipt]],3)<>"pdf","",IF(FileExists(Table147[[#This Row],[Column1]]&Table147[[#This Row],[Charge Receipt]]),FileExists(Table147[[#This Row],[Column1]]&Table147[[#This Row],[Charge Receipt]]),FileExists("Y:\$ AerospaceEdge\AGG Finance\AGG Distribution Documents\"&Table147[[#This Row],[Charge Receipt]]))) -> 
A121: BA | B121: 2022-12-23 | C121: External transfer fee - 3 Day - 12/22/2022 Confirmation: 418383332 | D121: -1 | E121: =IF(Table147[[#This Row],[Bank Acct]]=LEFT(Table147[[#Headers],[BA Balance]],2),SUMIF(Table147[[#Headers],[Bank Acct]]:Table147[[#This Row],[Bank Acct]],Table147[[#This Row],[Bank Acct]],Table147[[#Headers],[Amount]]:Table147[[#This Row],[Amount]]),"") -> 2206.05 | F121: =IF(Table147[[#This Row],[Bank Acct]]=LEFT(Table147[[#Headers],[WF Balance]],2),SUMIF(Table147[[#Headers],[Bank Acct]]:Table147[[#This Row],[Bank Acct]],Table147[[#This Row],[Bank Acct]],Table147[[#Headers],[Amount]]:Table147[[#This Row],[Amount]]),"") ->  | G121: =IFERROR(INDEX(Lookup!$B$2:$C$7,MATCH(RIGHT(TRIM(Table147[[#This Row],[Description]]),4),Lookup!$B$2:$B$7,0),2),"") ->  | H121: AGG | I121: Bank Charge | L121: =IF(OR(LEFT(Table147[[#This Row],[Invoice]],1)="0",LEFT(Table147[[#This Row],[Invoice]],1)="1"),INDEX(Invoice_dates,MATCH(Table147[[#This Row],[Invoice]],'2023 Invoice Payments'!$L$1:$L$100,0),2),"") ->  | M121: Y:\$ AerospaceEdge\AGG Finance\AGG Credit Card Receipts\ | O121: =IF(RIGHT(Table147[[#This Row],[Charge Receipt]],3)<>"pdf","",IF(FileExists(Table147[[#This Row],[Column1]]&Table147[[#This Row],[Charge Receipt]]),FileExists(Table147[[#This Row],[Column1]]&Table147[[#This Row],[Charge Receipt]]),FileExists("Y:\$ AerospaceEdge\AGG Finance\AGG Distribution Documents\"&Table147[[#This Row],[Charge Receipt]]))) -> 
A122: BA | B122: 2022-12-27 | C122: External transfer fee - Next Day - 12/23/2022 Confirmation: 418570494 | D122: -5 | E122: =IF(Table147[[#This Row],[Bank Acct]]=LEFT(Table147[[#Headers],[BA Balance]],2),SUMIF(Table147[[#Headers],[Bank Acct]]:Table147[[#This Row],[Bank Acct]],Table147[[#This Row],[Bank Acct]],Table147[[#Headers],[Amount]]:Table147[[#This Row],[Amount]]),"") -> 2201.05 | F122: =IF(Table147[[#This Row],[Bank Acct]]=LEFT(Table147[[#Headers],[WF Balance]],2),SUMIF(Table147[[#Headers],[Bank Acct]]:Table147[[#This Row],[Bank Acct]],Table147[[#This Row],[Bank Acct]],Table147[[#Headers],[Amount]]:Table147[[#This Row],[Amount]]),"") ->  | G122: =IFERROR(INDEX(Lookup!$B$2:$C$7,MATCH(RIGHT(TRIM(Table147[[#This Row],[Description]]),4),Lookup!$B$2:$B$7,0),2),"") ->  | H122: AGG | I122: Bank Charge | L122: =IF(OR(LEFT(Table147[[#This Row],[Invoice]],1)="0",LEFT(Table147[[#This Row],[Invoice]],1)="1"),INDEX(Invoice_dates,MATCH(Table147[[#This Row],[Invoice]],'2023 Invoice Payments'!$L$1:$L$100,0),2),"") ->  | M122: Y:\$ AerospaceEdge\AGG Finance\AGG Credit Card Receipts\ | O122: =IF(RIGHT(Table147[[#This Row],[Charge Receipt]],3)<>"pdf","",IF(FileExists(Table147[[#This Row],[Column1]]&Table147[[#This Row],[Charge Receipt]]),FileExists(Table147[[#This Row],[Column1]]&Table147[[#This Row],[Charge Receipt]]),FileExists("Y:\$ AerospaceEdge\AGG Finance\AGG Distribution Documents\"&Table147[[#This Row],[Charge Receipt]]))) -> 
A123: BA | B123: 2022-12-27 | C123: External transfer fee - 3 Day - 12/23/2022 Confirmation: 418577030 | D123: -1 | E123: =IF(Table147[[#This Row],[Bank Acct]]=LEFT(Table147[[#Headers],[BA Balance]],2),SUMIF(Table147[[#Headers],[Bank Acct]]:Table147[[#This Row],[Bank Acct]],Table147[[#This Row],[Bank Acct]],Table147[[#Headers],[Amount]]:Table147[[#This Row],[Amount]]),"") -> 2200.05 | F123: =IF(Table147[[#This Row],[Bank Acct]]=LEFT(Table147[[#Headers],[WF Balance]],2),SUMIF(Table147[[#Headers],[Bank Acct]]:Table147[[#This Row],[Bank Acct]],Table147[[#This Row],[Bank Acct]],Table147[[#Headers],[Amount]]:Table147[[#This Row],[Amount]]),"") ->  | G123: =IFERROR(INDEX(Lookup!$B$2:$C$7,MATCH(RIGHT(TRIM(Table147[[#This Row],[Description]]),4),Lookup!$B$2:$B$7,0),2),"") ->  | H123: AGG | I123: Bank Charge | L123: =IF(OR(LEFT(Table147[[#This Row],[Invoice]],1)="0",LEFT(Table147[[#This Row],[Invoice]],1)="1"),INDEX(Invoice_dates,MATCH(Table147[[#This Row],[Invoice]],'2023 Invoice Payments'!$L$1:$L$100,0),2),"") ->  | M123: Y:\$ AerospaceEdge\AGG Finance\AGG Credit Card Receipts\ | O123: =IF(RIGHT(Table147[[#This Row],[Charge Receipt]],3)<>"pdf","",IF(FileExists(Table147[[#This Row],[Column1]]&Table147[[#This Row],[Charge Receipt]]),FileExists(Table147[[#This Row],[Column1]]&Table147[[#This Row],[Charge Receipt]]),FileExists("Y:\$ AerospaceEdge\AGG Finance\AGG Distribution Documents\"&Table147[[#This Row],[Charge Receipt]]))) -> 
A124: BA | B124: 2023-01-03 | C124: OWL FOR THUNDERBI 01/02 PURCHASE WIESBADEN DEBIT CARD *7429 | D124: -10.7 | E124: =IF(Table147[[#This Row],[Bank Acct]]=LEFT(Table147[[#Headers],[BA Balance]],2),SUMIF(Table147[[#Headers],[Bank Acct]]:Table147[[#This Row],[Bank Acct]],Table147[[#This Row],[Bank Acct]],Table147[[#Headers],[Amount]]:Table147[[#This Row],[Amount]]),"") -> 2189.35 | F124: =IF(Table147[[#This Row],[Bank Acct]]=LEFT(Table147[[#Headers],[WF Balance]],2),SUMIF(Table147[[#Headers],[Bank Acct]]:Table147[[#This Row],[Bank Acct]],Table147[[#This Row],[Bank Acct]],Table147[[#Headers],[Amount]]:Table147[[#This Row],[Amount]]),"") ->  | G124: =IFERROR(INDEX(Lookup!$B$2:$C$7,MATCH(RIGHT(TRIM(Table147[[#This Row],[Description]]),4),Lookup!$B$2:$B$7,0),2),"") -> FWC | H124: AE | I124: Web Tools | L124: =IF(OR(LEFT(Table147[[#This Row],[Invoice]],1)="0",LEFT(Table147[[#This Row],[Invoice]],1)="1"),INDEX(Invoice_dates,MATCH(Table147[[#This Row],[Invoice]],'2023 Invoice Payments'!$L$1:$L$100,0),2),"") ->  | M124: Y:\$ AerospaceEdge\AGG Finance\AGG Credit Card Receipts\ | N124: 220102 - OWL invoice 3-47107.pdf | O124: =IF(RIGHT(Table147[[#This Row],[Charge Receipt]],3)<>"pdf","",IF(FileExists(Table147[[#This Row],[Column1]]&Table147[[#This Row],[Charge Receipt]]),FileExists(Table147[[#This Row],[Column1]]&Table147[[#This Row],[Charge Receipt]]),FileExists("Y:\$ AerospaceEdge\AGG Finance\AGG Distribution Documents\"&Table147[[#This Row],[Charge Receipt]]))) -> TRUE
A125: BA | B125: 2023-01-03 | C125: Monthly Fee Business Adv Relationship | D125: -29.95 | E125: =IF(Table147[[#This Row],[Bank Acct]]=LEFT(Table147[[#Headers],[BA Balance]],2),SUMIF(Table147[[#Headers],[Bank Acct]]:Table147[[#This Row],[Bank Acct]],Table147[[#This Row],[Bank Acct]],Table147[[#Headers],[Amount]]:Table147[[#This Row],[Amount]]),"") -> 2159.4 | F125: =IF(Table147[[#This Row],[Bank Acct]]=LEFT(Table147[[#Headers],[WF Balance]],2),SUMIF(Table147[[#Headers],[Bank Acct]]:Table147[[#This Row],[Bank Acct]],Table147[[#This Row],[Bank Acct]],Table147[[#Headers],[Amount]]:Table147[[#This Row],[Amount]]),"") ->  | G125: =IFERROR(INDEX(Lookup!$B$2:$C$7,MATCH(RIGHT(TRIM(Table147[[#This Row],[Description]]),4),Lookup!$B$2:$B$7,0),2),"") ->  | H125: AGG | I125: Bank Charge | L125: =IF(OR(LEFT(Table147[[#This Row],[Invoice]],1)="0",LEFT(Table147[[#This Row],[Invoice]],1)="1"),INDEX(Invoice_dates,MATCH(Table147[[#This Row],[Invoice]],'2023 Invoice Payments'!$L$1:$L$100,0),2),"") ->  | M125: Y:\$ AerospaceEdge\AGG Finance\AGG Credit Card Receipts\ | N125: N/A | O125: =IF(RIGHT(Table147[[#This Row],[Charge Receipt]],3)<>"pdf","",IF(FileExists(Table147[[#This Row],[Column1]]&Table147[[#This Row],[Charge Receipt]]),FileExists(Table147[[#This Row],[Column1]]&Table147[[#This Row],[Charge Receipt]]),FileExists("Y:\$ AerospaceEdge\AGG Finance\AGG Distribution Documents\"&Table147[[#This Row],[Charge Receipt]]))) -> 
A126: BA | B126: 2023-01-03 | C126: INTERNATIONAL TRANSACTION FEE 01/02 OWL FOR THUNDERBI WIESBADEN DEBIT CARD *7429 | D126: -0.32 | E126: =IF(Table147[[#This Row],[Bank Acct]]=LEFT(Table147[[#Headers],[BA Balance]],2),SUMIF(Table147[[#Headers],[Bank Acct]]:Table147[[#This Row],[Bank Acct]],Table147[[#This Row],[Bank Acct]],Table147[[#Headers],[Amount]]:Table147[[#This Row],[Amount]]),"") -> 2159.08 | F126: =IF(Table147[[#This Row],[Bank Acct]]=LEFT(Table147[[#Headers],[WF Balance]],2),SUMIF(Table147[[#Headers],[Bank Acct]]:Table147[[#This Row],[Bank Acct]],Table147[[#This Row],[Bank Acct]],Table147[[#Headers],[Amount]]:Table147[[#This Row],[Amount]]),"") ->  | G126: =IFERROR(INDEX(Lookup!$B$2:$C$7,MATCH(RIGHT(TRIM(Table147[[#This Row],[Description]]),4),Lookup!$B$2:$B$7,0),2),"") -> FWC | H126: AE | I126: Bank Charge | L126: =IF(OR(LEFT(Table147[[#This Row],[Invoice]],1)="0",LEFT(Table147[[#This Row],[Invoice]],1)="1"),INDEX(Invoice_dates,MATCH(Table147[[#This Row],[Invoice]],'2023 Invoice Payments'!$L$1:$L$100,0),2),"") ->  | M126: Y:\$ AerospaceEdge\AGG Finance\AGG Credit Card Receipts\ | N126: 230103 - INTERNATIONAL TRANSACTION FEE OWL FOR THUNDERBI.pdf | O126: =IF(RIGHT(Table147[[#This Row],[Charge Receipt]],3)<>"pdf","",IF(FileExists(Table147[[#This Row],[Column1]]&Table147[[#This Row],[Charge Receipt]]),FileExists(Table147[[#This Row],[Column1]]&Table147[[#This Row],[Charge Receipt]]),FileExists("Y:\$ AerospaceEdge\AGG Finance\AGG Distribution Documents\"&Table147[[#This Row],[Charge Receipt]]))) -> TRUE
A127: BA | B127: 2023-01-05 | C127: PEREGRINE AVIONI DES:QUICKBOOKS ID:375020979 INDN:AVIAGLOBAL GROUP, LLC CO ID:1722616653 PPD | D127: 441.97 | E127: =IF(Table147[[#This Row],[Bank Acct]]=LEFT(Table147[[#Headers],[BA Balance]],2),SUMIF(Table147[[#Headers],[Bank Acct]]:Table147[[#This Row],[Bank Acct]],Table147[[#This Row],[Bank Acct]],Table147[[#Headers],[Amount]]:Table147[[#This Row],[Amount]]),"") -> 2601.05 | F127: =IF(Table147[[#This Row],[Bank Acct]]=LEFT(Table147[[#Headers],[WF Balance]],2),SUMIF(Table147[[#Headers],[Bank Acct]]:Table147[[#This Row],[Bank Acct]],Table147[[#This Row],[Bank Acct]],Table147[[#Headers],[Amount]]:Table147[[#This Row],[Amount]]),"") ->  | G127: =IFERROR(INDEX(Lookup!$B$2:$C$7,MATCH(RIGHT(TRIM(Table147[[#This Row],[Description]]),4),Lookup!$B$2:$B$7,0),2),"") ->  | H127: Peregrine | I127: Pmt | K127: =INDEX('2023 Invoice Payments'!B:D,MATCH(Table147[[#This Row],[Amount]],'2023 Invoice Payments'!D:D,0),1) -> 020-22 | L127: =IF(OR(LEFT(Table147[[#This Row],[Invoice]],1)="0",LEFT(Table147[[#This Row],[Invoice]],1)="1"),INDEX(Invoice_dates,MATCH(Table147[[#This Row],[Invoice]],'2023 Invoice Payments'!$L$1:$L$100,0),2),"") -> 2023-01-05 | M127: Y:\$ AerospaceEdge\AGG Finance\AGG Credit Card Receipts\ | O127: =IF(RIGHT(Table147[[#This Row],[Charge Receipt]],3)<>"pdf","",IF(FileExists(Table147[[#This Row],[Column1]]&Table147[[#This Row],[Charge Receipt]]),FileExists(Table147[[#This Row],[Column1]]&Table147[[#This Row],[Charge Receipt]]),FileExists("Y:\$ AerospaceEdge\AGG Finance\AGG Distribution Documents\"&Table147[[#This Row],[Charge Receipt]]))) -> 
A128: BA | B128: 2023-01-17 | C128: STAMPS.COM 01/14 PURCHASE 855-608-2677 TX DEBIT CARD *7411 | D128: -17.99 | E128: =IF(Table147[[#This Row],[Bank Acct]]=LEFT(Table147[[#Headers],[BA Balance]],2),SUMIF(Table147[[#Headers],[Bank Acct]]:Table147[[#This Row],[Bank Acct]],Table147[[#This Row],[Bank Acct]],Table147[[#Headers],[Amount]]:Table147[[#This Row],[Amount]]),"") -> 2583.06 | F128: =IF(Table147[[#This Row],[Bank Acct]]=LEFT(Table147[[#Headers],[WF Balance]],2),SUMIF(Table147[[#Headers],[Bank Acct]]:Table147[[#This Row],[Bank Acct]],Table147[[#This Row],[Bank Acct]],Table147[[#Headers],[Amount]]:Table147[[#This Row],[Amount]]),"") ->  | G128: =IFERROR(INDEX(Lookup!$B$2:$C$7,MATCH(RIGHT(TRIM(Table147[[#This Row],[Description]]),4),Lookup!$B$2:$B$7,0),2),"") -> LRC | H128: AE | I128: Stamps | L128: =IF(OR(LEFT(Table147[[#This Row],[Invoice]],1)="0",LEFT(Table147[[#This Row],[Invoice]],1)="1"),INDEX(Invoice_dates,MATCH(Table147[[#This Row],[Invoice]],'2023 Invoice Payments'!$L$1:$L$100,0),2),"") ->  | M128: Y:\$ AerospaceEdge\AGG Finance\AGG Credit Card Receipts\ | N128: None available | O128: =IF(RIGHT(Table147[[#This Row],[Charge Receipt]],3)<>"pdf","",IF(FileExists(Table147[[#This Row],[Column1]]&Table147[[#This Row],[Charge Receipt]]),FileExists(Table147[[#This Row],[Column1]]&Table147[[#This Row],[Charge Receipt]]),FileExists("Y:\$ AerospaceEdge\AGG Finance\AGG Distribution Documents\"&Table147[[#This Row],[Charge Receipt]]))) -> 
A129: BA | B129: 2023-01-18 | C129: MICHAEL L STUCK C 01/17 PURCHASE SCOTTSDALE AZ DEBIT CARD *0975 | D129: -625 | E129: =IF(Table147[[#This Row],[Bank Acct]]=LEFT(Table147[[#Headers],[BA Balance]],2),SUMIF(Table147[[#Headers],[Bank Acct]]:Table147[[#This Row],[Bank Acct]],Table147[[#This Row],[Bank Acct]],Table147[[#Headers],[Amount]]:Table147[[#This Row],[Amount]]),"") -> 1958.06 | F129: =IF(Table147[[#This Row],[Bank Acct]]=LEFT(Table147[[#Headers],[WF Balance]],2),SUMIF(Table147[[#Headers],[Bank Acct]]:Table147[[#This Row],[Bank Acct]],Table147[[#This Row],[Bank Acct]],Table147[[#Headers],[Amount]]:Table147[[#This Row],[Amount]]),"") ->  | G129: =IFERROR(INDEX(Lookup!$B$2:$C$7,MATCH(RIGHT(TRIM(Table147[[#This Row],[Description]]),4),Lookup!$B$2:$B$7,0),2),"") -> HEA | H129: AGG | I129: Taxes | L129: =IF(OR(LEFT(Table147[[#This Row],[Invoice]],1)="0",LEFT(Table147[[#This Row],[Invoice]],1)="1"),INDEX(Invoice_dates,MATCH(Table147[[#This Row],[Invoice]],'2023 Invoice Payments'!$L$1:$L$100,0),2),"") ->  | M129: Y:\$ AerospaceEdge\AGG Finance\AGG Credit Card Receipts\ | N129: MStuck Tax Prep Invoice & Receipt TY 2023.pdf | O129: =IF(RIGHT(Table147[[#This Row],[Charge Receipt]],3)<>"pdf","",IF(FileExists(Table147[[#This Row],[Column1]]&Table147[[#This Row],[Charge Receipt]]),FileExists(Table147[[#This Row],[Column1]]&Table147[[#This Row],[Charge Receipt]]),FileExists("Y:\$ AerospaceEdge\AGG Finance\AGG Distribution Documents\"&Table147[[#This Row],[Charge Receipt]]))) -> TRUE
A130: BA | B130: 2023-01-19 | C130: MAILCHIMP *MISC 01/18 PURCHASE MAILCHIMP.COM GA DEBIT CARD *7411 | D130: -13.73 | E130: =IF(Table147[[#This Row],[Bank Acct]]=LEFT(Table147[[#Headers],[BA Balance]],2),SUMIF(Table147[[#Headers],[Bank Acct]]:Table147[[#This Row],[Bank Acct]],Table147[[#This Row],[Bank Acct]],Table147[[#Headers],[Amount]]:Table147[[#This Row],[Amount]]),"") -> 1944.33 | F130: =IF(Table147[[#This Row],[Bank Acct]]=LEFT(Table147[[#Headers],[WF Balance]],2),SUMIF(Table147[[#Headers],[Bank Acct]]:Table147[[#This Row],[Bank Acct]],Table147[[#This Row],[Bank Acct]],Table147[[#Headers],[Amount]]:Table147[[#This Row],[Amount]]),"") ->  | G130: =IFERROR(INDEX(Lookup!$B$2:$C$7,MATCH(RIGHT(TRIM(Table147[[#This Row],[Description]]),4),Lookup!$B$2:$B$7,0),2),"") -> LRC | H130: AE | I130: Mailchimp | L130: =IF(OR(LEFT(Table147[[#This Row],[Invoice]],1)="0",LEFT(Table147[[#This Row],[Invoice]],1)="1"),INDEX(Invoice_dates,MATCH(Table147[[#This Row],[Invoice]],'2023 Invoice Payments'!$L$1:$L$100,0),2),"") ->  | M130: Y:\$ AerospaceEdge\AGG Finance\AGG Credit Card Receipts\ | N130: 230118 - AE - Mailchimp Essentials MC17507446.pdf | O130: =IF(RIGHT(Table147[[#This Row],[Charge Receipt]],3)<>"pdf","",IF(FileExists(Table147[[#This Row],[Column1]]&Table147[[#This Row],[Charge Receipt]]),FileExists(Table147[[#This Row],[Column1]]&Table147[[#This Row],[Charge Receipt]]),FileExists("Y:\$ AerospaceEdge\AGG Finance\AGG Distribution Documents\"&Table147[[#This Row],[Charge Receipt]]))) -> TRUE
A131: BA | B131: 2023-01-20 | C131: Mailchimp 01/20 PURCHASE Atlanta GA DEBIT CARD *7411 | D131: -69 | E131: =IF(Table147[[#This Row],[Bank Acct]]=LEFT(Table147[[#Headers],[BA Balance]],2),SUMIF(Table147[[#Headers],[Bank Acct]]:Table147[[#This Row],[Bank Acct]],Table147[[#This Row],[Bank Acct]],Table147[[#Headers],[Amount]]:Table147[[#This Row],[Amount]]),"") -> 1875.33 | F131: =IF(Table147[[#This Row],[Bank Acct]]=LEFT(Table147[[#Headers],[WF Balance]],2),SUMIF(Table147[[#Headers],[Bank Acct]]:Table147[[#This Row],[Bank Acct]],Table147[[#This Row],[Bank Acct]],Table147[[#Headers],[Amount]]:Table147[[#This Row],[Amount]]),"") ->  | G131: =IFERROR(INDEX(Lookup!$B$2:$C$7,MATCH(RIGHT(TRIM(Table147[[#This Row],[Description]]),4),Lookup!$B$2:$B$7,0),2),"") -> LRC | H131: Peregrine | I131: Mailchimp | J131: 002-23 | K131: 002-23 | L131: =IF(OR(LEFT(Table147[[#This Row],[Invoice]],1)="0",LEFT(Table147[[#This Row],[Invoice]],1)="1"),INDEX(Invoice_dates,MATCH(Table147[[#This Row],[Invoice]],'2023 Invoice Payments'!$L$1:$L$100,0),2),"") -> 2023-03-08 | M131: Y:\$ AerospaceEdge\AGG Finance\AGG Credit Card Receipts\ | N131: 230120 - Peregrine - Mailchimp Essentials MC17521714.pdf | O131: =IF(RIGHT(Table147[[#This Row],[Charge Receipt]],3)<>"pdf","",IF(FileExists(Table147[[#This Row],[Column1]]&Table147[[#This Row],[Charge Receipt]]),FileExists(Table147[[#This Row],[Column1]]&Table147[[#This Row],[Charge Receipt]]),FileExists("Y:\$ AerospaceEdge\AGG Finance\AGG Distribution Documents\"&Table147[[#This Row],[Charge Receipt]]))) -> TRUE
A132: BA | B132: 2023-01-24 | C132: ELEMENTOR 01/24 PURCHASE WILMINGTON DE DEBIT CARD *7429 | D132: -49 | E132: =IF(Table147[[#This Row],[Bank Acct]]=LEFT(Table147[[#Headers],[BA Balance]],2),SUMIF(Table147[[#Headers],[Bank Acct]]:Table147[[#This Row],[Bank Acct]],Table147[[#This Row],[Bank Acct]],Table147[[#Headers],[Amount]]:Table147[[#This Row],[Amount]]),"") -> 1826.33 | F132: =IF(Table147[[#This Row],[Bank Acct]]=LEFT(Table147[[#Headers],[WF Balance]],2),SUMIF(Table147[[#Headers],[Bank Acct]]:Table147[[#This Row],[Bank Acct]],Table147[[#This Row],[Bank Acct]],Table147[[#Headers],[Amount]]:Table147[[#This Row],[Amount]]),"") ->  | G132: =IFERROR(INDEX(Lookup!$B$2:$C$7,MATCH(RIGHT(TRIM(Table147[[#This Row],[Description]]),4),Lookup!$B$2:$B$7,0),2),"") -> FWC | H132: Peregrine | I132: Web Tools | K132: 004-23 | L132: =IF(OR(LEFT(Table147[[#This Row],[Invoice]],1)="0",LEFT(Table147[[#This Row],[Invoice]],1)="1"),INDEX(Invoice_dates,MATCH(Table147[[#This Row],[Invoice]],'2023 Invoice Payments'!$L$1:$L$100,0),2),"") -> 2023-03-22 | M132: Y:\$ AerospaceEdge\AGG Finance\AGG Credit Card Receipts\ | N132: 230124 - Elementor Peregrine 12843418.pdf | O132: =IF(RIGHT(Table147[[#This Row],[Charge Receipt]],3)<>"pdf","",IF(FileExists(Table147[[#This Row],[Column1]]&Table147[[#This Row],[Charge Receipt]]),FileExists(Table147[[#This Row],[Column1]]&Table147[[#This Row],[Charge Receipt]]),FileExists("Y:\$ AerospaceEdge\AGG Finance\AGG Distribution Documents\"&Table147[[#This Row],[Charge Receipt]]))) -> TRUE
A133: BA | B133: 2023-01-25 | C133: REALLY-SIMPLE-SSL 01/24 PURCHASE GRONINGEN DEBIT CARD *7429 | D133: -23.2 | E133: =IF(Table147[[#This Row],[Bank Acct]]=LEFT(Table147[[#Headers],[BA Balance]],2),SUMIF(Table147[[#Headers],[Bank Acct]]:Table147[[#This Row],[Bank Acct]],Table147[[#This Row],[Bank Acct]],Table147[[#Headers],[Amount]]:Table147[[#This Row],[Amount]]),"") -> 1803.13 | F133: =IF(Table147[[#This Row],[Bank Acct]]=LEFT(Table147[[#Headers],[WF Balance]],2),SUMIF(Table147[[#Headers],[Bank Acct]]:Table147[[#This Row],[Bank Acct]],Table147[[#This Row],[Bank Acct]],Table147[[#Headers],[Amount]]:Table147[[#This Row],[Amount]]),"") ->  | G133: =IFERROR(INDEX(Lookup!$B$2:$C$7,MATCH(RIGHT(TRIM(Table147[[#This Row],[Description]]),4),Lookup!$B$2:$B$7,0),2),"") -> FWC | H133: Peregrine | I133: Web Tools | K133: 004-23 | L133: =IF(OR(LEFT(Table147[[#This Row],[Invoice]],1)="0",LEFT(Table147[[#This Row],[Invoice]],1)="1"),INDEX(Invoice_dates,MATCH(Table147[[#This Row],[Invoice]],'2023 Invoice Payments'!$L$1:$L$100,0),2),"") -> 2023-03-22 | M133: Y:\$ AerospaceEdge\AGG Finance\AGG Credit Card Receipts\ | N133: 230124 - Really Simple SSL Peregrine invoice 2023-1984.pdf | O133: =IF(RIGHT(Table147[[#This Row],[Charge Receipt]],3)<>"pdf","",IF(FileExists(Table147[[#This Row],[Column1]]&Table147[[#This Row],[Charge Receipt]]),FileExists(Table147[[#This Row],[Column1]]&Table147[[#This Row],[Charge Receipt]]),FileExists("Y:\$ AerospaceEdge\AGG Finance\AGG Distribution Documents\"&Table147[[#This Row],[Charge Receipt]]))) -> TRUE
A134: BA | B134: 2023-01-25 | C134: COMPLIANZ-GDPR-PR 01/25 PURCHASE GRONINGEN DEBIT CARD *7429 | D134: -45 | E134: =IF(Table147[[#This Row],[Bank Acct]]=LEFT(Table147[[#Headers],[BA Balance]],2),SUMIF(Table147[[#Headers],[Bank Acct]]:Table147[[#This Row],[Bank Acct]],Table147[[#This Row],[Bank Acct]],Table147[[#Headers],[Amount]]:Table147[[#This Row],[Amount]]),"") -> 1758.13 | F134: =IF(Table147[[#This Row],[Bank Acct]]=LEFT(Table147[[#Headers],[WF Balance]],2),SUMIF(Table147[[#Headers],[Bank Acct]]:Table147[[#This Row],[Bank Acct]],Table147[[#This Row],[Bank Acct]],Table147[[#Headers],[Amount]]:Table147[[#This Row],[Amount]]),"") ->  | G134: =IFERROR(INDEX(Lookup!$B$2:$C$7,MATCH(RIGHT(TRIM(Table147[[#This Row],[Description]]),4),Lookup!$B$2:$B$7,0),2),"") -> FWC | H134: Peregrine | I134: Web Tools | K134: 004-23 | L134: =IF(OR(LEFT(Table147[[#This Row],[Invoice]],1)="0",LEFT(Table147[[#This Row],[Invoice]],1)="1"),INDEX(Invoice_dates,MATCH(Table147[[#This Row],[Invoice]],'2023 Invoice Payments'!$L$1:$L$100,0),2),"") -> 2023-03-22 | M134: Y:\$ AerospaceEdge\AGG Finance\AGG Credit Card Receipts\ | N134: 230125 - Complianz Peregrine invoice 2023-0963.pdf | O134: =IF(RIGHT(Table147[[#This Row],[Charge Receipt]],3)<>"pdf","",IF(FileExists(Table147[[#This Row],[Column1]]&Table147[[#This Row],[Charge Receipt]]),FileExists(Table147[[#This Row],[Column1]]&Table147[[#This Row],[Charge Receipt]]),FileExists("Y:\$ AerospaceEdge\AGG Finance\AGG Distribution Documents\"&Table147[[#This Row],[Charge Receipt]]))) -> TRUE
A135: BA | B135: 2023-01-25 | C135: INTERNATIONAL TRANSACTION FEE 01/25 COMPLIANZ-GDPR-PR GRONINGEN DEBIT CARD *7429 | D135: -1.35 | E135: =IF(Table147[[#This Row],[Bank Acct]]=LEFT(Table147[[#Headers],[BA Balance]],2),SUMIF(Table147[[#Headers],[Bank Acct]]:Table147[[#This Row],[Bank Acct]],Table147[[#This Row],[Bank Acct]],Table147[[#Headers],[Amount]]:Table147[[#This Row],[Amount]]),"") -> 1756.78 | F135: =IF(Table147[[#This Row],[Bank Acct]]=LEFT(Table147[[#Headers],[WF Balance]],2),SUMIF(Table147[[#Headers],[Bank Acct]]:Table147[[#This Row],[Bank Acct]],Table147[[#This Row],[Bank Acct]],Table147[[#Headers],[Amount]]:Table147[[#This Row],[Amount]]),"") ->  | G135: =IFERROR(INDEX(Lookup!$B$2:$C$7,MATCH(RIGHT(TRIM(Table147[[#This Row],[Description]]),4),Lookup!$B$2:$B$7,0),2),"") -> FWC | H135: Peregrine | I135: Bank Charge | K135: 004-23 | L135: =IF(OR(LEFT(Table147[[#This Row],[Invoice]],1)="0",LEFT(Table147[[#This Row],[Invoice]],1)="1"),INDEX(Invoice_dates,MATCH(Table147[[#This Row],[Invoice]],'2023 Invoice Payments'!$L$1:$L$100,0),2),"") -> 2023-03-22 | M135: Y:\$ AerospaceEdge\AGG Finance\AGG Credit Card Receipts\ | N135: 230125 - INTERNATIONAL TRANSACTION FEE COMPLIANZ-GDPR-PR.pdf | O135: =IF(RIGHT(Table147[[#This Row],[Charge Receipt]],3)<>"pdf","",IF(FileExists(Table147[[#This Row],[Column1]]&Table147[[#This Row],[Charge Receipt]]),FileExists(Table147[[#This Row],[Column1]]&Table147[[#This Row],[Charge Receipt]]),FileExists("Y:\$ AerospaceEdge\AGG Finance\AGG Distribution Documents\"&Table147[[#This Row],[Charge Receipt]]))) -> TRUE
A136: BA | B136: 2023-01-25 | C136: INTERNATIONAL TRANSACTION FEE 01/24 REALLY-SIMPLE-SSL GRONINGEN DEBIT CARD *7429 | D136: -0.7 | E136: =IF(Table147[[#This Row],[Bank Acct]]=LEFT(Table147[[#Headers],[BA Balance]],2),SUMIF(Table147[[#Headers],[Bank Acct]]:Table147[[#This Row],[Bank Acct]],Table147[[#This Row],[Bank Acct]],Table147[[#Headers],[Amount]]:Table147[[#This Row],[Amount]]),"") -> 1756.08 | F136: =IF(Table147[[#This Row],[Bank Acct]]=LEFT(Table147[[#Headers],[WF Balance]],2),SUMIF(Table147[[#Headers],[Bank Acct]]:Table147[[#This Row],[Bank Acct]],Table147[[#This Row],[Bank Acct]],Table147[[#Headers],[Amount]]:Table147[[#This Row],[Amount]]),"") ->  | G136: =IFERROR(INDEX(Lookup!$B$2:$C$7,MATCH(RIGHT(TRIM(Table147[[#This Row],[Description]]),4),Lookup!$B$2:$B$7,0),2),"") -> FWC | H136: Peregrine | I136: Bank Charge | K136: 004-23 | L136: =IF(OR(LEFT(Table147[[#This Row],[Invoice]],1)="0",LEFT(Table147[[#This Row],[Invoice]],1)="1"),INDEX(Invoice_dates,MATCH(Table147[[#This Row],[Invoice]],'2023 Invoice Payments'!$L$1:$L$100,0),2),"") -> 2023-03-22 | M136: Y:\$ AerospaceEdge\AGG Finance\AGG Credit Card Receipts\ | N136: 230125 - INTERNATIONAL TRANSACTION FEE REALLY-SIMPLE-SSL.pdf | O136: =IF(RIGHT(Table147[[#This Row],[Charge Receipt]],3)<>"pdf","",IF(FileExists(Table147[[#This Row],[Column1]]&Table147[[#This Row],[Charge Receipt]]),FileExists(Table147[[#This Row],[Column1]]&Table147[[#This Row],[Charge Receipt]]),FileExists("Y:\$ AerospaceEdge\AGG Finance\AGG Distribution Documents\"&Table147[[#This Row],[Charge Receipt]]))) -> TRUE
A137: BA | B137: 2023-02-01 | C137: Monthly Fee Business Adv Relationship | D137: -29.95 | E137: =IF(Table147[[#This Row],[Bank Acct]]=LEFT(Table147[[#Headers],[BA Balance]],2),SUMIF(Table147[[#Headers],[Bank Acct]]:Table147[[#This Row],[Bank Acct]],Table147[[#This Row],[Bank Acct]],Table147[[#Headers],[Amount]]:Table147[[#This Row],[Amount]]),"") -> 1726.13 | F137: =IF(Table147[[#This Row],[Bank Acct]]=LEFT(Table147[[#Headers],[WF Balance]],2),SUMIF(Table147[[#Headers],[Bank Acct]]:Table147[[#This Row],[Bank Acct]],Table147[[#This Row],[Bank Acct]],Table147[[#Headers],[Amount]]:Table147[[#This Row],[Amount]]),"") ->  | G137: =IFERROR(INDEX(Lookup!$B$2:$C$7,MATCH(RIGHT(TRIM(Table147[[#This Row],[Description]]),4),Lookup!$B$2:$B$7,0),2),"") ->  | H137: AGG | I137: Bank Charge | L137: =IF(OR(LEFT(Table147[[#This Row],[Invoice]],1)="0",LEFT(Table147[[#This Row],[Invoice]],1)="1"),INDEX(Invoice_dates,MATCH(Table147[[#This Row],[Invoice]],'2023 Invoice Payments'!$L$1:$L$100,0),2),"") ->  | M137: Y:\$ AerospaceEdge\AGG Finance\AGG Credit Card Receipts\ | N137: N/A | O137: =IF(RIGHT(Table147[[#This Row],[Charge Receipt]],3)<>"pdf","",IF(FileExists(Table147[[#This Row],[Column1]]&Table147[[#This Row],[Charge Receipt]]),FileExists(Table147[[#This Row],[Column1]]&Table147[[#This Row],[Charge Receipt]]),FileExists("Y:\$ AerospaceEdge\AGG Finance\AGG Distribution Documents\"&Table147[[#This Row],[Charge Receipt]]))) -> 
A138: BA | B138: 2023-02-14 | C138: STAMPS.COM 02/13 PURCHASE 855-608-2677 TX DEBIT CARD *7411 | D138: -17.99 | E138: =IF(Table147[[#This Row],[Bank Acct]]=LEFT(Table147[[#Headers],[BA Balance]],2),SUMIF(Table147[[#Headers],[Bank Acct]]:Table147[[#This Row],[Bank Acct]],Table147[[#This Row],[Bank Acct]],Table147[[#Headers],[Amount]]:Table147[[#This Row],[Amount]]),"") -> 1708.14 | F138: =IF(Table147[[#This Row],[Bank Acct]]=LEFT(Table147[[#Headers],[WF Balance]],2),SUMIF(Table147[[#Headers],[Bank Acct]]:Table147[[#This Row],[Bank Acct]],Table147[[#This Row],[Bank Acct]],Table147[[#Headers],[Amount]]:Table147[[#This Row],[Amount]]),"") ->  | G138: =IFERROR(INDEX(Lookup!$B$2:$C$7,MATCH(RIGHT(TRIM(Table147[[#This Row],[Description]]),4),Lookup!$B$2:$B$7,0),2),"") -> LRC | H138: AE | I138: Stamps | L138: =IF(OR(LEFT(Table147[[#This Row],[Invoice]],1)="0",LEFT(Table147[[#This Row],[Invoice]],1)="1"),INDEX(Invoice_dates,MATCH(Table147[[#This Row],[Invoice]],'2023 Invoice Payments'!$L$1:$L$100,0),2),"") ->  | M138: Y:\$ AerospaceEdge\AGG Finance\AGG Credit Card Receipts\ | N138: None available | O138: =IF(RIGHT(Table147[[#This Row],[Charge Receipt]],3)<>"pdf","",IF(FileExists(Table147[[#This Row],[Column1]]&Table147[[#This Row],[Charge Receipt]]),FileExists(Table147[[#This Row],[Column1]]&Table147[[#This Row],[Charge Receipt]]),FileExists("Y:\$ AerospaceEdge\AGG Finance\AGG Distribution Documents\"&Table147[[#This Row],[Charge Receipt]]))) -> 
A139: BA | B139: 2023-02-15 | C139: PEREGRINE AVIONI DES:QUICKBOOKS ID:375020979 INDN:AVIAGLOBAL GROUP, LLC CO ID:1722616653 PPD | D139: 2000 | E139: =IF(Table147[[#This Row],[Bank Acct]]=LEFT(Table147[[#Headers],[BA Balance]],2),SUMIF(Table147[[#Headers],[Bank Acct]]:Table147[[#This Row],[Bank Acct]],Table147[[#This Row],[Bank Acct]],Table147[[#Headers],[Amount]]:Table147[[#This Row],[Amount]]),"") -> 3708.14 | F139: =IF(Table147[[#This Row],[Bank Acct]]=LEFT(Table147[[#Headers],[WF Balance]],2),SUMIF(Table147[[#Headers],[Bank Acct]]:Table147[[#This Row],[Bank Acct]],Table147[[#This Row],[Bank Acct]],Table147[[#Headers],[Amount]]:Table147[[#This Row],[Amount]]),"") ->  | G139: =IFERROR(INDEX(Lookup!$B$2:$C$7,MATCH(RIGHT(TRIM(Table147[[#This Row],[Description]]),4),Lookup!$B$2:$B$7,0),2),"") ->  | H139: Peregrine | I139: Pmt | K139: =INDEX('2023 Invoice Payments'!B:D,MATCH(Table147[[#This Row],[Amount]],'2023 Invoice Payments'!D:D,0),1) -> 001-23 | L139: =IF(OR(LEFT(Table147[[#This Row],[Invoice]],1)="0",LEFT(Table147[[#This Row],[Invoice]],1)="1"),INDEX(Invoice_dates,MATCH(Table147[[#This Row],[Invoice]],'2023 Invoice Payments'!$L$1:$L$100,0),2),"") -> 2023-02-15 | M139: Y:\$ AerospaceEdge\AGG Finance\AGG Credit Card Receipts\ | O139: =IF(RIGHT(Table147[[#This Row],[Charge Receipt]],3)<>"pdf","",IF(FileExists(Table147[[#This Row],[Column1]]&Table147[[#This Row],[Charge Receipt]]),FileExists(Table147[[#This Row],[Column1]]&Table147[[#This Row],[Charge Receipt]]),FileExists("Y:\$ AerospaceEdge\AGG Finance\AGG Distribution Documents\"&Table147[[#This Row],[Charge Receipt]]))) -> 
A140: BA | B140: 2023-02-21 | C140: MAILCHIMP *MISC 02/18 PURCHASE MAILCHIMP.COM GA DEBIT CARD *7411 | D140: -13.73 | E140: =IF(Table147[[#This Row],[Bank Acct]]=LEFT(Table147[[#Headers],[BA Balance]],2),SUMIF(Table147[[#Headers],[Bank Acct]]:Table147[[#This Row],[Bank Acct]],Table147[[#This Row],[Bank Acct]],Table147[[#Headers],[Amount]]:Table147[[#This Row],[Amount]]),"") -> 3694.41 | F140: =IF(Table147[[#This Row],[Bank Acct]]=LEFT(Table147[[#Headers],[WF Balance]],2),SUMIF(Table147[[#Headers],[Bank Acct]]:Table147[[#This Row],[Bank Acct]],Table147[[#This Row],[Bank Acct]],Table147[[#Headers],[Amount]]:Table147[[#This Row],[Amount]]),"") ->  | G140: =IFERROR(INDEX(Lookup!$B$2:$C$7,MATCH(RIGHT(TRIM(Table147[[#This Row],[Description]]),4),Lookup!$B$2:$B$7,0),2),"") -> LRC | H140: AE | I140: Mailchimp | L140: =IF(OR(LEFT(Table147[[#This Row],[Invoice]],1)="0",LEFT(Table147[[#This Row],[Invoice]],1)="1"),INDEX(Invoice_dates,MATCH(Table147[[#This Row],[Invoice]],'2023 Invoice Payments'!$L$1:$L$100,0),2),"") ->  | M140: Y:\$ AerospaceEdge\AGG Finance\AGG Credit Card Receipts\ | N140: 230218 - AE - Mailchimp Essentials MC17716990.pdf | O140: =IF(RIGHT(Table147[[#This Row],[Charge Receipt]],3)<>"pdf","",IF(FileExists(Table147[[#This Row],[Column1]]&Table147[[#This Row],[Charge Receipt]]),FileExists(Table147[[#This Row],[Column1]]&Table147[[#This Row],[Charge Receipt]]),FileExists("Y:\$ AerospaceEdge\AGG Finance\AGG Distribution Documents\"&Table147[[#This Row],[Charge Receipt]]))) -> TRUE
A141: BA | B141: 2023-02-21 | C141: Mailchimp 02/20 PURCHASE Atlanta GA DEBIT CARD *7411 | D141: -69 | E141: =IF(Table147[[#This Row],[Bank Acct]]=LEFT(Table147[[#Headers],[BA Balance]],2),SUMIF(Table147[[#Headers],[Bank Acct]]:Table147[[#This Row],[Bank Acct]],Table147[[#This Row],[Bank Acct]],Table147[[#Headers],[Amount]]:Table147[[#This Row],[Amount]]),"") -> 3625.41 | F141: =IF(Table147[[#This Row],[Bank Acct]]=LEFT(Table147[[#Headers],[WF Balance]],2),SUMIF(Table147[[#Headers],[Bank Acct]]:Table147[[#This Row],[Bank Acct]],Table147[[#This Row],[Bank Acct]],Table147[[#Headers],[Amount]]:Table147[[#This Row],[Amount]]),"") ->  | G141: =IFERROR(INDEX(Lookup!$B$2:$C$7,MATCH(RIGHT(TRIM(Table147[[#This Row],[Description]]),4),Lookup!$B$2:$B$7,0),2),"") -> LRC | H141: Peregrine | I141: Mailchimp | J141: 002-23 | K141: 002-23 | L141: =IF(OR(LEFT(Table147[[#This Row],[Invoice]],1)="0",LEFT(Table147[[#This Row],[Invoice]],1)="1"),INDEX(Invoice_dates,MATCH(Table147[[#This Row],[Invoice]],'2023 Invoice Payments'!$L$1:$L$100,0),2),"") -> 2023-03-08 | M141: Y:\$ AerospaceEdge\AGG Finance\AGG Credit Card Receipts\ | N141: 230220 - Peregrine - Mailchimp Essentials MC17730474.pdf | O141: =IF(RIGHT(Table147[[#This Row],[Charge Receipt]],3)<>"pdf","",IF(FileExists(Table147[[#This Row],[Column1]]&Table147[[#This Row],[Charge Receipt]]),FileExists(Table147[[#This Row],[Column1]]&Table147[[#This Row],[Charge Receipt]]),FileExists("Y:\$ AerospaceEdge\AGG Finance\AGG Distribution Documents\"&Table147[[#This Row],[Charge Receipt]]))) -> TRUE
A142: BA | B142: 2023-03-01 | C142: Monthly Fee Business Adv Relationship | D142: -29.95 | E142: =IF(Table147[[#This Row],[Bank Acct]]=LEFT(Table147[[#Headers],[BA Balance]],2),SUMIF(Table147[[#Headers],[Bank Acct]]:Table147[[#This Row],[Bank Acct]],Table147[[#This Row],[Bank Acct]],Table147[[#Headers],[Amount]]:Table147[[#This Row],[Amount]]),"") -> 3595.46 | F142: =IF(Table147[[#This Row],[Bank Acct]]=LEFT(Table147[[#Headers],[WF Balance]],2),SUMIF(Table147[[#Headers],[Bank Acct]]:Table147[[#This Row],[Bank Acct]],Table147[[#This Row],[Bank Acct]],Table147[[#Headers],[Amount]]:Table147[[#This Row],[Amount]]),"") ->  | G142: =IFERROR(INDEX(Lookup!$B$2:$C$7,MATCH(RIGHT(TRIM(Table147[[#This Row],[Description]]),4),Lookup!$B$2:$B$7,0),2),"") ->  | H142: AE | I142: Bank Charge | L142: =IF(OR(LEFT(Table147[[#This Row],[Invoice]],1)="0",LEFT(Table147[[#This Row],[Invoice]],1)="1"),INDEX(Invoice_dates,MATCH(Table147[[#This Row],[Invoice]],'2023 Invoice Payments'!$L$1:$L$100,0),2),"") ->  | M142: Y:\$ AerospaceEdge\AGG Finance\AGG Credit Card Receipts\ | N142: N/A | O142: =IF(RIGHT(Table147[[#This Row],[Charge Receipt]],3)<>"pdf","",IF(FileExists(Table147[[#This Row],[Column1]]&Table147[[#This Row],[Charge Receipt]]),FileExists(Table147[[#This Row],[Column1]]&Table147[[#This Row],[Charge Receipt]]),FileExists("Y:\$ AerospaceEdge\AGG Finance\AGG Distribution Documents\"&Table147[[#This Row],[Charge Receipt]]))) -> 
A143: BA | B143: 2023-03-08 | C143: PEREGRINE AVIONI DES:QUICKBOOKS ID:375020979 INDN:AVIAGLOBAL GROUP, LLC CO ID:1722616653 PPD | D143: 2069 | E143: =IF(Table147[[#This Row],[Bank Acct]]=LEFT(Table147[[#Headers],[BA Balance]],2),SUMIF(Table147[[#Headers],[Bank Acct]]:Table147[[#This Row],[Bank Acct]],Table147[[#This Row],[Bank Acct]],Table147[[#Headers],[Amount]]:Table147[[#This Row],[Amount]]),"") -> 5664.46 | F143: =IF(Table147[[#This Row],[Bank Acct]]=LEFT(Table147[[#Headers],[WF Balance]],2),SUMIF(Table147[[#Headers],[Bank Acct]]:Table147[[#This Row],[Bank Acct]],Table147[[#This Row],[Bank Acct]],Table147[[#Headers],[Amount]]:Table147[[#This Row],[Amount]]),"") ->  | G143: =IFERROR(INDEX(Lookup!$B$2:$C$7,MATCH(RIGHT(TRIM(Table147[[#This Row],[Description]]),4),Lookup!$B$2:$B$7,0),2),"") ->  | H143: Peregrine | I143: Pmt | K143: 002-23 | L143: =IF(OR(LEFT(Table147[[#This Row],[Invoice]],1)="0",LEFT(Table147[[#This Row],[Invoice]],1)="1"),INDEX(Invoice_dates,MATCH(Table147[[#This Row],[Invoice]],'2023 Invoice Payments'!$L$1:$L$100,0),2),"") -> 2023-03-08 | M143: Y:\$ AerospaceEdge\AGG Finance\AGG Credit Card Receipts\ | O143: =IF(RIGHT(Table147[[#This Row],[Charge Receipt]],3)<>"pdf","",IF(FileExists(Table147[[#This Row],[Column1]]&Table147[[#This Row],[Charge Receipt]]),FileExists(Table147[[#This Row],[Column1]]&Table147[[#This Row],[Charge Receipt]]),FileExists("Y:\$ AerospaceEdge\AGG Finance\AGG Distribution Documents\"&Table147[[#This Row],[Charge Receipt]]))) -> 
A144: BA | B144: 2023-03-15 | C144: STAMPS.COM 03/14 PURCHASE 855-608-2677 TX DEBIT CARD *7411 | D144: -17.99 | E144: =IF(Table147[[#This Row],[Bank Acct]]=LEFT(Table147[[#Headers],[BA Balance]],2),SUMIF(Table147[[#Headers],[Bank Acct]]:Table147[[#This Row],[Bank Acct]],Table147[[#This Row],[Bank Acct]],Table147[[#Headers],[Amount]]:Table147[[#This Row],[Amount]]),"") -> 5646.47 | F144: =IF(Table147[[#This Row],[Bank Acct]]=LEFT(Table147[[#Headers],[WF Balance]],2),SUMIF(Table147[[#Headers],[Bank Acct]]:Table147[[#This Row],[Bank Acct]],Table147[[#This Row],[Bank Acct]],Table147[[#Headers],[Amount]]:Table147[[#This Row],[Amount]]),"") ->  | G144: =IFERROR(INDEX(Lookup!$B$2:$C$7,MATCH(RIGHT(TRIM(Table147[[#This Row],[Description]]),4),Lookup!$B$2:$B$7,0),2),"") -> LRC | H144: AE | I144: Stamps | L144: =IF(OR(LEFT(Table147[[#This Row],[Invoice]],1)="0",LEFT(Table147[[#This Row],[Invoice]],1)="1"),INDEX(Invoice_dates,MATCH(Table147[[#This Row],[Invoice]],'2023 Invoice Payments'!$L$1:$L$100,0),2),"") ->  | M144: Y:\$ AerospaceEdge\AGG Finance\AGG Credit Card Receipts\ | N144: None available | O144: =IF(RIGHT(Table147[[#This Row],[Charge Receipt]],3)<>"pdf","",IF(FileExists(Table147[[#This Row],[Column1]]&Table147[[#This Row],[Charge Receipt]]),FileExists(Table147[[#This Row],[Column1]]&Table147[[#This Row],[Charge Receipt]]),FileExists("Y:\$ AerospaceEdge\AGG Finance\AGG Distribution Documents\"&Table147[[#This Row],[Charge Receipt]]))) -> 
A145: BA | B145: 2023-03-16 | C145: MONSTERINSIGHTS W 03/16 PURCHASE PALM BEACH GA FL DEBIT CARD *7429 | D145: -199 | E145: =IF(Table147[[#This Row],[Bank Acct]]=LEFT(Table147[[#Headers],[BA Balance]],2),SUMIF(Table147[[#Headers],[Bank Acct]]:Table147[[#This Row],[Bank Acct]],Table147[[#This Row],[Bank Acct]],Table147[[#Headers],[Amount]]:Table147[[#This Row],[Amount]]),"") -> 5447.47 | F145: =IF(Table147[[#This Row],[Bank Acct]]=LEFT(Table147[[#Headers],[WF Balance]],2),SUMIF(Table147[[#Headers],[Bank Acct]]:Table147[[#This Row],[Bank Acct]],Table147[[#This Row],[Bank Acct]],Table147[[#Headers],[Amount]]:Table147[[#This Row],[Amount]]),"") ->  | G145: =IFERROR(INDEX(Lookup!$B$2:$C$7,MATCH(RIGHT(TRIM(Table147[[#This Row],[Description]]),4),Lookup!$B$2:$B$7,0),2),"") -> FWC | H145: Peregrine | I145: Web Tools | K145: 004-23 | L145: =IF(OR(LEFT(Table147[[#This Row],[Invoice]],1)="0",LEFT(Table147[[#This Row],[Invoice]],1)="1"),INDEX(Invoice_dates,MATCH(Table147[[#This Row],[Invoice]],'2023 Invoice Payments'!$L$1:$L$100,0),2),"") -> 2023-03-22 | M145: Y:\$ AerospaceEdge\AGG Finance\AGG Credit Card Receipts\ | N145: 220316 - Monster Insights Invoice 543619.pdf | O145: =IF(RIGHT(Table147[[#This Row],[Charge Receipt]],3)<>"pdf","",IF(FileExists(Table147[[#This Row],[Column1]]&Table147[[#This Row],[Charge Receipt]]),FileExists(Table147[[#This Row],[Column1]]&Table147[[#This Row],[Charge Receipt]]),FileExists("Y:\$ AerospaceEdge\AGG Finance\AGG Distribution Documents\"&Table147[[#This Row],[Charge Receipt]]))) -> TRUE
A146: BA | B146: 2023-03-16 | C146: AIOSEO - ORDER 16 03/16 PURCHASE PALM BEACH GA FL DEBIT CARD *7429 | D146: -99 | E146: =IF(Table147[[#This Row],[Bank Acct]]=LEFT(Table147[[#Headers],[BA Balance]],2),SUMIF(Table147[[#Headers],[Bank Acct]]:Table147[[#This Row],[Bank Acct]],Table147[[#This Row],[Bank Acct]],Table147[[#Headers],[Amount]]:Table147[[#This Row],[Amount]]),"") -> 5348.47 | F146: =IF(Table147[[#This Row],[Bank Acct]]=LEFT(Table147[[#Headers],[WF Balance]],2),SUMIF(Table147[[#Headers],[Bank Acct]]:Table147[[#This Row],[Bank Acct]],Table147[[#This Row],[Bank Acct]],Table147[[#Headers],[Amount]]:Table147[[#This Row],[Amount]]),"") ->  | G146: =IFERROR(INDEX(Lookup!$B$2:$C$7,MATCH(RIGHT(TRIM(Table147[[#This Row],[Description]]),4),Lookup!$B$2:$B$7,0),2),"") -> FWC | H146: Peregrine | I146: Web Tools | K146: 004-23 | L146: =IF(OR(LEFT(Table147[[#This Row],[Invoice]],1)="0",LEFT(Table147[[#This Row],[Invoice]],1)="1"),INDEX(Invoice_dates,MATCH(Table147[[#This Row],[Invoice]],'2023 Invoice Payments'!$L$1:$L$100,0),2),"") -> 2023-03-22 | M146: Y:\$ AerospaceEdge\AGG Finance\AGG Credit Card Receipts\ | N146: Peregrine - AISEO - Semper Plugins - Invoice_168735.pdf | O146: =IF(RIGHT(Table147[[#This Row],[Charge Receipt]],3)<>"pdf","",IF(FileExists(Table147[[#This Row],[Column1]]&Table147[[#This Row],[Charge Receipt]]),FileExists(Table147[[#This Row],[Column1]]&Table147[[#This Row],[Charge Receipt]]),FileExists("Y:\$ AerospaceEdge\AGG Finance\AGG Distribution Documents\"&Table147[[#This Row],[Charge Receipt]]))) -> TRUE
A147: BA | B147: 2023-03-20 | C147: MAILCHIMP *MISC 03/18 PURCHASE MAILCHIMP.COM GA DEBIT CARD *7411 | D147: -13.73 | E147: =IF(Table147[[#This Row],[Bank Acct]]=LEFT(Table147[[#Headers],[BA Balance]],2),SUMIF(Table147[[#Headers],[Bank Acct]]:Table147[[#This Row],[Bank Acct]],Table147[[#This Row],[Bank Acct]],Table147[[#Headers],[Amount]]:Table147[[#This Row],[Amount]]),"") -> 5334.74 | F147: =IF(Table147[[#This Row],[Bank Acct]]=LEFT(Table147[[#Headers],[WF Balance]],2),SUMIF(Table147[[#Headers],[Bank Acct]]:Table147[[#This Row],[Bank Acct]],Table147[[#This Row],[Bank Acct]],Table147[[#Headers],[Amount]]:Table147[[#This Row],[Amount]]),"") ->  | G147: =IFERROR(INDEX(Lookup!$B$2:$C$7,MATCH(RIGHT(TRIM(Table147[[#This Row],[Description]]),4),Lookup!$B$2:$B$7,0),2),"") -> LRC | H147: AE | I147: Mailchimp | L147: =IF(OR(LEFT(Table147[[#This Row],[Invoice]],1)="0",LEFT(Table147[[#This Row],[Invoice]],1)="1"),INDEX(Invoice_dates,MATCH(Table147[[#This Row],[Invoice]],'2023 Invoice Payments'!$L$1:$L$100,0),2),"") ->  | M147: Y:\$ AerospaceEdge\AGG Finance\AGG Credit Card Receipts\ | N147: 230318 - AE - Mailchimp Essentials MC17931934.pdf | O147: =IF(RIGHT(Table147[[#This Row],[Charge Receipt]],3)<>"pdf","",IF(FileExists(Table147[[#This Row],[Column1]]&Table147[[#This Row],[Charge Receipt]]),FileExists(Table147[[#This Row],[Column1]]&Table147[[#This Row],[Charge Receipt]]),FileExists("Y:\$ AerospaceEdge\AGG Finance\AGG Distribution Documents\"&Table147[[#This Row],[Charge Receipt]]))) -> TRUE
A148: BA | B148: 2023-03-20 | C148: Mailchimp 03/20 PURCHASE Atlanta GA DEBIT CARD *7411 | D148: -69 | E148: =IF(Table147[[#This Row],[Bank Acct]]=LEFT(Table147[[#Headers],[BA Balance]],2),SUMIF(Table147[[#Headers],[Bank Acct]]:Table147[[#This Row],[Bank Acct]],Table147[[#This Row],[Bank Acct]],Table147[[#Headers],[Amount]]:Table147[[#This Row],[Amount]]),"") -> 5265.74 | F148: =IF(Table147[[#This Row],[Bank Acct]]=LEFT(Table147[[#Headers],[WF Balance]],2),SUMIF(Table147[[#Headers],[Bank Acct]]:Table147[[#This Row],[Bank Acct]],Table147[[#This Row],[Bank Acct]],Table147[[#Headers],[Amount]]:Table147[[#This Row],[Amount]]),"") ->  | G148: =IFERROR(INDEX(Lookup!$B$2:$C$7,MATCH(RIGHT(TRIM(Table147[[#This Row],[Description]]),4),Lookup!$B$2:$B$7,0),2),"") -> LRC | H148: Peregrine | I148: Mailchimp | J148: 005-23 | K148: 005-23 | L148: =IF(OR(LEFT(Table147[[#This Row],[Invoice]],1)="0",LEFT(Table147[[#This Row],[Invoice]],1)="1"),INDEX(Invoice_dates,MATCH(Table147[[#This Row],[Invoice]],'2023 Invoice Payments'!$L$1:$L$100,0),2),"") -> 2023-04-20 | M148: Y:\$ AerospaceEdge\AGG Finance\AGG Credit Card Receipts\ | N148: 230320 - Peregrine - Mailchimp Essentials MC17945494.pdf | O148: =IF(RIGHT(Table147[[#This Row],[Charge Receipt]],3)<>"pdf","",IF(FileExists(Table147[[#This Row],[Column1]]&Table147[[#This Row],[Charge Receipt]]),FileExists(Table147[[#This Row],[Column1]]&Table147[[#This Row],[Charge Receipt]]),FileExists("Y:\$ AerospaceEdge\AGG Finance\AGG Distribution Documents\"&Table147[[#This Row],[Charge Receipt]]))) -> TRUE
A149: BA | B149: 2023-03-22 | C149: PEREGRINE AVIONI DES:QUICKBOOKS ID:375020979 INDN:AVIAGLOBAL GROUP, LLC CO ID:1722616653 PPD | D149: 2476.25 | E149: =IF(Table147[[#This Row],[Bank Acct]]=LEFT(Table147[[#Headers],[BA Balance]],2),SUMIF(Table147[[#Headers],[Bank Acct]]:Table147[[#This Row],[Bank Acct]],Table147[[#This Row],[Bank Acct]],Table147[[#Headers],[Amount]]:Table147[[#This Row],[Amount]]),"") -> 7741.99 | F149: =IF(Table147[[#This Row],[Bank Acct]]=LEFT(Table147[[#Headers],[WF Balance]],2),SUMIF(Table147[[#Headers],[Bank Acct]]:Table147[[#This Row],[Bank Acct]],Table147[[#This Row],[Bank Acct]],Table147[[#Headers],[Amount]]:Table147[[#This Row],[Amount]]),"") ->  | G149: =IFERROR(INDEX(Lookup!$B$2:$C$7,MATCH(RIGHT(TRIM(Table147[[#This Row],[Description]]),4),Lookup!$B$2:$B$7,0),2),"") ->  | H149: Peregrine | I149: Pmt | K149: =INDEX('2023 Invoice Payments'!B:D,MATCH(Table147[[#This Row],[Amount]],'2023 Invoice Payments'!D:D,0),1) -> 004-23 | L149: =IF(OR(LEFT(Table147[[#This Row],[Invoice]],1)="0",LEFT(Table147[[#This Row],[Invoice]],1)="1"),INDEX(Invoice_dates,MATCH(Table147[[#This Row],[Invoice]],'2023 Invoice Payments'!$L$1:$L$100,0),2),"") -> 2023-03-22 | M149: Y:\$ AerospaceEdge\AGG Finance\AGG Credit Card Receipts\ | O149: =IF(RIGHT(Table147[[#This Row],[Charge Receipt]],3)<>"pdf","",IF(FileExists(Table147[[#This Row],[Column1]]&Table147[[#This Row],[Charge Receipt]]),FileExists(Table147[[#This Row],[Column1]]&Table147[[#This Row],[Charge Receipt]]),FileExists("Y:\$ AerospaceEdge\AGG Finance\AGG Distribution Documents\"&Table147[[#This Row],[Charge Receipt]]))) -> 
A150: BA | B150: 2023-03-31 | C150: Online Banking Transfer Conf# bxxh9vevj; AERO BUSINESS DEVELOPEMENT LLC | D150: -650.69 | E150: =IF(Table147[[#This Row],[Bank Acct]]=LEFT(Table147[[#Headers],[BA Balance]],2),SUMIF(Table147[[#Headers],[Bank Acct]]:Table147[[#This Row],[Bank Acct]],Table147[[#This Row],[Bank Acct]],Table147[[#Headers],[Amount]]:Table147[[#This Row],[Amount]]),"") -> 7091.3 | F150: =IF(Table147[[#This Row],[Bank Acct]]=LEFT(Table147[[#Headers],[WF Balance]],2),SUMIF(Table147[[#Headers],[Bank Acct]]:Table147[[#This Row],[Bank Acct]],Table147[[#This Row],[Bank Acct]],Table147[[#Headers],[Amount]]:Table147[[#This Row],[Amount]]),"") ->  | G150: =IFERROR(INDEX(Lookup!$B$2:$C$7,MATCH(RIGHT(TRIM(Table147[[#This Row],[Description]]),4),Lookup!$B$2:$B$7,0),2),"") ->  | H150: AGG | I150: Distibution | L150: =IF(OR(LEFT(Table147[[#This Row],[Invoice]],1)="0",LEFT(Table147[[#This Row],[Invoice]],1)="1"),INDEX(Invoice_dates,MATCH(Table147[[#This Row],[Invoice]],'2023 Invoice Payments'!$L$1:$L$100,0),2),"") ->  | M150: Y:\$ AerospaceEdge\AGG Finance\AGG Credit Card Receipts\ | N150: 230330 - Dissolution Distribution Authorization - LRC FWC.pdf | O150: =IF(RIGHT(Table147[[#This Row],[Charge Receipt]],3)<>"pdf","",IF(FileExists(Table147[[#This Row],[Column1]]&Table147[[#This Row],[Charge Receipt]]),FileExists(Table147[[#This Row],[Column1]]&Table147[[#This Row],[Charge Receipt]]),FileExists("Y:\$ AerospaceEdge\AGG Finance\AGG Distribution Documents\"&Table147[[#This Row],[Charge Receipt]]))) -> TRUE
A151: BA | B151: 2023-03-31 | C151: TRANSFER AVIAGLOBAL GROUP, LL:ADS-B Global LLC Confirmation# 3928777245 | D151: -1800 | E151: =IF(Table147[[#This Row],[Bank Acct]]=LEFT(Table147[[#Headers],[BA Balance]],2),SUMIF(Table147[[#Headers],[Bank Acct]]:Table147[[#This Row],[Bank Acct]],Table147[[#This Row],[Bank Acct]],Table147[[#Headers],[Amount]]:Table147[[#This Row],[Amount]]),"") -> 5291.3 | F151: =IF(Table147[[#This Row],[Bank Acct]]=LEFT(Table147[[#Headers],[WF Balance]],2),SUMIF(Table147[[#Headers],[Bank Acct]]:Table147[[#This Row],[Bank Acct]],Table147[[#This Row],[Bank Acct]],Table147[[#Headers],[Amount]]:Table147[[#This Row],[Amount]]),"") ->  | G151: =IFERROR(INDEX(Lookup!$B$2:$C$7,MATCH(RIGHT(TRIM(Table147[[#This Row],[Description]]),4),Lookup!$B$2:$B$7,0),2),"") ->  | H151: AE | I151: Distibution | L151: =IF(OR(LEFT(Table147[[#This Row],[Invoice]],1)="0",LEFT(Table147[[#This Row],[Invoice]],1)="1"),INDEX(Invoice_dates,MATCH(Table147[[#This Row],[Invoice]],'2023 Invoice Payments'!$L$1:$L$100,0),2),"") ->  | M151: Y:\$ AerospaceEdge\AGG Finance\AGG Credit Card Receipts\ | N151: 230331 - Member Distribution Authorization - LRC FWC.pdf | O151: =IF(RIGHT(Table147[[#This Row],[Charge Receipt]],3)<>"pdf","",IF(FileExists(Table147[[#This Row],[Column1]]&Table147[[#This Row],[Charge Receipt]]),FileExists(Table147[[#This Row],[Column1]]&Table147[[#This Row],[Charge Receipt]]),FileExists("Y:\$ AerospaceEdge\AGG Finance\AGG Distribution Documents\"&Table147[[#This Row],[Charge Receipt]]))) -> TRUE
A152: BA | B152: 2023-03-31 | C152: TRANSFER AVIAGLOBAL GROUP, LL:Forrest Colliver Confirmation# 1728784085 | D152: -1800 | E152: =IF(Table147[[#This Row],[Bank Acct]]=LEFT(Table147[[#Headers],[BA Balance]],2),SUMIF(Table147[[#Headers],[Bank Acct]]:Table147[[#This Row],[Bank Acct]],Table147[[#This Row],[Bank Acct]],Table147[[#Headers],[Amount]]:Table147[[#This Row],[Amount]]),"") -> 3491.3 | F152: =IF(Table147[[#This Row],[Bank Acct]]=LEFT(Table147[[#Headers],[WF Balance]],2),SUMIF(Table147[[#Headers],[Bank Acct]]:Table147[[#This Row],[Bank Acct]],Table147[[#This Row],[Bank Acct]],Table147[[#Headers],[Amount]]:Table147[[#This Row],[Amount]]),"") ->  | G152: =IFERROR(INDEX(Lookup!$B$2:$C$7,MATCH(RIGHT(TRIM(Table147[[#This Row],[Description]]),4),Lookup!$B$2:$B$7,0),2),"") ->  | H152: AE | I152: Distibution | L152: =IF(OR(LEFT(Table147[[#This Row],[Invoice]],1)="0",LEFT(Table147[[#This Row],[Invoice]],1)="1"),INDEX(Invoice_dates,MATCH(Table147[[#This Row],[Invoice]],'2023 Invoice Payments'!$L$1:$L$100,0),2),"") ->  | M152: Y:\$ AerospaceEdge\AGG Finance\AGG Credit Card Receipts\ | N152: 230331 - Member Distribution Authorization - LRC FWC.pdf | O152: =IF(RIGHT(Table147[[#This Row],[Charge Receipt]],3)<>"pdf","",IF(FileExists(Table147[[#This Row],[Column1]]&Table147[[#This Row],[Charge Receipt]]),FileExists(Table147[[#This Row],[Column1]]&Table147[[#This Row],[Charge Receipt]]),FileExists("Y:\$ AerospaceEdge\AGG Finance\AGG Distribution Documents\"&Table147[[#This Row],[Charge Receipt]]))) -> TRUE
A153: BA | B153: 2023-04-03 | C153: SOFTACULOUS 04/01 PURCHASE ABU DHABI DEBIT CARD *7429 | D153: -24 | E153: =IF(Table147[[#This Row],[Bank Acct]]=LEFT(Table147[[#Headers],[BA Balance]],2),SUMIF(Table147[[#Headers],[Bank Acct]]:Table147[[#This Row],[Bank Acct]],Table147[[#This Row],[Bank Acct]],Table147[[#Headers],[Amount]]:Table147[[#This Row],[Amount]]),"") -> 3467.3 | F153: =IF(Table147[[#This Row],[Bank Acct]]=LEFT(Table147[[#Headers],[WF Balance]],2),SUMIF(Table147[[#Headers],[Bank Acct]]:Table147[[#This Row],[Bank Acct]],Table147[[#This Row],[Bank Acct]],Table147[[#Headers],[Amount]]:Table147[[#This Row],[Amount]]),"") ->  | G153: =IFERROR(INDEX(Lookup!$B$2:$C$7,MATCH(RIGHT(TRIM(Table147[[#This Row],[Description]]),4),Lookup!$B$2:$B$7,0),2),"") -> FWC | H153: Peregrine | I153: Web Tools | K153: 005-23 | L153: =IF(OR(LEFT(Table147[[#This Row],[Invoice]],1)="0",LEFT(Table147[[#This Row],[Invoice]],1)="1"),INDEX(Invoice_dates,MATCH(Table147[[#This Row],[Invoice]],'2023 Invoice Payments'!$L$1:$L$100,0),2),"") -> 2023-04-20 | M153: Y:\$ AerospaceEdge\AGG Finance\AGG Credit Card Receipts\ | N153: 230401 - Loginizer Plugin 944361.pdf | O153: =IF(RIGHT(Table147[[#This Row],[Charge Receipt]],3)<>"pdf","",IF(FileExists(Table147[[#This Row],[Column1]]&Table147[[#This Row],[Charge Receipt]]),FileExists(Table147[[#This Row],[Column1]]&Table147[[#This Row],[Charge Receipt]]),FileExists("Y:\$ AerospaceEdge\AGG Finance\AGG Distribution Documents\"&Table147[[#This Row],[Charge Receipt]]))) -> TRUE
A154: BA | B154: 2023-04-03 | C154: PADDLE.NET* PLUGI 04/02 PURCHASE ASTORIA NY DEBIT CARD *7429 | D154: -13.03 | E154: =IF(Table147[[#This Row],[Bank Acct]]=LEFT(Table147[[#Headers],[BA Balance]],2),SUMIF(Table147[[#Headers],[Bank Acct]]:Table147[[#This Row],[Bank Acct]],Table147[[#This Row],[Bank Acct]],Table147[[#Headers],[Amount]]:Table147[[#This Row],[Amount]]),"") -> 3454.27 | F154: =IF(Table147[[#This Row],[Bank Acct]]=LEFT(Table147[[#Headers],[WF Balance]],2),SUMIF(Table147[[#Headers],[Bank Acct]]:Table147[[#This Row],[Bank Acct]],Table147[[#This Row],[Bank Acct]],Table147[[#Headers],[Amount]]:Table147[[#This Row],[Amount]]),"") ->  | G154: =IFERROR(INDEX(Lookup!$B$2:$C$7,MATCH(RIGHT(TRIM(Table147[[#This Row],[Description]]),4),Lookup!$B$2:$B$7,0),2),"") -> FWC | H154: Peregrine | I154: Web Tools | K154: 005-23 | L154: =IF(OR(LEFT(Table147[[#This Row],[Invoice]],1)="0",LEFT(Table147[[#This Row],[Invoice]],1)="1"),INDEX(Invoice_dates,MATCH(Table147[[#This Row],[Invoice]],'2023 Invoice Payments'!$L$1:$L$100,0),2),"") -> 2023-04-20 | M154: Y:\$ AerospaceEdge\AGG Finance\AGG Credit Card Receipts\ | N154: 230402 - News Ticker for Elementor 48516875.pdf | O154: =IF(RIGHT(Table147[[#This Row],[Charge Receipt]],3)<>"pdf","",IF(FileExists(Table147[[#This Row],[Column1]]&Table147[[#This Row],[Charge Receipt]]),FileExists(Table147[[#This Row],[Column1]]&Table147[[#This Row],[Charge Receipt]]),FileExists("Y:\$ AerospaceEdge\AGG Finance\AGG Distribution Documents\"&Table147[[#This Row],[Charge Receipt]]))) -> TRUE
A155: BA | B155: 2023-04-03 | C155: Monthly Fee Business Adv Relationship | D155: -29.95 | E155: =IF(Table147[[#This Row],[Bank Acct]]=LEFT(Table147[[#Headers],[BA Balance]],2),SUMIF(Table147[[#Headers],[Bank Acct]]:Table147[[#This Row],[Bank Acct]],Table147[[#This Row],[Bank Acct]],Table147[[#Headers],[Amount]]:Table147[[#This Row],[Amount]]),"") -> 3424.32 | F155: =IF(Table147[[#This Row],[Bank Acct]]=LEFT(Table147[[#Headers],[WF Balance]],2),SUMIF(Table147[[#Headers],[Bank Acct]]:Table147[[#This Row],[Bank Acct]],Table147[[#This Row],[Bank Acct]],Table147[[#Headers],[Amount]]:Table147[[#This Row],[Amount]]),"") ->  | G155: =IFERROR(INDEX(Lookup!$B$2:$C$7,MATCH(RIGHT(TRIM(Table147[[#This Row],[Description]]),4),Lookup!$B$2:$B$7,0),2),"") ->  | H155: AE | I155: Bank Charge | L155: =IF(OR(LEFT(Table147[[#This Row],[Invoice]],1)="0",LEFT(Table147[[#This Row],[Invoice]],1)="1"),INDEX(Invoice_dates,MATCH(Table147[[#This Row],[Invoice]],'2023 Invoice Payments'!$L$1:$L$100,0),2),"") ->  | M155: Y:\$ AerospaceEdge\AGG Finance\AGG Credit Card Receipts\ | N155: N/A | O155: =IF(RIGHT(Table147[[#This Row],[Charge Receipt]],3)<>"pdf","",IF(FileExists(Table147[[#This Row],[Column1]]&Table147[[#This Row],[Charge Receipt]]),FileExists(Table147[[#This Row],[Column1]]&Table147[[#This Row],[Charge Receipt]]),FileExists("Y:\$ AerospaceEdge\AGG Finance\AGG Distribution Documents\"&Table147[[#This Row],[Charge Receipt]]))) -> 
A156: BA | B156: 2023-04-03 | C156: External transfer fee - 3 Day - 03/31/2023 Confirmation: 432156074 | D156: -1 | E156: =IF(Table147[[#This Row],[Bank Acct]]=LEFT(Table147[[#Headers],[BA Balance]],2),SUMIF(Table147[[#Headers],[Bank Acct]]:Table147[[#This Row],[Bank Acct]],Table147[[#This Row],[Bank Acct]],Table147[[#Headers],[Amount]]:Table147[[#This Row],[Amount]]),"") -> 3423.32 | F156: =IF(Table147[[#This Row],[Bank Acct]]=LEFT(Table147[[#Headers],[WF Balance]],2),SUMIF(Table147[[#Headers],[Bank Acct]]:Table147[[#This Row],[Bank Acct]],Table147[[#This Row],[Bank Acct]],Table147[[#Headers],[Amount]]:Table147[[#This Row],[Amount]]),"") ->  | G156: =IFERROR(INDEX(Lookup!$B$2:$C$7,MATCH(RIGHT(TRIM(Table147[[#This Row],[Description]]),4),Lookup!$B$2:$B$7,0),2),"") ->  | H156: AE | I156: Bank Charge | L156: =IF(OR(LEFT(Table147[[#This Row],[Invoice]],1)="0",LEFT(Table147[[#This Row],[Invoice]],1)="1"),INDEX(Invoice_dates,MATCH(Table147[[#This Row],[Invoice]],'2023 Invoice Payments'!$L$1:$L$100,0),2),"") ->  | M156: Y:\$ AerospaceEdge\AGG Finance\AGG Credit Card Receipts\ | N156: None available | O156: =IF(RIGHT(Table147[[#This Row],[Charge Receipt]],3)<>"pdf","",IF(FileExists(Table147[[#This Row],[Column1]]&Table147[[#This Row],[Charge Receipt]]),FileExists(Table147[[#This Row],[Column1]]&Table147[[#This Row],[Charge Receipt]]),FileExists("Y:\$ AerospaceEdge\AGG Finance\AGG Distribution Documents\"&Table147[[#This Row],[Charge Receipt]]))) -> 
A157: BA | B157: 2023-04-03 | C157: External transfer fee - 3 Day - 03/31/2023 Confirmation: 432156294 | D157: -1 | E157: =IF(Table147[[#This Row],[Bank Acct]]=LEFT(Table147[[#Headers],[BA Balance]],2),SUMIF(Table147[[#Headers],[Bank Acct]]:Table147[[#This Row],[Bank Acct]],Table147[[#This Row],[Bank Acct]],Table147[[#Headers],[Amount]]:Table147[[#This Row],[Amount]]),"") -> 3422.32 | F157: =IF(Table147[[#This Row],[Bank Acct]]=LEFT(Table147[[#Headers],[WF Balance]],2),SUMIF(Table147[[#Headers],[Bank Acct]]:Table147[[#This Row],[Bank Acct]],Table147[[#This Row],[Bank Acct]],Table147[[#Headers],[Amount]]:Table147[[#This Row],[Amount]]),"") ->  | G157: =IFERROR(INDEX(Lookup!$B$2:$C$7,MATCH(RIGHT(TRIM(Table147[[#This Row],[Description]]),4),Lookup!$B$2:$B$7,0),2),"") ->  | H157: AE | I157: Bank Charge | L157: =IF(OR(LEFT(Table147[[#This Row],[Invoice]],1)="0",LEFT(Table147[[#This Row],[Invoice]],1)="1"),INDEX(Invoice_dates,MATCH(Table147[[#This Row],[Invoice]],'2023 Invoice Payments'!$L$1:$L$100,0),2),"") ->  | M157: Y:\$ AerospaceEdge\AGG Finance\AGG Credit Card Receipts\ | N157: None available | O157: =IF(RIGHT(Table147[[#This Row],[Charge Receipt]],3)<>"pdf","",IF(FileExists(Table147[[#This Row],[Column1]]&Table147[[#This Row],[Charge Receipt]]),FileExists(Table147[[#This Row],[Column1]]&Table147[[#This Row],[Charge Receipt]]),FileExists("Y:\$ AerospaceEdge\AGG Finance\AGG Distribution Documents\"&Table147[[#This Row],[Charge Receipt]]))) -> 
A158: BA | B158: 2023-04-03 | C158: INTERNATIONAL TRANSACTION FEE 04/01 SOFTACULOUS ABU DHABI DEBIT CARD *7429 | D158: -0.72 | E158: =IF(Table147[[#This Row],[Bank Acct]]=LEFT(Table147[[#Headers],[BA Balance]],2),SUMIF(Table147[[#Headers],[Bank Acct]]:Table147[[#This Row],[Bank Acct]],Table147[[#This Row],[Bank Acct]],Table147[[#Headers],[Amount]]:Table147[[#This Row],[Amount]]),"") -> 3421.6 | F158: =IF(Table147[[#This Row],[Bank Acct]]=LEFT(Table147[[#Headers],[WF Balance]],2),SUMIF(Table147[[#Headers],[Bank Acct]]:Table147[[#This Row],[Bank Acct]],Table147[[#This Row],[Bank Acct]],Table147[[#Headers],[Amount]]:Table147[[#This Row],[Amount]]),"") ->  | G158: =IFERROR(INDEX(Lookup!$B$2:$C$7,MATCH(RIGHT(TRIM(Table147[[#This Row],[Description]]),4),Lookup!$B$2:$B$7,0),2),"") -> FWC | H158: Peregrine | I158: Bank Charge | K158: 005-23 | L158: =IF(OR(LEFT(Table147[[#This Row],[Invoice]],1)="0",LEFT(Table147[[#This Row],[Invoice]],1)="1"),INDEX(Invoice_dates,MATCH(Table147[[#This Row],[Invoice]],'2023 Invoice Payments'!$L$1:$L$100,0),2),"") -> 2023-04-20 | M158: Y:\$ AerospaceEdge\AGG Finance\AGG Credit Card Receipts\ | N158: 230403 - INTERNATIONAL TRANSACTION FEE 04-01 SOFTACULOUS.pdf | O158: =IF(RIGHT(Table147[[#This Row],[Charge Receipt]],3)<>"pdf","",IF(FileExists(Table147[[#This Row],[Column1]]&Table147[[#This Row],[Charge Receipt]]),FileExists(Table147[[#This Row],[Column1]]&Table147[[#This Row],[Charge Receipt]]),FileExists("Y:\$ AerospaceEdge\AGG Finance\AGG Distribution Documents\"&Table147[[#This Row],[Charge Receipt]]))) -> TRUE
A159: BA | B159: 2023-04-04 | C159: STK*Shutterstock 04/03 PURCHASE 8666633954 NY DEBIT CARD *7411 | D159: -39.2 | E159: =IF(Table147[[#This Row],[Bank Acct]]=LEFT(Table147[[#Headers],[BA Balance]],2),SUMIF(Table147[[#Headers],[Bank Acct]]:Table147[[#This Row],[Bank Acct]],Table147[[#This Row],[Bank Acct]],Table147[[#Headers],[Amount]]:Table147[[#This Row],[Amount]]),"") -> 3382.4 | F159: =IF(Table147[[#This Row],[Bank Acct]]=LEFT(Table147[[#Headers],[WF Balance]],2),SUMIF(Table147[[#Headers],[Bank Acct]]:Table147[[#This Row],[Bank Acct]],Table147[[#This Row],[Bank Acct]],Table147[[#Headers],[Amount]]:Table147[[#This Row],[Amount]]),"") ->  | G159: =IFERROR(INDEX(Lookup!$B$2:$C$7,MATCH(RIGHT(TRIM(Table147[[#This Row],[Description]]),4),Lookup!$B$2:$B$7,0),2),"") -> LRC | H159: Peregrine | I159: Images | K159: 005-23 | L159: =IF(OR(LEFT(Table147[[#This Row],[Invoice]],1)="0",LEFT(Table147[[#This Row],[Invoice]],1)="1"),INDEX(Invoice_dates,MATCH(Table147[[#This Row],[Invoice]],'2023 Invoice Payments'!$L$1:$L$100,0),2),"") -> 2023-04-20 | M159: Y:\$ AerospaceEdge\AGG Finance\AGG Credit Card Receipts\ | N159: 230403 - Shutterstock CS-02A3A-5C35.pdf | O159: =IF(RIGHT(Table147[[#This Row],[Charge Receipt]],3)<>"pdf","",IF(FileExists(Table147[[#This Row],[Column1]]&Table147[[#This Row],[Charge Receipt]]),FileExists(Table147[[#This Row],[Column1]]&Table147[[#This Row],[Charge Receipt]]),FileExists("Y:\$ AerospaceEdge\AGG Finance\AGG Distribution Documents\"&Table147[[#This Row],[Charge Receipt]]))) -> TRUE
A160: BA | B160: 2023-04-10 | C160: TRANSFER AVIAGLOBAL GROUP, LL:Forrest Colliver Confirmation# 1313182334 | D160: -2050 | E160: =IF(Table147[[#This Row],[Bank Acct]]=LEFT(Table147[[#Headers],[BA Balance]],2),SUMIF(Table147[[#Headers],[Bank Acct]]:Table147[[#This Row],[Bank Acct]],Table147[[#This Row],[Bank Acct]],Table147[[#Headers],[Amount]]:Table147[[#This Row],[Amount]]),"") -> 1332.4 | F160: =IF(Table147[[#This Row],[Bank Acct]]=LEFT(Table147[[#Headers],[WF Balance]],2),SUMIF(Table147[[#Headers],[Bank Acct]]:Table147[[#This Row],[Bank Acct]],Table147[[#This Row],[Bank Acct]],Table147[[#Headers],[Amount]]:Table147[[#This Row],[Amount]]),"") ->  | G160: =IFERROR(INDEX(Lookup!$B$2:$C$7,MATCH(RIGHT(TRIM(Table147[[#This Row],[Description]]),4),Lookup!$B$2:$B$7,0),2),"") ->  | H160: AE | I160: Legal Fees | L160: =IF(OR(LEFT(Table147[[#This Row],[Invoice]],1)="0",LEFT(Table147[[#This Row],[Invoice]],1)="1"),INDEX(Invoice_dates,MATCH(Table147[[#This Row],[Invoice]],'2023 Invoice Payments'!$L$1:$L$100,0),2),"") ->  | M160: Y:\$ AerospaceEdge\AGG Finance\AGG Credit Card Receipts\ | N160: 231230 - ANG Invoice 2023-9002 (with receipts) | O160: =IF(RIGHT(Table147[[#This Row],[Charge Receipt]],3)<>"pdf","",IF(FileExists(Table147[[#This Row],[Column1]]&Table147[[#This Row],[Charge Receipt]]),FileExists(Table147[[#This Row],[Column1]]&Table147[[#This Row],[Charge Receipt]]),FileExists("Y:\$ AerospaceEdge\AGG Finance\AGG Distribution Documents\"&Table147[[#This Row],[Charge Receipt]]))) -> 
A161: BA | B161: 2023-04-11 | C161: CROCOBLOCK.COM 04/10 PURCHASE FORT LAUDERDA FL DEBIT CARD *7429 | D161: -49 | E161: =IF(Table147[[#This Row],[Bank Acct]]=LEFT(Table147[[#Headers],[BA Balance]],2),SUMIF(Table147[[#Headers],[Bank Acct]]:Table147[[#This Row],[Bank Acct]],Table147[[#This Row],[Bank Acct]],Table147[[#Headers],[Amount]]:Table147[[#This Row],[Amount]]),"") -> 1283.4 | F161: =IF(Table147[[#This Row],[Bank Acct]]=LEFT(Table147[[#Headers],[WF Balance]],2),SUMIF(Table147[[#Headers],[Bank Acct]]:Table147[[#This Row],[Bank Acct]],Table147[[#This Row],[Bank Acct]],Table147[[#Headers],[Amount]]:Table147[[#This Row],[Amount]]),"") ->  | G161: =IFERROR(INDEX(Lookup!$B$2:$C$7,MATCH(RIGHT(TRIM(Table147[[#This Row],[Description]]),4),Lookup!$B$2:$B$7,0),2),"") -> FWC | H161: Peregrine | I161: Web Tools | K161: 006-23 | L161: =IF(OR(LEFT(Table147[[#This Row],[Invoice]],1)="0",LEFT(Table147[[#This Row],[Invoice]],1)="1"),INDEX(Invoice_dates,MATCH(Table147[[#This Row],[Invoice]],'2023 Invoice Payments'!$L$1:$L$100,0),2),"") -> 2023-06-07 | M161: Y:\$ AerospaceEdge\AGG Finance\AGG Credit Card Receipts\ | N161: 230410 - Crocoblock JetElements 1478336.pdf | O161: =IF(RIGHT(Table147[[#This Row],[Charge Receipt]],3)<>"pdf","",IF(FileExists(Table147[[#This Row],[Column1]]&Table147[[#This Row],[Charge Receipt]]),FileExists(Table147[[#This Row],[Column1]]&Table147[[#This Row],[Charge Receipt]]),FileExists("Y:\$ AerospaceEdge\AGG Finance\AGG Distribution Documents\"&Table147[[#This Row],[Charge Receipt]]))) -> TRUE
A162: BA | B162: 2023-04-11 | C162: External transfer fee - 3 Day - 04/10/2023 Confirmation: 433411740 | D162: -1 | E162: =IF(Table147[[#This Row],[Bank Acct]]=LEFT(Table147[[#Headers],[BA Balance]],2),SUMIF(Table147[[#Headers],[Bank Acct]]:Table147[[#This Row],[Bank Acct]],Table147[[#This Row],[Bank Acct]],Table147[[#Headers],[Amount]]:Table147[[#This Row],[Amount]]),"") -> 1282.4 | F162: =IF(Table147[[#This Row],[Bank Acct]]=LEFT(Table147[[#Headers],[WF Balance]],2),SUMIF(Table147[[#Headers],[Bank Acct]]:Table147[[#This Row],[Bank Acct]],Table147[[#This Row],[Bank Acct]],Table147[[#Headers],[Amount]]:Table147[[#This Row],[Amount]]),"") ->  | G162: =IFERROR(INDEX(Lookup!$B$2:$C$7,MATCH(RIGHT(TRIM(Table147[[#This Row],[Description]]),4),Lookup!$B$2:$B$7,0),2),"") ->  | H162: AE | I162: Bank Charge | L162: =IF(OR(LEFT(Table147[[#This Row],[Invoice]],1)="0",LEFT(Table147[[#This Row],[Invoice]],1)="1"),INDEX(Invoice_dates,MATCH(Table147[[#This Row],[Invoice]],'2023 Invoice Payments'!$L$1:$L$100,0),2),"") ->  | M162: Y:\$ AerospaceEdge\AGG Finance\AGG Credit Card Receipts\ | N162: None available | O162: =IF(RIGHT(Table147[[#This Row],[Charge Receipt]],3)<>"pdf","",IF(FileExists(Table147[[#This Row],[Column1]]&Table147[[#This Row],[Charge Receipt]]),FileExists(Table147[[#This Row],[Column1]]&Table147[[#This Row],[Charge Receipt]]),FileExists("Y:\$ AerospaceEdge\AGG Finance\AGG Distribution Documents\"&Table147[[#This Row],[Charge Receipt]]))) -> 
A163: BA | B163: 2023-04-17 | C163: STAMPS.COM 04/14 PURCHASE 855-608-2677 TX DEBIT CARD *7411 | D163: -17.99 | E163: =IF(Table147[[#This Row],[Bank Acct]]=LEFT(Table147[[#Headers],[BA Balance]],2),SUMIF(Table147[[#Headers],[Bank Acct]]:Table147[[#This Row],[Bank Acct]],Table147[[#This Row],[Bank Acct]],Table147[[#Headers],[Amount]]:Table147[[#This Row],[Amount]]),"") -> 1264.41 | F163: =IF(Table147[[#This Row],[Bank Acct]]=LEFT(Table147[[#Headers],[WF Balance]],2),SUMIF(Table147[[#Headers],[Bank Acct]]:Table147[[#This Row],[Bank Acct]],Table147[[#This Row],[Bank Acct]],Table147[[#Headers],[Amount]]:Table147[[#This Row],[Amount]]),"") ->  | G163: =IFERROR(INDEX(Lookup!$B$2:$C$7,MATCH(RIGHT(TRIM(Table147[[#This Row],[Description]]),4),Lookup!$B$2:$B$7,0),2),"") -> LRC | H163: AE | I163: Stamps | L163: =IF(OR(LEFT(Table147[[#This Row],[Invoice]],1)="0",LEFT(Table147[[#This Row],[Invoice]],1)="1"),INDEX(Invoice_dates,MATCH(Table147[[#This Row],[Invoice]],'2023 Invoice Payments'!$L$1:$L$100,0),2),"") ->  | M163: Y:\$ AerospaceEdge\AGG Finance\AGG Credit Card Receipts\ | N163: None available | O163: =IF(RIGHT(Table147[[#This Row],[Charge Receipt]],3)<>"pdf","",IF(FileExists(Table147[[#This Row],[Column1]]&Table147[[#This Row],[Charge Receipt]]),FileExists(Table147[[#This Row],[Column1]]&Table147[[#This Row],[Charge Receipt]]),FileExists("Y:\$ AerospaceEdge\AGG Finance\AGG Distribution Documents\"&Table147[[#This Row],[Charge Receipt]]))) -> 
A164: BA | B164: 2023-04-19 | C164: MAILCHIMP *MISC 04/18 PURCHASE MAILCHIMP.COM GA DEBIT CARD *7411 | D164: -13.73 | E164: =IF(Table147[[#This Row],[Bank Acct]]=LEFT(Table147[[#Headers],[BA Balance]],2),SUMIF(Table147[[#Headers],[Bank Acct]]:Table147[[#This Row],[Bank Acct]],Table147[[#This Row],[Bank Acct]],Table147[[#Headers],[Amount]]:Table147[[#This Row],[Amount]]),"") -> 1250.68 | F164: =IF(Table147[[#This Row],[Bank Acct]]=LEFT(Table147[[#Headers],[WF Balance]],2),SUMIF(Table147[[#Headers],[Bank Acct]]:Table147[[#This Row],[Bank Acct]],Table147[[#This Row],[Bank Acct]],Table147[[#Headers],[Amount]]:Table147[[#This Row],[Amount]]),"") ->  | G164: =IFERROR(INDEX(Lookup!$B$2:$C$7,MATCH(RIGHT(TRIM(Table147[[#This Row],[Description]]),4),Lookup!$B$2:$B$7,0),2),"") -> LRC | H164: AE | I164: Mailchimp | L164: =IF(OR(LEFT(Table147[[#This Row],[Invoice]],1)="0",LEFT(Table147[[#This Row],[Invoice]],1)="1"),INDEX(Invoice_dates,MATCH(Table147[[#This Row],[Invoice]],'2023 Invoice Payments'!$L$1:$L$100,0),2),"") ->  | M164: Y:\$ AerospaceEdge\AGG Finance\AGG Credit Card Receipts\ | N164: 230418 - AE - Mailchimp Essentials MC18152450.pdf | O164: =IF(RIGHT(Table147[[#This Row],[Charge Receipt]],3)<>"pdf","",IF(FileExists(Table147[[#This Row],[Column1]]&Table147[[#This Row],[Charge Receipt]]),FileExists(Table147[[#This Row],[Column1]]&Table147[[#This Row],[Charge Receipt]]),FileExists("Y:\$ AerospaceEdge\AGG Finance\AGG Distribution Documents\"&Table147[[#This Row],[Charge Receipt]]))) -> TRUE
A165: BA | B165: 2023-04-20 | C165: PEREGRINE AVIONI DES:QUICKBOOKS ID:375020979 INDN:AVIAGLOBAL GROUP, LLC CO ID:1722616653 PPD | D165: 2145.95 | E165: =IF(Table147[[#This Row],[Bank Acct]]=LEFT(Table147[[#Headers],[BA Balance]],2),SUMIF(Table147[[#Headers],[Bank Acct]]:Table147[[#This Row],[Bank Acct]],Table147[[#This Row],[Bank Acct]],Table147[[#Headers],[Amount]]:Table147[[#This Row],[Amount]]),"") -> 3396.63 | F165: =IF(Table147[[#This Row],[Bank Acct]]=LEFT(Table147[[#Headers],[WF Balance]],2),SUMIF(Table147[[#Headers],[Bank Acct]]:Table147[[#This Row],[Bank Acct]],Table147[[#This Row],[Bank Acct]],Table147[[#Headers],[Amount]]:Table147[[#This Row],[Amount]]),"") ->  | G165: =IFERROR(INDEX(Lookup!$B$2:$C$7,MATCH(RIGHT(TRIM(Table147[[#This Row],[Description]]),4),Lookup!$B$2:$B$7,0),2),"") ->  | H165: Peregrine | I165: Pmt | K165: =INDEX('2023 Invoice Payments'!B:D,MATCH(Table147[[#This Row],[Amount]],'2023 Invoice Payments'!D:D,0),1) -> 005-23 | L165: =IF(OR(LEFT(Table147[[#This Row],[Invoice]],1)="0",LEFT(Table147[[#This Row],[Invoice]],1)="1"),INDEX(Invoice_dates,MATCH(Table147[[#This Row],[Invoice]],'2023 Invoice Payments'!$L$1:$L$100,0),2),"") -> 2023-04-20 | M165: Y:\$ AerospaceEdge\AGG Finance\AGG Credit Card Receipts\ | O165: =IF(RIGHT(Table147[[#This Row],[Charge Receipt]],3)<>"pdf","",IF(FileExists(Table147[[#This Row],[Column1]]&Table147[[#This Row],[Charge Receipt]]),FileExists(Table147[[#This Row],[Column1]]&Table147[[#This Row],[Charge Receipt]]),FileExists("Y:\$ AerospaceEdge\AGG Finance\AGG Distribution Documents\"&Table147[[#This Row],[Charge Receipt]]))) -> 
A166: BA | B166: 2023-04-20 | C166: Mailchimp 04/20 PURCHASE Atlanta GA DEBIT CARD *7411 | D166: -69 | E166: =IF(Table147[[#This Row],[Bank Acct]]=LEFT(Table147[[#Headers],[BA Balance]],2),SUMIF(Table147[[#Headers],[Bank Acct]]:Table147[[#This Row],[Bank Acct]],Table147[[#This Row],[Bank Acct]],Table147[[#Headers],[Amount]]:Table147[[#This Row],[Amount]]),"") -> 3327.63 | F166: =IF(Table147[[#This Row],[Bank Acct]]=LEFT(Table147[[#Headers],[WF Balance]],2),SUMIF(Table147[[#Headers],[Bank Acct]]:Table147[[#This Row],[Bank Acct]],Table147[[#This Row],[Bank Acct]],Table147[[#Headers],[Amount]]:Table147[[#This Row],[Amount]]),"") ->  | G166: =IFERROR(INDEX(Lookup!$B$2:$C$7,MATCH(RIGHT(TRIM(Table147[[#This Row],[Description]]),4),Lookup!$B$2:$B$7,0),2),"") -> LRC | H166: Peregrine | I166: Mailchimp | J166: 006-23 | K166: 006-23 | L166: =IF(OR(LEFT(Table147[[#This Row],[Invoice]],1)="0",LEFT(Table147[[#This Row],[Invoice]],1)="1"),INDEX(Invoice_dates,MATCH(Table147[[#This Row],[Invoice]],'2023 Invoice Payments'!$L$1:$L$100,0),2),"") -> 2023-06-07 | M166: Y:\$ AerospaceEdge\AGG Finance\AGG Credit Card Receipts\ | N166: 230420 - Peregrine - Mailchimp Essentials MC18166806.pdf | O166: =IF(RIGHT(Table147[[#This Row],[Charge Receipt]],3)<>"pdf","",IF(FileExists(Table147[[#This Row],[Column1]]&Table147[[#This Row],[Charge Receipt]]),FileExists(Table147[[#This Row],[Column1]]&Table147[[#This Row],[Charge Receipt]]),FileExists("Y:\$ AerospaceEdge\AGG Finance\AGG Distribution Documents\"&Table147[[#This Row],[Charge Receipt]]))) -> TRUE
A167: BA | B167: 2023-05-01 | C167: Monthly Fee Business Adv Relationship | D167: -29.95 | E167: =IF(Table147[[#This Row],[Bank Acct]]=LEFT(Table147[[#Headers],[BA Balance]],2),SUMIF(Table147[[#Headers],[Bank Acct]]:Table147[[#This Row],[Bank Acct]],Table147[[#This Row],[Bank Acct]],Table147[[#Headers],[Amount]]:Table147[[#This Row],[Amount]]),"") -> 3297.68 | F167: =IF(Table147[[#This Row],[Bank Acct]]=LEFT(Table147[[#Headers],[WF Balance]],2),SUMIF(Table147[[#Headers],[Bank Acct]]:Table147[[#This Row],[Bank Acct]],Table147[[#This Row],[Bank Acct]],Table147[[#Headers],[Amount]]:Table147[[#This Row],[Amount]]),"") ->  | G167: =IFERROR(INDEX(Lookup!$B$2:$C$7,MATCH(RIGHT(TRIM(Table147[[#This Row],[Description]]),4),Lookup!$B$2:$B$7,0),2),"") ->  | H167: AE | I167: Bank Charge | L167: =IF(OR(LEFT(Table147[[#This Row],[Invoice]],1)="0",LEFT(Table147[[#This Row],[Invoice]],1)="1"),INDEX(Invoice_dates,MATCH(Table147[[#This Row],[Invoice]],'2023 Invoice Payments'!$L$1:$L$100,0),2),"") ->  | M167: Y:\$ AerospaceEdge\AGG Finance\AGG Credit Card Receipts\ | N167: N/A | O167: =IF(RIGHT(Table147[[#This Row],[Charge Receipt]],3)<>"pdf","",IF(FileExists(Table147[[#This Row],[Column1]]&Table147[[#This Row],[Charge Receipt]]),FileExists(Table147[[#This Row],[Column1]]&Table147[[#This Row],[Charge Receipt]]),FileExists("Y:\$ AerospaceEdge\AGG Finance\AGG Distribution Documents\"&Table147[[#This Row],[Charge Receipt]]))) -> 
A168: BA | B168: 2023-05-15 | C168: STAMPS.COM 05/14 PURCHASE 855-608-2677 TX DEBIT CARD *7411 | D168: -19.99 | E168: =IF(Table147[[#This Row],[Bank Acct]]=LEFT(Table147[[#Headers],[BA Balance]],2),SUMIF(Table147[[#Headers],[Bank Acct]]:Table147[[#This Row],[Bank Acct]],Table147[[#This Row],[Bank Acct]],Table147[[#Headers],[Amount]]:Table147[[#This Row],[Amount]]),"") -> 3277.69 | F168: =IF(Table147[[#This Row],[Bank Acct]]=LEFT(Table147[[#Headers],[WF Balance]],2),SUMIF(Table147[[#Headers],[Bank Acct]]:Table147[[#This Row],[Bank Acct]],Table147[[#This Row],[Bank Acct]],Table147[[#Headers],[Amount]]:Table147[[#This Row],[Amount]]),"") ->  | G168: =IFERROR(INDEX(Lookup!$B$2:$C$7,MATCH(RIGHT(TRIM(Table147[[#This Row],[Description]]),4),Lookup!$B$2:$B$7,0),2),"") -> LRC | H168: AE | I168: Stamps | L168: =IF(OR(LEFT(Table147[[#This Row],[Invoice]],1)="0",LEFT(Table147[[#This Row],[Invoice]],1)="1"),INDEX(Invoice_dates,MATCH(Table147[[#This Row],[Invoice]],'2023 Invoice Payments'!$L$1:$L$100,0),2),"") ->  | M168: Y:\$ AerospaceEdge\AGG Finance\AGG Credit Card Receipts\ | N168: None available | O168: =IF(RIGHT(Table147[[#This Row],[Charge Receipt]],3)<>"pdf","",IF(FileExists(Table147[[#This Row],[Column1]]&Table147[[#This Row],[Charge Receipt]]),FileExists(Table147[[#This Row],[Column1]]&Table147[[#This Row],[Charge Receipt]]),FileExists("Y:\$ AerospaceEdge\AGG Finance\AGG Distribution Documents\"&Table147[[#This Row],[Charge Receipt]]))) -> 
A169: BA | B169: 2023-05-19 | C169: MAILCHIMP *MISC 05/18 PURCHASE MAILCHIMP.COM GA DEBIT CARD *7411 | D169: -13.73 | E169: =IF(Table147[[#This Row],[Bank Acct]]=LEFT(Table147[[#Headers],[BA Balance]],2),SUMIF(Table147[[#Headers],[Bank Acct]]:Table147[[#This Row],[Bank Acct]],Table147[[#This Row],[Bank Acct]],Table147[[#Headers],[Amount]]:Table147[[#This Row],[Amount]]),"") -> 3263.96 | F169: =IF(Table147[[#This Row],[Bank Acct]]=LEFT(Table147[[#Headers],[WF Balance]],2),SUMIF(Table147[[#Headers],[Bank Acct]]:Table147[[#This Row],[Bank Acct]],Table147[[#This Row],[Bank Acct]],Table147[[#Headers],[Amount]]:Table147[[#This Row],[Amount]]),"") ->  | G169: =IFERROR(INDEX(Lookup!$B$2:$C$7,MATCH(RIGHT(TRIM(Table147[[#This Row],[Description]]),4),Lookup!$B$2:$B$7,0),2),"") -> LRC | H169: AE | I169: Mailchimp | L169: =IF(OR(LEFT(Table147[[#This Row],[Invoice]],1)="0",LEFT(Table147[[#This Row],[Invoice]],1)="1"),INDEX(Invoice_dates,MATCH(Table147[[#This Row],[Invoice]],'2023 Invoice Payments'!$L$1:$L$100,0),2),"") ->  | M169: Y:\$ AerospaceEdge\AGG Finance\AGG Credit Card Receipts\ | N169: 230518 - AE - Mailchimp Essentials MC18373670.pdf | O169: =IF(RIGHT(Table147[[#This Row],[Charge Receipt]],3)<>"pdf","",IF(FileExists(Table147[[#This Row],[Column1]]&Table147[[#This Row],[Charge Receipt]]),FileExists(Table147[[#This Row],[Column1]]&Table147[[#This Row],[Charge Receipt]]),FileExists("Y:\$ AerospaceEdge\AGG Finance\AGG Distribution Documents\"&Table147[[#This Row],[Charge Receipt]]))) -> TRUE
A170: BA | B170: 2023-05-22 | C170: Mailchimp 05/20 PURCHASE Atlanta GA DEBIT CARD *7411 | D170: -69 | E170: =IF(Table147[[#This Row],[Bank Acct]]=LEFT(Table147[[#Headers],[BA Balance]],2),SUMIF(Table147[[#Headers],[Bank Acct]]:Table147[[#This Row],[Bank Acct]],Table147[[#This Row],[Bank Acct]],Table147[[#Headers],[Amount]]:Table147[[#This Row],[Amount]]),"") -> 3194.96 | F170: =IF(Table147[[#This Row],[Bank Acct]]=LEFT(Table147[[#Headers],[WF Balance]],2),SUMIF(Table147[[#Headers],[Bank Acct]]:Table147[[#This Row],[Bank Acct]],Table147[[#This Row],[Bank Acct]],Table147[[#Headers],[Amount]]:Table147[[#This Row],[Amount]]),"") ->  | G170: =IFERROR(INDEX(Lookup!$B$2:$C$7,MATCH(RIGHT(TRIM(Table147[[#This Row],[Description]]),4),Lookup!$B$2:$B$7,0),2),"") -> LRC | H170: Peregrine | I170: Mailchimp | J170: 007-23 | K170: 007-23 | L170: =IF(OR(LEFT(Table147[[#This Row],[Invoice]],1)="0",LEFT(Table147[[#This Row],[Invoice]],1)="1"),INDEX(Invoice_dates,MATCH(Table147[[#This Row],[Invoice]],'2023 Invoice Payments'!$L$1:$L$100,0),2),"") -> 2023-07-07 | M170: Y:\$ AerospaceEdge\AGG Finance\AGG Credit Card Receipts\ | N170: 230520 - Peregrine - Mailchimp Essentials MC18387798.pdf | O170: =IF(RIGHT(Table147[[#This Row],[Charge Receipt]],3)<>"pdf","",IF(FileExists(Table147[[#This Row],[Column1]]&Table147[[#This Row],[Charge Receipt]]),FileExists(Table147[[#This Row],[Column1]]&Table147[[#This Row],[Charge Receipt]]),FileExists("Y:\$ AerospaceEdge\AGG Finance\AGG Distribution Documents\"&Table147[[#This Row],[Charge Receipt]]))) -> TRUE
A171: BA | B171: 2023-06-01 | C171: Monthly Fee Business Adv Relationship | D171: -29.95 | E171: =IF(Table147[[#This Row],[Bank Acct]]=LEFT(Table147[[#Headers],[BA Balance]],2),SUMIF(Table147[[#Headers],[Bank Acct]]:Table147[[#This Row],[Bank Acct]],Table147[[#This Row],[Bank Acct]],Table147[[#Headers],[Amount]]:Table147[[#This Row],[Amount]]),"") -> 3165.01 | F171: =IF(Table147[[#This Row],[Bank Acct]]=LEFT(Table147[[#Headers],[WF Balance]],2),SUMIF(Table147[[#Headers],[Bank Acct]]:Table147[[#This Row],[Bank Acct]],Table147[[#This Row],[Bank Acct]],Table147[[#Headers],[Amount]]:Table147[[#This Row],[Amount]]),"") ->  | G171: =IFERROR(INDEX(Lookup!$B$2:$C$7,MATCH(RIGHT(TRIM(Table147[[#This Row],[Description]]),4),Lookup!$B$2:$B$7,0),2),"") ->  | H171: AE | I171: Bank Charge | L171: =IF(OR(LEFT(Table147[[#This Row],[Invoice]],1)="0",LEFT(Table147[[#This Row],[Invoice]],1)="1"),INDEX(Invoice_dates,MATCH(Table147[[#This Row],[Invoice]],'2023 Invoice Payments'!$L$1:$L$100,0),2),"") ->  | M171: Y:\$ AerospaceEdge\AGG Finance\AGG Credit Card Receipts\ | N171: N/A | O171: =IF(RIGHT(Table147[[#This Row],[Charge Receipt]],3)<>"pdf","",IF(FileExists(Table147[[#This Row],[Column1]]&Table147[[#This Row],[Charge Receipt]]),FileExists(Table147[[#This Row],[Column1]]&Table147[[#This Row],[Charge Receipt]]),FileExists("Y:\$ AerospaceEdge\AGG Finance\AGG Distribution Documents\"&Table147[[#This Row],[Charge Receipt]]))) -> 
A172: BA | B172: 2023-06-07 | C172: PEREGRINE AVIONI DES:QUICKBOOKS ID:375020979 INDN:AVIAGLOBAL GROUP, LLC CO ID:1722616653 PPD | D172: 2118 | E172: =IF(Table147[[#This Row],[Bank Acct]]=LEFT(Table147[[#Headers],[BA Balance]],2),SUMIF(Table147[[#Headers],[Bank Acct]]:Table147[[#This Row],[Bank Acct]],Table147[[#This Row],[Bank Acct]],Table147[[#Headers],[Amount]]:Table147[[#This Row],[Amount]]),"") -> 5283.01 | F172: =IF(Table147[[#This Row],[Bank Acct]]=LEFT(Table147[[#Headers],[WF Balance]],2),SUMIF(Table147[[#Headers],[Bank Acct]]:Table147[[#This Row],[Bank Acct]],Table147[[#This Row],[Bank Acct]],Table147[[#Headers],[Amount]]:Table147[[#This Row],[Amount]]),"") ->  | G172: =IFERROR(INDEX(Lookup!$B$2:$C$7,MATCH(RIGHT(TRIM(Table147[[#This Row],[Description]]),4),Lookup!$B$2:$B$7,0),2),"") ->  | H172: Peregrine | I172: Pmt | K172: =INDEX('2023 Invoice Payments'!B:D,MATCH(Table147[[#This Row],[Amount]],'2023 Invoice Payments'!D:D,0),1) -> 006-23 | L172: =IF(OR(LEFT(Table147[[#This Row],[Invoice]],1)="0",LEFT(Table147[[#This Row],[Invoice]],1)="1"),INDEX(Invoice_dates,MATCH(Table147[[#This Row],[Invoice]],'2023 Invoice Payments'!$L$1:$L$100,0),2),"") -> 2023-06-07 | M172: Y:\$ AerospaceEdge\AGG Finance\AGG Credit Card Receipts\ | O172: =IF(RIGHT(Table147[[#This Row],[Charge Receipt]],3)<>"pdf","",IF(FileExists(Table147[[#This Row],[Column1]]&Table147[[#This Row],[Charge Receipt]]),FileExists(Table147[[#This Row],[Column1]]&Table147[[#This Row],[Charge Receipt]]),FileExists("Y:\$ AerospaceEdge\AGG Finance\AGG Distribution Documents\"&Table147[[#This Row],[Charge Receipt]]))) -> 
A173: BA | B173: 2023-06-14 | C173: STAMPS.COM 06/14 PURCHASE 8556082677 TX DEBIT CARD *7411 | D173: -19.99 | E173: =IF(Table147[[#This Row],[Bank Acct]]=LEFT(Table147[[#Headers],[BA Balance]],2),SUMIF(Table147[[#Headers],[Bank Acct]]:Table147[[#This Row],[Bank Acct]],Table147[[#This Row],[Bank Acct]],Table147[[#Headers],[Amount]]:Table147[[#This Row],[Amount]]),"") -> 5263.02 | F173: =IF(Table147[[#This Row],[Bank Acct]]=LEFT(Table147[[#Headers],[WF Balance]],2),SUMIF(Table147[[#Headers],[Bank Acct]]:Table147[[#This Row],[Bank Acct]],Table147[[#This Row],[Bank Acct]],Table147[[#Headers],[Amount]]:Table147[[#This Row],[Amount]]),"") ->  | G173: =IFERROR(INDEX(Lookup!$B$2:$C$7,MATCH(RIGHT(TRIM(Table147[[#This Row],[Description]]),4),Lookup!$B$2:$B$7,0),2),"") -> LRC | H173: AE | I173: Stamps | L173: =IF(OR(LEFT(Table147[[#This Row],[Invoice]],1)="0",LEFT(Table147[[#This Row],[Invoice]],1)="1"),INDEX(Invoice_dates,MATCH(Table147[[#This Row],[Invoice]],'2023 Invoice Payments'!$L$1:$L$100,0),2),"") ->  | M173: Y:\$ AerospaceEdge\AGG Finance\AGG Credit Card Receipts\ | N173: None available | O173: =IF(RIGHT(Table147[[#This Row],[Charge Receipt]],3)<>"pdf","",IF(FileExists(Table147[[#This Row],[Column1]]&Table147[[#This Row],[Charge Receipt]]),FileExists(Table147[[#This Row],[Column1]]&Table147[[#This Row],[Charge Receipt]]),FileExists("Y:\$ AerospaceEdge\AGG Finance\AGG Distribution Documents\"&Table147[[#This Row],[Charge Receipt]]))) -> 
A174: BA | B174: 2023-06-15 | C174: DOWNLOADMO* #5533 06/14 PURCHASE 00 DEBIT CARD *7429 | D174: -159 | E174: =IF(Table147[[#This Row],[Bank Acct]]=LEFT(Table147[[#Headers],[BA Balance]],2),SUMIF(Table147[[#Headers],[Bank Acct]]:Table147[[#This Row],[Bank Acct]],Table147[[#This Row],[Bank Acct]],Table147[[#Headers],[Amount]]:Table147[[#This Row],[Amount]]),"") -> 5104.02 | F174: =IF(Table147[[#This Row],[Bank Acct]]=LEFT(Table147[[#Headers],[WF Balance]],2),SUMIF(Table147[[#Headers],[Bank Acct]]:Table147[[#This Row],[Bank Acct]],Table147[[#This Row],[Bank Acct]],Table147[[#Headers],[Amount]]:Table147[[#This Row],[Amount]]),"") ->  | G174: =IFERROR(INDEX(Lookup!$B$2:$C$7,MATCH(RIGHT(TRIM(Table147[[#This Row],[Description]]),4),Lookup!$B$2:$B$7,0),2),"") -> FWC | H174: Peregrine | I174: Web Tools | K174: 007-23 | L174: =IF(OR(LEFT(Table147[[#This Row],[Invoice]],1)="0",LEFT(Table147[[#This Row],[Invoice]],1)="1"),INDEX(Invoice_dates,MATCH(Table147[[#This Row],[Invoice]],'2023 Invoice Payments'!$L$1:$L$100,0),2),"") -> 2023-07-07 | M174: Y:\$ AerospaceEdge\AGG Finance\AGG Credit Card Receipts\ | N174: 230614 - Download monitor invoice-4840.pdf | O174: =IF(RIGHT(Table147[[#This Row],[Charge Receipt]],3)<>"pdf","",IF(FileExists(Table147[[#This Row],[Column1]]&Table147[[#This Row],[Charge Receipt]]),FileExists(Table147[[#This Row],[Column1]]&Table147[[#This Row],[Charge Receipt]]),FileExists("Y:\$ AerospaceEdge\AGG Finance\AGG Distribution Documents\"&Table147[[#This Row],[Charge Receipt]]))) -> TRUE
A175: BA | B175: 2023-06-16 | C175: TRANSFER AVIAGLOBAL GROUP, LL:ADS-B Global LLC Confirmation# 0694467400 | D175: -1500 | E175: =IF(Table147[[#This Row],[Bank Acct]]=LEFT(Table147[[#Headers],[BA Balance]],2),SUMIF(Table147[[#Headers],[Bank Acct]]:Table147[[#This Row],[Bank Acct]],Table147[[#This Row],[Bank Acct]],Table147[[#Headers],[Amount]]:Table147[[#This Row],[Amount]]),"") -> 3604.02 | F175: =IF(Table147[[#This Row],[Bank Acct]]=LEFT(Table147[[#Headers],[WF Balance]],2),SUMIF(Table147[[#Headers],[Bank Acct]]:Table147[[#This Row],[Bank Acct]],Table147[[#This Row],[Bank Acct]],Table147[[#Headers],[Amount]]:Table147[[#This Row],[Amount]]),"") ->  | G175: =IFERROR(INDEX(Lookup!$B$2:$C$7,MATCH(RIGHT(TRIM(Table147[[#This Row],[Description]]),4),Lookup!$B$2:$B$7,0),2),"") ->  | H175: AE | I175: Distibution | L175: =IF(OR(LEFT(Table147[[#This Row],[Invoice]],1)="0",LEFT(Table147[[#This Row],[Invoice]],1)="1"),INDEX(Invoice_dates,MATCH(Table147[[#This Row],[Invoice]],'2023 Invoice Payments'!$L$1:$L$100,0),2),"") ->  | M175: Y:\$ AerospaceEdge\AGG Finance\AGG Credit Card Receipts\ | N175: 230616 - Distribution Authorization - LRC FWC.pdf | O175: =IF(RIGHT(Table147[[#This Row],[Charge Receipt]],3)<>"pdf","",IF(FileExists(Table147[[#This Row],[Column1]]&Table147[[#This Row],[Charge Receipt]]),FileExists(Table147[[#This Row],[Column1]]&Table147[[#This Row],[Charge Receipt]]),FileExists("Y:\$ AerospaceEdge\AGG Finance\AGG Distribution Documents\"&Table147[[#This Row],[Charge Receipt]]))) -> TRUE
A176: BA | B176: 2023-06-16 | C176: TRANSFER AVIAGLOBAL GROUP, LL:Forrest Colliver Confirmation# 0694474763 | D176: -1500 | E176: =IF(Table147[[#This Row],[Bank Acct]]=LEFT(Table147[[#Headers],[BA Balance]],2),SUMIF(Table147[[#Headers],[Bank Acct]]:Table147[[#This Row],[Bank Acct]],Table147[[#This Row],[Bank Acct]],Table147[[#Headers],[Amount]]:Table147[[#This Row],[Amount]]),"") -> 2104.02 | F176: =IF(Table147[[#This Row],[Bank Acct]]=LEFT(Table147[[#Headers],[WF Balance]],2),SUMIF(Table147[[#Headers],[Bank Acct]]:Table147[[#This Row],[Bank Acct]],Table147[[#This Row],[Bank Acct]],Table147[[#Headers],[Amount]]:Table147[[#This Row],[Amount]]),"") ->  | G176: =IFERROR(INDEX(Lookup!$B$2:$C$7,MATCH(RIGHT(TRIM(Table147[[#This Row],[Description]]),4),Lookup!$B$2:$B$7,0),2),"") ->  | H176: AE | I176: Distibution | L176: =IF(OR(LEFT(Table147[[#This Row],[Invoice]],1)="0",LEFT(Table147[[#This Row],[Invoice]],1)="1"),INDEX(Invoice_dates,MATCH(Table147[[#This Row],[Invoice]],'2023 Invoice Payments'!$L$1:$L$100,0),2),"") ->  | M176: Y:\$ AerospaceEdge\AGG Finance\AGG Credit Card Receipts\ | N176: 230616 - Distribution Authorization - LRC FWC.pdf | O176: =IF(RIGHT(Table147[[#This Row],[Charge Receipt]],3)<>"pdf","",IF(FileExists(Table147[[#This Row],[Column1]]&Table147[[#This Row],[Charge Receipt]]),FileExists(Table147[[#This Row],[Column1]]&Table147[[#This Row],[Charge Receipt]]),FileExists("Y:\$ AerospaceEdge\AGG Finance\AGG Distribution Documents\"&Table147[[#This Row],[Charge Receipt]]))) -> TRUE
A177: BA | B177: 2023-06-20 | C177: MAILCHIMP *MISC 06/18 PURCHASE GA DEBIT CARD *7411 | D177: -13.73 | E177: =IF(Table147[[#This Row],[Bank Acct]]=LEFT(Table147[[#Headers],[BA Balance]],2),SUMIF(Table147[[#Headers],[Bank Acct]]:Table147[[#This Row],[Bank Acct]],Table147[[#This Row],[Bank Acct]],Table147[[#Headers],[Amount]]:Table147[[#This Row],[Amount]]),"") -> 2090.29 | F177: =IF(Table147[[#This Row],[Bank Acct]]=LEFT(Table147[[#Headers],[WF Balance]],2),SUMIF(Table147[[#Headers],[Bank Acct]]:Table147[[#This Row],[Bank Acct]],Table147[[#This Row],[Bank Acct]],Table147[[#Headers],[Amount]]:Table147[[#This Row],[Amount]]),"") ->  | G177: =IFERROR(INDEX(Lookup!$B$2:$C$7,MATCH(RIGHT(TRIM(Table147[[#This Row],[Description]]),4),Lookup!$B$2:$B$7,0),2),"") -> LRC | H177: AE | I177: Mailchimp | L177: =IF(OR(LEFT(Table147[[#This Row],[Invoice]],1)="0",LEFT(Table147[[#This Row],[Invoice]],1)="1"),INDEX(Invoice_dates,MATCH(Table147[[#This Row],[Invoice]],'2023 Invoice Payments'!$L$1:$L$100,0),2),"") ->  | M177: Y:\$ AerospaceEdge\AGG Finance\AGG Credit Card Receipts\ | N177: 230618 - AE - Mailchimp Essentials MC18592130.pdf | O177: =IF(RIGHT(Table147[[#This Row],[Charge Receipt]],3)<>"pdf","",IF(FileExists(Table147[[#This Row],[Column1]]&Table147[[#This Row],[Charge Receipt]]),FileExists(Table147[[#This Row],[Column1]]&Table147[[#This Row],[Charge Receipt]]),FileExists("Y:\$ AerospaceEdge\AGG Finance\AGG Distribution Documents\"&Table147[[#This Row],[Charge Receipt]]))) -> TRUE
A178: BA | B178: 2023-06-20 | C178: Mailchimp 06/20 PURCHASE 6789990141 GA DEBIT CARD *7411 | D178: -69 | E178: =IF(Table147[[#This Row],[Bank Acct]]=LEFT(Table147[[#Headers],[BA Balance]],2),SUMIF(Table147[[#Headers],[Bank Acct]]:Table147[[#This Row],[Bank Acct]],Table147[[#This Row],[Bank Acct]],Table147[[#Headers],[Amount]]:Table147[[#This Row],[Amount]]),"") -> 2021.29 | F178: =IF(Table147[[#This Row],[Bank Acct]]=LEFT(Table147[[#Headers],[WF Balance]],2),SUMIF(Table147[[#Headers],[Bank Acct]]:Table147[[#This Row],[Bank Acct]],Table147[[#This Row],[Bank Acct]],Table147[[#Headers],[Amount]]:Table147[[#This Row],[Amount]]),"") ->  | G178: =IFERROR(INDEX(Lookup!$B$2:$C$7,MATCH(RIGHT(TRIM(Table147[[#This Row],[Description]]),4),Lookup!$B$2:$B$7,0),2),"") -> LRC | H178: Peregrine | I178: Mailchimp | J178: 008-23 | K178: 008-23 | L178: =IF(OR(LEFT(Table147[[#This Row],[Invoice]],1)="0",LEFT(Table147[[#This Row],[Invoice]],1)="1"),INDEX(Invoice_dates,MATCH(Table147[[#This Row],[Invoice]],'2023 Invoice Payments'!$L$1:$L$100,0),2),"") -> 2023-08-16 | M178: Y:\$ AerospaceEdge\AGG Finance\AGG Credit Card Receipts\ | N178: 230620 - Peregrine - Mailchimp Essentials MC18605982.pdf | O178: =IF(RIGHT(Table147[[#This Row],[Charge Receipt]],3)<>"pdf","",IF(FileExists(Table147[[#This Row],[Column1]]&Table147[[#This Row],[Charge Receipt]]),FileExists(Table147[[#This Row],[Column1]]&Table147[[#This Row],[Charge Receipt]]),FileExists("Y:\$ AerospaceEdge\AGG Finance\AGG Distribution Documents\"&Table147[[#This Row],[Charge Receipt]]))) -> TRUE
A179: BA | B179: 2023-06-20 | C179: External transfer fee - Next Day - 06/16/2023 Confirmation: 442983694 | D179: -5 | E179: =IF(Table147[[#This Row],[Bank Acct]]=LEFT(Table147[[#Headers],[BA Balance]],2),SUMIF(Table147[[#Headers],[Bank Acct]]:Table147[[#This Row],[Bank Acct]],Table147[[#This Row],[Bank Acct]],Table147[[#Headers],[Amount]]:Table147[[#This Row],[Amount]]),"") -> 2016.29 | F179: =IF(Table147[[#This Row],[Bank Acct]]=LEFT(Table147[[#Headers],[WF Balance]],2),SUMIF(Table147[[#Headers],[Bank Acct]]:Table147[[#This Row],[Bank Acct]],Table147[[#This Row],[Bank Acct]],Table147[[#Headers],[Amount]]:Table147[[#This Row],[Amount]]),"") ->  | G179: =IFERROR(INDEX(Lookup!$B$2:$C$7,MATCH(RIGHT(TRIM(Table147[[#This Row],[Description]]),4),Lookup!$B$2:$B$7,0),2),"") ->  | H179: AE | I179: Bank Charge | L179: =IF(OR(LEFT(Table147[[#This Row],[Invoice]],1)="0",LEFT(Table147[[#This Row],[Invoice]],1)="1"),INDEX(Invoice_dates,MATCH(Table147[[#This Row],[Invoice]],'2023 Invoice Payments'!$L$1:$L$100,0),2),"") ->  | M179: Y:\$ AerospaceEdge\AGG Finance\AGG Credit Card Receipts\ | N179: None available | O179: =IF(RIGHT(Table147[[#This Row],[Charge Receipt]],3)<>"pdf","",IF(FileExists(Table147[[#This Row],[Column1]]&Table147[[#This Row],[Charge Receipt]]),FileExists(Table147[[#This Row],[Column1]]&Table147[[#This Row],[Charge Receipt]]),FileExists("Y:\$ AerospaceEdge\AGG Finance\AGG Distribution Documents\"&Table147[[#This Row],[Charge Receipt]]))) -> 
A180: BA | B180: 2023-06-20 | C180: External transfer fee - Next Day - 06/16/2023 Confirmation: 442983904 | D180: -5 | E180: =IF(Table147[[#This Row],[Bank Acct]]=LEFT(Table147[[#Headers],[BA Balance]],2),SUMIF(Table147[[#Headers],[Bank Acct]]:Table147[[#This Row],[Bank Acct]],Table147[[#This Row],[Bank Acct]],Table147[[#Headers],[Amount]]:Table147[[#This Row],[Amount]]),"") -> 2011.29 | F180: =IF(Table147[[#This Row],[Bank Acct]]=LEFT(Table147[[#Headers],[WF Balance]],2),SUMIF(Table147[[#Headers],[Bank Acct]]:Table147[[#This Row],[Bank Acct]],Table147[[#This Row],[Bank Acct]],Table147[[#Headers],[Amount]]:Table147[[#This Row],[Amount]]),"") ->  | G180: =IFERROR(INDEX(Lookup!$B$2:$C$7,MATCH(RIGHT(TRIM(Table147[[#This Row],[Description]]),4),Lookup!$B$2:$B$7,0),2),"") ->  | H180: AE | I180: Bank Charge | L180: =IF(OR(LEFT(Table147[[#This Row],[Invoice]],1)="0",LEFT(Table147[[#This Row],[Invoice]],1)="1"),INDEX(Invoice_dates,MATCH(Table147[[#This Row],[Invoice]],'2023 Invoice Payments'!$L$1:$L$100,0),2),"") ->  | M180: Y:\$ AerospaceEdge\AGG Finance\AGG Credit Card Receipts\ | N180: None available | O180: =IF(RIGHT(Table147[[#This Row],[Charge Receipt]],3)<>"pdf","",IF(FileExists(Table147[[#This Row],[Column1]]&Table147[[#This Row],[Charge Receipt]]),FileExists(Table147[[#This Row],[Column1]]&Table147[[#This Row],[Charge Receipt]]),FileExists("Y:\$ AerospaceEdge\AGG Finance\AGG Distribution Documents\"&Table147[[#This Row],[Charge Receipt]]))) -> 
A181: BA | B181: 2023-07-03 | C181: Monthly Fee Business Adv Relationship | D181: -29.95 | E181: =IF(Table147[[#This Row],[Bank Acct]]=LEFT(Table147[[#Headers],[BA Balance]],2),SUMIF(Table147[[#Headers],[Bank Acct]]:Table147[[#This Row],[Bank Acct]],Table147[[#This Row],[Bank Acct]],Table147[[#Headers],[Amount]]:Table147[[#This Row],[Amount]]),"") -> 1981.34 | F181: =IF(Table147[[#This Row],[Bank Acct]]=LEFT(Table147[[#Headers],[WF Balance]],2),SUMIF(Table147[[#Headers],[Bank Acct]]:Table147[[#This Row],[Bank Acct]],Table147[[#This Row],[Bank Acct]],Table147[[#Headers],[Amount]]:Table147[[#This Row],[Amount]]),"") ->  | G181: =IFERROR(INDEX(Lookup!$B$2:$C$7,MATCH(RIGHT(TRIM(Table147[[#This Row],[Description]]),4),Lookup!$B$2:$B$7,0),2),"") ->  | H181: AE | I181: Bank Charge | L181: =IF(OR(LEFT(Table147[[#This Row],[Invoice]],1)="0",LEFT(Table147[[#This Row],[Invoice]],1)="1"),INDEX(Invoice_dates,MATCH(Table147[[#This Row],[Invoice]],'2023 Invoice Payments'!$L$1:$L$100,0),2),"") ->  | M181: Y:\$ AerospaceEdge\AGG Finance\AGG Credit Card Receipts\ | N181: N/A | O181: =IF(RIGHT(Table147[[#This Row],[Charge Receipt]],3)<>"pdf","",IF(FileExists(Table147[[#This Row],[Column1]]&Table147[[#This Row],[Charge Receipt]]),FileExists(Table147[[#This Row],[Column1]]&Table147[[#This Row],[Charge Receipt]]),FileExists("Y:\$ AerospaceEdge\AGG Finance\AGG Distribution Documents\"&Table147[[#This Row],[Charge Receipt]]))) -> 
A182: BA | B182: 2023-07-07 | C182: PEREGRINE AVIONI DES:QUICKBOOKS ID:375020979 INDN:AVIAGLOBAL GROUP, LLC CO ID:1722616653 PPD | D182: 2228 | E182: =IF(Table147[[#This Row],[Bank Acct]]=LEFT(Table147[[#Headers],[BA Balance]],2),SUMIF(Table147[[#Headers],[Bank Acct]]:Table147[[#This Row],[Bank Acct]],Table147[[#This Row],[Bank Acct]],Table147[[#Headers],[Amount]]:Table147[[#This Row],[Amount]]),"") -> 4209.34 | F182: =IF(Table147[[#This Row],[Bank Acct]]=LEFT(Table147[[#Headers],[WF Balance]],2),SUMIF(Table147[[#Headers],[Bank Acct]]:Table147[[#This Row],[Bank Acct]],Table147[[#This Row],[Bank Acct]],Table147[[#Headers],[Amount]]:Table147[[#This Row],[Amount]]),"") ->  | G182: =IFERROR(INDEX(Lookup!$B$2:$C$7,MATCH(RIGHT(TRIM(Table147[[#This Row],[Description]]),4),Lookup!$B$2:$B$7,0),2),"") ->  | H182: Peregrine | I182: Pmt | K182: =INDEX('2023 Invoice Payments'!B:D,MATCH(Table147[[#This Row],[Amount]],'2023 Invoice Payments'!D:D,0),1) -> 007-23 | L182: =IF(OR(LEFT(Table147[[#This Row],[Invoice]],1)="0",LEFT(Table147[[#This Row],[Invoice]],1)="1"),INDEX(Invoice_dates,MATCH(Table147[[#This Row],[Invoice]],'2023 Invoice Payments'!$L$1:$L$100,0),2),"") -> 2023-07-07 | M182: Y:\$ AerospaceEdge\AGG Finance\AGG Credit Card Receipts\ | O182: =IF(RIGHT(Table147[[#This Row],[Charge Receipt]],3)<>"pdf","",IF(FileExists(Table147[[#This Row],[Column1]]&Table147[[#This Row],[Charge Receipt]]),FileExists(Table147[[#This Row],[Column1]]&Table147[[#This Row],[Charge Receipt]]),FileExists("Y:\$ AerospaceEdge\AGG Finance\AGG Distribution Documents\"&Table147[[#This Row],[Charge Receipt]]))) -> 
A183: BA | B183: 2023-07-14 | C183: STAMPS.COM 07/14 PURCHASE 8556082677 TX DEBIT CARD *7411 | D183: -19.99 | E183: =IF(Table147[[#This Row],[Bank Acct]]=LEFT(Table147[[#Headers],[BA Balance]],2),SUMIF(Table147[[#Headers],[Bank Acct]]:Table147[[#This Row],[Bank Acct]],Table147[[#This Row],[Bank Acct]],Table147[[#Headers],[Amount]]:Table147[[#This Row],[Amount]]),"") -> 4189.35 | F183: =IF(Table147[[#This Row],[Bank Acct]]=LEFT(Table147[[#Headers],[WF Balance]],2),SUMIF(Table147[[#Headers],[Bank Acct]]:Table147[[#This Row],[Bank Acct]],Table147[[#This Row],[Bank Acct]],Table147[[#Headers],[Amount]]:Table147[[#This Row],[Amount]]),"") ->  | G183: =IFERROR(INDEX(Lookup!$B$2:$C$7,MATCH(RIGHT(TRIM(Table147[[#This Row],[Description]]),4),Lookup!$B$2:$B$7,0),2),"") -> LRC | H183: AE | I183: Stamps | L183: =IF(OR(LEFT(Table147[[#This Row],[Invoice]],1)="0",LEFT(Table147[[#This Row],[Invoice]],1)="1"),INDEX(Invoice_dates,MATCH(Table147[[#This Row],[Invoice]],'2023 Invoice Payments'!$L$1:$L$100,0),2),"") ->  | M183: Y:\$ AerospaceEdge\AGG Finance\AGG Credit Card Receipts\ | N183: None available | O183: =IF(RIGHT(Table147[[#This Row],[Charge Receipt]],3)<>"pdf","",IF(FileExists(Table147[[#This Row],[Column1]]&Table147[[#This Row],[Charge Receipt]]),FileExists(Table147[[#This Row],[Column1]]&Table147[[#This Row],[Charge Receipt]]),FileExists("Y:\$ AerospaceEdge\AGG Finance\AGG Distribution Documents\"&Table147[[#This Row],[Charge Receipt]]))) -> 
A184: BA | B184: 2023-07-19 | C184: MAILCHIMP *MISC 07/18 PURCHASE GA DEBIT CARD *7411 | D184: -13.73 | E184: =IF(Table147[[#This Row],[Bank Acct]]=LEFT(Table147[[#Headers],[BA Balance]],2),SUMIF(Table147[[#Headers],[Bank Acct]]:Table147[[#This Row],[Bank Acct]],Table147[[#This Row],[Bank Acct]],Table147[[#Headers],[Amount]]:Table147[[#This Row],[Amount]]),"") -> 4175.62 | F184: =IF(Table147[[#This Row],[Bank Acct]]=LEFT(Table147[[#Headers],[WF Balance]],2),SUMIF(Table147[[#Headers],[Bank Acct]]:Table147[[#This Row],[Bank Acct]],Table147[[#This Row],[Bank Acct]],Table147[[#Headers],[Amount]]:Table147[[#This Row],[Amount]]),"") ->  | G184: =IFERROR(INDEX(Lookup!$B$2:$C$7,MATCH(RIGHT(TRIM(Table147[[#This Row],[Description]]),4),Lookup!$B$2:$B$7,0),2),"") -> LRC | H184: AE | I184: Mailchimp | L184: =IF(OR(LEFT(Table147[[#This Row],[Invoice]],1)="0",LEFT(Table147[[#This Row],[Invoice]],1)="1"),INDEX(Invoice_dates,MATCH(Table147[[#This Row],[Invoice]],'2023 Invoice Payments'!$L$1:$L$100,0),2),"") ->  | M184: Y:\$ AerospaceEdge\AGG Finance\AGG Credit Card Receipts\ | N184: 230718 - AE - Mailchimp Essentials MC18807170.pdf | O184: =IF(RIGHT(Table147[[#This Row],[Charge Receipt]],3)<>"pdf","",IF(FileExists(Table147[[#This Row],[Column1]]&Table147[[#This Row],[Charge Receipt]]),FileExists(Table147[[#This Row],[Column1]]&Table147[[#This Row],[Charge Receipt]]),FileExists("Y:\$ AerospaceEdge\AGG Finance\AGG Distribution Documents\"&Table147[[#This Row],[Charge Receipt]]))) -> TRUE
A185: BA | B185: 2023-07-20 | C185: Mailchimp 07/20 PURCHASE 6789990141 GA DEBIT CARD *7411 | D185: -69 | E185: =IF(Table147[[#This Row],[Bank Acct]]=LEFT(Table147[[#Headers],[BA Balance]],2),SUMIF(Table147[[#Headers],[Bank Acct]]:Table147[[#This Row],[Bank Acct]],Table147[[#This Row],[Bank Acct]],Table147[[#Headers],[Amount]]:Table147[[#This Row],[Amount]]),"") -> 4106.62 | F185: =IF(Table147[[#This Row],[Bank Acct]]=LEFT(Table147[[#Headers],[WF Balance]],2),SUMIF(Table147[[#Headers],[Bank Acct]]:Table147[[#This Row],[Bank Acct]],Table147[[#This Row],[Bank Acct]],Table147[[#Headers],[Amount]]:Table147[[#This Row],[Amount]]),"") ->  | G185: =IFERROR(INDEX(Lookup!$B$2:$C$7,MATCH(RIGHT(TRIM(Table147[[#This Row],[Description]]),4),Lookup!$B$2:$B$7,0),2),"") -> LRC | H185: Peregrine | I185: Mailchimp | J185: 009-23 | K185: 009-23 | L185: =IF(OR(LEFT(Table147[[#This Row],[Invoice]],1)="0",LEFT(Table147[[#This Row],[Invoice]],1)="1"),INDEX(Invoice_dates,MATCH(Table147[[#This Row],[Invoice]],'2023 Invoice Payments'!$L$1:$L$100,0),2),"") -> 2023-09-13 | M185: Y:\$ AerospaceEdge\AGG Finance\AGG Credit Card Receipts\ | N185: 230720 - Peregrine - Mailchimp Essentials MC18821094.pdf | O185: =IF(RIGHT(Table147[[#This Row],[Charge Receipt]],3)<>"pdf","",IF(FileExists(Table147[[#This Row],[Column1]]&Table147[[#This Row],[Charge Receipt]]),FileExists(Table147[[#This Row],[Column1]]&Table147[[#This Row],[Charge Receipt]]),FileExists("Y:\$ AerospaceEdge\AGG Finance\AGG Distribution Documents\"&Table147[[#This Row],[Charge Receipt]]))) -> TRUE
A186: BA | B186: 2023-08-01 | C186: Monthly Fee Business Adv Relationship | D186: -29.95 | E186: =IF(Table147[[#This Row],[Bank Acct]]=LEFT(Table147[[#Headers],[BA Balance]],2),SUMIF(Table147[[#Headers],[Bank Acct]]:Table147[[#This Row],[Bank Acct]],Table147[[#This Row],[Bank Acct]],Table147[[#Headers],[Amount]]:Table147[[#This Row],[Amount]]),"") -> 4076.67 | F186: =IF(Table147[[#This Row],[Bank Acct]]=LEFT(Table147[[#Headers],[WF Balance]],2),SUMIF(Table147[[#Headers],[Bank Acct]]:Table147[[#This Row],[Bank Acct]],Table147[[#This Row],[Bank Acct]],Table147[[#Headers],[Amount]]:Table147[[#This Row],[Amount]]),"") ->  | G186: =IFERROR(INDEX(Lookup!$B$2:$C$7,MATCH(RIGHT(TRIM(Table147[[#This Row],[Description]]),4),Lookup!$B$2:$B$7,0),2),"") ->  | H186: AE | I186: Bank Charge | L186: =IF(OR(LEFT(Table147[[#This Row],[Invoice]],1)="0",LEFT(Table147[[#This Row],[Invoice]],1)="1"),INDEX(Invoice_dates,MATCH(Table147[[#This Row],[Invoice]],'2023 Invoice Payments'!$L$1:$L$100,0),2),"") ->  | M186: Y:\$ AerospaceEdge\AGG Finance\AGG Credit Card Receipts\ | N186: N/A | O186: =IF(RIGHT(Table147[[#This Row],[Charge Receipt]],3)<>"pdf","",IF(FileExists(Table147[[#This Row],[Column1]]&Table147[[#This Row],[Charge Receipt]]),FileExists(Table147[[#This Row],[Column1]]&Table147[[#This Row],[Charge Receipt]]),FileExists("Y:\$ AerospaceEdge\AGG Finance\AGG Distribution Documents\"&Table147[[#This Row],[Charge Receipt]]))) -> 
A187: BA | B187: 2023-08-07 | C187: TRANSFER AVIAGLOBAL GROUP, LL:ADS-B Global LLC Confirmation# 0440650811 | D187: -1500 | E187: =IF(Table147[[#This Row],[Bank Acct]]=LEFT(Table147[[#Headers],[BA Balance]],2),SUMIF(Table147[[#Headers],[Bank Acct]]:Table147[[#This Row],[Bank Acct]],Table147[[#This Row],[Bank Acct]],Table147[[#Headers],[Amount]]:Table147[[#This Row],[Amount]]),"") -> 2576.67 | F187: =IF(Table147[[#This Row],[Bank Acct]]=LEFT(Table147[[#Headers],[WF Balance]],2),SUMIF(Table147[[#Headers],[Bank Acct]]:Table147[[#This Row],[Bank Acct]],Table147[[#This Row],[Bank Acct]],Table147[[#Headers],[Amount]]:Table147[[#This Row],[Amount]]),"") ->  | G187: =IFERROR(INDEX(Lookup!$B$2:$C$7,MATCH(RIGHT(TRIM(Table147[[#This Row],[Description]]),4),Lookup!$B$2:$B$7,0),2),"") ->  | H187: AE | I187: Distibution | L187: =IF(OR(LEFT(Table147[[#This Row],[Invoice]],1)="0",LEFT(Table147[[#This Row],[Invoice]],1)="1"),INDEX(Invoice_dates,MATCH(Table147[[#This Row],[Invoice]],'2023 Invoice Payments'!$L$1:$L$100,0),2),"") ->  | M187: Y:\$ AerospaceEdge\AGG Finance\AGG Credit Card Receipts\ | N187: 230807 - Distribution and Payment Authorization - LRC FWC.pdf | O187: =IF(RIGHT(Table147[[#This Row],[Charge Receipt]],3)<>"pdf","",IF(FileExists(Table147[[#This Row],[Column1]]&Table147[[#This Row],[Charge Receipt]]),FileExists(Table147[[#This Row],[Column1]]&Table147[[#This Row],[Charge Receipt]]),FileExists("Y:\$ AerospaceEdge\AGG Finance\AGG Distribution Documents\"&Table147[[#This Row],[Charge Receipt]]))) -> TRUE
A188: BA | B188: 2023-08-07 | C188: TRANSFER AVIAGLOBAL GROUP, LL:Forrest Colliver Confirmation# 1340651279 | D188: -1750 | E188: =IF(Table147[[#This Row],[Bank Acct]]=LEFT(Table147[[#Headers],[BA Balance]],2),SUMIF(Table147[[#Headers],[Bank Acct]]:Table147[[#This Row],[Bank Acct]],Table147[[#This Row],[Bank Acct]],Table147[[#Headers],[Amount]]:Table147[[#This Row],[Amount]]),"") -> 826.67 | F188: =IF(Table147[[#This Row],[Bank Acct]]=LEFT(Table147[[#Headers],[WF Balance]],2),SUMIF(Table147[[#Headers],[Bank Acct]]:Table147[[#This Row],[Bank Acct]],Table147[[#This Row],[Bank Acct]],Table147[[#Headers],[Amount]]:Table147[[#This Row],[Amount]]),"") ->  | G188: =IFERROR(INDEX(Lookup!$B$2:$C$7,MATCH(RIGHT(TRIM(Table147[[#This Row],[Description]]),4),Lookup!$B$2:$B$7,0),2),"") ->  | H188: AE | I188: Distibution | L188: =IF(OR(LEFT(Table147[[#This Row],[Invoice]],1)="0",LEFT(Table147[[#This Row],[Invoice]],1)="1"),INDEX(Invoice_dates,MATCH(Table147[[#This Row],[Invoice]],'2023 Invoice Payments'!$L$1:$L$100,0),2),"") ->  | M188: Y:\$ AerospaceEdge\AGG Finance\AGG Credit Card Receipts\ | N188: 230807 - Distribution and Payment Authorization - LRC FWC.pdf, 231230 - ANG Invoice 2023-9001 (with receipts) | O188: =IF(RIGHT(Table147[[#This Row],[Charge Receipt]],3)<>"pdf","",IF(FileExists(Table147[[#This Row],[Column1]]&Table147[[#This Row],[Charge Receipt]]),FileExists(Table147[[#This Row],[Column1]]&Table147[[#This Row],[Charge Receipt]]),FileExists("Y:\$ AerospaceEdge\AGG Finance\AGG Distribution Documents\"&Table147[[#This Row],[Charge Receipt]]))) -> 
A189: BA | B189: 2023-08-08 | C189: External transfer fee - Next Day - 08/07/2023 Confirmation: 450079726 | D189: -5 | E189: =IF(Table147[[#This Row],[Bank Acct]]=LEFT(Table147[[#Headers],[BA Balance]],2),SUMIF(Table147[[#Headers],[Bank Acct]]:Table147[[#This Row],[Bank Acct]],Table147[[#This Row],[Bank Acct]],Table147[[#Headers],[Amount]]:Table147[[#This Row],[Amount]]),"") -> 821.67 | F189: =IF(Table147[[#This Row],[Bank Acct]]=LEFT(Table147[[#Headers],[WF Balance]],2),SUMIF(Table147[[#Headers],[Bank Acct]]:Table147[[#This Row],[Bank Acct]],Table147[[#This Row],[Bank Acct]],Table147[[#Headers],[Amount]]:Table147[[#This Row],[Amount]]),"") ->  | G189: =IFERROR(INDEX(Lookup!$B$2:$C$7,MATCH(RIGHT(TRIM(Table147[[#This Row],[Description]]),4),Lookup!$B$2:$B$7,0),2),"") ->  | H189: AE | I189: Bank Charge | L189: =IF(OR(LEFT(Table147[[#This Row],[Invoice]],1)="0",LEFT(Table147[[#This Row],[Invoice]],1)="1"),INDEX(Invoice_dates,MATCH(Table147[[#This Row],[Invoice]],'2023 Invoice Payments'!$L$1:$L$100,0),2),"") ->  | M189: Y:\$ AerospaceEdge\AGG Finance\AGG Credit Card Receipts\ | N189: None available | O189: =IF(RIGHT(Table147[[#This Row],[Charge Receipt]],3)<>"pdf","",IF(FileExists(Table147[[#This Row],[Column1]]&Table147[[#This Row],[Charge Receipt]]),FileExists(Table147[[#This Row],[Column1]]&Table147[[#This Row],[Charge Receipt]]),FileExists("Y:\$ AerospaceEdge\AGG Finance\AGG Distribution Documents\"&Table147[[#This Row],[Charge Receipt]]))) -> 
A190: BA | B190: 2023-08-08 | C190: External transfer fee - Next Day - 08/07/2023 Confirmation: 450079744 | D190: -5 | E190: =IF(Table147[[#This Row],[Bank Acct]]=LEFT(Table147[[#Headers],[BA Balance]],2),SUMIF(Table147[[#Headers],[Bank Acct]]:Table147[[#This Row],[Bank Acct]],Table147[[#This Row],[Bank Acct]],Table147[[#Headers],[Amount]]:Table147[[#This Row],[Amount]]),"") -> 816.67 | F190: =IF(Table147[[#This Row],[Bank Acct]]=LEFT(Table147[[#Headers],[WF Balance]],2),SUMIF(Table147[[#Headers],[Bank Acct]]:Table147[[#This Row],[Bank Acct]],Table147[[#This Row],[Bank Acct]],Table147[[#Headers],[Amount]]:Table147[[#This Row],[Amount]]),"") ->  | G190: =IFERROR(INDEX(Lookup!$B$2:$C$7,MATCH(RIGHT(TRIM(Table147[[#This Row],[Description]]),4),Lookup!$B$2:$B$7,0),2),"") ->  | H190: AE | I190: Bank Charge | L190: =IF(OR(LEFT(Table147[[#This Row],[Invoice]],1)="0",LEFT(Table147[[#This Row],[Invoice]],1)="1"),INDEX(Invoice_dates,MATCH(Table147[[#This Row],[Invoice]],'2023 Invoice Payments'!$L$1:$L$100,0),2),"") ->  | M190: Y:\$ AerospaceEdge\AGG Finance\AGG Credit Card Receipts\ | N190: None available | O190: =IF(RIGHT(Table147[[#This Row],[Charge Receipt]],3)<>"pdf","",IF(FileExists(Table147[[#This Row],[Column1]]&Table147[[#This Row],[Charge Receipt]]),FileExists(Table147[[#This Row],[Column1]]&Table147[[#This Row],[Charge Receipt]]),FileExists("Y:\$ AerospaceEdge\AGG Finance\AGG Distribution Documents\"&Table147[[#This Row],[Charge Receipt]]))) -> 
A191: BA | B191: 2023-08-14 | C191: STAMPS.COM 08/13 PURCHASE 8556082677 TX DEBIT CARD *7411 | D191: -19.99 | E191: =IF(Table147[[#This Row],[Bank Acct]]=LEFT(Table147[[#Headers],[BA Balance]],2),SUMIF(Table147[[#Headers],[Bank Acct]]:Table147[[#This Row],[Bank Acct]],Table147[[#This Row],[Bank Acct]],Table147[[#Headers],[Amount]]:Table147[[#This Row],[Amount]]),"") -> 796.68 | F191: =IF(Table147[[#This Row],[Bank Acct]]=LEFT(Table147[[#Headers],[WF Balance]],2),SUMIF(Table147[[#Headers],[Bank Acct]]:Table147[[#This Row],[Bank Acct]],Table147[[#This Row],[Bank Acct]],Table147[[#Headers],[Amount]]:Table147[[#This Row],[Amount]]),"") ->  | G191: =IFERROR(INDEX(Lookup!$B$2:$C$7,MATCH(RIGHT(TRIM(Table147[[#This Row],[Description]]),4),Lookup!$B$2:$B$7,0),2),"") -> LRC | H191: AE | I191: Stamps | L191: =IF(OR(LEFT(Table147[[#This Row],[Invoice]],1)="0",LEFT(Table147[[#This Row],[Invoice]],1)="1"),INDEX(Invoice_dates,MATCH(Table147[[#This Row],[Invoice]],'2023 Invoice Payments'!$L$1:$L$100,0),2),"") ->  | M191: Y:\$ AerospaceEdge\AGG Finance\AGG Credit Card Receipts\ | N191: None available | O191: =IF(RIGHT(Table147[[#This Row],[Charge Receipt]],3)<>"pdf","",IF(FileExists(Table147[[#This Row],[Column1]]&Table147[[#This Row],[Charge Receipt]]),FileExists(Table147[[#This Row],[Column1]]&Table147[[#This Row],[Charge Receipt]]),FileExists("Y:\$ AerospaceEdge\AGG Finance\AGG Distribution Documents\"&Table147[[#This Row],[Charge Receipt]]))) -> 
A192: BA | B192: 2023-08-16 | C192: PEREGRINE AVIONI DES:QUICKBOOKS ID:375020979 INDN:AVIAGLOBAL GROUP, LLC CO ID:1722616653 PPD | D192: 2069 | E192: =IF(Table147[[#This Row],[Bank Acct]]=LEFT(Table147[[#Headers],[BA Balance]],2),SUMIF(Table147[[#Headers],[Bank Acct]]:Table147[[#This Row],[Bank Acct]],Table147[[#This Row],[Bank Acct]],Table147[[#Headers],[Amount]]:Table147[[#This Row],[Amount]]),"") -> 2865.68 | F192: =IF(Table147[[#This Row],[Bank Acct]]=LEFT(Table147[[#Headers],[WF Balance]],2),SUMIF(Table147[[#Headers],[Bank Acct]]:Table147[[#This Row],[Bank Acct]],Table147[[#This Row],[Bank Acct]],Table147[[#Headers],[Amount]]:Table147[[#This Row],[Amount]]),"") ->  | G192: =IFERROR(INDEX(Lookup!$B$2:$C$7,MATCH(RIGHT(TRIM(Table147[[#This Row],[Description]]),4),Lookup!$B$2:$B$7,0),2),"") ->  | H192: Peregrine | I192: Pmt | K192: =INDEX('2023 Invoice Payments'!B:D,MATCH(Table147[[#This Row],[Amount]],'2023 Invoice Payments'!D:D,0),1) -> 008-23 | L192: =IF(OR(LEFT(Table147[[#This Row],[Invoice]],1)="0",LEFT(Table147[[#This Row],[Invoice]],1)="1"),INDEX(Invoice_dates,MATCH(Table147[[#This Row],[Invoice]],'2023 Invoice Payments'!$L$1:$L$100,0),2),"") -> 2023-08-16 | M192: Y:\$ AerospaceEdge\AGG Finance\AGG Credit Card Receipts\ | O192: =IF(RIGHT(Table147[[#This Row],[Charge Receipt]],3)<>"pdf","",IF(FileExists(Table147[[#This Row],[Column1]]&Table147[[#This Row],[Charge Receipt]]),FileExists(Table147[[#This Row],[Column1]]&Table147[[#This Row],[Charge Receipt]]),FileExists("Y:\$ AerospaceEdge\AGG Finance\AGG Distribution Documents\"&Table147[[#This Row],[Charge Receipt]]))) -> 
A193: BA | B193: 2023-08-21 | C193: MAILCHIMP *MISC 08/18 PURCHASE GA DEBIT CARD *7411 | D193: -13.73 | E193: =IF(Table147[[#This Row],[Bank Acct]]=LEFT(Table147[[#Headers],[BA Balance]],2),SUMIF(Table147[[#Headers],[Bank Acct]]:Table147[[#This Row],[Bank Acct]],Table147[[#This Row],[Bank Acct]],Table147[[#Headers],[Amount]]:Table147[[#This Row],[Amount]]),"") -> 2851.95 | F193: =IF(Table147[[#This Row],[Bank Acct]]=LEFT(Table147[[#Headers],[WF Balance]],2),SUMIF(Table147[[#Headers],[Bank Acct]]:Table147[[#This Row],[Bank Acct]],Table147[[#This Row],[Bank Acct]],Table147[[#Headers],[Amount]]:Table147[[#This Row],[Amount]]),"") ->  | G193: =IFERROR(INDEX(Lookup!$B$2:$C$7,MATCH(RIGHT(TRIM(Table147[[#This Row],[Description]]),4),Lookup!$B$2:$B$7,0),2),"") -> LRC | H193: AE | I193: Mailchimp | L193: =IF(OR(LEFT(Table147[[#This Row],[Invoice]],1)="0",LEFT(Table147[[#This Row],[Invoice]],1)="1"),INDEX(Invoice_dates,MATCH(Table147[[#This Row],[Invoice]],'2023 Invoice Payments'!$L$1:$L$100,0),2),"") ->  | M193: Y:\$ AerospaceEdge\AGG Finance\AGG Credit Card Receipts\ | N193: 230818 - AE - Mailchimp Essentials MC19020518.pdf | O193: =IF(RIGHT(Table147[[#This Row],[Charge Receipt]],3)<>"pdf","",IF(FileExists(Table147[[#This Row],[Column1]]&Table147[[#This Row],[Charge Receipt]]),FileExists(Table147[[#This Row],[Column1]]&Table147[[#This Row],[Charge Receipt]]),FileExists("Y:\$ AerospaceEdge\AGG Finance\AGG Distribution Documents\"&Table147[[#This Row],[Charge Receipt]]))) -> TRUE
A194: BA | B194: 2023-08-21 | C194: Mailchimp 08/20 PURCHASE 6789990141 GA DEBIT CARD *7411 | D194: -69 | E194: =IF(Table147[[#This Row],[Bank Acct]]=LEFT(Table147[[#Headers],[BA Balance]],2),SUMIF(Table147[[#Headers],[Bank Acct]]:Table147[[#This Row],[Bank Acct]],Table147[[#This Row],[Bank Acct]],Table147[[#Headers],[Amount]]:Table147[[#This Row],[Amount]]),"") -> 2782.95 | F194: =IF(Table147[[#This Row],[Bank Acct]]=LEFT(Table147[[#Headers],[WF Balance]],2),SUMIF(Table147[[#Headers],[Bank Acct]]:Table147[[#This Row],[Bank Acct]],Table147[[#This Row],[Bank Acct]],Table147[[#Headers],[Amount]]:Table147[[#This Row],[Amount]]),"") ->  | G194: =IFERROR(INDEX(Lookup!$B$2:$C$7,MATCH(RIGHT(TRIM(Table147[[#This Row],[Description]]),4),Lookup!$B$2:$B$7,0),2),"") -> LRC | H194: Peregrine | I194: Mailchimp | J194: 010-23 | K194: 010-23 | L194: =IF(OR(LEFT(Table147[[#This Row],[Invoice]],1)="0",LEFT(Table147[[#This Row],[Invoice]],1)="1"),INDEX(Invoice_dates,MATCH(Table147[[#This Row],[Invoice]],'2023 Invoice Payments'!$L$1:$L$100,0),2),"") -> 2023-10-31 | M194: Y:\$ AerospaceEdge\AGG Finance\AGG Credit Card Receipts\ | N194: 230820 - Peregrine - Mailchimp Essentials MC19034002.pdf | O194: =IF(RIGHT(Table147[[#This Row],[Charge Receipt]],3)<>"pdf","",IF(FileExists(Table147[[#This Row],[Column1]]&Table147[[#This Row],[Charge Receipt]]),FileExists(Table147[[#This Row],[Column1]]&Table147[[#This Row],[Charge Receipt]]),FileExists("Y:\$ AerospaceEdge\AGG Finance\AGG Distribution Documents\"&Table147[[#This Row],[Charge Receipt]]))) -> TRUE
A195: BA | B195: 2023-09-01 | C195: Monthly Fee Business Adv Relationship | D195: -29.95 | E195: =IF(Table147[[#This Row],[Bank Acct]]=LEFT(Table147[[#Headers],[BA Balance]],2),SUMIF(Table147[[#Headers],[Bank Acct]]:Table147[[#This Row],[Bank Acct]],Table147[[#This Row],[Bank Acct]],Table147[[#Headers],[Amount]]:Table147[[#This Row],[Amount]]),"") -> 2753 | F195: =IF(Table147[[#This Row],[Bank Acct]]=LEFT(Table147[[#Headers],[WF Balance]],2),SUMIF(Table147[[#Headers],[Bank Acct]]:Table147[[#This Row],[Bank Acct]],Table147[[#This Row],[Bank Acct]],Table147[[#Headers],[Amount]]:Table147[[#This Row],[Amount]]),"") ->  | G195: =IFERROR(INDEX(Lookup!$B$2:$C$7,MATCH(RIGHT(TRIM(Table147[[#This Row],[Description]]),4),Lookup!$B$2:$B$7,0),2),"") ->  | H195: AE | I195: Bank Charge | L195: =IF(OR(LEFT(Table147[[#This Row],[Invoice]],1)="0",LEFT(Table147[[#This Row],[Invoice]],1)="1"),INDEX(Invoice_dates,MATCH(Table147[[#This Row],[Invoice]],'2023 Invoice Payments'!$L$1:$L$100,0),2),"") ->  | M195: Y:\$ AerospaceEdge\AGG Finance\AGG Credit Card Receipts\ | N195: N/A | O195: =IF(RIGHT(Table147[[#This Row],[Charge Receipt]],3)<>"pdf","",IF(FileExists(Table147[[#This Row],[Column1]]&Table147[[#This Row],[Charge Receipt]]),FileExists(Table147[[#This Row],[Column1]]&Table147[[#This Row],[Charge Receipt]]),FileExists("Y:\$ AerospaceEdge\AGG Finance\AGG Distribution Documents\"&Table147[[#This Row],[Charge Receipt]]))) -> 
A196: BA | B196: 2023-09-13 | C196: PEREGRINE AVIONI DES:QUICKBOOKS ID:375020979 INDN:AVIAGLOBAL GROUP, LLC CO ID:1722616653 PPD | D196: 2069 | E196: =IF(Table147[[#This Row],[Bank Acct]]=LEFT(Table147[[#Headers],[BA Balance]],2),SUMIF(Table147[[#Headers],[Bank Acct]]:Table147[[#This Row],[Bank Acct]],Table147[[#This Row],[Bank Acct]],Table147[[#Headers],[Amount]]:Table147[[#This Row],[Amount]]),"") -> 4822 | F196: =IF(Table147[[#This Row],[Bank Acct]]=LEFT(Table147[[#Headers],[WF Balance]],2),SUMIF(Table147[[#Headers],[Bank Acct]]:Table147[[#This Row],[Bank Acct]],Table147[[#This Row],[Bank Acct]],Table147[[#Headers],[Amount]]:Table147[[#This Row],[Amount]]),"") ->  | G196: =IFERROR(INDEX(Lookup!$B$2:$C$7,MATCH(RIGHT(TRIM(Table147[[#This Row],[Description]]),4),Lookup!$B$2:$B$7,0),2),"") ->  | H196: Peregrine | I196: Pmt | K196: 009-23 | L196: =IF(OR(LEFT(Table147[[#This Row],[Invoice]],1)="0",LEFT(Table147[[#This Row],[Invoice]],1)="1"),INDEX(Invoice_dates,MATCH(Table147[[#This Row],[Invoice]],'2023 Invoice Payments'!$L$1:$L$100,0),2),"") -> 2023-09-13 | M196: Y:\$ AerospaceEdge\AGG Finance\AGG Credit Card Receipts\ | O196: =IF(RIGHT(Table147[[#This Row],[Charge Receipt]],3)<>"pdf","",IF(FileExists(Table147[[#This Row],[Column1]]&Table147[[#This Row],[Charge Receipt]]),FileExists(Table147[[#This Row],[Column1]]&Table147[[#This Row],[Charge Receipt]]),FileExists("Y:\$ AerospaceEdge\AGG Finance\AGG Distribution Documents\"&Table147[[#This Row],[Charge Receipt]]))) -> 
A197: BA | B197: 2023-09-14 | C197: STAMPS.COM 09/14 PURCHASE 8556082677 TX DEBIT CARD *7411 | D197: -19.99 | E197: =IF(Table147[[#This Row],[Bank Acct]]=LEFT(Table147[[#Headers],[BA Balance]],2),SUMIF(Table147[[#Headers],[Bank Acct]]:Table147[[#This Row],[Bank Acct]],Table147[[#This Row],[Bank Acct]],Table147[[#Headers],[Amount]]:Table147[[#This Row],[Amount]]),"") -> 4802.01 | F197: =IF(Table147[[#This Row],[Bank Acct]]=LEFT(Table147[[#Headers],[WF Balance]],2),SUMIF(Table147[[#Headers],[Bank Acct]]:Table147[[#This Row],[Bank Acct]],Table147[[#This Row],[Bank Acct]],Table147[[#Headers],[Amount]]:Table147[[#This Row],[Amount]]),"") ->  | G197: =IFERROR(INDEX(Lookup!$B$2:$C$7,MATCH(RIGHT(TRIM(Table147[[#This Row],[Description]]),4),Lookup!$B$2:$B$7,0),2),"") -> LRC | H197: AE | I197: Stamps | L197: =IF(OR(LEFT(Table147[[#This Row],[Invoice]],1)="0",LEFT(Table147[[#This Row],[Invoice]],1)="1"),INDEX(Invoice_dates,MATCH(Table147[[#This Row],[Invoice]],'2023 Invoice Payments'!$L$1:$L$100,0),2),"") ->  | M197: Y:\$ AerospaceEdge\AGG Finance\AGG Credit Card Receipts\ | N197: None available | O197: =IF(RIGHT(Table147[[#This Row],[Charge Receipt]],3)<>"pdf","",IF(FileExists(Table147[[#This Row],[Column1]]&Table147[[#This Row],[Charge Receipt]]),FileExists(Table147[[#This Row],[Column1]]&Table147[[#This Row],[Charge Receipt]]),FileExists("Y:\$ AerospaceEdge\AGG Finance\AGG Distribution Documents\"&Table147[[#This Row],[Charge Receipt]]))) -> 
A198: BA | B198: 2023-09-14 | C198: TRANSFER AVIAGLOBAL GROUP, LL:ADS-B Global LLC Confirmation# 0671784192 | D198: -2000 | E198: =IF(Table147[[#This Row],[Bank Acct]]=LEFT(Table147[[#Headers],[BA Balance]],2),SUMIF(Table147[[#Headers],[Bank Acct]]:Table147[[#This Row],[Bank Acct]],Table147[[#This Row],[Bank Acct]],Table147[[#Headers],[Amount]]:Table147[[#This Row],[Amount]]),"") -> 2802.01 | F198: =IF(Table147[[#This Row],[Bank Acct]]=LEFT(Table147[[#Headers],[WF Balance]],2),SUMIF(Table147[[#Headers],[Bank Acct]]:Table147[[#This Row],[Bank Acct]],Table147[[#This Row],[Bank Acct]],Table147[[#Headers],[Amount]]:Table147[[#This Row],[Amount]]),"") ->  | G198: =IFERROR(INDEX(Lookup!$B$2:$C$7,MATCH(RIGHT(TRIM(Table147[[#This Row],[Description]]),4),Lookup!$B$2:$B$7,0),2),"") ->  | H198: AE | I198: Distibution | L198: =IF(OR(LEFT(Table147[[#This Row],[Invoice]],1)="0",LEFT(Table147[[#This Row],[Invoice]],1)="1"),INDEX(Invoice_dates,MATCH(Table147[[#This Row],[Invoice]],'2023 Invoice Payments'!$L$1:$L$100,0),2),"") ->  | M198: Y:\$ AerospaceEdge\AGG Finance\AGG Credit Card Receipts\ | N198: 230914 - Distribution Authorization - LRC FWC.pdf | O198: =IF(RIGHT(Table147[[#This Row],[Charge Receipt]],3)<>"pdf","",IF(FileExists(Table147[[#This Row],[Column1]]&Table147[[#This Row],[Charge Receipt]]),FileExists(Table147[[#This Row],[Column1]]&Table147[[#This Row],[Charge Receipt]]),FileExists("Y:\$ AerospaceEdge\AGG Finance\AGG Distribution Documents\"&Table147[[#This Row],[Charge Receipt]]))) -> TRUE
